Workbook

Sheet Instructions
E2: COMPATIBLE WITH MS Excel 2010 & above
C4: This Worksheet is purely estimate. New Basic Pay estimation is based on the MOU signed by the Unions with IBA
C6: Steps
C7: 1. | D7: Fill Data in Yellow Cells in the Instructions Sheet as per your opinion ( i.e. What in your opinion DA slab & HRA should be)
C8: 2. | D8: Fill Data in Yellow Cells in the Main sheet
C9: 3. | D9: Correct , if any cell is filled with Red Colour after filling values in Main sheet
C10: 4. | D10: See Results in the Calculation Sheet
C11: Errors/Suggestions in sheet may be mailed at suri.wagerevision@gmail.com, so that improvement may be made in the final calculation sheet after settlement
C13: DA Slab | D13: 0.1 | E13: % (Between 0.10 to 0.15)
C15: HRA OLD
C16: Clerical | D16: B.RATE | E16: OVER% | F16: TOTAL | G16: Sub Staff | H16: B.RATE | I16: OVER% | J16: TOTAL | K16: Officer | L16: B.RATE | M16: OVER% | N16: TOTAL
C17: Pop.> 45 lac | D17: 0.1 | E17: 0 | F17: =(D17+D17*E17) -> 0.1 | G17: Pop.> 45 lac | H17: 0.1 | I17: 0 | J17: =(H17+H17*I17) -> 0.1 | K17: Major A | L17: 0.085 | M17: 0.5 | N17: =(L17+L17*M17) -> 0.1275
C18: Pop.12-45 lac | D18: 0.09 | E18: 0 | F18: =(D18+D18*E18) -> 0.09 | G18: Pop.12-45 lac | H18: 0.09 | I18: 0 | J18: =(H18+H18*I18) -> 0.09 | K18: Area I | L18: 0.075 | M18: 0.5 | N18: =(L18+L18*M18) -> 0.1125
C19: Pop.5-12 lac | D19: 0.075 | E19: 0 | F19: =(D19+D19*E19) -> 0.075 | G19: Pop.5-12 lac | H19: 0.075 | I19: 0 | J19: =(H19+H19*I19) -> 0.075 | K19: Area II | L19: 0.065 | M19: 0.5 | N19: =(L19+L19*M19) -> 0.0975
C20: Pop.< 5 lac | D20: 0.07 | E20: 0 | F20: =(D20+D20*E20) -> 0.07 | G20: Pop.< 5 lac | H20: 0.07 | I20: 0 | J20: =(H20+H20*I20) -> 0.07 | K20: Area III | L20: 0.065 | M20: 0.5 | N20: =(L20+L20*M20) -> 0.0975
C21: NO HRA | D21: 0 | E21: 0 | F21: =(D21+D21*E21) -> 0 | G21: NO HRA | H21: 0 | I21: 0 | J21: =(H21+H21*I21) -> 0 | K21: NO HRA | L21: 0 | M21: 0 | N21: =(L21+L21*M21) -> 0
C24: HRA NEW
C25: Clerical | D25: =+D16 -> B.RATE | E25: OVER% | F25: TOTAL | G25: Sub Staff | H25: =+H16 -> B.RATE | I25: OVER% | J25: TOTAL | K25: Officer | L25: =+L16 -> B.RATE | M25: OVER% | N25: TOTAL
C26: Pop.> 45 lac | D26: 0.1 | E26: 0 | F26: =(D26+D26*E26) -> 0.1 | G26: Pop.> 45 lac | H26: 0.1 | I26: 0 | J26: =(H26+H26*I26) -> 0.1 | K26: Major A | L26: 0.085 | M26: 0.5 | N26: =(L26+L26*M26) -> 0.1275
C27: Pop.12-45 lac | D27: 0.09 | E27: 0 | F27: =(D27+D27*E27) -> 0.09 | G27: Pop.12-45 lac | H27: 0.09 | I27: 0 | J27: =(H27+H27*I27) -> 0.09 | K27: Area I | L27: 0.075 | M27: 0.5 | N27: =(L27+L27*M27) -> 0.1125
C28: Pop.5-12 lac | D28: 0.075 | E28: 0 | F28: =(D28+D28*E28) -> 0.075 | G28: Pop.5-12 lac | H28: 0.075 | I28: 0 | J28: =(H28+H28*I28) -> 0.075 | K28: Area II | L28: 0.065 | M28: 0.5 | N28: =(L28+L28*M28) -> 0.0975
C29: Pop.< 5 lac | D29: 0.07 | E29: 0 | F29: =(D29+D29*E29) -> 0.07 | G29: Pop.< 5 lac | H29: 0.07 | I29: 0 | J29: =(H29+H29*I29) -> 0.07 | K29: Area III | L29: 0.065 | M29: 0.5 | N29: =(L29+L29*M29) -> 0.0975
C30: NO HRA | D30: 0 | E30: 0 | F30: =(D30+D30*E30) -> 0 | G30: NO HRA | H30: 0 | I30: 0 | J30: =(H30+H30*I30) -> 0 | K30: NO HRA | L30: 0 | M30: 0 | N30: =(L30+L30*M30) -> 0

Sheet Main
A1: ** 1.0/0103215** | C1: Name | D1: Suri | I1: Code | N1: Instructions Sheet
A2: Arrear from | D2: Nov. 12 | E2: Till | F2: Feb.15 | N2: Arrear Sheet
A3: Pension /PF/NPS | C3: Pension | E3: COMPATIBLE WITH MS Excel 2010 & above
C5: Without | D5: OLD | E5: OLD | F5: NEW | G5: OLD | H5: OLD | I5: OLD | J5: OLD | K5: OLD | L5: FPP | M5: OLD | N5: OLD | O5: OLD | Q5: OLD | Y5: from | Z5: to | AA5: tot | AB5: New HRA | AC5: New CCA cat | AD5: New CCA % | AE5: New CCA Max
A6: Period | B6: Cadre | C6: Pay | D6: Basic Pay | E6: HRA Category | F6: HRA CAT. | G6: Capital Cost | H6: HRA % | I6: CCA Cat. | J6: CCA Max. | K6: CCA % | L6: Cadre | M6: FPP | N6: Grad./PQP | O6: Special Allowance | Q6: Allowance
A7: =+A!B81 -> Nov. 12 | B7: Clerk | C7: 0 | D7: 7200 | E7: Pop.> 45 lac | F7: =+E7 -> Pop.> 45 lac | G7: N.A. | H7: =IF(B7="S.Staff",VLOOKUP(E7,A!$E$61:$H$65,4,FALSE),IF(B7="Clerk",VLOOKUP(E7,A!$A$61:$D$65,4,FALSE),IF(G7="YES",VLOOKUP(E7,A!$I$61:$L$65,4,FALSE),VLOOKUP(E7,A!$I$61:$L$65,2,FALSE)))) -> 0.1 | I7: N.A. | J7: =IF(B7="Clerk",0,IF(B7="S.Staff",0,VLOOKUP(I7,A!$J$124:$L$126,3,FALSE))) -> 0 | K7: =IF(B7="Clerk",0,IF(B7="S.Staff",0,VLOOKUP(I7,A!$J$124:$K$126,2,FALSE))) -> 0 | L7: N.A. | M7: 0 | N7: 0 | O7: No Spl. Allowance | Q7: =IF(B7="Clerk",VLOOKUP(O7,A!$B$178:$G$181,6,FALSE),IF(B7="S.Staff",VLOOKUP(O7,A!$I$178:$N$186,6,FALSE),0)) -> 0 | Y7: =IF(VLOOKUP(Main!A7,A!$B$81:$C$118,2,FALSE)<VLOOKUP($D$2,A!$B$81:$C$118,2,FALSE),1,0) -> 0 | Z7: =IF(VLOOKUP(Main!A7,A!$B$81:$C$118,2,FALSE)>VLOOKUP($F$2,A!$B$81:$C$118,2,FALSE),1,0) -> 0 | AA7: =+Y7+Z7 -> 0 | AB7: =IF(B7="S.Staff",VLOOKUP(F7,A!$E$70:$H$74,4,FALSE),IF(B7="Clerk",VLOOKUP(F7,A!$A$70:$D$74,4,FALSE),IF(Main!G7="Yes",VLOOKUP(F7,A!$I$70:$L$74,4,FALSE),VLOOKUP(F7,A!$I$70:$L$74,2,FALSE)))) -> 0.1 | AC7: =+I7 -> N.A. | AD7: =IF(B7="Clerk",0,IF(B7="S.Staff",0,VLOOKUP(AC7,A!$J$131:$M$133,2,FALSE))) -> 0 | AE7: =IF(B7="Clerk",0,IF(B7="S.Staff",0,VLOOKUP(AC7,A!$J$131:$M$133,3,FALSE))) -> 0
A8: =+A!B82 -> Dec.12 | B8: =+B7 -> Clerk | C8: 0 | D8: =+D7 -> 7200 | E8: =+E7 -> Pop.> 45 lac | F8: =+E8 -> Pop.> 45 lac | G8: =+G7 -> N.A. | H8: =IF(B8="S.Staff",VLOOKUP(E8,A!$E$61:$H$65,4,FALSE),IF(B8="Clerk",VLOOKUP(E8,A!$A$61:$D$65,4,FALSE),IF(G8="YES",VLOOKUP(E8,A!$I$61:$L$65,4,FALSE),VLOOKUP(E8,A!$I$61:$L$65,2,FALSE)))) -> 0.1 | I8: =+I7 -> N.A. | J8: =IF(B8="Clerk",0,IF(B8="S.Staff",0,VLOOKUP(I8,A!$J$124:$L$126,3,FALSE))) -> 0 | K8: =IF(B8="Clerk",0,IF(B8="S.Staff",0,VLOOKUP(I8,A!$J$124:$K$126,2,FALSE))) -> 0 | L8: =+L7 -> N.A. | M8: =+M7 -> 0 | N8: =+N7 -> 0 | O8: =+O7 -> No Spl. Allowance | Q8: =IF(B8="Clerk",VLOOKUP(O8,A!$B$178:$G$181,6,FALSE),IF(B8="S.Staff",VLOOKUP(O8,A!$I$178:$N$186,6,FALSE),0)) -> 0 | Y8: =IF(VLOOKUP(Main!A8,A!$B$81:$C$118,2,FALSE)<VLOOKUP($D$2,A!$B$81:$C$118,2,FALSE),1,0) -> 0 | Z8: =IF(VLOOKUP(Main!A8,A!$B$81:$C$118,2,FALSE)>VLOOKUP($F$2,A!$B$81:$C$118,2,FALSE),1,0) -> 0 | AA8: =+Y8+Z8 -> 0 | AB8: =IF(B8="S.Staff",VLOOKUP(F8,A!$E$70:$H$74,4,FALSE),IF(B8="Clerk",VLOOKUP(F8,A!$A$70:$D$74,4,FALSE),IF(Main!G8="Yes",VLOOKUP(F8,A!$I$70:$L$74,4,FALSE),VLOOKUP(F8,A!$I$70:$L$74,2,FALSE)))) -> 0.1 | AC8: =+I8 -> N.A. | AD8: =IF(B8="Clerk",0,IF(B8="S.Staff",0,VLOOKUP(AC8,A!$J$131:$M$133,2,FALSE))) -> 0 | AE8: =IF(B8="Clerk",0,IF(B8="S.Staff",0,VLOOKUP(AC8,A!$J$131:$M$133,3,FALSE))) -> 0
A9: =+A!B83 -> Jan.13 | B9: Clerk | C9: 0 | D9: =+D8 -> 7200 | E9: =+E8 -> Pop.> 45 lac | F9: Pop.> 45 lac | G9: =+G8 -> N.A. | H9: =IF(B9="S.Staff",VLOOKUP(E9,A!$E$61:$H$65,4,FALSE),IF(B9="Clerk",VLOOKUP(E9,A!$A$61:$D$65,4,FALSE),IF(G9="YES",VLOOKUP(E9,A!$I$61:$L$65,4,FALSE),VLOOKUP(E9,A!$I$61:$L$65,2,FALSE)))) -> 0.1 | I9: =+I8 -> N.A. | J9: =IF(B9="Clerk",0,IF(B9="S.Staff",0,VLOOKUP(I9,A!$J$124:$L$126,3,FALSE))) -> 0 | K9: =IF(B9="Clerk",0,IF(B9="S.Staff",0,VLOOKUP(I9,A!$J$124:$K$126,2,FALSE))) -> 0 | L9: N.A. | M9: =+M8 -> 0 | N9: =+N8 -> 0 | O9: =+O8 -> No Spl. Allowance | Q9: =IF(B9="Clerk",VLOOKUP(O9,A!$B$178:$G$181,6,FALSE),IF(B9="S.Staff",VLOOKUP(O9,A!$I$178:$N$186,6,FALSE),0)) -> 0 | Y9: =IF(VLOOKUP(Main!A9,A!$B$81:$C$118,2,FALSE)<VLOOKUP($D$2,A!$B$81:$C$118,2,FALSE),1,0) -> 0 | Z9: =IF(VLOOKUP(Main!A9,A!$B$81:$C$118,2,FALSE)>VLOOKUP($F$2,A!$B$81:$C$118,2,FALSE),1,0) -> 0 | AA9: 0 | AB9: =IF(B9="S.Staff",VLOOKUP(F9,A!$E$70:$H$74,4,FALSE),IF(B9="Clerk",VLOOKUP(F9,A!$A$70:$D$74,4,FALSE),IF(Main!G9="Yes",VLOOKUP(F9,A!$I$70:$L$74,4,FALSE),VLOOKUP(F9,A!$I$70:$L$74,2,FALSE)))) -> 0.1 | AC9: N.A. | AD9: =IF(B9="Clerk",0,IF(B9="S.Staff",0,VLOOKUP(AC9,A!$J$131:$M$133,2,FALSE))) -> 0 | AE9: =IF(B9="Clerk",0,IF(B9="S.Staff",0,VLOOKUP(AC9,A!$J$131:$M$133,3,FALSE))) -> 0
A10: =+A!B84 -> Feb.13 | B10: Clerk | C10: 0 | D10: 7200 | E10: Pop.> 45 lac | F10: Pop.> 45 lac | G10: N.A. | H10: =IF(B10="S.Staff",VLOOKUP(E10,A!$E$61:$H$65,4,FALSE),IF(B10="Clerk",VLOOKUP(E10,A!$A$61:$D$65,4,FALSE),IF(G10="YES",VLOOKUP(E10,A!$I$61:$L$65,4,FALSE),VLOOKUP(E10,A!$I$61:$L$65,2,FALSE)))) -> 0.1 | I10: N.A. | J10: =IF(B10="Clerk",0,IF(B10="S.Staff",0,VLOOKUP(I10,A!$J$124:$L$126,3,FALSE))) -> 0 | K10: =IF(B10="Clerk",0,IF(B10="S.Staff",0,VLOOKUP(I10,A!$J$124:$K$126,2,FALSE))) -> 0 | L10: N.A. | M10: 0 | N10: 0 | O10: No Spl. Allowance | Q10: =IF(B10="Clerk",VLOOKUP(O10,A!$B$178:$G$181,6,FALSE),IF(B10="S.Staff",VLOOKUP(O10,A!$I$178:$N$186,6,FALSE),0)) -> 0 | Y10: =IF(VLOOKUP(Main!A10,A!$B$81:$C$118,2,FALSE)<VLOOKUP($D$2,A!$B$81:$C$118,2,FALSE),1,0) -> 0 | Z10: =IF(VLOOKUP(Main!A10,A!$B$81:$C$118,2,FALSE)>VLOOKUP($F$2,A!$B$81:$C$118,2,FALSE),1,0) -> 0 | AA10: 0 | AB10: =IF(B10="S.Staff",VLOOKUP(F10,A!$E$70:$H$74,4,FALSE),IF(B10="Clerk",VLOOKUP(F10,A!$A$70:$D$74,4,FALSE),IF(Main!G10="Yes",VLOOKUP(F10,A!$I$70:$L$74,4,FALSE),VLOOKUP(F10,A!$I$70:$L$74,2,FALSE)))) -> 0.1 | AC10: N.A. | AD10: =IF(B10="Clerk",0,IF(B10="S.Staff",0,VLOOKUP(AC10,A!$J$131:$M$133,2,FALSE))) -> 0 | AE10: =IF(B10="Clerk",0,IF(B10="S.Staff",0,VLOOKUP(AC10,A!$J$131:$M$133,3,FALSE))) -> 0
A11: =+A!B85 -> Mar.13 | B11: Clerk | C11: 0 | D11: 7200 | E11: Pop.> 45 lac | F11: Pop.> 45 lac | G11: N.A. | H11: =IF(B11="S.Staff",VLOOKUP(E11,A!$E$61:$H$65,4,FALSE),IF(B11="Clerk",VLOOKUP(E11,A!$A$61:$D$65,4,FALSE),IF(G11="YES",VLOOKUP(E11,A!$I$61:$L$65,4,FALSE),VLOOKUP(E11,A!$I$61:$L$65,2,FALSE)))) -> 0.1 | I11: N.A. | J11: =IF(B11="Clerk",0,IF(B11="S.Staff",0,VLOOKUP(I11,A!$J$124:$L$126,3,FALSE))) -> 0 | K11: =IF(B11="Clerk",0,IF(B11="S.Staff",0,VLOOKUP(I11,A!$J$124:$K$126,2,FALSE))) -> 0 | L11: N.A. | M11: 0 | N11: 0 | O11: No Spl. Allowance | Q11: =IF(B11="Clerk",VLOOKUP(O11,A!$B$178:$G$181,6,FALSE),IF(B11="S.Staff",VLOOKUP(O11,A!$I$178:$N$186,6,FALSE),0)) -> 0 | Y11: =IF(VLOOKUP(Main!A11,A!$B$81:$C$118,2,FALSE)<VLOOKUP($D$2,A!$B$81:$C$118,2,FALSE),1,0) -> 0 | Z11: =IF(VLOOKUP(Main!A11,A!$B$81:$C$118,2,FALSE)>VLOOKUP($F$2,A!$B$81:$C$118,2,FALSE),1,0) -> 0 | AA11: 0 | AB11: =IF(B11="S.Staff",VLOOKUP(F11,A!$E$70:$H$74,4,FALSE),IF(B11="Clerk",VLOOKUP(F11,A!$A$70:$D$74,4,FALSE),IF(Main!G11="Yes",VLOOKUP(F11,A!$I$70:$L$74,4,FALSE),VLOOKUP(F11,A!$I$70:$L$74,2,FALSE)))) -> 0.1 | AC11: N.A. | AD11: =IF(B11="Clerk",0,IF(B11="S.Staff",0,VLOOKUP(AC11,A!$J$131:$M$133,2,FALSE))) -> 0 | AE11: =IF(B11="Clerk",0,IF(B11="S.Staff",0,VLOOKUP(AC11,A!$J$131:$M$133,3,FALSE))) -> 0
A12: =+A!B86 -> Apr.13 | B12: Clerk | C12: 0 | D12: 7200 | E12: Pop.> 45 lac | F12: Pop.> 45 lac | G12: N.A. | H12: =IF(B12="S.Staff",VLOOKUP(E12,A!$E$61:$H$65,4,FALSE),IF(B12="Clerk",VLOOKUP(E12,A!$A$61:$D$65,4,FALSE),IF(G12="YES",VLOOKUP(E12,A!$I$61:$L$65,4,FALSE),VLOOKUP(E12,A!$I$61:$L$65,2,FALSE)))) -> 0.1 | I12: N.A. | J12: =IF(B12="Clerk",0,IF(B12="S.Staff",0,VLOOKUP(I12,A!$J$124:$L$126,3,FALSE))) -> 0 | K12: =IF(B12="Clerk",0,IF(B12="S.Staff",0,VLOOKUP(I12,A!$J$124:$K$126,2,FALSE))) -> 0 | L12: N.A. | M12: 0 | N12: 0 | O12: No Spl. Allowance | Q12: =IF(B12="Clerk",VLOOKUP(O12,A!$B$178:$G$181,6,FALSE),IF(B12="S.Staff",VLOOKUP(O12,A!$I$178:$N$186,6,FALSE),0)) -> 0 | Y12: =IF(VLOOKUP(Main!A12,A!$B$81:$C$118,2,FALSE)<VLOOKUP($D$2,A!$B$81:$C$118,2,FALSE),1,0) -> 0 | Z12: =IF(VLOOKUP(Main!A12,A!$B$81:$C$118,2,FALSE)>VLOOKUP($F$2,A!$B$81:$C$118,2,FALSE),1,0) -> 0 | AA12: 0 | AB12: =IF(B12="S.Staff",VLOOKUP(F12,A!$E$70:$H$74,4,FALSE),IF(B12="Clerk",VLOOKUP(F12,A!$A$70:$D$74,4,FALSE),IF(Main!G12="Yes",VLOOKUP(F12,A!$I$70:$L$74,4,FALSE),VLOOKUP(F12,A!$I$70:$L$74,2,FALSE)))) -> 0.1 | AC12: N.A. | AD12: =IF(B12="Clerk",0,IF(B12="S.Staff",0,VLOOKUP(AC12,A!$J$131:$M$133,2,FALSE))) -> 0 | AE12: =IF(B12="Clerk",0,IF(B12="S.Staff",0,VLOOKUP(AC12,A!$J$131:$M$133,3,FALSE))) -> 0
A13: =+A!B87 -> May.13 | B13: Clerk | C13: 0 | D13: 7200 | E13: Pop.> 45 lac | F13: Pop.> 45 lac | G13: N.A. | H13: =IF(B13="S.Staff",VLOOKUP(E13,A!$E$61:$H$65,4,FALSE),IF(B13="Clerk",VLOOKUP(E13,A!$A$61:$D$65,4,FALSE),IF(G13="YES",VLOOKUP(E13,A!$I$61:$L$65,4,FALSE),VLOOKUP(E13,A!$I$61:$L$65,2,FALSE)))) -> 0.1 | I13: N.A. | J13: =IF(B13="Clerk",0,IF(B13="S.Staff",0,VLOOKUP(I13,A!$J$124:$L$126,3,FALSE))) -> 0 | K13: =IF(B13="Clerk",0,IF(B13="S.Staff",0,VLOOKUP(I13,A!$J$124:$K$126,2,FALSE))) -> 0 | L13: N.A. | M13: 0 | N13: 0 | O13: No Spl. Allowance | Q13: =IF(B13="Clerk",VLOOKUP(O13,A!$B$178:$G$181,6,FALSE),IF(B13="S.Staff",VLOOKUP(O13,A!$I$178:$N$186,6,FALSE),0)) -> 0 | Y13: =IF(VLOOKUP(Main!A13,A!$B$81:$C$118,2,FALSE)<VLOOKUP($D$2,A!$B$81:$C$118,2,FALSE),1,0) -> 0 | Z13: =IF(VLOOKUP(Main!A13,A!$B$81:$C$118,2,FALSE)>VLOOKUP($F$2,A!$B$81:$C$118,2,FALSE),1,0) -> 0 | AA13: 0 | AB13: =IF(B13="S.Staff",VLOOKUP(F13,A!$E$70:$H$74,4,FALSE),IF(B13="Clerk",VLOOKUP(F13,A!$A$70:$D$74,4,FALSE),IF(Main!G13="Yes",VLOOKUP(F13,A!$I$70:$L$74,4,FALSE),VLOOKUP(F13,A!$I$70:$L$74,2,FALSE)))) -> 0.1 | AC13: N.A. | AD13: =IF(B13="Clerk",0,IF(B13="S.Staff",0,VLOOKUP(AC13,A!$J$131:$M$133,2,FALSE))) -> 0 | AE13: =IF(B13="Clerk",0,IF(B13="S.Staff",0,VLOOKUP(AC13,A!$J$131:$M$133,3,FALSE))) -> 0
A14: =+A!B88 -> Jun.13 | B14: Clerk | C14: 0 | D14: 7200 | E14: Pop.> 45 lac | F14: Pop.> 45 lac | G14: N.A. | H14: =IF(B14="S.Staff",VLOOKUP(E14,A!$E$61:$H$65,4,FALSE),IF(B14="Clerk",VLOOKUP(E14,A!$A$61:$D$65,4,FALSE),IF(G14="YES",VLOOKUP(E14,A!$I$61:$L$65,4,FALSE),VLOOKUP(E14,A!$I$61:$L$65,2,FALSE)))) -> 0.1 | I14: N.A. | J14: =IF(B14="Clerk",0,IF(B14="S.Staff",0,VLOOKUP(I14,A!$J$124:$L$126,3,FALSE))) -> 0 | K14: =IF(B14="Clerk",0,IF(B14="S.Staff",0,VLOOKUP(I14,A!$J$124:$K$126,2,FALSE))) -> 0 | L14: N.A. | M14: 0 | N14: 0 | O14: No Spl. Allowance | Q14: =IF(B14="Clerk",VLOOKUP(O14,A!$B$178:$G$181,6,FALSE),IF(B14="S.Staff",VLOOKUP(O14,A!$I$178:$N$186,6,FALSE),0)) -> 0 | Y14: =IF(VLOOKUP(Main!A14,A!$B$81:$C$118,2,FALSE)<VLOOKUP($D$2,A!$B$81:$C$118,2,FALSE),1,0) -> 0 | Z14: =IF(VLOOKUP(Main!A14,A!$B$81:$C$118,2,FALSE)>VLOOKUP($F$2,A!$B$81:$C$118,2,FALSE),1,0) -> 0 | AA14: 0 | AB14: =IF(B14="S.Staff",VLOOKUP(F14,A!$E$70:$H$74,4,FALSE),IF(B14="Clerk",VLOOKUP(F14,A!$A$70:$D$74,4,FALSE),IF(Main!G14="Yes",VLOOKUP(F14,A!$I$70:$L$74,4,FALSE),VLOOKUP(F14,A!$I$70:$L$74,2,FALSE)))) -> 0.1 | AC14: N.A. | AD14: =IF(B14="Clerk",0,IF(B14="S.Staff",0,VLOOKUP(AC14,A!$J$131:$M$133,2,FALSE))) -> 0 | AE14: =IF(B14="Clerk",0,IF(B14="S.Staff",0,VLOOKUP(AC14,A!$J$131:$M$133,3,FALSE))) -> 0
A15: =+A!B89 -> Jul.13 | B15: Clerk | C15: 0 | D15: 7200 | E15: Pop.> 45 lac | F15: Pop.> 45 lac | G15: N.A. | H15: =IF(B15="S.Staff",VLOOKUP(E15,A!$E$61:$H$65,4,FALSE),IF(B15="Clerk",VLOOKUP(E15,A!$A$61:$D$65,4,FALSE),IF(G15="YES",VLOOKUP(E15,A!$I$61:$L$65,4,FALSE),VLOOKUP(E15,A!$I$61:$L$65,2,FALSE)))) -> 0.1 | I15: N.A. | J15: =IF(B15="Clerk",0,IF(B15="S.Staff",0,VLOOKUP(I15,A!$J$124:$L$126,3,FALSE))) -> 0 | K15: =IF(B15="Clerk",0,IF(B15="S.Staff",0,VLOOKUP(I15,A!$J$124:$K$126,2,FALSE))) -> 0 | L15: N.A. | M15: 0 | N15: 0 | O15: No Spl. Allowance | Q15: =IF(B15="Clerk",VLOOKUP(O15,A!$B$178:$G$181,6,FALSE),IF(B15="S.Staff",VLOOKUP(O15,A!$I$178:$N$186,6,FALSE),0)) -> 0 | Y15: =IF(VLOOKUP(Main!A15,A!$B$81:$C$118,2,FALSE)<VLOOKUP($D$2,A!$B$81:$C$118,2,FALSE),1,0) -> 0 | Z15: =IF(VLOOKUP(Main!A15,A!$B$81:$C$118,2,FALSE)>VLOOKUP($F$2,A!$B$81:$C$118,2,FALSE),1,0) -> 0 | AA15: 0 | AB15: =IF(B15="S.Staff",VLOOKUP(F15,A!$E$70:$H$74,4,FALSE),IF(B15="Clerk",VLOOKUP(F15,A!$A$70:$D$74,4,FALSE),IF(Main!G15="Yes",VLOOKUP(F15,A!$I$70:$L$74,4,FALSE),VLOOKUP(F15,A!$I$70:$L$74,2,FALSE)))) -> 0.1 | AC15: N.A. | AD15: =IF(B15="Clerk",0,IF(B15="S.Staff",0,VLOOKUP(AC15,A!$J$131:$M$133,2,FALSE))) -> 0 | AE15: =IF(B15="Clerk",0,IF(B15="S.Staff",0,VLOOKUP(AC15,A!$J$131:$M$133,3,FALSE))) -> 0
A16: =+A!B90 -> Aug.13 | B16: Clerk | C16: 0 | D16: 7200 | E16: Pop.> 45 lac | F16: Pop.> 45 lac | G16: N.A. | H16: =IF(B16="S.Staff",VLOOKUP(E16,A!$E$61:$H$65,4,FALSE),IF(B16="Clerk",VLOOKUP(E16,A!$A$61:$D$65,4,FALSE),IF(G16="YES",VLOOKUP(E16,A!$I$61:$L$65,4,FALSE),VLOOKUP(E16,A!$I$61:$L$65,2,FALSE)))) -> 0.1 | I16: N.A. | J16: =IF(B16="Clerk",0,IF(B16="S.Staff",0,VLOOKUP(I16,A!$J$124:$L$126,3,FALSE))) -> 0 | K16: =IF(B16="Clerk",0,IF(B16="S.Staff",0,VLOOKUP(I16,A!$J$124:$K$126,2,FALSE))) -> 0 | L16: N.A. | M16: 0 | N16: 0 | O16: No Spl. Allowance | Q16: =IF(B16="Clerk",VLOOKUP(O16,A!$B$178:$G$181,6,FALSE),IF(B16="S.Staff",VLOOKUP(O16,A!$I$178:$N$186,6,FALSE),0)) -> 0 | Y16: =IF(VLOOKUP(Main!A16,A!$B$81:$C$118,2,FALSE)<VLOOKUP($D$2,A!$B$81:$C$118,2,FALSE),1,0) -> 0 | Z16: =IF(VLOOKUP(Main!A16,A!$B$81:$C$118,2,FALSE)>VLOOKUP($F$2,A!$B$81:$C$118,2,FALSE),1,0) -> 0 | AA16: 0 | AB16: =IF(B16="S.Staff",VLOOKUP(F16,A!$E$70:$H$74,4,FALSE),IF(B16="Clerk",VLOOKUP(F16,A!$A$70:$D$74,4,FALSE),IF(Main!G16="Yes",VLOOKUP(F16,A!$I$70:$L$74,4,FALSE),VLOOKUP(F16,A!$I$70:$L$74,2,FALSE)))) -> 0.1 | AC16: N.A. | AD16: =IF(B16="Clerk",0,IF(B16="S.Staff",0,VLOOKUP(AC16,A!$J$131:$M$133,2,FALSE))) -> 0 | AE16: =IF(B16="Clerk",0,IF(B16="S.Staff",0,VLOOKUP(AC16,A!$J$131:$M$133,3,FALSE))) -> 0
A17: =+A!B91 -> Sep.13 | B17: Clerk | C17: 0 | D17: 7200 | E17: Pop.> 45 lac | F17: Pop.> 45 lac | G17: N.A. | H17: =IF(B17="S.Staff",VLOOKUP(E17,A!$E$61:$H$65,4,FALSE),IF(B17="Clerk",VLOOKUP(E17,A!$A$61:$D$65,4,FALSE),IF(G17="YES",VLOOKUP(E17,A!$I$61:$L$65,4,FALSE),VLOOKUP(E17,A!$I$61:$L$65,2,FALSE)))) -> 0.1 | I17: N.A. | J17: =IF(B17="Clerk",0,IF(B17="S.Staff",0,VLOOKUP(I17,A!$J$124:$L$126,3,FALSE))) -> 0 | K17: =IF(B17="Clerk",0,IF(B17="S.Staff",0,VLOOKUP(I17,A!$J$124:$K$126,2,FALSE))) -> 0 | L17: N.A. | M17: 0 | N17: 0 | O17: No Spl. Allowance | Q17: =IF(B17="Clerk",VLOOKUP(O17,A!$B$178:$G$181,6,FALSE),IF(B17="S.Staff",VLOOKUP(O17,A!$I$178:$N$186,6,FALSE),0)) -> 0 | Y17: =IF(VLOOKUP(Main!A17,A!$B$81:$C$118,2,FALSE)<VLOOKUP($D$2,A!$B$81:$C$118,2,FALSE),1,0) -> 0 | Z17: =IF(VLOOKUP(Main!A17,A!$B$81:$C$118,2,FALSE)>VLOOKUP($F$2,A!$B$81:$C$118,2,FALSE),1,0) -> 0 | AA17: 0 | AB17: =IF(B17="S.Staff",VLOOKUP(F17,A!$E$70:$H$74,4,FALSE),IF(B17="Clerk",VLOOKUP(F17,A!$A$70:$D$74,4,FALSE),IF(Main!G17="Yes",VLOOKUP(F17,A!$I$70:$L$74,4,FALSE),VLOOKUP(F17,A!$I$70:$L$74,2,FALSE)))) -> 0.1 | AC17: N.A. | AD17: =IF(B17="Clerk",0,IF(B17="S.Staff",0,VLOOKUP(AC17,A!$J$131:$M$133,2,FALSE))) -> 0 | AE17: =IF(B17="Clerk",0,IF(B17="S.Staff",0,VLOOKUP(AC17,A!$J$131:$M$133,3,FALSE))) -> 0
A18: =+A!B92 -> Oct.13 | B18: Clerk | C18: 0 | D18: 7200 | E18: Pop.> 45 lac | F18: Pop.> 45 lac | G18: N.A. | H18: =IF(B18="S.Staff",VLOOKUP(E18,A!$E$61:$H$65,4,FALSE),IF(B18="Clerk",VLOOKUP(E18,A!$A$61:$D$65,4,FALSE),IF(G18="YES",VLOOKUP(E18,A!$I$61:$L$65,4,FALSE),VLOOKUP(E18,A!$I$61:$L$65,2,FALSE)))) -> 0.1 | I18: N.A. | J18: =IF(B18="Clerk",0,IF(B18="S.Staff",0,VLOOKUP(I18,A!$J$124:$L$126,3,FALSE))) -> 0 | K18: =IF(B18="Clerk",0,IF(B18="S.Staff",0,VLOOKUP(I18,A!$J$124:$K$126,2,FALSE))) -> 0 | L18: N.A. | M18: 0 | N18: 0 | O18: No Spl. Allowance | Q18: =IF(B18="Clerk",VLOOKUP(O18,A!$B$178:$G$181,6,FALSE),IF(B18="S.Staff",VLOOKUP(O18,A!$I$178:$N$186,6,FALSE),0)) -> 0 | Y18: =IF(VLOOKUP(Main!A18,A!$B$81:$C$118,2,FALSE)<VLOOKUP($D$2,A!$B$81:$C$118,2,FALSE),1,0) -> 0 | Z18: =IF(VLOOKUP(Main!A18,A!$B$81:$C$118,2,FALSE)>VLOOKUP($F$2,A!$B$81:$C$118,2,FALSE),1,0) -> 0 | AA18: 0 | AB18: =IF(B18="S.Staff",VLOOKUP(F18,A!$E$70:$H$74,4,FALSE),IF(B18="Clerk",VLOOKUP(F18,A!$A$70:$D$74,4,FALSE),IF(Main!G18="Yes",VLOOKUP(F18,A!$I$70:$L$74,4,FALSE),VLOOKUP(F18,A!$I$70:$L$74,2,FALSE)))) -> 0.1 | AC18: N.A. | AD18: =IF(B18="Clerk",0,IF(B18="S.Staff",0,VLOOKUP(AC18,A!$J$131:$M$133,2,FALSE))) -> 0 | AE18: =IF(B18="Clerk",0,IF(B18="S.Staff",0,VLOOKUP(AC18,A!$J$131:$M$133,3,FALSE))) -> 0
A19: =+A!B93 -> Nov.13 | B19: Clerk | C19: 0 | D19: 7200 | E19: Pop.> 45 lac | F19: Pop.> 45 lac | G19: N.A. | H19: =IF(B19="S.Staff",VLOOKUP(E19,A!$E$61:$H$65,4,FALSE),IF(B19="Clerk",VLOOKUP(E19,A!$A$61:$D$65,4,FALSE),IF(G19="YES",VLOOKUP(E19,A!$I$61:$L$65,4,FALSE),VLOOKUP(E19,A!$I$61:$L$65,2,FALSE)))) -> 0.1 | I19: N.A. | J19: =IF(B19="Clerk",0,IF(B19="S.Staff",0,VLOOKUP(I19,A!$J$124:$L$126,3,FALSE))) -> 0 | K19: =IF(B19="Clerk",0,IF(B19="S.Staff",0,VLOOKUP(I19,A!$J$124:$K$126,2,FALSE))) -> 0 | L19: N.A. | M19: 0 | N19: 0 | O19: No Spl. Allowance | Q19: =IF(B19="Clerk",VLOOKUP(O19,A!$B$178:$G$181,6,FALSE),IF(B19="S.Staff",VLOOKUP(O19,A!$I$178:$N$186,6,FALSE),0)) -> 0 | Y19: =IF(VLOOKUP(Main!A19,A!$B$81:$C$118,2,FALSE)<VLOOKUP($D$2,A!$B$81:$C$118,2,FALSE),1,0) -> 0 | Z19: =IF(VLOOKUP(Main!A19,A!$B$81:$C$118,2,FALSE)>VLOOKUP($F$2,A!$B$81:$C$118,2,FALSE),1,0) -> 0 | AA19: 0 | AB19: =IF(B19="S.Staff",VLOOKUP(F19,A!$E$70:$H$74,4,FALSE),IF(B19="Clerk",VLOOKUP(F19,A!$A$70:$D$74,4,FALSE),IF(Main!G19="Yes",VLOOKUP(F19,A!$I$70:$L$74,4,FALSE),VLOOKUP(F19,A!$I$70:$L$74,2,FALSE)))) -> 0.1 | AC19: N.A. | AD19: =IF(B19="Clerk",0,IF(B19="S.Staff",0,VLOOKUP(AC19,A!$J$131:$M$133,2,FALSE))) -> 0 | AE19: =IF(B19="Clerk",0,IF(B19="S.Staff",0,VLOOKUP(AC19,A!$J$131:$M$133,3,FALSE))) -> 0
A20: =+A!B94 -> Dec.13 | B20: Clerk | C20: 0 | D20: 7200 | E20: Pop.> 45 lac | F20: Pop.> 45 lac | G20: N.A. | H20: =IF(B20="S.Staff",VLOOKUP(E20,A!$E$61:$H$65,4,FALSE),IF(B20="Clerk",VLOOKUP(E20,A!$A$61:$D$65,4,FALSE),IF(G20="YES",VLOOKUP(E20,A!$I$61:$L$65,4,FALSE),VLOOKUP(E20,A!$I$61:$L$65,2,FALSE)))) -> 0.1 | I20: N.A. | J20: =IF(B20="Clerk",0,IF(B20="S.Staff",0,VLOOKUP(I20,A!$J$124:$L$126,3,FALSE))) -> 0 | K20: =IF(B20="Clerk",0,IF(B20="S.Staff",0,VLOOKUP(I20,A!$J$124:$K$126,2,FALSE))) -> 0 | L20: N.A. | M20: 0 | N20: 0 | O20: No Spl. Allowance | Q20: =IF(B20="Clerk",VLOOKUP(O20,A!$B$178:$G$181,6,FALSE),IF(B20="S.Staff",VLOOKUP(O20,A!$I$178:$N$186,6,FALSE),0)) -> 0 | Y20: =IF(VLOOKUP(Main!A20,A!$B$81:$C$118,2,FALSE)<VLOOKUP($D$2,A!$B$81:$C$118,2,FALSE),1,0) -> 0 | Z20: =IF(VLOOKUP(Main!A20,A!$B$81:$C$118,2,FALSE)>VLOOKUP($F$2,A!$B$81:$C$118,2,FALSE),1,0) -> 0 | AA20: 0 | AB20: =IF(B20="S.Staff",VLOOKUP(F20,A!$E$70:$H$74,4,FALSE),IF(B20="Clerk",VLOOKUP(F20,A!$A$70:$D$74,4,FALSE),IF(Main!G20="Yes",VLOOKUP(F20,A!$I$70:$L$74,4,FALSE),VLOOKUP(F20,A!$I$70:$L$74,2,FALSE)))) -> 0.1 | AC20: N.A. | AD20: =IF(B20="Clerk",0,IF(B20="S.Staff",0,VLOOKUP(AC20,A!$J$131:$M$133,2,FALSE))) -> 0 | AE20: =IF(B20="Clerk",0,IF(B20="S.Staff",0,VLOOKUP(AC20,A!$J$131:$M$133,3,FALSE))) -> 0
A21: =+A!B95 -> Jan.14 | B21: Clerk | C21: 0 | D21: 7200 | E21: Pop.> 45 lac | F21: Pop.> 45 lac | G21: N.A. | H21: =IF(B21="S.Staff",VLOOKUP(E21,A!$E$61:$H$65,4,FALSE),IF(B21="Clerk",VLOOKUP(E21,A!$A$61:$D$65,4,FALSE),IF(G21="YES",VLOOKUP(E21,A!$I$61:$L$65,4,FALSE),VLOOKUP(E21,A!$I$61:$L$65,2,FALSE)))) -> 0.1 | I21: N.A. | J21: =IF(B21="Clerk",0,IF(B21="S.Staff",0,VLOOKUP(I21,A!$J$124:$L$126,3,FALSE))) -> 0 | K21: =IF(B21="Clerk",0,IF(B21="S.Staff",0,VLOOKUP(I21,A!$J$124:$K$126,2,FALSE))) -> 0 | L21: N.A. | M21: 0 | N21: 0 | O21: No Spl. Allowance | Q21: =IF(B21="Clerk",VLOOKUP(O21,A!$B$178:$G$181,6,FALSE),IF(B21="S.Staff",VLOOKUP(O21,A!$I$178:$N$186,6,FALSE),0)) -> 0 | Y21: =IF(VLOOKUP(Main!A21,A!$B$81:$C$118,2,FALSE)<VLOOKUP($D$2,A!$B$81:$C$118,2,FALSE),1,0) -> 0 | Z21: =IF(VLOOKUP(Main!A21,A!$B$81:$C$118,2,FALSE)>VLOOKUP($F$2,A!$B$81:$C$118,2,FALSE),1,0) -> 0 | AA21: 0 | AB21: =IF(B21="S.Staff",VLOOKUP(F21,A!$E$70:$H$74,4,FALSE),IF(B21="Clerk",VLOOKUP(F21,A!$A$70:$D$74,4,FALSE),IF(Main!G21="Yes",VLOOKUP(F21,A!$I$70:$L$74,4,FALSE),VLOOKUP(F21,A!$I$70:$L$74,2,FALSE)))) -> 0.1 | AC21: N.A. | AD21: =IF(B21="Clerk",0,IF(B21="S.Staff",0,VLOOKUP(AC21,A!$J$131:$M$133,2,FALSE))) -> 0 | AE21: =IF(B21="Clerk",0,IF(B21="S.Staff",0,VLOOKUP(AC21,A!$J$131:$M$133,3,FALSE))) -> 0
A22: =+A!B96 -> Feb.14 | B22: Clerk | C22: 0 | D22: 7200 | E22: Pop.> 45 lac | F22: Pop.> 45 lac | G22: N.A. | H22: =IF(B22="S.Staff",VLOOKUP(E22,A!$E$61:$H$65,4,FALSE),IF(B22="Clerk",VLOOKUP(E22,A!$A$61:$D$65,4,FALSE),IF(G22="YES",VLOOKUP(E22,A!$I$61:$L$65,4,FALSE),VLOOKUP(E22,A!$I$61:$L$65,2,FALSE)))) -> 0.1 | I22: N.A. | J22: =IF(B22="Clerk",0,IF(B22="S.Staff",0,VLOOKUP(I22,A!$J$124:$L$126,3,FALSE))) -> 0 | K22: =IF(B22="Clerk",0,IF(B22="S.Staff",0,VLOOKUP(I22,A!$J$124:$K$126,2,FALSE))) -> 0 | L22: N.A. | M22: 0 | N22: 0 | O22: No Spl. Allowance | Q22: =IF(B22="Clerk",VLOOKUP(O22,A!$B$178:$G$181,6,FALSE),IF(B22="S.Staff",VLOOKUP(O22,A!$I$178:$N$186,6,FALSE),0)) -> 0 | Y22: =IF(VLOOKUP(Main!A22,A!$B$81:$C$118,2,FALSE)<VLOOKUP($D$2,A!$B$81:$C$118,2,FALSE),1,0) -> 0 | Z22: =IF(VLOOKUP(Main!A22,A!$B$81:$C$118,2,FALSE)>VLOOKUP($F$2,A!$B$81:$C$118,2,FALSE),1,0) -> 0 | AA22: 0 | AB22: =IF(B22="S.Staff",VLOOKUP(F22,A!$E$70:$H$74,4,FALSE),IF(B22="Clerk",VLOOKUP(F22,A!$A$70:$D$74,4,FALSE),IF(Main!G22="Yes",VLOOKUP(F22,A!$I$70:$L$74,4,FALSE),VLOOKUP(F22,A!$I$70:$L$74,2,FALSE)))) -> 0.1 | AC22: N.A. | AD22: =IF(B22="Clerk",0,IF(B22="S.Staff",0,VLOOKUP(AC22,A!$J$131:$M$133,2,FALSE))) -> 0 | AE22: =IF(B22="Clerk",0,IF(B22="S.Staff",0,VLOOKUP(AC22,A!$J$131:$M$133,3,FALSE))) -> 0
A23: =+A!B97 -> Mar.14 | B23: Clerk | C23: 0 | D23: 7200 | E23: Pop.> 45 lac | F23: Pop.> 45 lac | G23: N.A. | H23: =IF(B23="S.Staff",VLOOKUP(E23,A!$E$61:$H$65,4,FALSE),IF(B23="Clerk",VLOOKUP(E23,A!$A$61:$D$65,4,FALSE),IF(G23="YES",VLOOKUP(E23,A!$I$61:$L$65,4,FALSE),VLOOKUP(E23,A!$I$61:$L$65,2,FALSE)))) -> 0.1 | I23: N.A. | J23: =IF(B23="Clerk",0,IF(B23="S.Staff",0,VLOOKUP(I23,A!$J$124:$L$126,3,FALSE))) -> 0 | K23: =IF(B23="Clerk",0,IF(B23="S.Staff",0,VLOOKUP(I23,A!$J$124:$K$126,2,FALSE))) -> 0 | L23: N.A. | M23: 0 | N23: 0 | O23: No Spl. Allowance | Q23: =IF(B23="Clerk",VLOOKUP(O23,A!$B$178:$G$181,6,FALSE),IF(B23="S.Staff",VLOOKUP(O23,A!$I$178:$N$186,6,FALSE),0)) -> 0 | Y23: =IF(VLOOKUP(Main!A23,A!$B$81:$C$118,2,FALSE)<VLOOKUP($D$2,A!$B$81:$C$118,2,FALSE),1,0) -> 0 | Z23: =IF(VLOOKUP(Main!A23,A!$B$81:$C$118,2,FALSE)>VLOOKUP($F$2,A!$B$81:$C$118,2,FALSE),1,0) -> 0 | AA23: 0 | AB23: =IF(B23="S.Staff",VLOOKUP(F23,A!$E$70:$H$74,4,FALSE),IF(B23="Clerk",VLOOKUP(F23,A!$A$70:$D$74,4,FALSE),IF(Main!G23="Yes",VLOOKUP(F23,A!$I$70:$L$74,4,FALSE),VLOOKUP(F23,A!$I$70:$L$74,2,FALSE)))) -> 0.1 | AC23: N.A. | AD23: =IF(B23="Clerk",0,IF(B23="S.Staff",0,VLOOKUP(AC23,A!$J$131:$M$133,2,FALSE))) -> 0 | AE23: =IF(B23="Clerk",0,IF(B23="S.Staff",0,VLOOKUP(AC23,A!$J$131:$M$133,3,FALSE))) -> 0
A24: =+A!B98 -> Apr.14 | B24: Clerk | C24: 0 | D24: 7200 | E24: Pop.> 45 lac | F24: Pop.> 45 lac | G24: N.A. | H24: =IF(B24="S.Staff",VLOOKUP(E24,A!$E$61:$H$65,4,FALSE),IF(B24="Clerk",VLOOKUP(E24,A!$A$61:$D$65,4,FALSE),IF(G24="YES",VLOOKUP(E24,A!$I$61:$L$65,4,FALSE),VLOOKUP(E24,A!$I$61:$L$65,2,FALSE)))) -> 0.1 | I24: N.A. | J24: =IF(B24="Clerk",0,IF(B24="S.Staff",0,VLOOKUP(I24,A!$J$124:$L$126,3,FALSE))) -> 0 | K24: =IF(B24="Clerk",0,IF(B24="S.Staff",0,VLOOKUP(I24,A!$J$124:$K$126,2,FALSE))) -> 0 | L24: N.A. | M24: 0 | N24: 0 | O24: No Spl. Allowance | Q24: =IF(B24="Clerk",VLOOKUP(O24,A!$B$178:$G$181,6,FALSE),IF(B24="S.Staff",VLOOKUP(O24,A!$I$178:$N$186,6,FALSE),0)) -> 0 | Y24: =IF(VLOOKUP(Main!A24,A!$B$81:$C$118,2,FALSE)<VLOOKUP($D$2,A!$B$81:$C$118,2,FALSE),1,0) -> 0 | Z24: =IF(VLOOKUP(Main!A24,A!$B$81:$C$118,2,FALSE)>VLOOKUP($F$2,A!$B$81:$C$118,2,FALSE),1,0) -> 0 | AA24: 0 | AB24: =IF(B24="S.Staff",VLOOKUP(F24,A!$E$70:$H$74,4,FALSE),IF(B24="Clerk",VLOOKUP(F24,A!$A$70:$D$74,4,FALSE),IF(Main!G24="Yes",VLOOKUP(F24,A!$I$70:$L$74,4,FALSE),VLOOKUP(F24,A!$I$70:$L$74,2,FALSE)))) -> 0.1 | AC24: N.A. | AD24: =IF(B24="Clerk",0,IF(B24="S.Staff",0,VLOOKUP(AC24,A!$J$131:$M$133,2,FALSE))) -> 0 | AE24: =IF(B24="Clerk",0,IF(B24="S.Staff",0,VLOOKUP(AC24,A!$J$131:$M$133,3,FALSE))) -> 0
A25: =+A!B99 -> May.14 | B25: Clerk | C25: 0 | D25: 7200 | E25: Pop.> 45 lac | F25: Pop.> 45 lac | G25: N.A. | H25: =IF(B25="S.Staff",VLOOKUP(E25,A!$E$61:$H$65,4,FALSE),IF(B25="Clerk",VLOOKUP(E25,A!$A$61:$D$65,4,FALSE),IF(G25="YES",VLOOKUP(E25,A!$I$61:$L$65,4,FALSE),VLOOKUP(E25,A!$I$61:$L$65,2,FALSE)))) -> 0.1 | I25: N.A. | J25: =IF(B25="Clerk",0,IF(B25="S.Staff",0,VLOOKUP(I25,A!$J$124:$L$126,3,FALSE))) -> 0 | K25: =IF(B25="Clerk",0,IF(B25="S.Staff",0,VLOOKUP(I25,A!$J$124:$K$126,2,FALSE))) -> 0 | L25: N.A. | M25: 0 | N25: 0 | O25: No Spl. Allowance | Q25: =IF(B25="Clerk",VLOOKUP(O25,A!$B$178:$G$181,6,FALSE),IF(B25="S.Staff",VLOOKUP(O25,A!$I$178:$N$186,6,FALSE),0)) -> 0 | Y25: =IF(VLOOKUP(Main!A25,A!$B$81:$C$118,2,FALSE)<VLOOKUP($D$2,A!$B$81:$C$118,2,FALSE),1,0) -> 0 | Z25: =IF(VLOOKUP(Main!A25,A!$B$81:$C$118,2,FALSE)>VLOOKUP($F$2,A!$B$81:$C$118,2,FALSE),1,0) -> 0 | AA25: 0 | AB25: =IF(B25="S.Staff",VLOOKUP(F25,A!$E$70:$H$74,4,FALSE),IF(B25="Clerk",VLOOKUP(F25,A!$A$70:$D$74,4,FALSE),IF(Main!G25="Yes",VLOOKUP(F25,A!$I$70:$L$74,4,FALSE),VLOOKUP(F25,A!$I$70:$L$74,2,FALSE)))) -> 0.1 | AC25: N.A. | AD25: =IF(B25="Clerk",0,IF(B25="S.Staff",0,VLOOKUP(AC25,A!$J$131:$M$133,2,FALSE))) -> 0 | AE25: =IF(B25="Clerk",0,IF(B25="S.Staff",0,VLOOKUP(AC25,A!$J$131:$M$133,3,FALSE))) -> 0
A26: =+A!B100 -> Jun.14 | B26: Clerk | C26: 0 | D26: 7200 | E26: Pop.> 45 lac | F26: Pop.> 45 lac | G26: N.A. | H26: =IF(B26="S.Staff",VLOOKUP(E26,A!$E$61:$H$65,4,FALSE),IF(B26="Clerk",VLOOKUP(E26,A!$A$61:$D$65,4,FALSE),IF(G26="YES",VLOOKUP(E26,A!$I$61:$L$65,4,FALSE),VLOOKUP(E26,A!$I$61:$L$65,2,FALSE)))) -> 0.1 | I26: N.A. | J26: =IF(B26="Clerk",0,IF(B26="S.Staff",0,VLOOKUP(I26,A!$J$124:$L$126,3,FALSE))) -> 0 | K26: =IF(B26="Clerk",0,IF(B26="S.Staff",0,VLOOKUP(I26,A!$J$124:$K$126,2,FALSE))) -> 0 | L26: N.A. | M26: 0 | N26: 0 | O26: No Spl. Allowance | Q26: =IF(B26="Clerk",VLOOKUP(O26,A!$B$178:$G$181,6,FALSE),IF(B26="S.Staff",VLOOKUP(O26,A!$I$178:$N$186,6,FALSE),0)) -> 0 | Y26: =IF(VLOOKUP(Main!A26,A!$B$81:$C$118,2,FALSE)<VLOOKUP($D$2,A!$B$81:$C$118,2,FALSE),1,0) -> 0 | Z26: =IF(VLOOKUP(Main!A26,A!$B$81:$C$118,2,FALSE)>VLOOKUP($F$2,A!$B$81:$C$118,2,FALSE),1,0) -> 0 | AA26: 0 | AB26: =IF(B26="S.Staff",VLOOKUP(F26,A!$E$70:$H$74,4,FALSE),IF(B26="Clerk",VLOOKUP(F26,A!$A$70:$D$74,4,FALSE),IF(Main!G26="Yes",VLOOKUP(F26,A!$I$70:$L$74,4,FALSE),VLOOKUP(F26,A!$I$70:$L$74,2,FALSE)))) -> 0.1 | AC26: N.A. | AD26: =IF(B26="Clerk",0,IF(B26="S.Staff",0,VLOOKUP(AC26,A!$J$131:$M$133,2,FALSE))) -> 0 | AE26: =IF(B26="Clerk",0,IF(B26="S.Staff",0,VLOOKUP(AC26,A!$J$131:$M$133,3,FALSE))) -> 0
A27: =+A!B101 -> Jul.14 | B27: Clerk | C27: 0 | D27: 7200 | E27: Pop.> 45 lac | F27: Pop.> 45 lac | G27: N.A. | H27: =IF(B27="S.Staff",VLOOKUP(E27,A!$E$61:$H$65,4,FALSE),IF(B27="Clerk",VLOOKUP(E27,A!$A$61:$D$65,4,FALSE),IF(G27="YES",VLOOKUP(E27,A!$I$61:$L$65,4,FALSE),VLOOKUP(E27,A!$I$61:$L$65,2,FALSE)))) -> 0.1 | I27: N.A. | J27: =IF(B27="Clerk",0,IF(B27="S.Staff",0,VLOOKUP(I27,A!$J$124:$L$126,3,FALSE))) -> 0 | K27: =IF(B27="Clerk",0,IF(B27="S.Staff",0,VLOOKUP(I27,A!$J$124:$K$126,2,FALSE))) -> 0 | L27: N.A. | M27: 0 | N27: 0 | O27: No Spl. Allowance | Q27: =IF(B27="Clerk",VLOOKUP(O27,A!$B$178:$G$181,6,FALSE),IF(B27="S.Staff",VLOOKUP(O27,A!$I$178:$N$186,6,FALSE),0)) -> 0 | Y27: =IF(VLOOKUP(Main!A27,A!$B$81:$C$118,2,FALSE)<VLOOKUP($D$2,A!$B$81:$C$118,2,FALSE),1,0) -> 0 | Z27: =IF(VLOOKUP(Main!A27,A!$B$81:$C$118,2,FALSE)>VLOOKUP($F$2,A!$B$81:$C$118,2,FALSE),1,0) -> 0 | AA27: 0 | AB27: =IF(B27="S.Staff",VLOOKUP(F27,A!$E$70:$H$74,4,FALSE),IF(B27="Clerk",VLOOKUP(F27,A!$A$70:$D$74,4,FALSE),IF(Main!G27="Yes",VLOOKUP(F27,A!$I$70:$L$74,4,FALSE),VLOOKUP(F27,A!$I$70:$L$74,2,FALSE)))) -> 0.1 | AC27: N.A. | AD27: =IF(B27="Clerk",0,IF(B27="S.Staff",0,VLOOKUP(AC27,A!$J$131:$M$133,2,FALSE))) -> 0 | AE27: =IF(B27="Clerk",0,IF(B27="S.Staff",0,VLOOKUP(AC27,A!$J$131:$M$133,3,FALSE))) -> 0
A28: =+A!B102 -> Aug.14 | B28: Clerk | C28: 0 | D28: 7200 | E28: Pop.> 45 lac | F28: Pop.> 45 lac | G28: N.A. | H28: =IF(B28="S.Staff",VLOOKUP(E28,A!$E$61:$H$65,4,FALSE),IF(B28="Clerk",VLOOKUP(E28,A!$A$61:$D$65,4,FALSE),IF(G28="YES",VLOOKUP(E28,A!$I$61:$L$65,4,FALSE),VLOOKUP(E28,A!$I$61:$L$65,2,FALSE)))) -> 0.1 | I28: N.A. | J28: =IF(B28="Clerk",0,IF(B28="S.Staff",0,VLOOKUP(I28,A!$J$124:$L$126,3,FALSE))) -> 0 | K28: =IF(B28="Clerk",0,IF(B28="S.Staff",0,VLOOKUP(I28,A!$J$124:$K$126,2,FALSE))) -> 0 | L28: N.A. | M28: 0 | N28: 0 | O28: No Spl. Allowance | Q28: =IF(B28="Clerk",VLOOKUP(O28,A!$B$178:$G$181,6,FALSE),IF(B28="S.Staff",VLOOKUP(O28,A!$I$178:$N$186,6,FALSE),0)) -> 0 | Y28: =IF(VLOOKUP(Main!A28,A!$B$81:$C$118,2,FALSE)<VLOOKUP($D$2,A!$B$81:$C$118,2,FALSE),1,0) -> 0 | Z28: =IF(VLOOKUP(Main!A28,A!$B$81:$C$118,2,FALSE)>VLOOKUP($F$2,A!$B$81:$C$118,2,FALSE),1,0) -> 0 | AA28: 0 | AB28: =IF(B28="S.Staff",VLOOKUP(F28,A!$E$70:$H$74,4,FALSE),IF(B28="Clerk",VLOOKUP(F28,A!$A$70:$D$74,4,FALSE),IF(Main!G28="Yes",VLOOKUP(F28,A!$I$70:$L$74,4,FALSE),VLOOKUP(F28,A!$I$70:$L$74,2,FALSE)))) -> 0.1 | AC28: N.A. | AD28: =IF(B28="Clerk",0,IF(B28="S.Staff",0,VLOOKUP(AC28,A!$J$131:$M$133,2,FALSE))) -> 0 | AE28: =IF(B28="Clerk",0,IF(B28="S.Staff",0,VLOOKUP(AC28,A!$J$131:$M$133,3,FALSE))) -> 0
A29: =+A!B103 -> Sep.14 | B29: Clerk | C29: 0 | D29: 7200 | E29: Pop.> 45 lac | F29: Pop.> 45 lac | G29: N.A. | H29: =IF(B29="S.Staff",VLOOKUP(E29,A!$E$61:$H$65,4,FALSE),IF(B29="Clerk",VLOOKUP(E29,A!$A$61:$D$65,4,FALSE),IF(G29="YES",VLOOKUP(E29,A!$I$61:$L$65,4,FALSE),VLOOKUP(E29,A!$I$61:$L$65,2,FALSE)))) -> 0.1 | I29: N.A. | J29: =IF(B29="Clerk",0,IF(B29="S.Staff",0,VLOOKUP(I29,A!$J$124:$L$126,3,FALSE))) -> 0 | K29: =IF(B29="Clerk",0,IF(B29="S.Staff",0,VLOOKUP(I29,A!$J$124:$K$126,2,FALSE))) -> 0 | L29: N.A. | M29: 0 | N29: 0 | O29: No Spl. Allowance | Q29: =IF(B29="Clerk",VLOOKUP(O29,A!$B$178:$G$181,6,FALSE),IF(B29="S.Staff",VLOOKUP(O29,A!$I$178:$N$186,6,FALSE),0)) -> 0 | Y29: =IF(VLOOKUP(Main!A29,A!$B$81:$C$118,2,FALSE)<VLOOKUP($D$2,A!$B$81:$C$118,2,FALSE),1,0) -> 0 | Z29: =IF(VLOOKUP(Main!A29,A!$B$81:$C$118,2,FALSE)>VLOOKUP($F$2,A!$B$81:$C$118,2,FALSE),1,0) -> 0 | AA29: 0 | AB29: =IF(B29="S.Staff",VLOOKUP(F29,A!$E$70:$H$74,4,FALSE),IF(B29="Clerk",VLOOKUP(F29,A!$A$70:$D$74,4,FALSE),IF(Main!G29="Yes",VLOOKUP(F29,A!$I$70:$L$74,4,FALSE),VLOOKUP(F29,A!$I$70:$L$74,2,FALSE)))) -> 0.1 | AC29: N.A. | AD29: =IF(B29="Clerk",0,IF(B29="S.Staff",0,VLOOKUP(AC29,A!$J$131:$M$133,2,FALSE))) -> 0 | AE29: =IF(B29="Clerk",0,IF(B29="S.Staff",0,VLOOKUP(AC29,A!$J$131:$M$133,3,FALSE))) -> 0
A30: =+A!B104 -> Oct.14 | B30: Clerk | C30: 0 | D30: 7200 | E30: Pop.> 45 lac | F30: Pop.> 45 lac | G30: N.A. | H30: =IF(B30="S.Staff",VLOOKUP(E30,A!$E$61:$H$65,4,FALSE),IF(B30="Clerk",VLOOKUP(E30,A!$A$61:$D$65,4,FALSE),IF(G30="YES",VLOOKUP(E30,A!$I$61:$L$65,4,FALSE),VLOOKUP(E30,A!$I$61:$L$65,2,FALSE)))) -> 0.1 | I30: N.A. | J30: =IF(B30="Clerk",0,IF(B30="S.Staff",0,VLOOKUP(I30,A!$J$124:$L$126,3,FALSE))) -> 0 | K30: =IF(B30="Clerk",0,IF(B30="S.Staff",0,VLOOKUP(I30,A!$J$124:$K$126,2,FALSE))) -> 0 | L30: N.A. | M30: 0 | N30: 0 | O30: No Spl. Allowance | Q30: =IF(B30="Clerk",VLOOKUP(O30,A!$B$178:$G$181,6,FALSE),IF(B30="S.Staff",VLOOKUP(O30,A!$I$178:$N$186,6,FALSE),0)) -> 0 | Y30: =IF(VLOOKUP(Main!A30,A!$B$81:$C$118,2,FALSE)<VLOOKUP($D$2,A!$B$81:$C$118,2,FALSE),1,0) -> 0 | Z30: =IF(VLOOKUP(Main!A30,A!$B$81:$C$118,2,FALSE)>VLOOKUP($F$2,A!$B$81:$C$118,2,FALSE),1,0) -> 0 | AA30: 0 | AB30: =IF(B30="S.Staff",VLOOKUP(F30,A!$E$70:$H$74,4,FALSE),IF(B30="Clerk",VLOOKUP(F30,A!$A$70:$D$74,4,FALSE),IF(Main!G30="Yes",VLOOKUP(F30,A!$I$70:$L$74,4,FALSE),VLOOKUP(F30,A!$I$70:$L$74,2,FALSE)))) -> 0.1 | AC30: N.A. | AD30: =IF(B30="Clerk",0,IF(B30="S.Staff",0,VLOOKUP(AC30,A!$J$131:$M$133,2,FALSE))) -> 0 | AE30: =IF(B30="Clerk",0,IF(B30="S.Staff",0,VLOOKUP(AC30,A!$J$131:$M$133,3,FALSE))) -> 0
A31: =+A!B105 -> Nov.14 | B31: Clerk | C31: 0 | D31: 7200 | E31: Pop.> 45 lac | F31: Pop.> 45 lac | G31: N.A. | H31: =IF(B31="S.Staff",VLOOKUP(E31,A!$E$61:$H$65,4,FALSE),IF(B31="Clerk",VLOOKUP(E31,A!$A$61:$D$65,4,FALSE),IF(G31="YES",VLOOKUP(E31,A!$I$61:$L$65,4,FALSE),VLOOKUP(E31,A!$I$61:$L$65,2,FALSE)))) -> 0.1 | I31: N.A. | J31: =IF(B31="Clerk",0,IF(B31="S.Staff",0,VLOOKUP(I31,A!$J$124:$L$126,3,FALSE))) -> 0 | K31: =IF(B31="Clerk",0,IF(B31="S.Staff",0,VLOOKUP(I31,A!$J$124:$K$126,2,FALSE))) -> 0 | L31: N.A. | M31: 0 | N31: 0 | O31: No Spl. Allowance | Q31: =IF(B31="Clerk",VLOOKUP(O31,A!$B$178:$G$181,6,FALSE),IF(B31="S.Staff",VLOOKUP(O31,A!$I$178:$N$186,6,FALSE),0)) -> 0 | Y31: =IF(VLOOKUP(Main!A31,A!$B$81:$C$118,2,FALSE)<VLOOKUP($D$2,A!$B$81:$C$118,2,FALSE),1,0) -> 0 | Z31: =IF(VLOOKUP(Main!A31,A!$B$81:$C$118,2,FALSE)>VLOOKUP($F$2,A!$B$81:$C$118,2,FALSE),1,0) -> 0 | AA31: 0 | AB31: =IF(B31="S.Staff",VLOOKUP(F31,A!$E$70:$H$74,4,FALSE),IF(B31="Clerk",VLOOKUP(F31,A!$A$70:$D$74,4,FALSE),IF(Main!G31="Yes",VLOOKUP(F31,A!$I$70:$L$74,4,FALSE),VLOOKUP(F31,A!$I$70:$L$74,2,FALSE)))) -> 0.1 | AC31: N.A. | AD31: =IF(B31="Clerk",0,IF(B31="S.Staff",0,VLOOKUP(AC31,A!$J$131:$M$133,2,FALSE))) -> 0 | AE31: =IF(B31="Clerk",0,IF(B31="S.Staff",0,VLOOKUP(AC31,A!$J$131:$M$133,3,FALSE))) -> 0
A32: =+A!B106 -> Dec.14 | B32: Clerk | C32: 0 | D32: 7200 | E32: Pop.> 45 lac | F32: Pop.> 45 lac | G32: N.A. | H32: =IF(B32="S.Staff",VLOOKUP(E32,A!$E$61:$H$65,4,FALSE),IF(B32="Clerk",VLOOKUP(E32,A!$A$61:$D$65,4,FALSE),IF(G32="YES",VLOOKUP(E32,A!$I$61:$L$65,4,FALSE),VLOOKUP(E32,A!$I$61:$L$65,2,FALSE)))) -> 0.1 | I32: N.A. | J32: =IF(B32="Clerk",0,IF(B32="S.Staff",0,VLOOKUP(I32,A!$J$124:$L$126,3,FALSE))) -> 0 | K32: =IF(B32="Clerk",0,IF(B32="S.Staff",0,VLOOKUP(I32,A!$J$124:$K$126,2,FALSE))) -> 0 | L32: N.A. | M32: 0 | N32: 0 | O32: No Spl. Allowance | Q32: =IF(B32="Clerk",VLOOKUP(O32,A!$B$178:$G$181,6,FALSE),IF(B32="S.Staff",VLOOKUP(O32,A!$I$178:$N$186,6,FALSE),0)) -> 0 | Y32: =IF(VLOOKUP(Main!A32,A!$B$81:$C$118,2,FALSE)<VLOOKUP($D$2,A!$B$81:$C$118,2,FALSE),1,0) -> 0 | Z32: =IF(VLOOKUP(Main!A32,A!$B$81:$C$118,2,FALSE)>VLOOKUP($F$2,A!$B$81:$C$118,2,FALSE),1,0) -> 0 | AA32: 0 | AB32: =IF(B32="S.Staff",VLOOKUP(F32,A!$E$70:$H$74,4,FALSE),IF(B32="Clerk",VLOOKUP(F32,A!$A$70:$D$74,4,FALSE),IF(Main!G32="Yes",VLOOKUP(F32,A!$I$70:$L$74,4,FALSE),VLOOKUP(F32,A!$I$70:$L$74,2,FALSE)))) -> 0.1 | AC32: N.A. | AD32: =IF(B32="Clerk",0,IF(B32="S.Staff",0,VLOOKUP(AC32,A!$J$131:$M$133,2,FALSE))) -> 0 | AE32: =IF(B32="Clerk",0,IF(B32="S.Staff",0,VLOOKUP(AC32,A!$J$131:$M$133,3,FALSE))) -> 0
A33: =+A!B107 -> Jan.15 | B33: Clerk | C33: 0 | D33: 7200 | E33: Pop.> 45 lac | F33: Pop.> 45 lac | G33: N.A. | H33: =IF(B33="S.Staff",VLOOKUP(E33,A!$E$61:$H$65,4,FALSE),IF(B33="Clerk",VLOOKUP(E33,A!$A$61:$D$65,4,FALSE),IF(G33="YES",VLOOKUP(E33,A!$I$61:$L$65,4,FALSE),VLOOKUP(E33,A!$I$61:$L$65,2,FALSE)))) -> 0.1 | I33: N.A. | J33: =IF(B33="Clerk",0,IF(B33="S.Staff",0,VLOOKUP(I33,A!$J$124:$L$126,3,FALSE))) -> 0 | K33: =IF(B33="Clerk",0,IF(B33="S.Staff",0,VLOOKUP(I33,A!$J$124:$K$126,2,FALSE))) -> 0 | L33: N.A. | M33: 0 | N33: 0 | O33: No Spl. Allowance | Q33: =IF(B33="Clerk",VLOOKUP(O33,A!$B$178:$G$181,6,FALSE),IF(B33="S.Staff",VLOOKUP(O33,A!$I$178:$N$186,6,FALSE),0)) -> 0 | Y33: =IF(VLOOKUP(Main!A33,A!$B$81:$C$118,2,FALSE)<VLOOKUP($D$2,A!$B$81:$C$118,2,FALSE),1,0) -> 0 | Z33: =IF(VLOOKUP(Main!A33,A!$B$81:$C$118,2,FALSE)>VLOOKUP($F$2,A!$B$81:$C$118,2,FALSE),1,0) -> 0 | AA33: 0 | AB33: =IF(B33="S.Staff",VLOOKUP(F33,A!$E$70:$H$74,4,FALSE),IF(B33="Clerk",VLOOKUP(F33,A!$A$70:$D$74,4,FALSE),IF(Main!G33="Yes",VLOOKUP(F33,A!$I$70:$L$74,4,FALSE),VLOOKUP(F33,A!$I$70:$L$74,2,FALSE)))) -> 0.1 | AC33: N.A. | AD33: =IF(B33="Clerk",0,IF(B33="S.Staff",0,VLOOKUP(AC33,A!$J$131:$M$133,2,FALSE))) -> 0 | AE33: =IF(B33="Clerk",0,IF(B33="S.Staff",0,VLOOKUP(AC33,A!$J$131:$M$133,3,FALSE))) -> 0
A34: =+A!B108 -> Feb.15 | B34: Clerk | C34: 0 | D34: 7200 | E34: Pop.> 45 lac | F34: Pop.> 45 lac | G34: N.A. | H34: =IF(B34="S.Staff",VLOOKUP(E34,A!$E$61:$H$65,4,FALSE),IF(B34="Clerk",VLOOKUP(E34,A!$A$61:$D$65,4,FALSE),IF(G34="YES",VLOOKUP(E34,A!$I$61:$L$65,4,FALSE),VLOOKUP(E34,A!$I$61:$L$65,2,FALSE)))) -> 0.1 | I34: N.A. | J34: =IF(B34="Clerk",0,IF(B34="S.Staff",0,VLOOKUP(I34,A!$J$124:$L$126,3,FALSE))) -> 0 | K34: =IF(B34="Clerk",0,IF(B34="S.Staff",0,VLOOKUP(I34,A!$J$124:$K$126,2,FALSE))) -> 0 | L34: N.A. | M34: 0 | N34: 0 | O34: No Spl. Allowance | Q34: =IF(B34="Clerk",VLOOKUP(O34,A!$B$178:$G$181,6,FALSE),IF(B34="S.Staff",VLOOKUP(O34,A!$I$178:$N$186,6,FALSE),0)) -> 0 | Y34: =IF(VLOOKUP(Main!A34,A!$B$81:$C$118,2,FALSE)<VLOOKUP($D$2,A!$B$81:$C$118,2,FALSE),1,0) -> 0 | Z34: =IF(VLOOKUP(Main!A34,A!$B$81:$C$118,2,FALSE)>VLOOKUP($F$2,A!$B$81:$C$118,2,FALSE),1,0) -> 0 | AA34: 0 | AB34: =IF(B34="S.Staff",VLOOKUP(F34,A!$E$70:$H$74,4,FALSE),IF(B34="Clerk",VLOOKUP(F34,A!$A$70:$D$74,4,FALSE),IF(Main!G34="Yes",VLOOKUP(F34,A!$I$70:$L$74,4,FALSE),VLOOKUP(F34,A!$I$70:$L$74,2,FALSE)))) -> 0.1 | AC34: N.A. | AD34: =IF(B34="Clerk",0,IF(B34="S.Staff",0,VLOOKUP(AC34,A!$J$131:$M$133,2,FALSE))) -> 0 | AE34: =IF(B34="Clerk",0,IF(B34="S.Staff",0,VLOOKUP(AC34,A!$J$131:$M$133,3,FALSE))) -> 0
A35: =+A!B109 -> Mar.15 | B35: Clerk | C35: 0 | D35: 7200 | E35: Pop.> 45 lac | F35: Pop.> 45 lac | G35: N.A. | H35: =IF(B35="S.Staff",VLOOKUP(E35,A!$E$61:$H$65,4,FALSE),IF(B35="Clerk",VLOOKUP(E35,A!$A$61:$D$65,4,FALSE),IF(G35="YES",VLOOKUP(E35,A!$I$61:$L$65,4,FALSE),VLOOKUP(E35,A!$I$61:$L$65,2,FALSE)))) -> 0.1 | I35: N.A. | J35: =IF(B35="Clerk",0,IF(B35="S.Staff",0,VLOOKUP(I35,A!$J$124:$L$126,3,FALSE))) -> 0 | K35: =IF(B35="Clerk",0,IF(B35="S.Staff",0,VLOOKUP(I35,A!$J$124:$K$126,2,FALSE))) -> 0 | L35: N.A. | M35: 0 | N35: 0 | O35: No Spl. Allowance | Q35: =IF(B35="Clerk",VLOOKUP(O35,A!$B$178:$G$181,6,FALSE),IF(B35="S.Staff",VLOOKUP(O35,A!$I$178:$N$186,6,FALSE),0)) -> 0 | Y35: =IF(VLOOKUP(Main!A35,A!$B$81:$C$118,2,FALSE)<VLOOKUP($D$2,A!$B$81:$C$118,2,FALSE),1,0) -> 0 | Z35: =IF(VLOOKUP(Main!A35,A!$B$81:$C$118,2,FALSE)>VLOOKUP($F$2,A!$B$81:$C$118,2,FALSE),1,0) -> 1 | AA35: 1 | AB35: =IF(B35="S.Staff",VLOOKUP(F35,A!$E$70:$H$74,4,FALSE),IF(B35="Clerk",VLOOKUP(F35,A!$A$70:$D$74,4,FALSE),IF(Main!G35="Yes",VLOOKUP(F35,A!$I$70:$L$74,4,FALSE),VLOOKUP(F35,A!$I$70:$L$74,2,FALSE)))) -> 0.1 | AC35: N.A. | AD35: =IF(B35="Clerk",0,IF(B35="S.Staff",0,VLOOKUP(AC35,A!$J$131:$M$133,2,FALSE))) -> 0 | AE35: =IF(B35="Clerk",0,IF(B35="S.Staff",0,VLOOKUP(AC35,A!$J$131:$M$133,3,FALSE))) -> 0
A36: =+A!B110 -> Apr.15 | B36: Clerk | C36: 0 | D36: 7200 | E36: Pop.> 45 lac | F36: Pop.> 45 lac | G36: N.A. | H36: =IF(B36="S.Staff",VLOOKUP(E36,A!$E$61:$H$65,4,FALSE),IF(B36="Clerk",VLOOKUP(E36,A!$A$61:$D$65,4,FALSE),IF(G36="YES",VLOOKUP(E36,A!$I$61:$L$65,4,FALSE),VLOOKUP(E36,A!$I$61:$L$65,2,FALSE)))) -> 0.1 | I36: N.A. | J36: =IF(B36="Clerk",0,IF(B36="S.Staff",0,VLOOKUP(I36,A!$J$124:$L$126,3,FALSE))) -> 0 | K36: =IF(B36="Clerk",0,IF(B36="S.Staff",0,VLOOKUP(I36,A!$J$124:$K$126,2,FALSE))) -> 0 | L36: N.A. | M36: 0 | N36: 0 | O36: No Spl. Allowance | Q36: =IF(B36="Clerk",VLOOKUP(O36,A!$B$178:$G$181,6,FALSE),IF(B36="S.Staff",VLOOKUP(O36,A!$I$178:$N$186,6,FALSE),0)) -> 0 | Y36: =IF(VLOOKUP(Main!A36,A!$B$81:$C$118,2,FALSE)<VLOOKUP($D$2,A!$B$81:$C$118,2,FALSE),1,0) -> 0 | Z36: =IF(VLOOKUP(Main!A36,A!$B$81:$C$118,2,FALSE)>VLOOKUP($F$2,A!$B$81:$C$118,2,FALSE),1,0) -> 1 | AA36: 1 | AB36: =IF(B36="S.Staff",VLOOKUP(F36,A!$E$70:$H$74,4,FALSE),IF(B36="Clerk",VLOOKUP(F36,A!$A$70:$D$74,4,FALSE),IF(Main!G36="Yes",VLOOKUP(F36,A!$I$70:$L$74,4,FALSE),VLOOKUP(F36,A!$I$70:$L$74,2,FALSE)))) -> 0.1 | AC36: N.A. | AD36: =IF(B36="Clerk",0,IF(B36="S.Staff",0,VLOOKUP(AC36,A!$J$131:$M$133,2,FALSE))) -> 0 | AE36: =IF(B36="Clerk",0,IF(B36="S.Staff",0,VLOOKUP(AC36,A!$J$131:$M$133,3,FALSE))) -> 0
A37: =+A!B111 -> May.15 | B37: Clerk | C37: 0 | D37: 7200 | E37: Pop.> 45 lac | F37: Pop.> 45 lac | G37: N.A. | H37: =IF(B37="S.Staff",VLOOKUP(E37,A!$E$61:$H$65,4,FALSE),IF(B37="Clerk",VLOOKUP(E37,A!$A$61:$D$65,4,FALSE),IF(G37="YES",VLOOKUP(E37,A!$I$61:$L$65,4,FALSE),VLOOKUP(E37,A!$I$61:$L$65,2,FALSE)))) -> 0.1 | I37: N.A. | J37: =IF(B37="Clerk",0,IF(B37="S.Staff",0,VLOOKUP(I37,A!$J$124:$L$126,3,FALSE))) -> 0 | K37: =IF(B37="Clerk",0,IF(B37="S.Staff",0,VLOOKUP(I37,A!$J$124:$K$126,2,FALSE))) -> 0 | L37: N.A. | M37: 0 | N37: 0 | O37: No Spl. Allowance | Q37: =IF(B37="Clerk",VLOOKUP(O37,A!$B$178:$G$181,6,FALSE),IF(B37="S.Staff",VLOOKUP(O37,A!$I$178:$N$186,6,FALSE),0)) -> 0 | Y37: =IF(VLOOKUP(Main!A37,A!$B$81:$C$118,2,FALSE)<VLOOKUP($D$2,A!$B$81:$C$118,2,FALSE),1,0) -> 0 | Z37: =IF(VLOOKUP(Main!A37,A!$B$81:$C$118,2,FALSE)>VLOOKUP($F$2,A!$B$81:$C$118,2,FALSE),1,0) -> 1 | AA37: 1 | AB37: =IF(B37="S.Staff",VLOOKUP(F37,A!$E$70:$H$74,4,FALSE),IF(B37="Clerk",VLOOKUP(F37,A!$A$70:$D$74,4,FALSE),IF(Main!G37="Yes",VLOOKUP(F37,A!$I$70:$L$74,4,FALSE),VLOOKUP(F37,A!$I$70:$L$74,2,FALSE)))) -> 0.1 | AC37: N.A. | AD37: =IF(B37="Clerk",0,IF(B37="S.Staff",0,VLOOKUP(AC37,A!$J$131:$M$133,2,FALSE))) -> 0 | AE37: =IF(B37="Clerk",0,IF(B37="S.Staff",0,VLOOKUP(AC37,A!$J$131:$M$133,3,FALSE))) -> 0
A38: =+A!B112 -> Jun.15 | B38: Clerk | C38: 0 | D38: 7200 | E38: Pop.> 45 lac | F38: Pop.> 45 lac | G38: N.A. | H38: =IF(B38="S.Staff",VLOOKUP(E38,A!$E$61:$H$65,4,FALSE),IF(B38="Clerk",VLOOKUP(E38,A!$A$61:$D$65,4,FALSE),IF(G38="YES",VLOOKUP(E38,A!$I$61:$L$65,4,FALSE),VLOOKUP(E38,A!$I$61:$L$65,2,FALSE)))) -> 0.1 | I38: N.A. | J38: =IF(B38="Clerk",0,IF(B38="S.Staff",0,VLOOKUP(I38,A!$J$124:$L$126,3,FALSE))) -> 0 | K38: =IF(B38="Clerk",0,IF(B38="S.Staff",0,VLOOKUP(I38,A!$J$124:$K$126,2,FALSE))) -> 0 | L38: N.A. | M38: 0 | N38: 0 | O38: No Spl. Allowance | Q38: =IF(B38="Clerk",VLOOKUP(O38,A!$B$178:$G$181,6,FALSE),IF(B38="S.Staff",VLOOKUP(O38,A!$I$178:$N$186,6,FALSE),0)) -> 0 | Y38: =IF(VLOOKUP(Main!A38,A!$B$81:$C$118,2,FALSE)<VLOOKUP($D$2,A!$B$81:$C$118,2,FALSE),1,0) -> 0 | Z38: =IF(VLOOKUP(Main!A38,A!$B$81:$C$118,2,FALSE)>VLOOKUP($F$2,A!$B$81:$C$118,2,FALSE),1,0) -> 1 | AA38: 1 | AB38: =IF(B38="S.Staff",VLOOKUP(F38,A!$E$70:$H$74,4,FALSE),IF(B38="Clerk",VLOOKUP(F38,A!$A$70:$D$74,4,FALSE),IF(Main!G38="Yes",VLOOKUP(F38,A!$I$70:$L$74,4,FALSE),VLOOKUP(F38,A!$I$70:$L$74,2,FALSE)))) -> 0.1 | AC38: N.A. | AD38: =IF(B38="Clerk",0,IF(B38="S.Staff",0,VLOOKUP(AC38,A!$J$131:$M$133,2,FALSE))) -> 0 | AE38: =IF(B38="Clerk",0,IF(B38="S.Staff",0,VLOOKUP(AC38,A!$J$131:$M$133,3,FALSE))) -> 0
A39: =+A!B113 -> Jul.15 | B39: Clerk | C39: 0 | D39: 7200 | E39: Pop.> 45 lac | F39: Pop.> 45 lac | G39: N.A. | H39: =IF(B39="S.Staff",VLOOKUP(E39,A!$E$61:$H$65,4,FALSE),IF(B39="Clerk",VLOOKUP(E39,A!$A$61:$D$65,4,FALSE),IF(G39="YES",VLOOKUP(E39,A!$I$61:$L$65,4,FALSE),VLOOKUP(E39,A!$I$61:$L$65,2,FALSE)))) -> 0.1 | I39: N.A. | J39: =IF(B39="Clerk",0,IF(B39="S.Staff",0,VLOOKUP(I39,A!$J$124:$L$126,3,FALSE))) -> 0 | K39: =IF(B39="Clerk",0,IF(B39="S.Staff",0,VLOOKUP(I39,A!$J$124:$K$126,2,FALSE))) -> 0 | L39: N.A. | M39: 0 | N39: 0 | O39: No Spl. Allowance | Q39: =IF(B39="Clerk",VLOOKUP(O39,A!$B$178:$G$181,6,FALSE),IF(B39="S.Staff",VLOOKUP(O39,A!$I$178:$N$186,6,FALSE),0)) -> 0 | Y39: =IF(VLOOKUP(Main!A39,A!$B$81:$C$118,2,FALSE)<VLOOKUP($D$2,A!$B$81:$C$118,2,FALSE),1,0) -> 0 | Z39: =IF(VLOOKUP(Main!A39,A!$B$81:$C$118,2,FALSE)>VLOOKUP($F$2,A!$B$81:$C$118,2,FALSE),1,0) -> 1 | AA39: 1 | AB39: =IF(B39="S.Staff",VLOOKUP(F39,A!$E$70:$H$74,4,FALSE),IF(B39="Clerk",VLOOKUP(F39,A!$A$70:$D$74,4,FALSE),IF(Main!G39="Yes",VLOOKUP(F39,A!$I$70:$L$74,4,FALSE),VLOOKUP(F39,A!$I$70:$L$74,2,FALSE)))) -> 0.1 | AC39: N.A. | AD39: =IF(B39="Clerk",0,IF(B39="S.Staff",0,VLOOKUP(AC39,A!$J$131:$M$133,2,FALSE))) -> 0 | AE39: =IF(B39="Clerk",0,IF(B39="S.Staff",0,VLOOKUP(AC39,A!$J$131:$M$133,3,FALSE))) -> 0
A40: =+A!B114 -> Aug.15 | B40: Clerk | C40: 0 | D40: 7200 | E40: Pop.> 45 lac | F40: Pop.> 45 lac | G40: N.A. | H40: =IF(B40="S.Staff",VLOOKUP(E40,A!$E$61:$H$65,4,FALSE),IF(B40="Clerk",VLOOKUP(E40,A!$A$61:$D$65,4,FALSE),IF(G40="YES",VLOOKUP(E40,A!$I$61:$L$65,4,FALSE),VLOOKUP(E40,A!$I$61:$L$65,2,FALSE)))) -> 0.1 | I40: N.A. | J40: =IF(B40="Clerk",0,IF(B40="S.Staff",0,VLOOKUP(I40,A!$J$124:$L$126,3,FALSE))) -> 0 | K40: =IF(B40="Clerk",0,IF(B40="S.Staff",0,VLOOKUP(I40,A!$J$124:$K$126,2,FALSE))) -> 0 | L40: N.A. | M40: 0 | N40: 0 | O40: No Spl. Allowance | Q40: =IF(B40="Clerk",VLOOKUP(O40,A!$B$178:$G$181,6,FALSE),IF(B40="S.Staff",VLOOKUP(O40,A!$I$178:$N$186,6,FALSE),0)) -> 0 | Y40: =IF(VLOOKUP(Main!A40,A!$B$81:$C$118,2,FALSE)<VLOOKUP($D$2,A!$B$81:$C$118,2,FALSE),1,0) -> 0 | Z40: =IF(VLOOKUP(Main!A40,A!$B$81:$C$118,2,FALSE)>VLOOKUP($F$2,A!$B$81:$C$118,2,FALSE),1,0) -> 1 | AA40: 1 | AB40: =IF(B40="S.Staff",VLOOKUP(F40,A!$E$70:$H$74,4,FALSE),IF(B40="Clerk",VLOOKUP(F40,A!$A$70:$D$74,4,FALSE),IF(Main!G40="Yes",VLOOKUP(F40,A!$I$70:$L$74,4,FALSE),VLOOKUP(F40,A!$I$70:$L$74,2,FALSE)))) -> 0.1 | AC40: N.A. | AD40: =IF(B40="Clerk",0,IF(B40="S.Staff",0,VLOOKUP(AC40,A!$J$131:$M$133,2,FALSE))) -> 0 | AE40: =IF(B40="Clerk",0,IF(B40="S.Staff",0,VLOOKUP(AC40,A!$J$131:$M$133,3,FALSE))) -> 0
A41: =+A!B115 -> Sep.15 | B41: Clerk | C41: 0 | D41: 7200 | E41: Pop.> 45 lac | F41: Pop.> 45 lac | G41: N.A. | H41: =IF(B41="S.Staff",VLOOKUP(E41,A!$E$61:$H$65,4,FALSE),IF(B41="Clerk",VLOOKUP(E41,A!$A$61:$D$65,4,FALSE),IF(G41="YES",VLOOKUP(E41,A!$I$61:$L$65,4,FALSE),VLOOKUP(E41,A!$I$61:$L$65,2,FALSE)))) -> 0.1 | I41: N.A. | J41: =IF(B41="Clerk",0,IF(B41="S.Staff",0,VLOOKUP(I41,A!$J$124:$L$126,3,FALSE))) -> 0 | K41: =IF(B41="Clerk",0,IF(B41="S.Staff",0,VLOOKUP(I41,A!$J$124:$K$126,2,FALSE))) -> 0 | L41: N.A. | M41: 0 | N41: 0 | O41: No Spl. Allowance | Q41: =IF(B41="Clerk",VLOOKUP(O41,A!$B$178:$G$181,6,FALSE),IF(B41="S.Staff",VLOOKUP(O41,A!$I$178:$N$186,6,FALSE),0)) -> 0 | Y41: =IF(VLOOKUP(Main!A41,A!$B$81:$C$118,2,FALSE)<VLOOKUP($D$2,A!$B$81:$C$118,2,FALSE),1,0) -> 0 | Z41: =IF(VLOOKUP(Main!A41,A!$B$81:$C$118,2,FALSE)>VLOOKUP($F$2,A!$B$81:$C$118,2,FALSE),1,0) -> 1 | AA41: 1 | AB41: =IF(B41="S.Staff",VLOOKUP(F41,A!$E$70:$H$74,4,FALSE),IF(B41="Clerk",VLOOKUP(F41,A!$A$70:$D$74,4,FALSE),IF(Main!G41="Yes",VLOOKUP(F41,A!$I$70:$L$74,4,FALSE),VLOOKUP(F41,A!$I$70:$L$74,2,FALSE)))) -> 0.1 | AC41: N.A. | AD41: =IF(B41="Clerk",0,IF(B41="S.Staff",0,VLOOKUP(AC41,A!$J$131:$M$133,2,FALSE))) -> 0 | AE41: =IF(B41="Clerk",0,IF(B41="S.Staff",0,VLOOKUP(AC41,A!$J$131:$M$133,3,FALSE))) -> 0
A42: =+A!B116 -> Oct.15 | B42: Clerk | C42: 0 | D42: 7200 | E42: Pop.> 45 lac | F42: Pop.> 45 lac | G42: N.A. | H42: =IF(B42="S.Staff",VLOOKUP(E42,A!$E$61:$H$65,4,FALSE),IF(B42="Clerk",VLOOKUP(E42,A!$A$61:$D$65,4,FALSE),IF(G42="YES",VLOOKUP(E42,A!$I$61:$L$65,4,FALSE),VLOOKUP(E42,A!$I$61:$L$65,2,FALSE)))) -> 0.1 | I42: N.A. | J42: =IF(B42="Clerk",0,IF(B42="S.Staff",0,VLOOKUP(I42,A!$J$124:$L$126,3,FALSE))) -> 0 | K42: =IF(B42="Clerk",0,IF(B42="S.Staff",0,VLOOKUP(I42,A!$J$124:$K$126,2,FALSE))) -> 0 | L42: N.A. | M42: 0 | N42: 0 | O42: No Spl. Allowance | Q42: =IF(B42="Clerk",VLOOKUP(O42,A!$B$178:$G$181,6,FALSE),IF(B42="S.Staff",VLOOKUP(O42,A!$I$178:$N$186,6,FALSE),0)) -> 0 | Y42: =IF(VLOOKUP(Main!A42,A!$B$81:$C$118,2,FALSE)<VLOOKUP($D$2,A!$B$81:$C$118,2,FALSE),1,0) -> 0 | Z42: =IF(VLOOKUP(Main!A42,A!$B$81:$C$118,2,FALSE)>VLOOKUP($F$2,A!$B$81:$C$118,2,FALSE),1,0) -> 1 | AA42: 1 | AB42: =IF(B42="S.Staff",VLOOKUP(F42,A!$E$70:$H$74,4,FALSE),IF(B42="Clerk",VLOOKUP(F42,A!$A$70:$D$74,4,FALSE),IF(Main!G42="Yes",VLOOKUP(F42,A!$I$70:$L$74,4,FALSE),VLOOKUP(F42,A!$I$70:$L$74,2,FALSE)))) -> 0.1 | AC42: N.A. | AD42: =IF(B42="Clerk",0,IF(B42="S.Staff",0,VLOOKUP(AC42,A!$J$131:$M$133,2,FALSE))) -> 0 | AE42: =IF(B42="Clerk",0,IF(B42="S.Staff",0,VLOOKUP(AC42,A!$J$131:$M$133,3,FALSE))) -> 0
A43: =+A!B117 -> Nov.15 | B43: Clerk | C43: 0 | D43: 7200 | E43: Pop.> 45 lac | F43: Pop.> 45 lac | G43: N.A. | H43: =IF(B43="S.Staff",VLOOKUP(E43,A!$E$61:$H$65,4,FALSE),IF(B43="Clerk",VLOOKUP(E43,A!$A$61:$D$65,4,FALSE),IF(G43="YES",VLOOKUP(E43,A!$I$61:$L$65,4,FALSE),VLOOKUP(E43,A!$I$61:$L$65,2,FALSE)))) -> 0.1 | I43: N.A. | J43: =IF(B43="Clerk",0,IF(B43="S.Staff",0,VLOOKUP(I43,A!$J$124:$L$126,3,FALSE))) -> 0 | K43: =IF(B43="Clerk",0,IF(B43="S.Staff",0,VLOOKUP(I43,A!$J$124:$K$126,2,FALSE))) -> 0 | L43: N.A. | M43: 0 | N43: 0 | O43: No Spl. Allowance | Q43: =IF(B43="Clerk",VLOOKUP(O43,A!$B$178:$G$181,6,FALSE),IF(B43="S.Staff",VLOOKUP(O43,A!$I$178:$N$186,6,FALSE),0)) -> 0 | Y43: =IF(VLOOKUP(Main!A43,A!$B$81:$C$118,2,FALSE)<VLOOKUP($D$2,A!$B$81:$C$118,2,FALSE),1,0) -> 0 | Z43: =IF(VLOOKUP(Main!A43,A!$B$81:$C$118,2,FALSE)>VLOOKUP($F$2,A!$B$81:$C$118,2,FALSE),1,0) -> 1 | AA43: 1 | AB43: =IF(B43="S.Staff",VLOOKUP(F43,A!$E$70:$H$74,4,FALSE),IF(B43="Clerk",VLOOKUP(F43,A!$A$70:$D$74,4,FALSE),IF(Main!G43="Yes",VLOOKUP(F43,A!$I$70:$L$74,4,FALSE),VLOOKUP(F43,A!$I$70:$L$74,2,FALSE)))) -> 0.1 | AC43: N.A. | AD43: =IF(B43="Clerk",0,IF(B43="S.Staff",0,VLOOKUP(AC43,A!$J$131:$M$133,2,FALSE))) -> 0 | AE43: =IF(B43="Clerk",0,IF(B43="S.Staff",0,VLOOKUP(AC43,A!$J$131:$M$133,3,FALSE))) -> 0
A44: =+A!B118 -> Dec.15 | B44: Clerk | C44: 0 | D44: 7200 | E44: Pop.> 45 lac | F44: Pop.> 45 lac | G44: N.A. | H44: =IF(B44="S.Staff",VLOOKUP(E44,A!$E$61:$H$65,4,FALSE),IF(B44="Clerk",VLOOKUP(E44,A!$A$61:$D$65,4,FALSE),IF(G44="YES",VLOOKUP(E44,A!$I$61:$L$65,4,FALSE),VLOOKUP(E44,A!$I$61:$L$65,2,FALSE)))) -> 0.1 | I44: N.A. | J44: =IF(B44="Clerk",0,IF(B44="S.Staff",0,VLOOKUP(I44,A!$J$124:$L$126,3,FALSE))) -> 0 | K44: =IF(B44="Clerk",0,IF(B44="S.Staff",0,VLOOKUP(I44,A!$J$124:$K$126,2,FALSE))) -> 0 | L44: N.A. | M44: 0 | N44: 0 | O44: No Spl. Allowance | Q44: =IF(B44="Clerk",VLOOKUP(O44,A!$B$178:$G$181,6,FALSE),IF(B44="S.Staff",VLOOKUP(O44,A!$I$178:$N$186,6,FALSE),0)) -> 0 | Y44: =IF(VLOOKUP(Main!A44,A!$B$81:$C$118,2,FALSE)<VLOOKUP($D$2,A!$B$81:$C$118,2,FALSE),1,0) -> 0 | Z44: =IF(VLOOKUP(Main!A44,A!$B$81:$C$118,2,FALSE)>VLOOKUP($F$2,A!$B$81:$C$118,2,FALSE),1,0) -> 1 | AA44: 1 | AB44: =IF(B44="S.Staff",VLOOKUP(F44,A!$E$70:$H$74,4,FALSE),IF(B44="Clerk",VLOOKUP(F44,A!$A$70:$D$74,4,FALSE),IF(Main!G44="Yes",VLOOKUP(F44,A!$I$70:$L$74,4,FALSE),VLOOKUP(F44,A!$I$70:$L$74,2,FALSE)))) -> 0.1 | AC44: N.A. | AD44: =IF(B44="Clerk",0,IF(B44="S.Staff",0,VLOOKUP(AC44,A!$J$131:$M$133,2,FALSE))) -> 0 | AE44: =IF(B44="Clerk",0,IF(B44="S.Staff",0,VLOOKUP(AC44,A!$J$131:$M$133,3,FALSE))) -> 0

Sheet A (hidden)
A1: Sub Stf | D1: Clerk | G1: O-I | J1: O-II | M1: O-III | P1: O-IV | S1: O-V | V1: O-VI | Y1: O-VII
B2: 0
B3: Old | C3: New | E3: Old | F3: New | H3: OLD | I3: NEW | K3: OLD | L3: NEW | N3: OLD | O3: NEW | Q3: OLD | R3: NEW | T3: OLD | U3: NEW | W3: OLD | X3: NEW | Z3: OLD | AA3: NEW
A4: Basic Pay | B4: 5850 | C4: =ROUND(B4+B4*60.15/100+(B4+B4*63/100)*2/100,0) -> 9559 | E4: 7200 | F4: =ROUND(E4+E4*60.15/100+(E4+E4*63/100)*2/100,0) -> 11766 | H4: 14500 | I4: =ROUND(H4+H4*60.15/100+(H4+H4*63/100)*2/100,0) -> 23694 | K4: 19400 | L4: =ROUND(K4+K4*60.15/100+(K4+K4*63/100)*2/100,0) -> 31702 | N4: 25700 | O4: =ROUND(N4+N4*60.15/100+(N4+N4*63/100)*2/100,0) -> 41996 | Q4: 30600 | R4: =ROUND(Q4+Q4*60.15/100+(Q4+Q4*63/100)*2/100,0) -> 50003 | T4: 36200 | U4: =ROUND(T4+T4*60.15/100+(T4+T4*63/100)*2/100,0) -> 59154 | W4: 42000 | X4: =ROUND(W4+W4*60.15/100+(W4+W4*63/100)*2/100,0) -> 68632 | Z4: 46800 | AA4: =ROUND(Z4+Z4*60.15/100+(Z4+Z4*63/100)*2/100,0) -> 76476
A5: HRA | B5: 6050 | C5: =ROUND(B5+B5*60.15/100+(B5+B5*63/100)*2/100,0) -> 9886 | E5: 7600 | F5: 12419 | H5: =+H4+600 -> 15100 | I5: 24675 | K5: =+K4+700 -> 20100 | L5: 32845 | N5: =+N4+800 -> 26500 | O5: 43304 | Q5: =+Q4+900 -> 31500 | R5: 51474 | T5: =+T4+1000 -> 37200 | U5: 60789 | W5: =+W4+1200 -> 43200 | X5: 70593 | Z5: =+Z4+1300 -> 48100 | AA5: 78600
A6: Capital Cost | B6: 6250 | C6: 10213 | E6: 8000 | F6: 13073 | H6: 15700 | I6: 25655 | K6: =+K5+800 -> 20900 | L6: 34153 | N6: =+N5+800 -> 27300 | O6: 44611 | Q6: =+Q5+900 -> 32400 | R6: 52945 | T6: =+T5+1000 -> 38200 | U6: 62423 | W6: =+W5+1200 -> 44400 | X6: 72554 | Z6: =+Z5+1300 -> 49400 | AA6: 80725
A7: DA Slab | B7: 6450 | C7: 10540 | E7: 8400 | F7: 13726 | H7: 16300 | I7: 26636 | K7: =+K6+800 -> 21700 | L7: 35460 | N7: =+N6+800 -> 28100 | O7: 45918 | Q7: =+Q6+900 -> 33300 | R7: 54416 | T7: =+T6+1100 -> 39300 | U7: 64220 | W7: =+W6+1200 -> 45600 | X7: 74515 | Z7: =+Z6+1300 -> 50700 | AA7: 82849
A8: CCA | B8: 6650 | C8: 10867 | E8: 8900 | F8: 14543 | H8: 16900 | I8: 27616 | K8: 22500 | L8: 36767 | N8: =+N7+800 -> 28900 | O8: 47225 | Q8: =+Q7+900 -> 34200 | R8: 55886 | T8: =+T7+1100 -> 40400 | U8: 66018 | W8: =+W7+1200 -> 46800 | X8: 76476 | Z8: =+Z7+1300 -> 52000 | AA8: 84973
A9: FPP | B9: 6900 | C9: 11275 | E9: 9400 | F9: 15361 | H9: 17500 | I9: 28597 | K9: 23300 | L9: 38075 | N9: =+N8+800 -> 29700 | O9: 48533 | Q9: =+Q8+1000 -> 35200 | R9: 57520
B10: 7150 | C10: 11684 | E10: 9900 | F10: 16178 | H10: 18100 | I10: 29577 | K10: 24100 | L10: 39382 | N10: =+N9+900 -> 30600 | O10: 50003 | Q10: =+Q9+1000 -> 36200 | R10: 59154
B11: 7400 | C11: 12092 | E11: 10500 | F11: 17158 | H11: 18700 | I11: 30558 | K11: 24900 | L11: 40689 | N11: 31500 | O11: 51474
B12: 7650 | C12: 12501 | E12: 11100 | F12: 18139 | H12: =+H11+700 -> 19400 | I12: 31702 | K12: 25700 | L12: 41996 | M12: I | N12: 32400 | O12: 52945
B13: 7900 | C13: 12909 | E13: 11700 | F13: 19119 | H13: =+H12+700 -> 20100 | I13: 32845 | K13: 26500 | L13: 43304 | M13: II | N13: 33300 | O13: 54416
B14: 8200 | C14: 13400 | E14: 12300 | F14: 20099 | H14: =+H13+800 -> 20900 | I14: 34153 | K14: 27300 | L14: 44611 | M14: III | N14: 34200 | O14: 55886
B15: 8500 | C15: 13890 | E15: 13000 | F15: 21243 | H15: =+H14+800 -> 21700 | I15: 35460 | K15: 28100 | L15: 45918 | M15: IV | N15: 35100 | O15: 57357
B16: 8800 | C16: 14380 | E16: 13700 | F16: 22387 | H16: 22500 | I16: 36767 | K16: 28900 | L16: 47225
B17: 9100 | C17: 14870 | E17: 14400 | F17: 23531 | H17: 23300 | I17: 38075 | K17: 29700 | L17: 48533
B18: 9450 | C18: 15442 | E18: 15100 | F18: 24675 | H18: 24100 | I18: 39382 | K18: =+K17+900 -> 30600 | L18: 50003
B19: 9800 | C19: 16014 | E19: 15800 | F19: 25819 | H19: 24900 | I19: 40689 | J19: I | K19: =+K18+900 -> 31500 | L19: 51474
B20: 10150 | C20: 16586 | E20: 16500 | F20: 26963 | H20: 25700 | I20: 41996 | J20: II | K20: =+K19+900 -> 32400 | L20: 52945
B21: 10550 | C21: 17240 | E21: 17200 | F21: 28107 | H21: 26500 | I21: 43304 | J21: III | K21: =+K20+900 -> 33300 | L21: 54416
B22: 10950 | C22: 17893 | E22: 18500 | F22: 30231 | H22: 27300 | I22: 44611 | J22: IV | K22: =+K21+900 -> 34200 | L22: 55886
B23: 11350 | C23: 18547 | E23: 19300 | F23: 31538 | H23: 28100 | I23: 45918
B24: 11750 | C24: 19201 | E24: 20100 | F24: 32845 | G24: I | H24: 28900 | I24: 47225
B25: 12150 | C25: 19854 | E25: 20900 | F25: 34153 | G25: II | H25: 29700 | I25: 48533
B26: 12550 | C26: 20508 | E26: 21700 | F26: 35460 | G26: III | H26: =+H25+900 -> 30600 | I26: 50003
B27: 12950 | C27: 21162 | E27: 22500 | F27: 36767 | G27: IV | H27: =+H26+900 -> 31500 | I27: 51474
B28: 13350 | C28: 21815 | E28: 23300 | F28: 38075
B29: 13750 | C29: 22469 | E29: 24100 | F29: 39382
B30: 14150 | C30: 23123 | E30: 24900 | F30: 40689
B31: 14550 | C31: 23776
A35: FPP | B35: OLD | C35: New | E35: OLD | F35: New | H35: OLD | I35: New | K35: OLD | L35: New | N35: OLD | O35: New | Q35: OLD | R35: New | T35: OLD | U35: New | W35: OLD | X35: New | Z35: OLD | AA35: New
A36: Basic | B36: =+B31-B30 -> 400 | C36: =+C31-C30 -> 653 | E36: =+E30-E29 -> 800 | F36: =+F30-F29 -> 1307 | H36: =+H25-H24 -> 800 | I36: =+I27-I26 -> 1471 | K36: =+K20-K19 -> 900 | L36: =+L22-L21 -> 1470 | N36: =+N13-N12 -> 900 | O36: =+O15-O14 -> 1471 | Q36: =+Q10-Q9 -> 1000 | R36: =+R10-R9 -> 1634 | T36: =+T8-T7 -> 1100 | U36: =+U8-U7 -> 1798 | W36: =+W8-W7 -> 1200 | X36: =+X8-X7 -> 1961 | Z36: =+Z8-Z7 -> 1300 | AA36: =+AA8-AA7 -> 2124
A37: DA | B37: =+B36*48*0.15% -> 28.8 | C37: =ROUND(C36*$E$81*$E$80,2) -> 71.18 | E37: =+E36*48*0.15% -> 57.6 | F37: =ROUND(F36*$E$81*$E$80,2) -> 142.46 | H37: =+H36*48*0.15% -> 57.6 | I37: =ROUND(I36*$E$81*$E$80,2) -> 160.34 | K37: =+K36*48*0.15% -> 64.8 | L37: =ROUND(L36*$E$81*$E$80,2) -> 160.23 | N37: =+N36*48*0.15% -> 64.8 | O37: =ROUND(O36*$E$81*$E$80,2) -> 160.34 | Q37: =+Q36*48*0.15% -> 72 | R37: =ROUND(R36*$E$81*$E$80,2) -> 178.11 | T37: =+T36*48*0.15% -> 79.2 | U37: =ROUND(U36*$E$81*$E$80,2) -> 195.98 | W37: =+W36*48*0.15% -> 86.4 | X37: =ROUND(X36*$E$81*$E$80,2) -> 213.75 | Z37: =+Z36*48*0.15% -> 93.6 | AA37: =ROUND(AA36*$E$81*$E$80,2) -> 231.52
B38: 430 | C38: =ROUND($C$36+$C$37+$C$36*F74,0) -> 724 | E38: 860 | F38: =ROUND($F$36+$F$37+$F$36*B74,0) -> 1449 | H38: =ROUND(H36+H37,0) -> 858 | I38: =ROUND(I$36+I$37+I$36*$J$74,0) -> 1631 | K38: =ROUND(K36+K37,0) -> 965 | L38: =ROUND(L$36+L$37+L$36*$J$74,0) -> 1630 | N38: =ROUND(N36+N37,0) -> 965 | O38: =ROUND(O$36+O$37+O$36*$J$74,0) -> 1631 | Q38: =ROUND(Q36+Q37,0) -> 1072 | R38: =ROUND(R$36+R$37+R$36*$J$74,0) -> 1812 | T38: =ROUND(T36+T37,0) -> 1179 | U38: =ROUND(U$36+U$37+U$36*$J$74,0) -> 1994 | W38: =ROUND(W36+W37,0) -> 1286 | X38: =ROUND(X$36+X$37+X$36*$J$74,0) -> 2175 | Z38: =ROUND(Z36+Z37,0) -> 1394 | AA38: =ROUND(AA$36+AA$37+AA$36*$J$74,0) -> 2356
B39: 460 | C39: =ROUND($C$36+$C$37+$C$36*F70,0) -> 789 | E39: 915 | F39: =ROUND($F$36+$F$37+$F$36*B70,0) -> 1580 | H39: =ROUND(+H$36+H$37+H$36*6.5%,0) -> 910 | I39: =ROUND(I$36+I$37+I$36*$J$70,0) -> 1756 | K39: =ROUND(+K$36+K$37+K$36*6.5%,0) -> 1023 | L39: =ROUND(L$36+L$37+L$36*$J$70,0) -> 1755 | N39: =ROUND(+N$36+N$37+N$36*6.5%,0) -> 1023 | O39: =ROUND(O$36+O$37+O$36*$J$70,0) -> 1756 | Q39: =ROUND(+Q$36+Q$37+Q$36*6.5%,0) -> 1137 | R39: =ROUND(R$36+R$37+R$36*$J$70,0) -> 1951 | T39: =ROUND(+T$36+T$37+T$36*6.5%,0) -> 1251 | U39: =ROUND(U$36+U$37+U$36*$J$70,0) -> 2147 | W39: =ROUND(+W$36+W$37+W$36*6.5%,0) -> 1364 | X39: =ROUND(X$36+X$37+X$36*$J$70,0) -> 2341 | Z39: =ROUND(+Z$36+Z$37+Z$36*6.5%,0) -> 1478 | AA39: =ROUND(AA$36+AA$37+AA$36*$J$70,0) -> 2536
B40: 460 | C40: =ROUND($C$36+$C$37+$C$36*F71,0) -> 783 | E40: 920 | F40: =ROUND($F$36+$F$37+$F$36*B71,0) -> 1567 | H40: =ROUND(+H$36+H$37+H$36*7.5%,0) -> 918 | I40: =ROUND(I$36+I$37+I$36*$J$71,0) -> 1742 | K40: =ROUND(+K$36+K$37+K$36*7.5%,0) -> 1032 | L40: =ROUND(L$36+L$37+L$36*$J$71,0) -> 1740 | N40: =ROUND(+N$36+N$37+N$36*7.5%,0) -> 1032 | O40: =ROUND(O$36+O$37+O$36*$J$71,0) -> 1742 | Q40: =ROUND(+Q$36+Q$37+Q$36*7.5%,0) -> 1147 | R40: =ROUND(R$36+R$37+R$36*$J$71,0) -> 1935 | T40: =ROUND(+T$36+T$37+T$36*7.5%,0) -> 1262 | U40: =ROUND(U$36+U$37+U$36*$J$71,0) -> 2129 | W40: =ROUND(+W$36+W$37+W$36*7.5%,0) -> 1376 | X40: =ROUND(X$36+X$37+X$36*$J$71,0) -> 2322 | Z40: =ROUND(+Z$36+Z$37+Z$36*7.5%,0) -> 1491 | AA40: =ROUND(AA$36+AA$37+AA$36*$J$71,0) -> 2515
B41: 465 | C41: =ROUND($C$36+$C$37+$C$36*F72,0) -> 773 | E41: 930 | F41: =ROUND($F$36+$F$37+$F$36*B72,0) -> 1547 | H41: =ROUND(+H$36+H$37+H$36*8.5%,0) -> 926 | I41: =ROUND(I$36+I$37+I$36*$J$72,0) -> 1727 | K41: =ROUND(+K$36+K$37+K$36*8.5%,0) -> 1041 | L41: =ROUND(L$36+L$37+L$36*$J$72,0) -> 1726 | N41: =ROUND(+N$36+N$37+N$36*8.5%,0) -> 1041 | O41: =ROUND(O$36+O$37+O$36*$J$72,0) -> 1727 | Q41: =ROUND(+Q$36+Q$37+Q$36*8.5%,0) -> 1157 | R41: =ROUND(R$36+R$37+R$36*$J$72,0) -> 1918 | T41: =ROUND(+T$36+T$37+T$36*8.5%,0) -> 1273 | U41: =ROUND(U$36+U$37+U$36*$J$72,0) -> 2111 | W41: =ROUND(+W$36+W$37+W$36*8.5%,0) -> 1388 | X41: =ROUND(X$36+X$37+X$36*$J$72,0) -> 2302 | Z41: =ROUND(+Z$36+Z$37+Z$36*8.5%,0) -> 1504 | AA41: =ROUND(AA$36+AA$37+AA$36*$J$72,0) -> 2494
B42: 470 | C42: =ROUND($C$36+$C$37+$C$36*F73,0) -> 770 | E42: 940 | F42: =ROUND($F$36+$F$37+$F$36*B73,0) -> 1541 | H42: =ROUND(+H$36+H$37+H$36*6.5%*1.5,0) -> 936 | I42: =ROUND(I$36+I$37+I$36*$J$70*1.5,0) -> 1819 | K42: =ROUND(+K$36+K$37+K$36*6.5%*1.5,0) -> 1053 | L42: =ROUND(L$36+L$37+L$36*$J$70*1.5,0) -> 1818 | N42: =ROUND(+N$36+N$37+N$36*6.5%*1.5,0) -> 1053 | O42: =ROUND(O$36+O$37+O$36*$J$70*1.5,0) -> 1819 | Q42: =ROUND(+Q$36+Q$37+Q$36*6.5%*1.5,0) -> 1170 | R42: =ROUND(R$36+R$37+R$36*$J$70*1.5,0) -> 2020 | T42: =ROUND(+T$36+T$37+T$36*6.5%*1.5,0) -> 1286 | U42: =ROUND(U$36+U$37+U$36*$J$70*1.5,0) -> 2223 | W42: =ROUND(+W$36+W$37+W$36*6.5%*1.5,0) -> 1403 | X42: =ROUND(X$36+X$37+X$36*$J$70*1.5,0) -> 2425 | Z42: =ROUND(+Z$36+Z$37+Z$36*6.5%*1.5,0) -> 1520 | AA42: =ROUND(AA$36+AA$37+AA$36*$J$70*1.5,0) -> 2626
H43: =ROUND(+H$36+H$37+H$36*7.5%*1.5,0) -> 948 | I43: =ROUND(I$36+I$37+I$36*$J$71*1.5,0) -> 1797 | K43: =ROUND(+K$36+K$37+K$36*7.5%*1.5,0) -> 1066 | L43: =ROUND(L$36+L$37+L$36*$J$71*1.5,0) -> 1796 | N43: =ROUND(+N$36+N$37+N$36*7.5%*1.5,0) -> 1066 | O43: =ROUND(O$36+O$37+O$36*$J$71*1.5,0) -> 1797 | Q43: =ROUND(+Q$36+Q$37+Q$36*7.5%*1.5,0) -> 1185 | R43: =ROUND(R$36+R$37+R$36*$J$71*1.5,0) -> 1996 | T43: =ROUND(+T$36+T$37+T$36*7.5%*1.5,0) -> 1303 | U43: =ROUND(U$36+U$37+U$36*$J$71*1.5,0) -> 2196 | W43: =ROUND(+W$36+W$37+W$36*7.5%*1.5,0) -> 1421 | X43: =ROUND(X$36+X$37+X$36*$J$71*1.5,0) -> 2395 | Z43: =ROUND(+Z$36+Z$37+Z$36*7.5%*1.5,0) -> 1540 | AA43: =ROUND(AA$36+AA$37+AA$36*$J$71*1.5,0) -> 2594
H44: =ROUND(+H$36+H$37+H$36*8.5%*1.5,0) -> 960 | I44: =ROUND(I$36+I$37+I$36*$J$72*1.5,0) -> 1775 | K44: =ROUND(+K$36+K$37+K$36*8.5%*1.5,0) -> 1080 | L44: =ROUND(L$36+L$37+L$36*$J$72*1.5,0) -> 1774 | N44: =ROUND(+N$36+N$37+N$36*8.5%*1.5,0) -> 1080 | O44: =ROUND(O$36+O$37+O$36*$J$72*1.5,0) -> 1775 | Q44: =ROUND(+Q$36+Q$37+Q$36*8.5%*1.5,0) -> 1200 | R44: =ROUND(R$36+R$37+R$36*$J$72*1.5,0) -> 1971 | T44: =ROUND(+T$36+T$37+T$36*8.5%*1.5,0) -> 1319 | U44: =ROUND(U$36+U$37+U$36*$J$72*1.5,0) -> 2169 | W44: =ROUND(+W$36+W$37+W$36*8.5%*1.5,0) -> 1439 | X44: =ROUND(X$36+X$37+X$36*$J$72*1.5,0) -> 2366 | Z44: =ROUND(+Z$36+Z$37+Z$36*8.5%*1.5,0) -> 1559 | AA44: =ROUND(AA$36+AA$37+AA$36*$J$72*1.5,0) -> 2563
H45: 0 | I45: 0 | K45: 0 | L45: 0 | N45: 0 | O45: 0 | Q45: 0 | R45: 0 | T45: 0 | U45: 0 | W45: 0 | X45: 0 | Z45: 0 | AA45: 0
A59: HRA OLD
A60: Clerical | B60: B.RATE | C60: OVER% | D60: TOTAL | E60: Sub Staff | F60: B.RATE | G60: OVER% | H60: TOTAL | I60: Officer | J60: B.RATE | K60: OVER% | L60: TOTAL | N60: CAPITAL COST
A61: Pop.> 45 lac | B61: 0.1 | C61: 0 | D61: =(B61+B61*C61) -> 0.1 | E61: Pop.> 45 lac | F61: 0.1 | G61: 0 | H61: =(F61+F61*G61) -> 0.1 | I61: Major A | J61: 0.085 | K61: 0.5 | L61: =(J61+J61*K61) -> 0.1275 | N61: OLD | O61: NEW | R61: S.Staff
A62: Pop.12-45 lac | B62: 0.09 | C62: 0 | D62: =(B62+B62*C62) -> 0.09 | E62: Pop.12-45 lac | F62: 0.09 | G62: 0 | H62: =(F62+F62*G62) -> 0.09 | I62: Area I | J62: 0.075 | K62: 0.5 | L62: =(J62+J62*K62) -> 0.1125 | N62: N.A. | R62: Clerk
A63: Pop.5-12 lac | B63: 0.075 | C63: 0 | D63: =(B63+B63*C63) -> 0.075 | E63: Pop.5-12 lac | F63: 0.075 | G63: 0 | H63: =(F63+F63*G63) -> 0.075 | I63: Area II | J63: 0.065 | K63: 0.5 | L63: =(J63+J63*K63) -> 0.0975 | N63: YES | R63: O-I
A64: Pop.< 5 lac | B64: 0.07 | C64: 0 | D64: =(B64+B64*C64) -> 0.07 | E64: Pop.< 5 lac | F64: 0.07 | G64: 0 | H64: =(F64+F64*G64) -> 0.07 | I64: Area III | J64: 0.065 | K64: 0.5 | L64: =(J64+J64*K64) -> 0.0975 | N64: NO | R64: O-II
A65: NO HRA | B65: 0 | C65: 0 | D65: =(B65+B65*C65) -> 0 | E65: NO HRA | F65: 0 | G65: 0 | H65: =(F65+F65*G65) -> 0 | I65: NO HRA | J65: 0 | K65: 0 | L65: =(J65+J65*K65) -> 0 | R65: O-III
R66: O-IV
R67: O-V
A68: HRA NEW | R68: O-VI
A69: Clerical | B69: B.RATE | C69: OVER% | D69: TOTAL | E69: Sub Staff | F69: B.RATE | G69: OVER% | H69: TOTAL | I69: Officer | J69: B.RATE | K69: OVER% | L69: TOTAL | R69: O-VII
A70: Pop.> 45 lac | B70: =+Instructions!D26 -> 0.1 | C70: 0 | D70: =(B70+B70*C70) -> 0.1 | E70: Pop.> 45 lac | F70: =+Instructions!H26 -> 0.1 | G70: 0 | H70: =(F70+F70*G70) -> 0.1 | I70: Major A | J70: =+Instructions!L26 -> 0.085 | K70: 0.5 | L70: =(J70+J70*K70) -> 0.1275 | R70: N.A.
A71: Pop.12-45 lac | B71: =+Instructions!D27 -> 0.09 | C71: 0 | D71: =(B71+B71*C71) -> 0.09 | E71: Pop.12-45 lac | F71: =+Instructions!H27 -> 0.09 | G71: 0 | H71: =(F71+F71*G71) -> 0.09 | I71: Area I | J71: =+Instructions!L27 -> 0.075 | K71: 0.5 | L71: =(J71+J71*K71) -> 0.1125
A72: Pop.5-12 lac | B72: =+Instructions!D28 -> 0.075 | C72: 0 | D72: =(B72+B72*C72) -> 0.075 | E72: Pop.5-12 lac | F72: =+Instructions!H28 -> 0.075 | G72: 0 | H72: =(F72+F72*G72) -> 0.075 | I72: Area II | J72: =+Instructions!L28 -> 0.065 | K72: 0.5 | L72: =(J72+J72*K72) -> 0.0975
A73: Pop.< 5 lac | B73: =+Instructions!D29 -> 0.07 | C73: 0 | D73: =(B73+B73*C73) -> 0.07 | E73: Pop.< 5 lac | F73: =+Instructions!H29 -> 0.07 | G73: 0 | H73: =(F73+F73*G73) -> 0.07 | I73: Area III | J73: =+Instructions!L29 -> 0.065 | K73: 0.5 | L73: =(J73+J73*K73) -> 0.0975
A74: NO HRA | B74: =+Instructions!D30 -> 0 | C74: 0 | D74: =(B74+B74*C74) -> 0 | E74: NO HRA | F74: =+Instructions!H30 -> 0 | G74: 0 | H74: =(F74+F74*G74) -> 0 | I74: NO HRA | J74: =+Instructions!L30 -> 0 | K74: 0 | L74: =(J74+J74*K74) -> 0
B78: DA Slabs | E78: -401
D79: Old | E79: New
C80: Month cod | D80: 0.0015 | E80: =+Instructions!D13/100 -> 0.001
B81: Nov. 12 | C81: 1 | D81: 510 | E81: =+D81+$E$78 -> 109
B82: Dec.12 | C82: 2 | D82: =+D81 -> 510 | E82: =+D82+$E$78 -> 109
B83: Jan.13 | C83: 3 | D83: =+D82 -> 510 | E83: 109
B84: Feb.13 | C84: 4 | D84: 535 | E84: 134
B85: Mar.13 | C85: 5 | D85: 535 | E85: 134
B86: Apr.13 | C86: 6 | D86: 535 | E86: 134
B87: May.13 | C87: 7 | D87: 561 | E87: 160
B88: Jun.13 | C88: 8 | D88: 561 | E88: 160
B89: Jul.13 | C89: 9 | D89: 561 | E89: 160
B90: Aug.13 | C90: 10 | D90: 593 | E90: 192
B91: Sep.13 | C91: 11 | D91: 593 | E91: 192
B92: Oct.13 | C92: 12 | D92: 593 | E92: 192
B93: Nov.13 | C93: 13 | D93: 641 | E93: 240
B94: Dec.13 | C94: 14 | D94: 641 | E94: 240
B95: Jan.14 | C95: 15 | D95: 641 | E95: 240
B96: Feb.14 | C96: 16 | D96: 666 | E96: 265
B97: Mar.14 | C97: 17 | D97: 666 | E97: 265
B98: Apr.14 | C98: 18 | D98: 666 | E98: 265
B99: May.14 | C99: 19 | D99: 650 | E99: 249
B100: Jun.14 | C100: 20 | D100: 650 | E100: 249
B101: Jul.14 | C101: 21 | D101: 650 | E101: 249
B102: Aug.14 | C102: 22 | D102: 683 | E102: 282
B103: Sep.14 | C103: 23 | D103: 683 | E103: 282
B104: Oct.14 | C104: 24 | D104: 683 | E104: 282
B105: Nov.14 | C105: 25 | D105: 732 | E105: 331
B106: Dec.14 | C106: 26 | D106: 732 | E106: 331
B107: Jan.15 | C107: 27 | D107: 732 | E107: 331
B108: Feb.15 | C108: 28 | D108: 734 | E108: 333
B109: Mar.15 | C109: 29 | D109: 734 | E109: 333
B110: Apr.15 | C110: 30 | D110: 734 | E110: 333
B111: May.15 | C111: 31 | D111: 734 | E111: 333
B112: Jun.15 | C112: 32 | D112: 734 | E112: 333
B113: Jul.15 | C113: 33 | D113: 734 | E113: 333
B114: Aug.15 | C114: 34 | D114: 734 | E114: 333
B115: Sep.15 | C115: 35 | D115: 734 | E115: 333
B116: Oct.15 | C116: 36 | D116: 734 | E116: 333
B117: Nov.15 | C117: 37 | D117: 734 | E117: 333
B118: Dec.15 | C118: 38 | D118: 734 | E118: 333
B121: CCA Old
C122: % of BP | D122: max | E122: min | G122: % of BP | H122: max | I122: min | K122: % of BP | L122: max | M122: min
B123: Clerical | F123: Sub Staff | J123: Officer
B124: Higher CCA | C124: N.A. | D124: 0 | E124: 0 | F124: N.A. | G124: 0.04 | H124: 0 | I124: 0 | J124: Area I | K124: 0.04 | L124: 540
B125: Lower CCA | C125: N.A. | D125: 0 | E125: 0 | F125: N.A. | G125: 0.03 | H125: 0 | I125: 0 | J125: >5 lacs | K125: 0.03 | L125: 375
B126: NON CCA | C126: N.A. | D126: 0 | E126: 0 | F126: N.A. | G126: 0 | H126: 0 | I126: 0 | J126: NON CCA | K126: 0 | L126: 0 | M126: 0
B128: CCA New
C129: % of BP | D129: max | E129: min | G129: % of BP | H129: max | I129: min | K129: % of BP | L129: max | M129: min
B130: Clerical | F130: Sub Staff | J130: Officer
B131: Higher CCA | C131: 0.04 | D131: 0 | E131: 0 | F131: Higher CCA | G131: 0.04 | H131: 0 | I131: 0 | J131: Area I | K131: 0.04 | L131: =ROUND(L124+L124*60.15/100+(L124+L124*63/100)*2/100,0) -> 882
B132: Lower CCA | C132: 0.03 | D132: 0 | E132: 0 | F132: Lower CCA | G132: 0.03 | H132: 0 | I132: 0 | J132: >5 lacs | K132: 0.03 | L132: =ROUND(L125+L125*60.15/100+(L125+L125*63/100)*2/100,0) -> 613
B133: NON CCA | C133: 0 | D133: 0 | E133: 0 | F133: NON CCA | G133: 0 | H133: 0 | I133: 0 | J133: NON CCA | K133: 0 | L133: 0 | M133: 0
B138: FPP OLD/NEW | N138: D I S A B L E
B140: Clerical | F140: Sub Staff | J140: Officer
B142: OLD | C142: PF rank | D142: NEW | E142: PF rank | F142: OLD | G142: PF rank | H142: NEW | I142: PF rank | J142: OLD | K142: PF rank | L142: NEW | M142: PF rank
B143: 0 | C143: 0 | D143: 0 | E143: 0 | F143: 0 | G143: 0 | H143: 0 | I143: 0 | J143: 0 | K143: 0 | L143: 0 | M143: 0
B144: 860 | C144: 800 | D144: 860 | E144: 800 | F144: 430 | G144: 400 | H144: 430 | I144: 400 | J144: 860 | K144: 800 | L144: 860 | M144: 800
B145: 915 | C145: 800 | D145: 915 | E145: 800 | F145: 460 | G145: 400 | H145: 460 | I145: 400 | J145: 915 | K145: 800 | L145: 915 | M145: 800
B146: 920 | C146: 800 | D146: 920 | E146: 800 | F146: 460 | G146: 400 | H146: 460 | I146: 400 | J146: 920 | K146: 800 | L146: 920 | M146: 800
B147: 930 | C147: 800 | D147: 930 | E147: 800 | F147: 465 | G147: 400 | H147: 465 | I147: 400 | J147: 930 | K147: 800 | L147: 930 | M147: 800
B148: 940 | C148: 800 | D148: 940 | E148: 800 | F148: 470 | G148: 400 | H148: 470 | I148: 400 | J148: 940 | K148: 800 | L148: 940 | M148: 800
B160: PQP
B161: Clerical | D161: Sub Staff | F161: Officer
B162: Old | C162: NEW | D162: Old | E162: NEW | F162: Old | G162: NEW
B163: 0 | C163: 0 | D163: 0 | E163: 0 | F163: 0 | G163: 0
B164: 250 | C164: =ROUND(B164+B164*60.15/100+(B164+B164*63/100)*2/100,0) -> 409 | D164: 0 | E164: 0 | F164: 410 | G164: =ROUND(F164+F164*60.15/100+(F164+F164*63/100)*2/100,0) -> 670
B165: 490 | C165: 801 | D165: 0 | E165: 0 | F165: 1030 | G165: 1683
B166: 740 | C166: 1209 | D166: 0 | E166: 0 | F166: 0 | G166: 0
B167: 990 | C167: 1618 | D167: 0 | E167: 0 | F167: 0 | G167: 0
B168: 1230 | C168: 2010 | D168: 0 | E168: 0 | F168: 0 | G168: 0
B175: Special All.
B176: Clerical | I176: Sub Staff
B177: DESIGNATION | G177: OLD | H177: NEW | I177: DESIGNATION | N177: OLD | O177: NEW
B178: Computer Operator - B (with passing powers) | G178: 500 | H178: =ROUND(G178+G178*60.15/100+(G178+G178*63/100)*2/100,0) -> 817 | I178: No Spl. All. | N178: 0
B179: Head Cashier - II | G179: 780 | H179: 1275 | I179: DAFTARY | N179: 340 | O179: =ROUND(N179+N179*60.15/100+(N179+N179*63/100)*2/100,0) -> 556
B180: Special Assistant | G180: 1180 | H180: 1928 | I180: HEAD PEON | N180: 450 | O180: 735
B181: No Spl. Allowance | G181: 0 | I181: ELECTRICIAN | N181: 1250 | O181: 2043
I182: DRIVER | N182: 1450 | O182: 2369
I183: HEAD MESSENGER IOB | N183: 1000 | O183: 1634
I184: BILL COLLECTOR | N184: 240 | O184: 392
I185: AC Plant Operator | N185: 1250 | O185: 2043
I186: ARMED GUARD | N186: 240 | O186: 392

Sheet Error (hidden)
A4: Period | B4: BP Selection | C4: OLD HRA | D4: OLD Cap. Cost | E4: OLD CCA Cat. | F4: OLD FPP | G4: old pqp | H4: OLD spl All
A5: Nov. 12 | B5: =IFERROR(IF(Main!B7="Clerk",VLOOKUP(Main!D7,A!$E$4:$F$30,1,FALSE),IF(Main!B7="S.Staff",VLOOKUP(Main!D7,A!$B$4:$C$31,1,FALSE), IF(Main!B7="O-I",VLOOKUP(Main!D7,A!$H$4:$I$27,1,FALSE),IF(Main!B7="O-II",VLOOKUP(Main!D7,A!$K$4:$L$22,1,FALSE),IF(Main!B7="O-III",VLOOKUP(Main!D7,A!$N$4:$O$15,1,FALSE),IF(Main!B7="O-IV",VLOOKUP(Main!D7,A!$Q$4:$R$10,1,FALSE),IF(Main!B7="O-V",VLOOKUP(Main!D7,A!$T$4:$U$8,1,FALSE),IF(Main!B7="O-VI",VLOOKUP(Main!D7,A!$W$4:$X$8,1,FALSE),VLOOKUP(Main!D7,A!$Z$4:$AA$8,1,FALSE))))))))),"error") -> 7200 | C5: =IFERROR(IF(Main!B7="Clerk",VLOOKUP(Main!E7,A!$A$61:$B$65,1,FALSE),IF(Main!B7="S.Staff",VLOOKUP(Main!E7,A!$E$61:$F$65,1,FALSE), VLOOKUP(Main!E7,A!$I$61:$J$65,1,FALSE))),"error") -> Pop.> 45 lac | D5: =IFERROR(IF(Main!B7="Clerk","N.A.",IF(Main!B7="S.Staff","N.A.", VLOOKUP(Main!G7,A!$N$63:$O$64,1,FALSE))),"error") -> N.A. | E5: =IFERROR(IF(Main!B7="Clerk","N.A.",IF(Main!B7="S.Staff","N.A.", VLOOKUP(Main!I7,A!$J$124:$K$126,1,FALSE))),"error") -> N.A. | F5: =IFERROR(IF(Main!L7="N.A.",A!$B$2,IF(Main!L7="S.Staff",VLOOKUP(Main!M7,A!$B$38:$C$42,1,FALSE),IF(Main!L7="Clerk",VLOOKUP(Main!M7,A!$E$38:$F$42,1,FALSE),IF(Main!L7="O-I",VLOOKUP(Main!M7,A!$H$38:$I$44,1,FALSE),IF(Main!L7="O-IV",VLOOKUP(Main!M7,A!$Q$38:$R$44,1,FALSE),IF(Main!L7="O-V",VLOOKUP(Main!M7,A!$T$38:$U$44,1,FALSE),IF(Main!L7="O-VI",VLOOKUP(Main!M7,A!$W$38:$X$44,1,FALSE),IF(Main!L7="O-VII",VLOOKUP(Main!M7,A!$Z$38:$AA$44,1,FALSE),VLOOKUP(Main!M7,A!$M$38:$N$44,1,FALSE))))))))),"Error") -> 0 | G5: =IFERROR(IF(Main!B7="S.Staff",A!$B$2,IF(Main!B7="Clerk",VLOOKUP(Main!N7,A!$B$163:$C$168,1,FALSE),VLOOKUP(Main!N7,A!$F$163:$G$165,1,FALSE))),"error") -> 0 | H5: =IFERROR(IF(Main!B7="S.Staff",VLOOKUP(Main!O7,A!$I$178:$J$186,1,FALSE),IF(Main!B7="Clerk",VLOOKUP(Main!O7,A!$B$178:$C$181,1,FALSE),VLOOKUP(Main!O6,A!$B$2:'A'!$C$2,1,FALSE))),"Error") -> No Spl. Allowance
A6: Dec.12 | B6: =IFERROR(IF(Main!B8="Clerk",VLOOKUP(Main!D8,A!$E$4:$F$30,1,FALSE),IF(Main!B8="S.Staff",VLOOKUP(Main!D8,A!$B$4:$C$31,1,FALSE), IF(Main!B8="O-I",VLOOKUP(Main!D8,A!$H$4:$I$27,1,FALSE),IF(Main!B8="O-II",VLOOKUP(Main!D8,A!$K$4:$L$22,1,FALSE),IF(Main!B8="O-III",VLOOKUP(Main!D8,A!$N$4:$O$15,1,FALSE),IF(Main!B8="O-IV",VLOOKUP(Main!D8,A!$Q$4:$R$10,1,FALSE),IF(Main!B8="O-V",VLOOKUP(Main!D8,A!$T$4:$U$8,1,FALSE),IF(Main!B8="O-VI",VLOOKUP(Main!D8,A!$W$4:$X$8,1,FALSE),VLOOKUP(Main!D8,A!$Z$4:$AA$8,1,FALSE))))))))),"error") -> 7200 | C6: =IFERROR(IF(Main!B8="Clerk",VLOOKUP(Main!E8,A!$A$61:$B$65,1,FALSE),IF(Main!B8="S.Staff",VLOOKUP(Main!E8,A!$E$61:$F$65,1,FALSE), VLOOKUP(Main!E8,A!$I$61:$J$65,1,FALSE))),"error") -> Pop.> 45 lac | D6: =IFERROR(IF(Main!B8="Clerk","N.A.",IF(Main!B8="S.Staff","N.A.", VLOOKUP(Main!G8,A!$N$63:$O$64,1,FALSE))),"error") -> N.A. | E6: =IFERROR(IF(Main!B8="Clerk","N.A.",IF(Main!B8="S.Staff","N.A.", VLOOKUP(Main!I8,A!$J$124:$K$126,1,FALSE))),"error") -> N.A. | F6: =IFERROR(IF(Main!L8="N.A.",A!$B$2,IF(Main!L8="S.Staff",VLOOKUP(Main!M8,A!$B$38:$C$42,1,FALSE),IF(Main!L8="Clerk",VLOOKUP(Main!M8,A!$E$38:$F$42,1,FALSE),IF(Main!L8="O-I",VLOOKUP(Main!M8,A!$H$38:$I$44,1,FALSE),IF(Main!L8="O-IV",VLOOKUP(Main!M8,A!$Q$38:$R$44,1,FALSE),IF(Main!L8="O-V",VLOOKUP(Main!M8,A!$T$38:$U$44,1,FALSE),IF(Main!L8="O-VI",VLOOKUP(Main!M8,A!$W$38:$X$44,1,FALSE),IF(Main!L8="O-VII",VLOOKUP(Main!M8,A!$Z$38:$AA$44,1,FALSE),VLOOKUP(Main!M8,A!$M$38:$N$44,1,FALSE))))))))),"Error") -> 0 | G6: =IFERROR(IF(Main!B8="S.Staff",A!$B$2,IF(Main!B8="Clerk",VLOOKUP(Main!N8,A!$B$163:$C$168,1,FALSE),VLOOKUP(Main!N8,A!$F$163:$G$165,1,FALSE))),"error") -> 0 | H6: =IFERROR(IF(Main!B8="S.Staff",VLOOKUP(Main!O8,A!$I$178:$J$186,1,FALSE),IF(Main!B8="Clerk",VLOOKUP(Main!O8,A!$B$178:$C$181,1,FALSE),VLOOKUP(Main!O7,A!$B$2:'A'!$C$2,1,FALSE))),"Error") -> No Spl. Allowance
A7: Jan.13 | B7: =IFERROR(IF(Main!B9="Clerk",VLOOKUP(Main!D9,A!$E$4:$F$30,1,FALSE),IF(Main!B9="S.Staff",VLOOKUP(Main!D9,A!$B$4:$C$31,1,FALSE), IF(Main!B9="O-I",VLOOKUP(Main!D9,A!$H$4:$I$27,1,FALSE),IF(Main!B9="O-II",VLOOKUP(Main!D9,A!$K$4:$L$22,1,FALSE),IF(Main!B9="O-III",VLOOKUP(Main!D9,A!$N$4:$O$15,1,FALSE),IF(Main!B9="O-IV",VLOOKUP(Main!D9,A!$Q$4:$R$10,1,FALSE),IF(Main!B9="O-V",VLOOKUP(Main!D9,A!$T$4:$U$8,1,FALSE),IF(Main!B9="O-VI",VLOOKUP(Main!D9,A!$W$4:$X$8,1,FALSE),VLOOKUP(Main!D9,A!$Z$4:$AA$8,1,FALSE))))))))),"error") -> 7200 | C7: =IFERROR(IF(Main!B9="Clerk",VLOOKUP(Main!E9,A!$A$61:$B$65,1,FALSE),IF(Main!B9="S.Staff",VLOOKUP(Main!E9,A!$E$61:$F$65,1,FALSE), VLOOKUP(Main!E9,A!$I$61:$J$65,1,FALSE))),"error") -> Pop.> 45 lac | D7: =IFERROR(IF(Main!B9="Clerk","N.A.",IF(Main!B9="S.Staff","N.A.", VLOOKUP(Main!G9,A!$N$63:$O$64,1,FALSE))),"error") -> N.A. | E7: =IFERROR(IF(Main!B9="Clerk","N.A.",IF(Main!B9="S.Staff","N.A.", VLOOKUP(Main!I9,A!$J$124:$K$126,1,FALSE))),"error") -> N.A. | F7: =IFERROR(IF(Main!L9="N.A.",A!$B$2,IF(Main!L9="S.Staff",VLOOKUP(Main!M9,A!$B$38:$C$42,1,FALSE),IF(Main!L9="Clerk",VLOOKUP(Main!M9,A!$E$38:$F$42,1,FALSE),IF(Main!L9="O-I",VLOOKUP(Main!M9,A!$H$38:$I$44,1,FALSE),IF(Main!L9="O-IV",VLOOKUP(Main!M9,A!$Q$38:$R$44,1,FALSE),IF(Main!L9="O-V",VLOOKUP(Main!M9,A!$T$38:$U$44,1,FALSE),IF(Main!L9="O-VI",VLOOKUP(Main!M9,A!$W$38:$X$44,1,FALSE),IF(Main!L9="O-VII",VLOOKUP(Main!M9,A!$Z$38:$AA$44,1,FALSE),VLOOKUP(Main!M9,A!$M$38:$N$44,1,FALSE))))))))),"Error") -> 0 | G7: =IFERROR(IF(Main!B9="S.Staff",A!$B$2,IF(Main!B9="Clerk",VLOOKUP(Main!N9,A!$B$163:$C$168,1,FALSE),VLOOKUP(Main!N9,A!$F$163:$G$165,1,FALSE))),"error") -> 0 | H7: =IFERROR(IF(Main!B9="S.Staff",VLOOKUP(Main!O9,A!$I$178:$J$186,1,FALSE),IF(Main!B9="Clerk",VLOOKUP(Main!O9,A!$B$178:$C$181,1,FALSE),VLOOKUP(Main!O8,A!$B$2:'A'!$C$2,1,FALSE))),"Error") -> No Spl. Allowance
A8: Feb.13 | B8: =IFERROR(IF(Main!B10="Clerk",VLOOKUP(Main!D10,A!$E$4:$F$30,1,FALSE),IF(Main!B10="S.Staff",VLOOKUP(Main!D10,A!$B$4:$C$31,1,FALSE), IF(Main!B10="O-I",VLOOKUP(Main!D10,A!$H$4:$I$27,1,FALSE),IF(Main!B10="O-II",VLOOKUP(Main!D10,A!$K$4:$L$22,1,FALSE),IF(Main!B10="O-III",VLOOKUP(Main!D10,A!$N$4:$O$15,1,FALSE),IF(Main!B10="O-IV",VLOOKUP(Main!D10,A!$Q$4:$R$10,1,FALSE),IF(Main!B10="O-V",VLOOKUP(Main!D10,A!$T$4:$U$8,1,FALSE),IF(Main!B10="O-VI",VLOOKUP(Main!D10,A!$W$4:$X$8,1,FALSE),VLOOKUP(Main!D10,A!$Z$4:$AA$8,1,FALSE))))))))),"error") -> 7200 | C8: =IFERROR(IF(Main!B10="Clerk",VLOOKUP(Main!E10,A!$A$61:$B$65,1,FALSE),IF(Main!B10="S.Staff",VLOOKUP(Main!E10,A!$E$61:$F$65,1,FALSE), VLOOKUP(Main!E10,A!$I$61:$J$65,1,FALSE))),"error") -> Pop.> 45 lac | D8: =IFERROR(IF(Main!B10="Clerk","N.A.",IF(Main!B10="S.Staff","N.A.", VLOOKUP(Main!G10,A!$N$63:$O$64,1,FALSE))),"error") -> N.A. | E8: =IFERROR(IF(Main!B10="Clerk","N.A.",IF(Main!B10="S.Staff","N.A.", VLOOKUP(Main!I10,A!$J$124:$K$126,1,FALSE))),"error") -> N.A. | F8: =IFERROR(IF(Main!L10="N.A.",A!$B$2,IF(Main!L10="S.Staff",VLOOKUP(Main!M10,A!$B$38:$C$42,1,FALSE),IF(Main!L10="Clerk",VLOOKUP(Main!M10,A!$E$38:$F$42,1,FALSE),IF(Main!L10="O-I",VLOOKUP(Main!M10,A!$H$38:$I$44,1,FALSE),IF(Main!L10="O-IV",VLOOKUP(Main!M10,A!$Q$38:$R$44,1,FALSE),IF(Main!L10="O-V",VLOOKUP(Main!M10,A!$T$38:$U$44,1,FALSE),IF(Main!L10="O-VI",VLOOKUP(Main!M10,A!$W$38:$X$44,1,FALSE),IF(Main!L10="O-VII",VLOOKUP(Main!M10,A!$Z$38:$AA$44,1,FALSE),VLOOKUP(Main!M10,A!$M$38:$N$44,1,FALSE))))))))),"Error") -> 0 | G8: =IFERROR(IF(Main!B10="S.Staff",A!$B$2,IF(Main!B10="Clerk",VLOOKUP(Main!N10,A!$B$163:$C$168,1,FALSE),VLOOKUP(Main!N10,A!$F$163:$G$165,1,FALSE))),"error") -> 0 | H8: =IFERROR(IF(Main!B10="S.Staff",VLOOKUP(Main!O10,A!$I$178:$J$186,1,FALSE),IF(Main!B10="Clerk",VLOOKUP(Main!O10,A!$B$178:$C$181,1,FALSE),VLOOKUP(Main!O9,A!$B$2:'A'!$C$2,1,FALSE))),"Error") -> No Spl. Allowance
A9: Mar.13 | B9: =IFERROR(IF(Main!B11="Clerk",VLOOKUP(Main!D11,A!$E$4:$F$30,1,FALSE),IF(Main!B11="S.Staff",VLOOKUP(Main!D11,A!$B$4:$C$31,1,FALSE), IF(Main!B11="O-I",VLOOKUP(Main!D11,A!$H$4:$I$27,1,FALSE),IF(Main!B11="O-II",VLOOKUP(Main!D11,A!$K$4:$L$22,1,FALSE),IF(Main!B11="O-III",VLOOKUP(Main!D11,A!$N$4:$O$15,1,FALSE),IF(Main!B11="O-IV",VLOOKUP(Main!D11,A!$Q$4:$R$10,1,FALSE),IF(Main!B11="O-V",VLOOKUP(Main!D11,A!$T$4:$U$8,1,FALSE),IF(Main!B11="O-VI",VLOOKUP(Main!D11,A!$W$4:$X$8,1,FALSE),VLOOKUP(Main!D11,A!$Z$4:$AA$8,1,FALSE))))))))),"error") -> 7200 | C9: =IFERROR(IF(Main!B11="Clerk",VLOOKUP(Main!E11,A!$A$61:$B$65,1,FALSE),IF(Main!B11="S.Staff",VLOOKUP(Main!E11,A!$E$61:$F$65,1,FALSE), VLOOKUP(Main!E11,A!$I$61:$J$65,1,FALSE))),"error") -> Pop.> 45 lac | D9: =IFERROR(IF(Main!B11="Clerk","N.A.",IF(Main!B11="S.Staff","N.A.", VLOOKUP(Main!G11,A!$N$63:$O$64,1,FALSE))),"error") -> N.A. | E9: =IFERROR(IF(Main!B11="Clerk","N.A.",IF(Main!B11="S.Staff","N.A.", VLOOKUP(Main!I11,A!$J$124:$K$126,1,FALSE))),"error") -> N.A. | F9: =IFERROR(IF(Main!L11="N.A.",A!$B$2,IF(Main!L11="S.Staff",VLOOKUP(Main!M11,A!$B$38:$C$42,1,FALSE),IF(Main!L11="Clerk",VLOOKUP(Main!M11,A!$E$38:$F$42,1,FALSE),IF(Main!L11="O-I",VLOOKUP(Main!M11,A!$H$38:$I$44,1,FALSE),IF(Main!L11="O-IV",VLOOKUP(Main!M11,A!$Q$38:$R$44,1,FALSE),IF(Main!L11="O-V",VLOOKUP(Main!M11,A!$T$38:$U$44,1,FALSE),IF(Main!L11="O-VI",VLOOKUP(Main!M11,A!$W$38:$X$44,1,FALSE),IF(Main!L11="O-VII",VLOOKUP(Main!M11,A!$Z$38:$AA$44,1,FALSE),VLOOKUP(Main!M11,A!$M$38:$N$44,1,FALSE))))))))),"Error") -> 0 | G9: =IFERROR(IF(Main!B11="S.Staff",A!$B$2,IF(Main!B11="Clerk",VLOOKUP(Main!N11,A!$B$163:$C$168,1,FALSE),VLOOKUP(Main!N11,A!$F$163:$G$165,1,FALSE))),"error") -> 0 | H9: =IFERROR(IF(Main!B11="S.Staff",VLOOKUP(Main!O11,A!$I$178:$J$186,1,FALSE),IF(Main!B11="Clerk",VLOOKUP(Main!O11,A!$B$178:$C$181,1,FALSE),VLOOKUP(Main!O10,A!$B$2:'A'!$C$2,1,FALSE))),"Error") -> No Spl. Allowance
A10: Apr.13 | B10: =IFERROR(IF(Main!B12="Clerk",VLOOKUP(Main!D12,A!$E$4:$F$30,1,FALSE),IF(Main!B12="S.Staff",VLOOKUP(Main!D12,A!$B$4:$C$31,1,FALSE), IF(Main!B12="O-I",VLOOKUP(Main!D12,A!$H$4:$I$27,1,FALSE),IF(Main!B12="O-II",VLOOKUP(Main!D12,A!$K$4:$L$22,1,FALSE),IF(Main!B12="O-III",VLOOKUP(Main!D12,A!$N$4:$O$15,1,FALSE),IF(Main!B12="O-IV",VLOOKUP(Main!D12,A!$Q$4:$R$10,1,FALSE),IF(Main!B12="O-V",VLOOKUP(Main!D12,A!$T$4:$U$8,1,FALSE),IF(Main!B12="O-VI",VLOOKUP(Main!D12,A!$W$4:$X$8,1,FALSE),VLOOKUP(Main!D12,A!$Z$4:$AA$8,1,FALSE))))))))),"error") -> 7200 | C10: =IFERROR(IF(Main!B12="Clerk",VLOOKUP(Main!E12,A!$A$61:$B$65,1,FALSE),IF(Main!B12="S.Staff",VLOOKUP(Main!E12,A!$E$61:$F$65,1,FALSE), VLOOKUP(Main!E12,A!$I$61:$J$65,1,FALSE))),"error") -> Pop.> 45 lac | D10: =IFERROR(IF(Main!B12="Clerk","N.A.",IF(Main!B12="S.Staff","N.A.", VLOOKUP(Main!G12,A!$N$63:$O$64,1,FALSE))),"error") -> N.A. | E10: =IFERROR(IF(Main!B12="Clerk","N.A.",IF(Main!B12="S.Staff","N.A.", VLOOKUP(Main!I12,A!$J$124:$K$126,1,FALSE))),"error") -> N.A. | F10: =IFERROR(IF(Main!L12="N.A.",A!$B$2,IF(Main!L12="S.Staff",VLOOKUP(Main!M12,A!$B$38:$C$42,1,FALSE),IF(Main!L12="Clerk",VLOOKUP(Main!M12,A!$E$38:$F$42,1,FALSE),IF(Main!L12="O-I",VLOOKUP(Main!M12,A!$H$38:$I$44,1,FALSE),IF(Main!L12="O-IV",VLOOKUP(Main!M12,A!$Q$38:$R$44,1,FALSE),IF(Main!L12="O-V",VLOOKUP(Main!M12,A!$T$38:$U$44,1,FALSE),IF(Main!L12="O-VI",VLOOKUP(Main!M12,A!$W$38:$X$44,1,FALSE),IF(Main!L12="O-VII",VLOOKUP(Main!M12,A!$Z$38:$AA$44,1,FALSE),VLOOKUP(Main!M12,A!$M$38:$N$44,1,FALSE))))))))),"Error") -> 0 | G10: =IFERROR(IF(Main!B12="S.Staff",A!$B$2,IF(Main!B12="Clerk",VLOOKUP(Main!N12,A!$B$163:$C$168,1,FALSE),VLOOKUP(Main!N12,A!$F$163:$G$165,1,FALSE))),"error") -> 0 | H10: =IFERROR(IF(Main!B12="S.Staff",VLOOKUP(Main!O12,A!$I$178:$J$186,1,FALSE),IF(Main!B12="Clerk",VLOOKUP(Main!O12,A!$B$178:$C$181,1,FALSE),VLOOKUP(Main!O11,A!$B$2:'A'!$C$2,1,FALSE))),"Error") -> No Spl. Allowance
A11: May.13 | B11: =IFERROR(IF(Main!B13="Clerk",VLOOKUP(Main!D13,A!$E$4:$F$30,1,FALSE),IF(Main!B13="S.Staff",VLOOKUP(Main!D13,A!$B$4:$C$31,1,FALSE), IF(Main!B13="O-I",VLOOKUP(Main!D13,A!$H$4:$I$27,1,FALSE),IF(Main!B13="O-II",VLOOKUP(Main!D13,A!$K$4:$L$22,1,FALSE),IF(Main!B13="O-III",VLOOKUP(Main!D13,A!$N$4:$O$15,1,FALSE),IF(Main!B13="O-IV",VLOOKUP(Main!D13,A!$Q$4:$R$10,1,FALSE),IF(Main!B13="O-V",VLOOKUP(Main!D13,A!$T$4:$U$8,1,FALSE),IF(Main!B13="O-VI",VLOOKUP(Main!D13,A!$W$4:$X$8,1,FALSE),VLOOKUP(Main!D13,A!$Z$4:$AA$8,1,FALSE))))))))),"error") -> 7200 | C11: =IFERROR(IF(Main!B13="Clerk",VLOOKUP(Main!E13,A!$A$61:$B$65,1,FALSE),IF(Main!B13="S.Staff",VLOOKUP(Main!E13,A!$E$61:$F$65,1,FALSE), VLOOKUP(Main!E13,A!$I$61:$J$65,1,FALSE))),"error") -> Pop.> 45 lac | D11: =IFERROR(IF(Main!B13="Clerk","N.A.",IF(Main!B13="S.Staff","N.A.", VLOOKUP(Main!G13,A!$N$63:$O$64,1,FALSE))),"error") -> N.A. | E11: =IFERROR(IF(Main!B13="Clerk","N.A.",IF(Main!B13="S.Staff","N.A.", VLOOKUP(Main!I13,A!$J$124:$K$126,1,FALSE))),"error") -> N.A. | F11: =IFERROR(IF(Main!L13="N.A.",A!$B$2,IF(Main!L13="S.Staff",VLOOKUP(Main!M13,A!$B$38:$C$42,1,FALSE),IF(Main!L13="Clerk",VLOOKUP(Main!M13,A!$E$38:$F$42,1,FALSE),IF(Main!L13="O-I",VLOOKUP(Main!M13,A!$H$38:$I$44,1,FALSE),IF(Main!L13="O-IV",VLOOKUP(Main!M13,A!$Q$38:$R$44,1,FALSE),IF(Main!L13="O-V",VLOOKUP(Main!M13,A!$T$38:$U$44,1,FALSE),IF(Main!L13="O-VI",VLOOKUP(Main!M13,A!$W$38:$X$44,1,FALSE),IF(Main!L13="O-VII",VLOOKUP(Main!M13,A!$Z$38:$AA$44,1,FALSE),VLOOKUP(Main!M13,A!$M$38:$N$44,1,FALSE))))))))),"Error") -> 0 | G11: =IFERROR(IF(Main!B13="S.Staff",A!$B$2,IF(Main!B13="Clerk",VLOOKUP(Main!N13,A!$B$163:$C$168,1,FALSE),VLOOKUP(Main!N13,A!$F$163:$G$165,1,FALSE))),"error") -> 0 | H11: =IFERROR(IF(Main!B13="S.Staff",VLOOKUP(Main!O13,A!$I$178:$J$186,1,FALSE),IF(Main!B13="Clerk",VLOOKUP(Main!O13,A!$B$178:$C$181,1,FALSE),VLOOKUP(Main!O12,A!$B$2:'A'!$C$2,1,FALSE))),"Error") -> No Spl. Allowance
A12: Jun.13 | B12: =IFERROR(IF(Main!B14="Clerk",VLOOKUP(Main!D14,A!$E$4:$F$30,1,FALSE),IF(Main!B14="S.Staff",VLOOKUP(Main!D14,A!$B$4:$C$31,1,FALSE), IF(Main!B14="O-I",VLOOKUP(Main!D14,A!$H$4:$I$27,1,FALSE),IF(Main!B14="O-II",VLOOKUP(Main!D14,A!$K$4:$L$22,1,FALSE),IF(Main!B14="O-III",VLOOKUP(Main!D14,A!$N$4:$O$15,1,FALSE),IF(Main!B14="O-IV",VLOOKUP(Main!D14,A!$Q$4:$R$10,1,FALSE),IF(Main!B14="O-V",VLOOKUP(Main!D14,A!$T$4:$U$8,1,FALSE),IF(Main!B14="O-VI",VLOOKUP(Main!D14,A!$W$4:$X$8,1,FALSE),VLOOKUP(Main!D14,A!$Z$4:$AA$8,1,FALSE))))))))),"error") -> 7200 | C12: =IFERROR(IF(Main!B14="Clerk",VLOOKUP(Main!E14,A!$A$61:$B$65,1,FALSE),IF(Main!B14="S.Staff",VLOOKUP(Main!E14,A!$E$61:$F$65,1,FALSE), VLOOKUP(Main!E14,A!$I$61:$J$65,1,FALSE))),"error") -> Pop.> 45 lac | D12: =IFERROR(IF(Main!B14="Clerk","N.A.",IF(Main!B14="S.Staff","N.A.", VLOOKUP(Main!G14,A!$N$63:$O$64,1,FALSE))),"error") -> N.A. | E12: =IFERROR(IF(Main!B14="Clerk","N.A.",IF(Main!B14="S.Staff","N.A.", VLOOKUP(Main!I14,A!$J$124:$K$126,1,FALSE))),"error") -> N.A. | F12: =IFERROR(IF(Main!L14="N.A.",A!$B$2,IF(Main!L14="S.Staff",VLOOKUP(Main!M14,A!$B$38:$C$42,1,FALSE),IF(Main!L14="Clerk",VLOOKUP(Main!M14,A!$E$38:$F$42,1,FALSE),IF(Main!L14="O-I",VLOOKUP(Main!M14,A!$H$38:$I$44,1,FALSE),IF(Main!L14="O-IV",VLOOKUP(Main!M14,A!$Q$38:$R$44,1,FALSE),IF(Main!L14="O-V",VLOOKUP(Main!M14,A!$T$38:$U$44,1,FALSE),IF(Main!L14="O-VI",VLOOKUP(Main!M14,A!$W$38:$X$44,1,FALSE),IF(Main!L14="O-VII",VLOOKUP(Main!M14,A!$Z$38:$AA$44,1,FALSE),VLOOKUP(Main!M14,A!$M$38:$N$44,1,FALSE))))))))),"Error") -> 0 | G12: =IFERROR(IF(Main!B14="S.Staff",A!$B$2,IF(Main!B14="Clerk",VLOOKUP(Main!N14,A!$B$163:$C$168,1,FALSE),VLOOKUP(Main!N14,A!$F$163:$G$165,1,FALSE))),"error") -> 0 | H12: =IFERROR(IF(Main!B14="S.Staff",VLOOKUP(Main!O14,A!$I$178:$J$186,1,FALSE),IF(Main!B14="Clerk",VLOOKUP(Main!O14,A!$B$178:$C$181,1,FALSE),VLOOKUP(Main!O13,A!$B$2:'A'!$C$2,1,FALSE))),"Error") -> No Spl. Allowance
A13: Jul.13 | B13: =IFERROR(IF(Main!B15="Clerk",VLOOKUP(Main!D15,A!$E$4:$F$30,1,FALSE),IF(Main!B15="S.Staff",VLOOKUP(Main!D15,A!$B$4:$C$31,1,FALSE), IF(Main!B15="O-I",VLOOKUP(Main!D15,A!$H$4:$I$27,1,FALSE),IF(Main!B15="O-II",VLOOKUP(Main!D15,A!$K$4:$L$22,1,FALSE),IF(Main!B15="O-III",VLOOKUP(Main!D15,A!$N$4:$O$15,1,FALSE),IF(Main!B15="O-IV",VLOOKUP(Main!D15,A!$Q$4:$R$10,1,FALSE),IF(Main!B15="O-V",VLOOKUP(Main!D15,A!$T$4:$U$8,1,FALSE),IF(Main!B15="O-VI",VLOOKUP(Main!D15,A!$W$4:$X$8,1,FALSE),VLOOKUP(Main!D15,A!$Z$4:$AA$8,1,FALSE))))))))),"error") -> 7200 | C13: =IFERROR(IF(Main!B15="Clerk",VLOOKUP(Main!E15,A!$A$61:$B$65,1,FALSE),IF(Main!B15="S.Staff",VLOOKUP(Main!E15,A!$E$61:$F$65,1,FALSE), VLOOKUP(Main!E15,A!$I$61:$J$65,1,FALSE))),"error") -> Pop.> 45 lac | D13: =IFERROR(IF(Main!B15="Clerk","N.A.",IF(Main!B15="S.Staff","N.A.", VLOOKUP(Main!G15,A!$N$63:$O$64,1,FALSE))),"error") -> N.A. | E13: =IFERROR(IF(Main!B15="Clerk","N.A.",IF(Main!B15="S.Staff","N.A.", VLOOKUP(Main!I15,A!$J$124:$K$126,1,FALSE))),"error") -> N.A. | F13: =IFERROR(IF(Main!L15="N.A.",A!$B$2,IF(Main!L15="S.Staff",VLOOKUP(Main!M15,A!$B$38:$C$42,1,FALSE),IF(Main!L15="Clerk",VLOOKUP(Main!M15,A!$E$38:$F$42,1,FALSE),IF(Main!L15="O-I",VLOOKUP(Main!M15,A!$H$38:$I$44,1,FALSE),IF(Main!L15="O-IV",VLOOKUP(Main!M15,A!$Q$38:$R$44,1,FALSE),IF(Main!L15="O-V",VLOOKUP(Main!M15,A!$T$38:$U$44,1,FALSE),IF(Main!L15="O-VI",VLOOKUP(Main!M15,A!$W$38:$X$44,1,FALSE),IF(Main!L15="O-VII",VLOOKUP(Main!M15,A!$Z$38:$AA$44,1,FALSE),VLOOKUP(Main!M15,A!$M$38:$N$44,1,FALSE))))))))),"Error") -> 0 | G13: =IFERROR(IF(Main!B15="S.Staff",A!$B$2,IF(Main!B15="Clerk",VLOOKUP(Main!N15,A!$B$163:$C$168,1,FALSE),VLOOKUP(Main!N15,A!$F$163:$G$165,1,FALSE))),"error") -> 0 | H13: =IFERROR(IF(Main!B15="S.Staff",VLOOKUP(Main!O15,A!$I$178:$J$186,1,FALSE),IF(Main!B15="Clerk",VLOOKUP(Main!O15,A!$B$178:$C$181,1,FALSE),VLOOKUP(Main!O14,A!$B$2:'A'!$C$2,1,FALSE))),"Error") -> No Spl. Allowance
A14: Aug.13 | B14: =IFERROR(IF(Main!B16="Clerk",VLOOKUP(Main!D16,A!$E$4:$F$30,1,FALSE),IF(Main!B16="S.Staff",VLOOKUP(Main!D16,A!$B$4:$C$31,1,FALSE), IF(Main!B16="O-I",VLOOKUP(Main!D16,A!$H$4:$I$27,1,FALSE),IF(Main!B16="O-II",VLOOKUP(Main!D16,A!$K$4:$L$22,1,FALSE),IF(Main!B16="O-III",VLOOKUP(Main!D16,A!$N$4:$O$15,1,FALSE),IF(Main!B16="O-IV",VLOOKUP(Main!D16,A!$Q$4:$R$10,1,FALSE),IF(Main!B16="O-V",VLOOKUP(Main!D16,A!$T$4:$U$8,1,FALSE),IF(Main!B16="O-VI",VLOOKUP(Main!D16,A!$W$4:$X$8,1,FALSE),VLOOKUP(Main!D16,A!$Z$4:$AA$8,1,FALSE))))))))),"error") -> 7200 | C14: =IFERROR(IF(Main!B16="Clerk",VLOOKUP(Main!E16,A!$A$61:$B$65,1,FALSE),IF(Main!B16="S.Staff",VLOOKUP(Main!E16,A!$E$61:$F$65,1,FALSE), VLOOKUP(Main!E16,A!$I$61:$J$65,1,FALSE))),"error") -> Pop.> 45 lac | D14: =IFERROR(IF(Main!B16="Clerk","N.A.",IF(Main!B16="S.Staff","N.A.", VLOOKUP(Main!G16,A!$N$63:$O$64,1,FALSE))),"error") -> N.A. | E14: =IFERROR(IF(Main!B16="Clerk","N.A.",IF(Main!B16="S.Staff","N.A.", VLOOKUP(Main!I16,A!$J$124:$K$126,1,FALSE))),"error") -> N.A. | F14: =IFERROR(IF(Main!L16="N.A.",A!$B$2,IF(Main!L16="S.Staff",VLOOKUP(Main!M16,A!$B$38:$C$42,1,FALSE),IF(Main!L16="Clerk",VLOOKUP(Main!M16,A!$E$38:$F$42,1,FALSE),IF(Main!L16="O-I",VLOOKUP(Main!M16,A!$H$38:$I$44,1,FALSE),IF(Main!L16="O-IV",VLOOKUP(Main!M16,A!$Q$38:$R$44,1,FALSE),IF(Main!L16="O-V",VLOOKUP(Main!M16,A!$T$38:$U$44,1,FALSE),IF(Main!L16="O-VI",VLOOKUP(Main!M16,A!$W$38:$X$44,1,FALSE),IF(Main!L16="O-VII",VLOOKUP(Main!M16,A!$Z$38:$AA$44,1,FALSE),VLOOKUP(Main!M16,A!$M$38:$N$44,1,FALSE))))))))),"Error") -> 0 | G14: =IFERROR(IF(Main!B16="S.Staff",A!$B$2,IF(Main!B16="Clerk",VLOOKUP(Main!N16,A!$B$163:$C$168,1,FALSE),VLOOKUP(Main!N16,A!$F$163:$G$165,1,FALSE))),"error") -> 0 | H14: =IFERROR(IF(Main!B16="S.Staff",VLOOKUP(Main!O16,A!$I$178:$J$186,1,FALSE),IF(Main!B16="Clerk",VLOOKUP(Main!O16,A!$B$178:$C$181,1,FALSE),VLOOKUP(Main!O15,A!$B$2:'A'!$C$2,1,FALSE))),"Error") -> No Spl. Allowance
A15: Sep.13 | B15: =IFERROR(IF(Main!B17="Clerk",VLOOKUP(Main!D17,A!$E$4:$F$30,1,FALSE),IF(Main!B17="S.Staff",VLOOKUP(Main!D17,A!$B$4:$C$31,1,FALSE), IF(Main!B17="O-I",VLOOKUP(Main!D17,A!$H$4:$I$27,1,FALSE),IF(Main!B17="O-II",VLOOKUP(Main!D17,A!$K$4:$L$22,1,FALSE),IF(Main!B17="O-III",VLOOKUP(Main!D17,A!$N$4:$O$15,1,FALSE),IF(Main!B17="O-IV",VLOOKUP(Main!D17,A!$Q$4:$R$10,1,FALSE),IF(Main!B17="O-V",VLOOKUP(Main!D17,A!$T$4:$U$8,1,FALSE),IF(Main!B17="O-VI",VLOOKUP(Main!D17,A!$W$4:$X$8,1,FALSE),VLOOKUP(Main!D17,A!$Z$4:$AA$8,1,FALSE))))))))),"error") -> 7200 | C15: =IFERROR(IF(Main!B17="Clerk",VLOOKUP(Main!E17,A!$A$61:$B$65,1,FALSE),IF(Main!B17="S.Staff",VLOOKUP(Main!E17,A!$E$61:$F$65,1,FALSE), VLOOKUP(Main!E17,A!$I$61:$J$65,1,FALSE))),"error") -> Pop.> 45 lac | D15: =IFERROR(IF(Main!B17="Clerk","N.A.",IF(Main!B17="S.Staff","N.A.", VLOOKUP(Main!G17,A!$N$63:$O$64,1,FALSE))),"error") -> N.A. | E15: =IFERROR(IF(Main!B17="Clerk","N.A.",IF(Main!B17="S.Staff","N.A.", VLOOKUP(Main!I17,A!$J$124:$K$126,1,FALSE))),"error") -> N.A. | F15: =IFERROR(IF(Main!L17="N.A.",A!$B$2,IF(Main!L17="S.Staff",VLOOKUP(Main!M17,A!$B$38:$C$42,1,FALSE),IF(Main!L17="Clerk",VLOOKUP(Main!M17,A!$E$38:$F$42,1,FALSE),IF(Main!L17="O-I",VLOOKUP(Main!M17,A!$H$38:$I$44,1,FALSE),IF(Main!L17="O-IV",VLOOKUP(Main!M17,A!$Q$38:$R$44,1,FALSE),IF(Main!L17="O-V",VLOOKUP(Main!M17,A!$T$38:$U$44,1,FALSE),IF(Main!L17="O-VI",VLOOKUP(Main!M17,A!$W$38:$X$44,1,FALSE),IF(Main!L17="O-VII",VLOOKUP(Main!M17,A!$Z$38:$AA$44,1,FALSE),VLOOKUP(Main!M17,A!$M$38:$N$44,1,FALSE))))))))),"Error") -> 0 | G15: =IFERROR(IF(Main!B17="S.Staff",A!$B$2,IF(Main!B17="Clerk",VLOOKUP(Main!N17,A!$B$163:$C$168,1,FALSE),VLOOKUP(Main!N17,A!$F$163:$G$165,1,FALSE))),"error") -> 0 | H15: =IFERROR(IF(Main!B17="S.Staff",VLOOKUP(Main!O17,A!$I$178:$J$186,1,FALSE),IF(Main!B17="Clerk",VLOOKUP(Main!O17,A!$B$178:$C$181,1,FALSE),VLOOKUP(Main!O16,A!$B$2:'A'!$C$2,1,FALSE))),"Error") -> No Spl. Allowance
A16: Oct.13 | B16: =IFERROR(IF(Main!B18="Clerk",VLOOKUP(Main!D18,A!$E$4:$F$30,1,FALSE),IF(Main!B18="S.Staff",VLOOKUP(Main!D18,A!$B$4:$C$31,1,FALSE), IF(Main!B18="O-I",VLOOKUP(Main!D18,A!$H$4:$I$27,1,FALSE),IF(Main!B18="O-II",VLOOKUP(Main!D18,A!$K$4:$L$22,1,FALSE),IF(Main!B18="O-III",VLOOKUP(Main!D18,A!$N$4:$O$15,1,FALSE),IF(Main!B18="O-IV",VLOOKUP(Main!D18,A!$Q$4:$R$10,1,FALSE),IF(Main!B18="O-V",VLOOKUP(Main!D18,A!$T$4:$U$8,1,FALSE),IF(Main!B18="O-VI",VLOOKUP(Main!D18,A!$W$4:$X$8,1,FALSE),VLOOKUP(Main!D18,A!$Z$4:$AA$8,1,FALSE))))))))),"error") -> 7200 | C16: =IFERROR(IF(Main!B18="Clerk",VLOOKUP(Main!E18,A!$A$61:$B$65,1,FALSE),IF(Main!B18="S.Staff",VLOOKUP(Main!E18,A!$E$61:$F$65,1,FALSE), VLOOKUP(Main!E18,A!$I$61:$J$65,1,FALSE))),"error") -> Pop.> 45 lac | D16: =IFERROR(IF(Main!B18="Clerk","N.A.",IF(Main!B18="S.Staff","N.A.", VLOOKUP(Main!G18,A!$N$63:$O$64,1,FALSE))),"error") -> N.A. | E16: =IFERROR(IF(Main!B18="Clerk","N.A.",IF(Main!B18="S.Staff","N.A.", VLOOKUP(Main!I18,A!$J$124:$K$126,1,FALSE))),"error") -> N.A. | F16: =IFERROR(IF(Main!L18="N.A.",A!$B$2,IF(Main!L18="S.Staff",VLOOKUP(Main!M18,A!$B$38:$C$42,1,FALSE),IF(Main!L18="Clerk",VLOOKUP(Main!M18,A!$E$38:$F$42,1,FALSE),IF(Main!L18="O-I",VLOOKUP(Main!M18,A!$H$38:$I$44,1,FALSE),IF(Main!L18="O-IV",VLOOKUP(Main!M18,A!$Q$38:$R$44,1,FALSE),IF(Main!L18="O-V",VLOOKUP(Main!M18,A!$T$38:$U$44,1,FALSE),IF(Main!L18="O-VI",VLOOKUP(Main!M18,A!$W$38:$X$44,1,FALSE),IF(Main!L18="O-VII",VLOOKUP(Main!M18,A!$Z$38:$AA$44,1,FALSE),VLOOKUP(Main!M18,A!$M$38:$N$44,1,FALSE))))))))),"Error") -> 0 | G16: =IFERROR(IF(Main!B18="S.Staff",A!$B$2,IF(Main!B18="Clerk",VLOOKUP(Main!N18,A!$B$163:$C$168,1,FALSE),VLOOKUP(Main!N18,A!$F$163:$G$165,1,FALSE))),"error") -> 0 | H16: =IFERROR(IF(Main!B18="S.Staff",VLOOKUP(Main!O18,A!$I$178:$J$186,1,FALSE),IF(Main!B18="Clerk",VLOOKUP(Main!O18,A!$B$178:$C$181,1,FALSE),VLOOKUP(Main!O17,A!$B$2:'A'!$C$2,1,FALSE))),"Error") -> No Spl. Allowance
A17: Nov.13 | B17: =IFERROR(IF(Main!B19="Clerk",VLOOKUP(Main!D19,A!$E$4:$F$30,1,FALSE),IF(Main!B19="S.Staff",VLOOKUP(Main!D19,A!$B$4:$C$31,1,FALSE), IF(Main!B19="O-I",VLOOKUP(Main!D19,A!$H$4:$I$27,1,FALSE),IF(Main!B19="O-II",VLOOKUP(Main!D19,A!$K$4:$L$22,1,FALSE),IF(Main!B19="O-III",VLOOKUP(Main!D19,A!$N$4:$O$15,1,FALSE),IF(Main!B19="O-IV",VLOOKUP(Main!D19,A!$Q$4:$R$10,1,FALSE),IF(Main!B19="O-V",VLOOKUP(Main!D19,A!$T$4:$U$8,1,FALSE),IF(Main!B19="O-VI",VLOOKUP(Main!D19,A!$W$4:$X$8,1,FALSE),VLOOKUP(Main!D19,A!$Z$4:$AA$8,1,FALSE))))))))),"error") -> 7200 | C17: =IFERROR(IF(Main!B19="Clerk",VLOOKUP(Main!E19,A!$A$61:$B$65,1,FALSE),IF(Main!B19="S.Staff",VLOOKUP(Main!E19,A!$E$61:$F$65,1,FALSE), VLOOKUP(Main!E19,A!$I$61:$J$65,1,FALSE))),"error") -> Pop.> 45 lac | D17: =IFERROR(IF(Main!B19="Clerk","N.A.",IF(Main!B19="S.Staff","N.A.", VLOOKUP(Main!G19,A!$N$63:$O$64,1,FALSE))),"error") -> N.A. | E17: =IFERROR(IF(Main!B19="Clerk","N.A.",IF(Main!B19="S.Staff","N.A.", VLOOKUP(Main!I19,A!$J$124:$K$126,1,FALSE))),"error") -> N.A. | F17: =IFERROR(IF(Main!L19="N.A.",A!$B$2,IF(Main!L19="S.Staff",VLOOKUP(Main!M19,A!$B$38:$C$42,1,FALSE),IF(Main!L19="Clerk",VLOOKUP(Main!M19,A!$E$38:$F$42,1,FALSE),IF(Main!L19="O-I",VLOOKUP(Main!M19,A!$H$38:$I$44,1,FALSE),IF(Main!L19="O-IV",VLOOKUP(Main!M19,A!$Q$38:$R$44,1,FALSE),IF(Main!L19="O-V",VLOOKUP(Main!M19,A!$T$38:$U$44,1,FALSE),IF(Main!L19="O-VI",VLOOKUP(Main!M19,A!$W$38:$X$44,1,FALSE),IF(Main!L19="O-VII",VLOOKUP(Main!M19,A!$Z$38:$AA$44,1,FALSE),VLOOKUP(Main!M19,A!$M$38:$N$44,1,FALSE))))))))),"Error") -> 0 | G17: =IFERROR(IF(Main!B19="S.Staff",A!$B$2,IF(Main!B19="Clerk",VLOOKUP(Main!N19,A!$B$163:$C$168,1,FALSE),VLOOKUP(Main!N19,A!$F$163:$G$165,1,FALSE))),"error") -> 0 | H17: =IFERROR(IF(Main!B19="S.Staff",VLOOKUP(Main!O19,A!$I$178:$J$186,1,FALSE),IF(Main!B19="Clerk",VLOOKUP(Main!O19,A!$B$178:$C$181,1,FALSE),VLOOKUP(Main!O18,A!$B$2:'A'!$C$2,1,FALSE))),"Error") -> No Spl. Allowance
A18: Dec.13 | B18: =IFERROR(IF(Main!B20="Clerk",VLOOKUP(Main!D20,A!$E$4:$F$30,1,FALSE),IF(Main!B20="S.Staff",VLOOKUP(Main!D20,A!$B$4:$C$31,1,FALSE), IF(Main!B20="O-I",VLOOKUP(Main!D20,A!$H$4:$I$27,1,FALSE),IF(Main!B20="O-II",VLOOKUP(Main!D20,A!$K$4:$L$22,1,FALSE),IF(Main!B20="O-III",VLOOKUP(Main!D20,A!$N$4:$O$15,1,FALSE),IF(Main!B20="O-IV",VLOOKUP(Main!D20,A!$Q$4:$R$10,1,FALSE),IF(Main!B20="O-V",VLOOKUP(Main!D20,A!$T$4:$U$8,1,FALSE),IF(Main!B20="O-VI",VLOOKUP(Main!D20,A!$W$4:$X$8,1,FALSE),VLOOKUP(Main!D20,A!$Z$4:$AA$8,1,FALSE))))))))),"error") -> 7200 | C18: =IFERROR(IF(Main!B20="Clerk",VLOOKUP(Main!E20,A!$A$61:$B$65,1,FALSE),IF(Main!B20="S.Staff",VLOOKUP(Main!E20,A!$E$61:$F$65,1,FALSE), VLOOKUP(Main!E20,A!$I$61:$J$65,1,FALSE))),"error") -> Pop.> 45 lac | D18: =IFERROR(IF(Main!B20="Clerk","N.A.",IF(Main!B20="S.Staff","N.A.", VLOOKUP(Main!G20,A!$N$63:$O$64,1,FALSE))),"error") -> N.A. | E18: =IFERROR(IF(Main!B20="Clerk","N.A.",IF(Main!B20="S.Staff","N.A.", VLOOKUP(Main!I20,A!$J$124:$K$126,1,FALSE))),"error") -> N.A. | F18: =IFERROR(IF(Main!L20="N.A.",A!$B$2,IF(Main!L20="S.Staff",VLOOKUP(Main!M20,A!$B$38:$C$42,1,FALSE),IF(Main!L20="Clerk",VLOOKUP(Main!M20,A!$E$38:$F$42,1,FALSE),IF(Main!L20="O-I",VLOOKUP(Main!M20,A!$H$38:$I$44,1,FALSE),IF(Main!L20="O-IV",VLOOKUP(Main!M20,A!$Q$38:$R$44,1,FALSE),IF(Main!L20="O-V",VLOOKUP(Main!M20,A!$T$38:$U$44,1,FALSE),IF(Main!L20="O-VI",VLOOKUP(Main!M20,A!$W$38:$X$44,1,FALSE),IF(Main!L20="O-VII",VLOOKUP(Main!M20,A!$Z$38:$AA$44,1,FALSE),VLOOKUP(Main!M20,A!$M$38:$N$44,1,FALSE))))))))),"Error") -> 0 | G18: =IFERROR(IF(Main!B20="S.Staff",A!$B$2,IF(Main!B20="Clerk",VLOOKUP(Main!N20,A!$B$163:$C$168,1,FALSE),VLOOKUP(Main!N20,A!$F$163:$G$165,1,FALSE))),"error") -> 0 | H18: =IFERROR(IF(Main!B20="S.Staff",VLOOKUP(Main!O20,A!$I$178:$J$186,1,FALSE),IF(Main!B20="Clerk",VLOOKUP(Main!O20,A!$B$178:$C$181,1,FALSE),VLOOKUP(Main!O19,A!$B$2:'A'!$C$2,1,FALSE))),"Error") -> No Spl. Allowance
A19: Jan.14 | B19: =IFERROR(IF(Main!B21="Clerk",VLOOKUP(Main!D21,A!$E$4:$F$30,1,FALSE),IF(Main!B21="S.Staff",VLOOKUP(Main!D21,A!$B$4:$C$31,1,FALSE), IF(Main!B21="O-I",VLOOKUP(Main!D21,A!$H$4:$I$27,1,FALSE),IF(Main!B21="O-II",VLOOKUP(Main!D21,A!$K$4:$L$22,1,FALSE),IF(Main!B21="O-III",VLOOKUP(Main!D21,A!$N$4:$O$15,1,FALSE),IF(Main!B21="O-IV",VLOOKUP(Main!D21,A!$Q$4:$R$10,1,FALSE),IF(Main!B21="O-V",VLOOKUP(Main!D21,A!$T$4:$U$8,1,FALSE),IF(Main!B21="O-VI",VLOOKUP(Main!D21,A!$W$4:$X$8,1,FALSE),VLOOKUP(Main!D21,A!$Z$4:$AA$8,1,FALSE))))))))),"error") -> 7200 | C19: =IFERROR(IF(Main!B21="Clerk",VLOOKUP(Main!E21,A!$A$61:$B$65,1,FALSE),IF(Main!B21="S.Staff",VLOOKUP(Main!E21,A!$E$61:$F$65,1,FALSE), VLOOKUP(Main!E21,A!$I$61:$J$65,1,FALSE))),"error") -> Pop.> 45 lac | D19: =IFERROR(IF(Main!B21="Clerk","N.A.",IF(Main!B21="S.Staff","N.A.", VLOOKUP(Main!G21,A!$N$63:$O$64,1,FALSE))),"error") -> N.A. | E19: =IFERROR(IF(Main!B21="Clerk","N.A.",IF(Main!B21="S.Staff","N.A.", VLOOKUP(Main!I21,A!$J$124:$K$126,1,FALSE))),"error") -> N.A. | F19: =IFERROR(IF(Main!L21="N.A.",A!$B$2,IF(Main!L21="S.Staff",VLOOKUP(Main!M21,A!$B$38:$C$42,1,FALSE),IF(Main!L21="Clerk",VLOOKUP(Main!M21,A!$E$38:$F$42,1,FALSE),IF(Main!L21="O-I",VLOOKUP(Main!M21,A!$H$38:$I$44,1,FALSE),IF(Main!L21="O-IV",VLOOKUP(Main!M21,A!$Q$38:$R$44,1,FALSE),IF(Main!L21="O-V",VLOOKUP(Main!M21,A!$T$38:$U$44,1,FALSE),IF(Main!L21="O-VI",VLOOKUP(Main!M21,A!$W$38:$X$44,1,FALSE),IF(Main!L21="O-VII",VLOOKUP(Main!M21,A!$Z$38:$AA$44,1,FALSE),VLOOKUP(Main!M21,A!$M$38:$N$44,1,FALSE))))))))),"Error") -> 0 | G19: =IFERROR(IF(Main!B21="S.Staff",A!$B$2,IF(Main!B21="Clerk",VLOOKUP(Main!N21,A!$B$163:$C$168,1,FALSE),VLOOKUP(Main!N21,A!$F$163:$G$165,1,FALSE))),"error") -> 0 | H19: =IFERROR(IF(Main!B21="S.Staff",VLOOKUP(Main!O21,A!$I$178:$J$186,1,FALSE),IF(Main!B21="Clerk",VLOOKUP(Main!O21,A!$B$178:$C$181,1,FALSE),VLOOKUP(Main!O20,A!$B$2:'A'!$C$2,1,FALSE))),"Error") -> No Spl. Allowance
A20: Feb.14 | B20: =IFERROR(IF(Main!B22="Clerk",VLOOKUP(Main!D22,A!$E$4:$F$30,1,FALSE),IF(Main!B22="S.Staff",VLOOKUP(Main!D22,A!$B$4:$C$31,1,FALSE), IF(Main!B22="O-I",VLOOKUP(Main!D22,A!$H$4:$I$27,1,FALSE),IF(Main!B22="O-II",VLOOKUP(Main!D22,A!$K$4:$L$22,1,FALSE),IF(Main!B22="O-III",VLOOKUP(Main!D22,A!$N$4:$O$15,1,FALSE),IF(Main!B22="O-IV",VLOOKUP(Main!D22,A!$Q$4:$R$10,1,FALSE),IF(Main!B22="O-V",VLOOKUP(Main!D22,A!$T$4:$U$8,1,FALSE),IF(Main!B22="O-VI",VLOOKUP(Main!D22,A!$W$4:$X$8,1,FALSE),VLOOKUP(Main!D22,A!$Z$4:$AA$8,1,FALSE))))))))),"error") -> 7200 | C20: =IFERROR(IF(Main!B22="Clerk",VLOOKUP(Main!E22,A!$A$61:$B$65,1,FALSE),IF(Main!B22="S.Staff",VLOOKUP(Main!E22,A!$E$61:$F$65,1,FALSE), VLOOKUP(Main!E22,A!$I$61:$J$65,1,FALSE))),"error") -> Pop.> 45 lac | D20: =IFERROR(IF(Main!B22="Clerk","N.A.",IF(Main!B22="S.Staff","N.A.", VLOOKUP(Main!G22,A!$N$63:$O$64,1,FALSE))),"error") -> N.A. | E20: =IFERROR(IF(Main!B22="Clerk","N.A.",IF(Main!B22="S.Staff","N.A.", VLOOKUP(Main!I22,A!$J$124:$K$126,1,FALSE))),"error") -> N.A. | F20: =IFERROR(IF(Main!L22="N.A.",A!$B$2,IF(Main!L22="S.Staff",VLOOKUP(Main!M22,A!$B$38:$C$42,1,FALSE),IF(Main!L22="Clerk",VLOOKUP(Main!M22,A!$E$38:$F$42,1,FALSE),IF(Main!L22="O-I",VLOOKUP(Main!M22,A!$H$38:$I$44,1,FALSE),IF(Main!L22="O-IV",VLOOKUP(Main!M22,A!$Q$38:$R$44,1,FALSE),IF(Main!L22="O-V",VLOOKUP(Main!M22,A!$T$38:$U$44,1,FALSE),IF(Main!L22="O-VI",VLOOKUP(Main!M22,A!$W$38:$X$44,1,FALSE),IF(Main!L22="O-VII",VLOOKUP(Main!M22,A!$Z$38:$AA$44,1,FALSE),VLOOKUP(Main!M22,A!$M$38:$N$44,1,FALSE))))))))),"Error") -> 0 | G20: =IFERROR(IF(Main!B22="S.Staff",A!$B$2,IF(Main!B22="Clerk",VLOOKUP(Main!N22,A!$B$163:$C$168,1,FALSE),VLOOKUP(Main!N22,A!$F$163:$G$165,1,FALSE))),"error") -> 0 | H20: =IFERROR(IF(Main!B22="S.Staff",VLOOKUP(Main!O22,A!$I$178:$J$186,1,FALSE),IF(Main!B22="Clerk",VLOOKUP(Main!O22,A!$B$178:$C$181,1,FALSE),VLOOKUP(Main!O21,A!$B$2:'A'!$C$2,1,FALSE))),"Error") -> No Spl. Allowance
A21: Mar.14 | B21: =IFERROR(IF(Main!B23="Clerk",VLOOKUP(Main!D23,A!$E$4:$F$30,1,FALSE),IF(Main!B23="S.Staff",VLOOKUP(Main!D23,A!$B$4:$C$31,1,FALSE), IF(Main!B23="O-I",VLOOKUP(Main!D23,A!$H$4:$I$27,1,FALSE),IF(Main!B23="O-II",VLOOKUP(Main!D23,A!$K$4:$L$22,1,FALSE),IF(Main!B23="O-III",VLOOKUP(Main!D23,A!$N$4:$O$15,1,FALSE),IF(Main!B23="O-IV",VLOOKUP(Main!D23,A!$Q$4:$R$10,1,FALSE),IF(Main!B23="O-V",VLOOKUP(Main!D23,A!$T$4:$U$8,1,FALSE),IF(Main!B23="O-VI",VLOOKUP(Main!D23,A!$W$4:$X$8,1,FALSE),VLOOKUP(Main!D23,A!$Z$4:$AA$8,1,FALSE))))))))),"error") -> 7200 | C21: =IFERROR(IF(Main!B23="Clerk",VLOOKUP(Main!E23,A!$A$61:$B$65,1,FALSE),IF(Main!B23="S.Staff",VLOOKUP(Main!E23,A!$E$61:$F$65,1,FALSE), VLOOKUP(Main!E23,A!$I$61:$J$65,1,FALSE))),"error") -> Pop.> 45 lac | D21: =IFERROR(IF(Main!B23="Clerk","N.A.",IF(Main!B23="S.Staff","N.A.", VLOOKUP(Main!G23,A!$N$63:$O$64,1,FALSE))),"error") -> N.A. | E21: =IFERROR(IF(Main!B23="Clerk","N.A.",IF(Main!B23="S.Staff","N.A.", VLOOKUP(Main!I23,A!$J$124:$K$126,1,FALSE))),"error") -> N.A. | F21: =IFERROR(IF(Main!L23="N.A.",A!$B$2,IF(Main!L23="S.Staff",VLOOKUP(Main!M23,A!$B$38:$C$42,1,FALSE),IF(Main!L23="Clerk",VLOOKUP(Main!M23,A!$E$38:$F$42,1,FALSE),IF(Main!L23="O-I",VLOOKUP(Main!M23,A!$H$38:$I$44,1,FALSE),IF(Main!L23="O-IV",VLOOKUP(Main!M23,A!$Q$38:$R$44,1,FALSE),IF(Main!L23="O-V",VLOOKUP(Main!M23,A!$T$38:$U$44,1,FALSE),IF(Main!L23="O-VI",VLOOKUP(Main!M23,A!$W$38:$X$44,1,FALSE),IF(Main!L23="O-VII",VLOOKUP(Main!M23,A!$Z$38:$AA$44,1,FALSE),VLOOKUP(Main!M23,A!$M$38:$N$44,1,FALSE))))))))),"Error") -> 0 | G21: =IFERROR(IF(Main!B23="S.Staff",A!$B$2,IF(Main!B23="Clerk",VLOOKUP(Main!N23,A!$B$163:$C$168,1,FALSE),VLOOKUP(Main!N23,A!$F$163:$G$165,1,FALSE))),"error") -> 0 | H21: =IFERROR(IF(Main!B23="S.Staff",VLOOKUP(Main!O23,A!$I$178:$J$186,1,FALSE),IF(Main!B23="Clerk",VLOOKUP(Main!O23,A!$B$178:$C$181,1,FALSE),VLOOKUP(Main!O22,A!$B$2:'A'!$C$2,1,FALSE))),"Error") -> No Spl. Allowance
A22: Apr.14 | B22: =IFERROR(IF(Main!B24="Clerk",VLOOKUP(Main!D24,A!$E$4:$F$30,1,FALSE),IF(Main!B24="S.Staff",VLOOKUP(Main!D24,A!$B$4:$C$31,1,FALSE), IF(Main!B24="O-I",VLOOKUP(Main!D24,A!$H$4:$I$27,1,FALSE),IF(Main!B24="O-II",VLOOKUP(Main!D24,A!$K$4:$L$22,1,FALSE),IF(Main!B24="O-III",VLOOKUP(Main!D24,A!$N$4:$O$15,1,FALSE),IF(Main!B24="O-IV",VLOOKUP(Main!D24,A!$Q$4:$R$10,1,FALSE),IF(Main!B24="O-V",VLOOKUP(Main!D24,A!$T$4:$U$8,1,FALSE),IF(Main!B24="O-VI",VLOOKUP(Main!D24,A!$W$4:$X$8,1,FALSE),VLOOKUP(Main!D24,A!$Z$4:$AA$8,1,FALSE))))))))),"error") -> 7200 | C22: =IFERROR(IF(Main!B24="Clerk",VLOOKUP(Main!E24,A!$A$61:$B$65,1,FALSE),IF(Main!B24="S.Staff",VLOOKUP(Main!E24,A!$E$61:$F$65,1,FALSE), VLOOKUP(Main!E24,A!$I$61:$J$65,1,FALSE))),"error") -> Pop.> 45 lac | D22: =IFERROR(IF(Main!B24="Clerk","N.A.",IF(Main!B24="S.Staff","N.A.", VLOOKUP(Main!G24,A!$N$63:$O$64,1,FALSE))),"error") -> N.A. | E22: =IFERROR(IF(Main!B24="Clerk","N.A.",IF(Main!B24="S.Staff","N.A.", VLOOKUP(Main!I24,A!$J$124:$K$126,1,FALSE))),"error") -> N.A. | F22: =IFERROR(IF(Main!L24="N.A.",A!$B$2,IF(Main!L24="S.Staff",VLOOKUP(Main!M24,A!$B$38:$C$42,1,FALSE),IF(Main!L24="Clerk",VLOOKUP(Main!M24,A!$E$38:$F$42,1,FALSE),IF(Main!L24="O-I",VLOOKUP(Main!M24,A!$H$38:$I$44,1,FALSE),IF(Main!L24="O-IV",VLOOKUP(Main!M24,A!$Q$38:$R$44,1,FALSE),IF(Main!L24="O-V",VLOOKUP(Main!M24,A!$T$38:$U$44,1,FALSE),IF(Main!L24="O-VI",VLOOKUP(Main!M24,A!$W$38:$X$44,1,FALSE),IF(Main!L24="O-VII",VLOOKUP(Main!M24,A!$Z$38:$AA$44,1,FALSE),VLOOKUP(Main!M24,A!$M$38:$N$44,1,FALSE))))))))),"Error") -> 0 | G22: =IFERROR(IF(Main!B24="S.Staff",A!$B$2,IF(Main!B24="Clerk",VLOOKUP(Main!N24,A!$B$163:$C$168,1,FALSE),VLOOKUP(Main!N24,A!$F$163:$G$165,1,FALSE))),"error") -> 0 | H22: =IFERROR(IF(Main!B24="S.Staff",VLOOKUP(Main!O24,A!$I$178:$J$186,1,FALSE),IF(Main!B24="Clerk",VLOOKUP(Main!O24,A!$B$178:$C$181,1,FALSE),VLOOKUP(Main!O23,A!$B$2:'A'!$C$2,1,FALSE))),"Error") -> No Spl. Allowance
A23: May.14 | B23: =IFERROR(IF(Main!B25="Clerk",VLOOKUP(Main!D25,A!$E$4:$F$30,1,FALSE),IF(Main!B25="S.Staff",VLOOKUP(Main!D25,A!$B$4:$C$31,1,FALSE), IF(Main!B25="O-I",VLOOKUP(Main!D25,A!$H$4:$I$27,1,FALSE),IF(Main!B25="O-II",VLOOKUP(Main!D25,A!$K$4:$L$22,1,FALSE),IF(Main!B25="O-III",VLOOKUP(Main!D25,A!$N$4:$O$15,1,FALSE),IF(Main!B25="O-IV",VLOOKUP(Main!D25,A!$Q$4:$R$10,1,FALSE),IF(Main!B25="O-V",VLOOKUP(Main!D25,A!$T$4:$U$8,1,FALSE),IF(Main!B25="O-VI",VLOOKUP(Main!D25,A!$W$4:$X$8,1,FALSE),VLOOKUP(Main!D25,A!$Z$4:$AA$8,1,FALSE))))))))),"error") -> 7200 | C23: =IFERROR(IF(Main!B25="Clerk",VLOOKUP(Main!E25,A!$A$61:$B$65,1,FALSE),IF(Main!B25="S.Staff",VLOOKUP(Main!E25,A!$E$61:$F$65,1,FALSE), VLOOKUP(Main!E25,A!$I$61:$J$65,1,FALSE))),"error") -> Pop.> 45 lac | D23: =IFERROR(IF(Main!B25="Clerk","N.A.",IF(Main!B25="S.Staff","N.A.", VLOOKUP(Main!G25,A!$N$63:$O$64,1,FALSE))),"error") -> N.A. | E23: =IFERROR(IF(Main!B25="Clerk","N.A.",IF(Main!B25="S.Staff","N.A.", VLOOKUP(Main!I25,A!$J$124:$K$126,1,FALSE))),"error") -> N.A. | F23: =IFERROR(IF(Main!L25="N.A.",A!$B$2,IF(Main!L25="S.Staff",VLOOKUP(Main!M25,A!$B$38:$C$42,1,FALSE),IF(Main!L25="Clerk",VLOOKUP(Main!M25,A!$E$38:$F$42,1,FALSE),IF(Main!L25="O-I",VLOOKUP(Main!M25,A!$H$38:$I$44,1,FALSE),IF(Main!L25="O-IV",VLOOKUP(Main!M25,A!$Q$38:$R$44,1,FALSE),IF(Main!L25="O-V",VLOOKUP(Main!M25,A!$T$38:$U$44,1,FALSE),IF(Main!L25="O-VI",VLOOKUP(Main!M25,A!$W$38:$X$44,1,FALSE),IF(Main!L25="O-VII",VLOOKUP(Main!M25,A!$Z$38:$AA$44,1,FALSE),VLOOKUP(Main!M25,A!$M$38:$N$44,1,FALSE))))))))),"Error") -> 0 | G23: =IFERROR(IF(Main!B25="S.Staff",A!$B$2,IF(Main!B25="Clerk",VLOOKUP(Main!N25,A!$B$163:$C$168,1,FALSE),VLOOKUP(Main!N25,A!$F$163:$G$165,1,FALSE))),"error") -> 0 | H23: =IFERROR(IF(Main!B25="S.Staff",VLOOKUP(Main!O25,A!$I$178:$J$186,1,FALSE),IF(Main!B25="Clerk",VLOOKUP(Main!O25,A!$B$178:$C$181,1,FALSE),VLOOKUP(Main!O24,A!$B$2:'A'!$C$2,1,FALSE))),"Error") -> No Spl. Allowance
A24: Jun.14 | B24: =IFERROR(IF(Main!B26="Clerk",VLOOKUP(Main!D26,A!$E$4:$F$30,1,FALSE),IF(Main!B26="S.Staff",VLOOKUP(Main!D26,A!$B$4:$C$31,1,FALSE), IF(Main!B26="O-I",VLOOKUP(Main!D26,A!$H$4:$I$27,1,FALSE),IF(Main!B26="O-II",VLOOKUP(Main!D26,A!$K$4:$L$22,1,FALSE),IF(Main!B26="O-III",VLOOKUP(Main!D26,A!$N$4:$O$15,1,FALSE),IF(Main!B26="O-IV",VLOOKUP(Main!D26,A!$Q$4:$R$10,1,FALSE),IF(Main!B26="O-V",VLOOKUP(Main!D26,A!$T$4:$U$8,1,FALSE),IF(Main!B26="O-VI",VLOOKUP(Main!D26,A!$W$4:$X$8,1,FALSE),VLOOKUP(Main!D26,A!$Z$4:$AA$8,1,FALSE))))))))),"error") -> 7200 | C24: =IFERROR(IF(Main!B26="Clerk",VLOOKUP(Main!E26,A!$A$61:$B$65,1,FALSE),IF(Main!B26="S.Staff",VLOOKUP(Main!E26,A!$E$61:$F$65,1,FALSE), VLOOKUP(Main!E26,A!$I$61:$J$65,1,FALSE))),"error") -> Pop.> 45 lac | D24: =IFERROR(IF(Main!B26="Clerk","N.A.",IF(Main!B26="S.Staff","N.A.", VLOOKUP(Main!G26,A!$N$63:$O$64,1,FALSE))),"error") -> N.A. | E24: =IFERROR(IF(Main!B26="Clerk","N.A.",IF(Main!B26="S.Staff","N.A.", VLOOKUP(Main!I26,A!$J$124:$K$126,1,FALSE))),"error") -> N.A. | F24: =IFERROR(IF(Main!L26="N.A.",A!$B$2,IF(Main!L26="S.Staff",VLOOKUP(Main!M26,A!$B$38:$C$42,1,FALSE),IF(Main!L26="Clerk",VLOOKUP(Main!M26,A!$E$38:$F$42,1,FALSE),IF(Main!L26="O-I",VLOOKUP(Main!M26,A!$H$38:$I$44,1,FALSE),IF(Main!L26="O-IV",VLOOKUP(Main!M26,A!$Q$38:$R$44,1,FALSE),IF(Main!L26="O-V",VLOOKUP(Main!M26,A!$T$38:$U$44,1,FALSE),IF(Main!L26="O-VI",VLOOKUP(Main!M26,A!$W$38:$X$44,1,FALSE),IF(Main!L26="O-VII",VLOOKUP(Main!M26,A!$Z$38:$AA$44,1,FALSE),VLOOKUP(Main!M26,A!$M$38:$N$44,1,FALSE))))))))),"Error") -> 0 | G24: =IFERROR(IF(Main!B26="S.Staff",A!$B$2,IF(Main!B26="Clerk",VLOOKUP(Main!N26,A!$B$163:$C$168,1,FALSE),VLOOKUP(Main!N26,A!$F$163:$G$165,1,FALSE))),"error") -> 0 | H24: =IFERROR(IF(Main!B26="S.Staff",VLOOKUP(Main!O26,A!$I$178:$J$186,1,FALSE),IF(Main!B26="Clerk",VLOOKUP(Main!O26,A!$B$178:$C$181,1,FALSE),VLOOKUP(Main!O25,A!$B$2:'A'!$C$2,1,FALSE))),"Error") -> No Spl. Allowance
A25: Jul.14 | B25: =IFERROR(IF(Main!B27="Clerk",VLOOKUP(Main!D27,A!$E$4:$F$30,1,FALSE),IF(Main!B27="S.Staff",VLOOKUP(Main!D27,A!$B$4:$C$31,1,FALSE), IF(Main!B27="O-I",VLOOKUP(Main!D27,A!$H$4:$I$27,1,FALSE),IF(Main!B27="O-II",VLOOKUP(Main!D27,A!$K$4:$L$22,1,FALSE),IF(Main!B27="O-III",VLOOKUP(Main!D27,A!$N$4:$O$15,1,FALSE),IF(Main!B27="O-IV",VLOOKUP(Main!D27,A!$Q$4:$R$10,1,FALSE),IF(Main!B27="O-V",VLOOKUP(Main!D27,A!$T$4:$U$8,1,FALSE),IF(Main!B27="O-VI",VLOOKUP(Main!D27,A!$W$4:$X$8,1,FALSE),VLOOKUP(Main!D27,A!$Z$4:$AA$8,1,FALSE))))))))),"error") -> 7200 | C25: =IFERROR(IF(Main!B27="Clerk",VLOOKUP(Main!E27,A!$A$61:$B$65,1,FALSE),IF(Main!B27="S.Staff",VLOOKUP(Main!E27,A!$E$61:$F$65,1,FALSE), VLOOKUP(Main!E27,A!$I$61:$J$65,1,FALSE))),"error") -> Pop.> 45 lac | D25: =IFERROR(IF(Main!B27="Clerk","N.A.",IF(Main!B27="S.Staff","N.A.", VLOOKUP(Main!G27,A!$N$63:$O$64,1,FALSE))),"error") -> N.A. | E25: =IFERROR(IF(Main!B27="Clerk","N.A.",IF(Main!B27="S.Staff","N.A.", VLOOKUP(Main!I27,A!$J$124:$K$126,1,FALSE))),"error") -> N.A. | F25: =IFERROR(IF(Main!L27="N.A.",A!$B$2,IF(Main!L27="S.Staff",VLOOKUP(Main!M27,A!$B$38:$C$42,1,FALSE),IF(Main!L27="Clerk",VLOOKUP(Main!M27,A!$E$38:$F$42,1,FALSE),IF(Main!L27="O-I",VLOOKUP(Main!M27,A!$H$38:$I$44,1,FALSE),IF(Main!L27="O-IV",VLOOKUP(Main!M27,A!$Q$38:$R$44,1,FALSE),IF(Main!L27="O-V",VLOOKUP(Main!M27,A!$T$38:$U$44,1,FALSE),IF(Main!L27="O-VI",VLOOKUP(Main!M27,A!$W$38:$X$44,1,FALSE),IF(Main!L27="O-VII",VLOOKUP(Main!M27,A!$Z$38:$AA$44,1,FALSE),VLOOKUP(Main!M27,A!$M$38:$N$44,1,FALSE))))))))),"Error") -> 0 | G25: =IFERROR(IF(Main!B27="S.Staff",A!$B$2,IF(Main!B27="Clerk",VLOOKUP(Main!N27,A!$B$163:$C$168,1,FALSE),VLOOKUP(Main!N27,A!$F$163:$G$165,1,FALSE))),"error") -> 0 | H25: =IFERROR(IF(Main!B27="S.Staff",VLOOKUP(Main!O27,A!$I$178:$J$186,1,FALSE),IF(Main!B27="Clerk",VLOOKUP(Main!O27,A!$B$178:$C$181,1,FALSE),VLOOKUP(Main!O26,A!$B$2:'A'!$C$2,1,FALSE))),"Error") -> No Spl. Allowance
A26: Aug.14 | B26: =IFERROR(IF(Main!B28="Clerk",VLOOKUP(Main!D28,A!$E$4:$F$30,1,FALSE),IF(Main!B28="S.Staff",VLOOKUP(Main!D28,A!$B$4:$C$31,1,FALSE), IF(Main!B28="O-I",VLOOKUP(Main!D28,A!$H$4:$I$27,1,FALSE),IF(Main!B28="O-II",VLOOKUP(Main!D28,A!$K$4:$L$22,1,FALSE),IF(Main!B28="O-III",VLOOKUP(Main!D28,A!$N$4:$O$15,1,FALSE),IF(Main!B28="O-IV",VLOOKUP(Main!D28,A!$Q$4:$R$10,1,FALSE),IF(Main!B28="O-V",VLOOKUP(Main!D28,A!$T$4:$U$8,1,FALSE),IF(Main!B28="O-VI",VLOOKUP(Main!D28,A!$W$4:$X$8,1,FALSE),VLOOKUP(Main!D28,A!$Z$4:$AA$8,1,FALSE))))))))),"error") -> 7200 | C26: =IFERROR(IF(Main!B28="Clerk",VLOOKUP(Main!E28,A!$A$61:$B$65,1,FALSE),IF(Main!B28="S.Staff",VLOOKUP(Main!E28,A!$E$61:$F$65,1,FALSE), VLOOKUP(Main!E28,A!$I$61:$J$65,1,FALSE))),"error") -> Pop.> 45 lac | D26: =IFERROR(IF(Main!B28="Clerk","N.A.",IF(Main!B28="S.Staff","N.A.", VLOOKUP(Main!G28,A!$N$63:$O$64,1,FALSE))),"error") -> N.A. | E26: =IFERROR(IF(Main!B28="Clerk","N.A.",IF(Main!B28="S.Staff","N.A.", VLOOKUP(Main!I28,A!$J$124:$K$126,1,FALSE))),"error") -> N.A. | F26: =IFERROR(IF(Main!L28="N.A.",A!$B$2,IF(Main!L28="S.Staff",VLOOKUP(Main!M28,A!$B$38:$C$42,1,FALSE),IF(Main!L28="Clerk",VLOOKUP(Main!M28,A!$E$38:$F$42,1,FALSE),IF(Main!L28="O-I",VLOOKUP(Main!M28,A!$H$38:$I$44,1,FALSE),IF(Main!L28="O-IV",VLOOKUP(Main!M28,A!$Q$38:$R$44,1,FALSE),IF(Main!L28="O-V",VLOOKUP(Main!M28,A!$T$38:$U$44,1,FALSE),IF(Main!L28="O-VI",VLOOKUP(Main!M28,A!$W$38:$X$44,1,FALSE),IF(Main!L28="O-VII",VLOOKUP(Main!M28,A!$Z$38:$AA$44,1,FALSE),VLOOKUP(Main!M28,A!$M$38:$N$44,1,FALSE))))))))),"Error") -> 0 | G26: =IFERROR(IF(Main!B28="S.Staff",A!$B$2,IF(Main!B28="Clerk",VLOOKUP(Main!N28,A!$B$163:$C$168,1,FALSE),VLOOKUP(Main!N28,A!$F$163:$G$165,1,FALSE))),"error") -> 0 | H26: =IFERROR(IF(Main!B28="S.Staff",VLOOKUP(Main!O28,A!$I$178:$J$186,1,FALSE),IF(Main!B28="Clerk",VLOOKUP(Main!O28,A!$B$178:$C$181,1,FALSE),VLOOKUP(Main!O27,A!$B$2:'A'!$C$2,1,FALSE))),"Error") -> No Spl. Allowance
A27: Sep.14 | B27: =IFERROR(IF(Main!B29="Clerk",VLOOKUP(Main!D29,A!$E$4:$F$30,1,FALSE),IF(Main!B29="S.Staff",VLOOKUP(Main!D29,A!$B$4:$C$31,1,FALSE), IF(Main!B29="O-I",VLOOKUP(Main!D29,A!$H$4:$I$27,1,FALSE),IF(Main!B29="O-II",VLOOKUP(Main!D29,A!$K$4:$L$22,1,FALSE),IF(Main!B29="O-III",VLOOKUP(Main!D29,A!$N$4:$O$15,1,FALSE),IF(Main!B29="O-IV",VLOOKUP(Main!D29,A!$Q$4:$R$10,1,FALSE),IF(Main!B29="O-V",VLOOKUP(Main!D29,A!$T$4:$U$8,1,FALSE),IF(Main!B29="O-VI",VLOOKUP(Main!D29,A!$W$4:$X$8,1,FALSE),VLOOKUP(Main!D29,A!$Z$4:$AA$8,1,FALSE))))))))),"error") -> 7200 | C27: =IFERROR(IF(Main!B29="Clerk",VLOOKUP(Main!E29,A!$A$61:$B$65,1,FALSE),IF(Main!B29="S.Staff",VLOOKUP(Main!E29,A!$E$61:$F$65,1,FALSE), VLOOKUP(Main!E29,A!$I$61:$J$65,1,FALSE))),"error") -> Pop.> 45 lac | D27: =IFERROR(IF(Main!B29="Clerk","N.A.",IF(Main!B29="S.Staff","N.A.", VLOOKUP(Main!G29,A!$N$63:$O$64,1,FALSE))),"error") -> N.A. | E27: =IFERROR(IF(Main!B29="Clerk","N.A.",IF(Main!B29="S.Staff","N.A.", VLOOKUP(Main!I29,A!$J$124:$K$126,1,FALSE))),"error") -> N.A. | F27: =IFERROR(IF(Main!L29="N.A.",A!$B$2,IF(Main!L29="S.Staff",VLOOKUP(Main!M29,A!$B$38:$C$42,1,FALSE),IF(Main!L29="Clerk",VLOOKUP(Main!M29,A!$E$38:$F$42,1,FALSE),IF(Main!L29="O-I",VLOOKUP(Main!M29,A!$H$38:$I$44,1,FALSE),IF(Main!L29="O-IV",VLOOKUP(Main!M29,A!$Q$38:$R$44,1,FALSE),IF(Main!L29="O-V",VLOOKUP(Main!M29,A!$T$38:$U$44,1,FALSE),IF(Main!L29="O-VI",VLOOKUP(Main!M29,A!$W$38:$X$44,1,FALSE),IF(Main!L29="O-VII",VLOOKUP(Main!M29,A!$Z$38:$AA$44,1,FALSE),VLOOKUP(Main!M29,A!$M$38:$N$44,1,FALSE))))))))),"Error") -> 0 | G27: =IFERROR(IF(Main!B29="S.Staff",A!$B$2,IF(Main!B29="Clerk",VLOOKUP(Main!N29,A!$B$163:$C$168,1,FALSE),VLOOKUP(Main!N29,A!$F$163:$G$165,1,FALSE))),"error") -> 0 | H27: =IFERROR(IF(Main!B29="S.Staff",VLOOKUP(Main!O29,A!$I$178:$J$186,1,FALSE),IF(Main!B29="Clerk",VLOOKUP(Main!O29,A!$B$178:$C$181,1,FALSE),VLOOKUP(Main!O28,A!$B$2:'A'!$C$2,1,FALSE))),"Error") -> No Spl. Allowance
A28: Oct.14 | B28: =IFERROR(IF(Main!B30="Clerk",VLOOKUP(Main!D30,A!$E$4:$F$30,1,FALSE),IF(Main!B30="S.Staff",VLOOKUP(Main!D30,A!$B$4:$C$31,1,FALSE), IF(Main!B30="O-I",VLOOKUP(Main!D30,A!$H$4:$I$27,1,FALSE),IF(Main!B30="O-II",VLOOKUP(Main!D30,A!$K$4:$L$22,1,FALSE),IF(Main!B30="O-III",VLOOKUP(Main!D30,A!$N$4:$O$15,1,FALSE),IF(Main!B30="O-IV",VLOOKUP(Main!D30,A!$Q$4:$R$10,1,FALSE),IF(Main!B30="O-V",VLOOKUP(Main!D30,A!$T$4:$U$8,1,FALSE),IF(Main!B30="O-VI",VLOOKUP(Main!D30,A!$W$4:$X$8,1,FALSE),VLOOKUP(Main!D30,A!$Z$4:$AA$8,1,FALSE))))))))),"error") -> 7200 | C28: =IFERROR(IF(Main!B30="Clerk",VLOOKUP(Main!E30,A!$A$61:$B$65,1,FALSE),IF(Main!B30="S.Staff",VLOOKUP(Main!E30,A!$E$61:$F$65,1,FALSE), VLOOKUP(Main!E30,A!$I$61:$J$65,1,FALSE))),"error") -> Pop.> 45 lac | D28: =IFERROR(IF(Main!B30="Clerk","N.A.",IF(Main!B30="S.Staff","N.A.", VLOOKUP(Main!G30,A!$N$63:$O$64,1,FALSE))),"error") -> N.A. | E28: =IFERROR(IF(Main!B30="Clerk","N.A.",IF(Main!B30="S.Staff","N.A.", VLOOKUP(Main!I30,A!$J$124:$K$126,1,FALSE))),"error") -> N.A. | F28: =IFERROR(IF(Main!L30="N.A.",A!$B$2,IF(Main!L30="S.Staff",VLOOKUP(Main!M30,A!$B$38:$C$42,1,FALSE),IF(Main!L30="Clerk",VLOOKUP(Main!M30,A!$E$38:$F$42,1,FALSE),IF(Main!L30="O-I",VLOOKUP(Main!M30,A!$H$38:$I$44,1,FALSE),IF(Main!L30="O-IV",VLOOKUP(Main!M30,A!$Q$38:$R$44,1,FALSE),IF(Main!L30="O-V",VLOOKUP(Main!M30,A!$T$38:$U$44,1,FALSE),IF(Main!L30="O-VI",VLOOKUP(Main!M30,A!$W$38:$X$44,1,FALSE),IF(Main!L30="O-VII",VLOOKUP(Main!M30,A!$Z$38:$AA$44,1,FALSE),VLOOKUP(Main!M30,A!$M$38:$N$44,1,FALSE))))))))),"Error") -> 0 | G28: =IFERROR(IF(Main!B30="S.Staff",A!$B$2,IF(Main!B30="Clerk",VLOOKUP(Main!N30,A!$B$163:$C$168,1,FALSE),VLOOKUP(Main!N30,A!$F$163:$G$165,1,FALSE))),"error") -> 0 | H28: =IFERROR(IF(Main!B30="S.Staff",VLOOKUP(Main!O30,A!$I$178:$J$186,1,FALSE),IF(Main!B30="Clerk",VLOOKUP(Main!O30,A!$B$178:$C$181,1,FALSE),VLOOKUP(Main!O29,A!$B$2:'A'!$C$2,1,FALSE))),"Error") -> No Spl. Allowance
A29: Nov.14 | B29: =IFERROR(IF(Main!B31="Clerk",VLOOKUP(Main!D31,A!$E$4:$F$30,1,FALSE),IF(Main!B31="S.Staff",VLOOKUP(Main!D31,A!$B$4:$C$31,1,FALSE), IF(Main!B31="O-I",VLOOKUP(Main!D31,A!$H$4:$I$27,1,FALSE),IF(Main!B31="O-II",VLOOKUP(Main!D31,A!$K$4:$L$22,1,FALSE),IF(Main!B31="O-III",VLOOKUP(Main!D31,A!$N$4:$O$15,1,FALSE),IF(Main!B31="O-IV",VLOOKUP(Main!D31,A!$Q$4:$R$10,1,FALSE),IF(Main!B31="O-V",VLOOKUP(Main!D31,A!$T$4:$U$8,1,FALSE),IF(Main!B31="O-VI",VLOOKUP(Main!D31,A!$W$4:$X$8,1,FALSE),VLOOKUP(Main!D31,A!$Z$4:$AA$8,1,FALSE))))))))),"error") -> 7200 | C29: =IFERROR(IF(Main!B31="Clerk",VLOOKUP(Main!E31,A!$A$61:$B$65,1,FALSE),IF(Main!B31="S.Staff",VLOOKUP(Main!E31,A!$E$61:$F$65,1,FALSE), VLOOKUP(Main!E31,A!$I$61:$J$65,1,FALSE))),"error") -> Pop.> 45 lac | D29: =IFERROR(IF(Main!B31="Clerk","N.A.",IF(Main!B31="S.Staff","N.A.", VLOOKUP(Main!G31,A!$N$63:$O$64,1,FALSE))),"error") -> N.A. | E29: =IFERROR(IF(Main!B31="Clerk","N.A.",IF(Main!B31="S.Staff","N.A.", VLOOKUP(Main!I31,A!$J$124:$K$126,1,FALSE))),"error") -> N.A. | F29: =IFERROR(IF(Main!L31="N.A.",A!$B$2,IF(Main!L31="S.Staff",VLOOKUP(Main!M31,A!$B$38:$C$42,1,FALSE),IF(Main!L31="Clerk",VLOOKUP(Main!M31,A!$E$38:$F$42,1,FALSE),IF(Main!L31="O-I",VLOOKUP(Main!M31,A!$H$38:$I$44,1,FALSE),IF(Main!L31="O-IV",VLOOKUP(Main!M31,A!$Q$38:$R$44,1,FALSE),IF(Main!L31="O-V",VLOOKUP(Main!M31,A!$T$38:$U$44,1,FALSE),IF(Main!L31="O-VI",VLOOKUP(Main!M31,A!$W$38:$X$44,1,FALSE),IF(Main!L31="O-VII",VLOOKUP(Main!M31,A!$Z$38:$AA$44,1,FALSE),VLOOKUP(Main!M31,A!$M$38:$N$44,1,FALSE))))))))),"Error") -> 0 | G29: =IFERROR(IF(Main!B31="S.Staff",A!$B$2,IF(Main!B31="Clerk",VLOOKUP(Main!N31,A!$B$163:$C$168,1,FALSE),VLOOKUP(Main!N31,A!$F$163:$G$165,1,FALSE))),"error") -> 0 | H29: =IFERROR(IF(Main!B31="S.Staff",VLOOKUP(Main!O31,A!$I$178:$J$186,1,FALSE),IF(Main!B31="Clerk",VLOOKUP(Main!O31,A!$B$178:$C$181,1,FALSE),VLOOKUP(Main!O30,A!$B$2:'A'!$C$2,1,FALSE))),"Error") -> No Spl. Allowance
A30: Dec.14 | B30: =IFERROR(IF(Main!B32="Clerk",VLOOKUP(Main!D32,A!$E$4:$F$30,1,FALSE),IF(Main!B32="S.Staff",VLOOKUP(Main!D32,A!$B$4:$C$31,1,FALSE), IF(Main!B32="O-I",VLOOKUP(Main!D32,A!$H$4:$I$27,1,FALSE),IF(Main!B32="O-II",VLOOKUP(Main!D32,A!$K$4:$L$22,1,FALSE),IF(Main!B32="O-III",VLOOKUP(Main!D32,A!$N$4:$O$15,1,FALSE),IF(Main!B32="O-IV",VLOOKUP(Main!D32,A!$Q$4:$R$10,1,FALSE),IF(Main!B32="O-V",VLOOKUP(Main!D32,A!$T$4:$U$8,1,FALSE),IF(Main!B32="O-VI",VLOOKUP(Main!D32,A!$W$4:$X$8,1,FALSE),VLOOKUP(Main!D32,A!$Z$4:$AA$8,1,FALSE))))))))),"error") -> 7200 | C30: =IFERROR(IF(Main!B32="Clerk",VLOOKUP(Main!E32,A!$A$61:$B$65,1,FALSE),IF(Main!B32="S.Staff",VLOOKUP(Main!E32,A!$E$61:$F$65,1,FALSE), VLOOKUP(Main!E32,A!$I$61:$J$65,1,FALSE))),"error") -> Pop.> 45 lac | D30: =IFERROR(IF(Main!B32="Clerk","N.A.",IF(Main!B32="S.Staff","N.A.", VLOOKUP(Main!G32,A!$N$63:$O$64,1,FALSE))),"error") -> N.A. | E30: =IFERROR(IF(Main!B32="Clerk","N.A.",IF(Main!B32="S.Staff","N.A.", VLOOKUP(Main!I32,A!$J$124:$K$126,1,FALSE))),"error") -> N.A. | F30: =IFERROR(IF(Main!L32="N.A.",A!$B$2,IF(Main!L32="S.Staff",VLOOKUP(Main!M32,A!$B$38:$C$42,1,FALSE),IF(Main!L32="Clerk",VLOOKUP(Main!M32,A!$E$38:$F$42,1,FALSE),IF(Main!L32="O-I",VLOOKUP(Main!M32,A!$H$38:$I$44,1,FALSE),IF(Main!L32="O-IV",VLOOKUP(Main!M32,A!$Q$38:$R$44,1,FALSE),IF(Main!L32="O-V",VLOOKUP(Main!M32,A!$T$38:$U$44,1,FALSE),IF(Main!L32="O-VI",VLOOKUP(Main!M32,A!$W$38:$X$44,1,FALSE),IF(Main!L32="O-VII",VLOOKUP(Main!M32,A!$Z$38:$AA$44,1,FALSE),VLOOKUP(Main!M32,A!$M$38:$N$44,1,FALSE))))))))),"Error") -> 0 | G30: =IFERROR(IF(Main!B32="S.Staff",A!$B$2,IF(Main!B32="Clerk",VLOOKUP(Main!N32,A!$B$163:$C$168,1,FALSE),VLOOKUP(Main!N32,A!$F$163:$G$165,1,FALSE))),"error") -> 0 | H30: =IFERROR(IF(Main!B32="S.Staff",VLOOKUP(Main!O32,A!$I$178:$J$186,1,FALSE),IF(Main!B32="Clerk",VLOOKUP(Main!O32,A!$B$178:$C$181,1,FALSE),VLOOKUP(Main!O31,A!$B$2:'A'!$C$2,1,FALSE))),"Error") -> No Spl. Allowance
A31: Jan.15 | B31: =IFERROR(IF(Main!B33="Clerk",VLOOKUP(Main!D33,A!$E$4:$F$30,1,FALSE),IF(Main!B33="S.Staff",VLOOKUP(Main!D33,A!$B$4:$C$31,1,FALSE), IF(Main!B33="O-I",VLOOKUP(Main!D33,A!$H$4:$I$27,1,FALSE),IF(Main!B33="O-II",VLOOKUP(Main!D33,A!$K$4:$L$22,1,FALSE),IF(Main!B33="O-III",VLOOKUP(Main!D33,A!$N$4:$O$15,1,FALSE),IF(Main!B33="O-IV",VLOOKUP(Main!D33,A!$Q$4:$R$10,1,FALSE),IF(Main!B33="O-V",VLOOKUP(Main!D33,A!$T$4:$U$8,1,FALSE),IF(Main!B33="O-VI",VLOOKUP(Main!D33,A!$W$4:$X$8,1,FALSE),VLOOKUP(Main!D33,A!$Z$4:$AA$8,1,FALSE))))))))),"error") -> 7200 | C31: =IFERROR(IF(Main!B33="Clerk",VLOOKUP(Main!E33,A!$A$61:$B$65,1,FALSE),IF(Main!B33="S.Staff",VLOOKUP(Main!E33,A!$E$61:$F$65,1,FALSE), VLOOKUP(Main!E33,A!$I$61:$J$65,1,FALSE))),"error") -> Pop.> 45 lac | D31: =IFERROR(IF(Main!B33="Clerk","N.A.",IF(Main!B33="S.Staff","N.A.", VLOOKUP(Main!G33,A!$N$63:$O$64,1,FALSE))),"error") -> N.A. | E31: =IFERROR(IF(Main!B33="Clerk","N.A.",IF(Main!B33="S.Staff","N.A.", VLOOKUP(Main!I33,A!$J$124:$K$126,1,FALSE))),"error") -> N.A. | F31: =IFERROR(IF(Main!L33="N.A.",A!$B$2,IF(Main!L33="S.Staff",VLOOKUP(Main!M33,A!$B$38:$C$42,1,FALSE),IF(Main!L33="Clerk",VLOOKUP(Main!M33,A!$E$38:$F$42,1,FALSE),IF(Main!L33="O-I",VLOOKUP(Main!M33,A!$H$38:$I$44,1,FALSE),IF(Main!L33="O-IV",VLOOKUP(Main!M33,A!$Q$38:$R$44,1,FALSE),IF(Main!L33="O-V",VLOOKUP(Main!M33,A!$T$38:$U$44,1,FALSE),IF(Main!L33="O-VI",VLOOKUP(Main!M33,A!$W$38:$X$44,1,FALSE),IF(Main!L33="O-VII",VLOOKUP(Main!M33,A!$Z$38:$AA$44,1,FALSE),VLOOKUP(Main!M33,A!$M$38:$N$44,1,FALSE))))))))),"Error") -> 0 | G31: =IFERROR(IF(Main!B33="S.Staff",A!$B$2,IF(Main!B33="Clerk",VLOOKUP(Main!N33,A!$B$163:$C$168,1,FALSE),VLOOKUP(Main!N33,A!$F$163:$G$165,1,FALSE))),"error") -> 0 | H31: =IFERROR(IF(Main!B33="S.Staff",VLOOKUP(Main!O33,A!$I$178:$J$186,1,FALSE),IF(Main!B33="Clerk",VLOOKUP(Main!O33,A!$B$178:$C$181,1,FALSE),VLOOKUP(Main!O32,A!$B$2:'A'!$C$2,1,FALSE))),"Error") -> No Spl. Allowance
A32: Feb.15 | B32: =IFERROR(IF(Main!B34="Clerk",VLOOKUP(Main!D34,A!$E$4:$F$30,1,FALSE),IF(Main!B34="S.Staff",VLOOKUP(Main!D34,A!$B$4:$C$31,1,FALSE), IF(Main!B34="O-I",VLOOKUP(Main!D34,A!$H$4:$I$27,1,FALSE),IF(Main!B34="O-II",VLOOKUP(Main!D34,A!$K$4:$L$22,1,FALSE),IF(Main!B34="O-III",VLOOKUP(Main!D34,A!$N$4:$O$15,1,FALSE),IF(Main!B34="O-IV",VLOOKUP(Main!D34,A!$Q$4:$R$10,1,FALSE),IF(Main!B34="O-V",VLOOKUP(Main!D34,A!$T$4:$U$8,1,FALSE),IF(Main!B34="O-VI",VLOOKUP(Main!D34,A!$W$4:$X$8,1,FALSE),VLOOKUP(Main!D34,A!$Z$4:$AA$8,1,FALSE))))))))),"error") -> 7200 | C32: =IFERROR(IF(Main!B34="Clerk",VLOOKUP(Main!E34,A!$A$61:$B$65,1,FALSE),IF(Main!B34="S.Staff",VLOOKUP(Main!E34,A!$E$61:$F$65,1,FALSE), VLOOKUP(Main!E34,A!$I$61:$J$65,1,FALSE))),"error") -> Pop.> 45 lac | D32: =IFERROR(IF(Main!B34="Clerk","N.A.",IF(Main!B34="S.Staff","N.A.", VLOOKUP(Main!G34,A!$N$63:$O$64,1,FALSE))),"error") -> N.A. | E32: =IFERROR(IF(Main!B34="Clerk","N.A.",IF(Main!B34="S.Staff","N.A.", VLOOKUP(Main!I34,A!$J$124:$K$126,1,FALSE))),"error") -> N.A. | F32: =IFERROR(IF(Main!L34="N.A.",A!$B$2,IF(Main!L34="S.Staff",VLOOKUP(Main!M34,A!$B$38:$C$42,1,FALSE),IF(Main!L34="Clerk",VLOOKUP(Main!M34,A!$E$38:$F$42,1,FALSE),IF(Main!L34="O-I",VLOOKUP(Main!M34,A!$H$38:$I$44,1,FALSE),IF(Main!L34="O-IV",VLOOKUP(Main!M34,A!$Q$38:$R$44,1,FALSE),IF(Main!L34="O-V",VLOOKUP(Main!M34,A!$T$38:$U$44,1,FALSE),IF(Main!L34="O-VI",VLOOKUP(Main!M34,A!$W$38:$X$44,1,FALSE),IF(Main!L34="O-VII",VLOOKUP(Main!M34,A!$Z$38:$AA$44,1,FALSE),VLOOKUP(Main!M34,A!$M$38:$N$44,1,FALSE))))))))),"Error") -> 0 | G32: =IFERROR(IF(Main!B34="S.Staff",A!$B$2,IF(Main!B34="Clerk",VLOOKUP(Main!N34,A!$B$163:$C$168,1,FALSE),VLOOKUP(Main!N34,A!$F$163:$G$165,1,FALSE))),"error") -> 0 | H32: =IFERROR(IF(Main!B34="S.Staff",VLOOKUP(Main!O34,A!$I$178:$J$186,1,FALSE),IF(Main!B34="Clerk",VLOOKUP(Main!O34,A!$B$178:$C$181,1,FALSE),VLOOKUP(Main!O33,A!$B$2:'A'!$C$2,1,FALSE))),"Error") -> No Spl. Allowance
A33: Mar.15 | B33: =IFERROR(IF(Main!B35="Clerk",VLOOKUP(Main!D35,A!$E$4:$F$30,1,FALSE),IF(Main!B35="S.Staff",VLOOKUP(Main!D35,A!$B$4:$C$31,1,FALSE), IF(Main!B35="O-I",VLOOKUP(Main!D35,A!$H$4:$I$27,1,FALSE),IF(Main!B35="O-II",VLOOKUP(Main!D35,A!$K$4:$L$22,1,FALSE),IF(Main!B35="O-III",VLOOKUP(Main!D35,A!$N$4:$O$15,1,FALSE),IF(Main!B35="O-IV",VLOOKUP(Main!D35,A!$Q$4:$R$10,1,FALSE),IF(Main!B35="O-V",VLOOKUP(Main!D35,A!$T$4:$U$8,1,FALSE),IF(Main!B35="O-VI",VLOOKUP(Main!D35,A!$W$4:$X$8,1,FALSE),VLOOKUP(Main!D35,A!$Z$4:$AA$8,1,FALSE))))))))),"error") -> 7200 | C33: =IFERROR(IF(Main!B35="Clerk",VLOOKUP(Main!E35,A!$A$61:$B$65,1,FALSE),IF(Main!B35="S.Staff",VLOOKUP(Main!E35,A!$E$61:$F$65,1,FALSE), VLOOKUP(Main!E35,A!$I$61:$J$65,1,FALSE))),"error") -> Pop.> 45 lac | D33: =IFERROR(IF(Main!B35="Clerk","N.A.",IF(Main!B35="S.Staff","N.A.", VLOOKUP(Main!G35,A!$N$63:$O$64,1,FALSE))),"error") -> N.A. | E33: =IFERROR(IF(Main!B35="Clerk","N.A.",IF(Main!B35="S.Staff","N.A.", VLOOKUP(Main!I35,A!$J$124:$K$126,1,FALSE))),"error") -> N.A. | F33: =IFERROR(IF(Main!L35="N.A.",A!$B$2,IF(Main!L35="S.Staff",VLOOKUP(Main!M35,A!$B$38:$C$42,1,FALSE),IF(Main!L35="Clerk",VLOOKUP(Main!M35,A!$E$38:$F$42,1,FALSE),IF(Main!L35="O-I",VLOOKUP(Main!M35,A!$H$38:$I$44,1,FALSE),IF(Main!L35="O-IV",VLOOKUP(Main!M35,A!$Q$38:$R$44,1,FALSE),IF(Main!L35="O-V",VLOOKUP(Main!M35,A!$T$38:$U$44,1,FALSE),IF(Main!L35="O-VI",VLOOKUP(Main!M35,A!$W$38:$X$44,1,FALSE),IF(Main!L35="O-VII",VLOOKUP(Main!M35,A!$Z$38:$AA$44,1,FALSE),VLOOKUP(Main!M35,A!$M$38:$N$44,1,FALSE))))))))),"Error") -> 0 | G33: =IFERROR(IF(Main!B35="S.Staff",A!$B$2,IF(Main!B35="Clerk",VLOOKUP(Main!N35,A!$B$163:$C$168,1,FALSE),VLOOKUP(Main!N35,A!$F$163:$G$165,1,FALSE))),"error") -> 0 | H33: =IFERROR(IF(Main!B35="S.Staff",VLOOKUP(Main!O35,A!$I$178:$J$186,1,FALSE),IF(Main!B35="Clerk",VLOOKUP(Main!O35,A!$B$178:$C$181,1,FALSE),VLOOKUP(Main!O34,A!$B$2:'A'!$C$2,1,FALSE))),"Error") -> No Spl. Allowance
A34: Apr.15 | B34: =IFERROR(IF(Main!B36="Clerk",VLOOKUP(Main!D36,A!$E$4:$F$30,1,FALSE),IF(Main!B36="S.Staff",VLOOKUP(Main!D36,A!$B$4:$C$31,1,FALSE), IF(Main!B36="O-I",VLOOKUP(Main!D36,A!$H$4:$I$27,1,FALSE),IF(Main!B36="O-II",VLOOKUP(Main!D36,A!$K$4:$L$22,1,FALSE),IF(Main!B36="O-III",VLOOKUP(Main!D36,A!$N$4:$O$15,1,FALSE),IF(Main!B36="O-IV",VLOOKUP(Main!D36,A!$Q$4:$R$10,1,FALSE),IF(Main!B36="O-V",VLOOKUP(Main!D36,A!$T$4:$U$8,1,FALSE),IF(Main!B36="O-VI",VLOOKUP(Main!D36,A!$W$4:$X$8,1,FALSE),VLOOKUP(Main!D36,A!$Z$4:$AA$8,1,FALSE))))))))),"error") -> 7200 | C34: =IFERROR(IF(Main!B36="Clerk",VLOOKUP(Main!E36,A!$A$61:$B$65,1,FALSE),IF(Main!B36="S.Staff",VLOOKUP(Main!E36,A!$E$61:$F$65,1,FALSE), VLOOKUP(Main!E36,A!$I$61:$J$65,1,FALSE))),"error") -> Pop.> 45 lac | D34: =IFERROR(IF(Main!B36="Clerk","N.A.",IF(Main!B36="S.Staff","N.A.", VLOOKUP(Main!G36,A!$N$63:$O$64,1,FALSE))),"error") -> N.A. | E34: =IFERROR(IF(Main!B36="Clerk","N.A.",IF(Main!B36="S.Staff","N.A.", VLOOKUP(Main!I36,A!$J$124:$K$126,1,FALSE))),"error") -> N.A. | F34: =IFERROR(IF(Main!L36="N.A.",A!$B$2,IF(Main!L36="S.Staff",VLOOKUP(Main!M36,A!$B$38:$C$42,1,FALSE),IF(Main!L36="Clerk",VLOOKUP(Main!M36,A!$E$38:$F$42,1,FALSE),IF(Main!L36="O-I",VLOOKUP(Main!M36,A!$H$38:$I$44,1,FALSE),IF(Main!L36="O-IV",VLOOKUP(Main!M36,A!$Q$38:$R$44,1,FALSE),IF(Main!L36="O-V",VLOOKUP(Main!M36,A!$T$38:$U$44,1,FALSE),IF(Main!L36="O-VI",VLOOKUP(Main!M36,A!$W$38:$X$44,1,FALSE),IF(Main!L36="O-VII",VLOOKUP(Main!M36,A!$Z$38:$AA$44,1,FALSE),VLOOKUP(Main!M36,A!$M$38:$N$44,1,FALSE))))))))),"Error") -> 0 | G34: =IFERROR(IF(Main!B36="S.Staff",A!$B$2,IF(Main!B36="Clerk",VLOOKUP(Main!N36,A!$B$163:$C$168,1,FALSE),VLOOKUP(Main!N36,A!$F$163:$G$165,1,FALSE))),"error") -> 0 | H34: =IFERROR(IF(Main!B36="S.Staff",VLOOKUP(Main!O36,A!$I$178:$J$186,1,FALSE),IF(Main!B36="Clerk",VLOOKUP(Main!O36,A!$B$178:$C$181,1,FALSE),VLOOKUP(Main!O35,A!$B$2:'A'!$C$2,1,FALSE))),"Error") -> No Spl. Allowance
A35: May.15 | B35: =IFERROR(IF(Main!B37="Clerk",VLOOKUP(Main!D37,A!$E$4:$F$30,1,FALSE),IF(Main!B37="S.Staff",VLOOKUP(Main!D37,A!$B$4:$C$31,1,FALSE), IF(Main!B37="O-I",VLOOKUP(Main!D37,A!$H$4:$I$27,1,FALSE),IF(Main!B37="O-II",VLOOKUP(Main!D37,A!$K$4:$L$22,1,FALSE),IF(Main!B37="O-III",VLOOKUP(Main!D37,A!$N$4:$O$15,1,FALSE),IF(Main!B37="O-IV",VLOOKUP(Main!D37,A!$Q$4:$R$10,1,FALSE),IF(Main!B37="O-V",VLOOKUP(Main!D37,A!$T$4:$U$8,1,FALSE),IF(Main!B37="O-VI",VLOOKUP(Main!D37,A!$W$4:$X$8,1,FALSE),VLOOKUP(Main!D37,A!$Z$4:$AA$8,1,FALSE))))))))),"error") -> 7200 | C35: =IFERROR(IF(Main!B37="Clerk",VLOOKUP(Main!E37,A!$A$61:$B$65,1,FALSE),IF(Main!B37="S.Staff",VLOOKUP(Main!E37,A!$E$61:$F$65,1,FALSE), VLOOKUP(Main!E37,A!$I$61:$J$65,1,FALSE))),"error") -> Pop.> 45 lac | D35: =IFERROR(IF(Main!B37="Clerk","N.A.",IF(Main!B37="S.Staff","N.A.", VLOOKUP(Main!G37,A!$N$63:$O$64,1,FALSE))),"error") -> N.A. | E35: =IFERROR(IF(Main!B37="Clerk","N.A.",IF(Main!B37="S.Staff","N.A.", VLOOKUP(Main!I37,A!$J$124:$K$126,1,FALSE))),"error") -> N.A. | F35: =IFERROR(IF(Main!L37="N.A.",A!$B$2,IF(Main!L37="S.Staff",VLOOKUP(Main!M37,A!$B$38:$C$42,1,FALSE),IF(Main!L37="Clerk",VLOOKUP(Main!M37,A!$E$38:$F$42,1,FALSE),IF(Main!L37="O-I",VLOOKUP(Main!M37,A!$H$38:$I$44,1,FALSE),IF(Main!L37="O-IV",VLOOKUP(Main!M37,A!$Q$38:$R$44,1,FALSE),IF(Main!L37="O-V",VLOOKUP(Main!M37,A!$T$38:$U$44,1,FALSE),IF(Main!L37="O-VI",VLOOKUP(Main!M37,A!$W$38:$X$44,1,FALSE),IF(Main!L37="O-VII",VLOOKUP(Main!M37,A!$Z$38:$AA$44,1,FALSE),VLOOKUP(Main!M37,A!$M$38:$N$44,1,FALSE))))))))),"Error") -> 0 | G35: =IFERROR(IF(Main!B37="S.Staff",A!$B$2,IF(Main!B37="Clerk",VLOOKUP(Main!N37,A!$B$163:$C$168,1,FALSE),VLOOKUP(Main!N37,A!$F$163:$G$165,1,FALSE))),"error") -> 0 | H35: =IFERROR(IF(Main!B37="S.Staff",VLOOKUP(Main!O37,A!$I$178:$J$186,1,FALSE),IF(Main!B37="Clerk",VLOOKUP(Main!O37,A!$B$178:$C$181,1,FALSE),VLOOKUP(Main!O36,A!$B$2:'A'!$C$2,1,FALSE))),"Error") -> No Spl. Allowance
A36: Jun.15 | B36: =IFERROR(IF(Main!B38="Clerk",VLOOKUP(Main!D38,A!$E$4:$F$30,1,FALSE),IF(Main!B38="S.Staff",VLOOKUP(Main!D38,A!$B$4:$C$31,1,FALSE), IF(Main!B38="O-I",VLOOKUP(Main!D38,A!$H$4:$I$27,1,FALSE),IF(Main!B38="O-II",VLOOKUP(Main!D38,A!$K$4:$L$22,1,FALSE),IF(Main!B38="O-III",VLOOKUP(Main!D38,A!$N$4:$O$15,1,FALSE),IF(Main!B38="O-IV",VLOOKUP(Main!D38,A!$Q$4:$R$10,1,FALSE),IF(Main!B38="O-V",VLOOKUP(Main!D38,A!$T$4:$U$8,1,FALSE),IF(Main!B38="O-VI",VLOOKUP(Main!D38,A!$W$4:$X$8,1,FALSE),VLOOKUP(Main!D38,A!$Z$4:$AA$8,1,FALSE))))))))),"error") -> 7200 | C36: =IFERROR(IF(Main!B38="Clerk",VLOOKUP(Main!E38,A!$A$61:$B$65,1,FALSE),IF(Main!B38="S.Staff",VLOOKUP(Main!E38,A!$E$61:$F$65,1,FALSE), VLOOKUP(Main!E38,A!$I$61:$J$65,1,FALSE))),"error") -> Pop.> 45 lac | D36: =IFERROR(IF(Main!B38="Clerk","N.A.",IF(Main!B38="S.Staff","N.A.", VLOOKUP(Main!G38,A!$N$63:$O$64,1,FALSE))),"error") -> N.A. | E36: =IFERROR(IF(Main!B38="Clerk","N.A.",IF(Main!B38="S.Staff","N.A.", VLOOKUP(Main!I38,A!$J$124:$K$126,1,FALSE))),"error") -> N.A. | F36: =IFERROR(IF(Main!L38="N.A.",A!$B$2,IF(Main!L38="S.Staff",VLOOKUP(Main!M38,A!$B$38:$C$42,1,FALSE),IF(Main!L38="Clerk",VLOOKUP(Main!M38,A!$E$38:$F$42,1,FALSE),IF(Main!L38="O-I",VLOOKUP(Main!M38,A!$H$38:$I$44,1,FALSE),IF(Main!L38="O-IV",VLOOKUP(Main!M38,A!$Q$38:$R$44,1,FALSE),IF(Main!L38="O-V",VLOOKUP(Main!M38,A!$T$38:$U$44,1,FALSE),IF(Main!L38="O-VI",VLOOKUP(Main!M38,A!$W$38:$X$44,1,FALSE),IF(Main!L38="O-VII",VLOOKUP(Main!M38,A!$Z$38:$AA$44,1,FALSE),VLOOKUP(Main!M38,A!$M$38:$N$44,1,FALSE))))))))),"Error") -> 0 | G36: =IFERROR(IF(Main!B38="S.Staff",A!$B$2,IF(Main!B38="Clerk",VLOOKUP(Main!N38,A!$B$163:$C$168,1,FALSE),VLOOKUP(Main!N38,A!$F$163:$G$165,1,FALSE))),"error") -> 0 | H36: =IFERROR(IF(Main!B38="S.Staff",VLOOKUP(Main!O38,A!$I$178:$J$186,1,FALSE),IF(Main!B38="Clerk",VLOOKUP(Main!O38,A!$B$178:$C$181,1,FALSE),VLOOKUP(Main!O37,A!$B$2:'A'!$C$2,1,FALSE))),"Error") -> No Spl. Allowance
A37: Jul.15 | B37: =IFERROR(IF(Main!B39="Clerk",VLOOKUP(Main!D39,A!$E$4:$F$30,1,FALSE),IF(Main!B39="S.Staff",VLOOKUP(Main!D39,A!$B$4:$C$31,1,FALSE), IF(Main!B39="O-I",VLOOKUP(Main!D39,A!$H$4:$I$27,1,FALSE),IF(Main!B39="O-II",VLOOKUP(Main!D39,A!$K$4:$L$22,1,FALSE),IF(Main!B39="O-III",VLOOKUP(Main!D39,A!$N$4:$O$15,1,FALSE),IF(Main!B39="O-IV",VLOOKUP(Main!D39,A!$Q$4:$R$10,1,FALSE),IF(Main!B39="O-V",VLOOKUP(Main!D39,A!$T$4:$U$8,1,FALSE),IF(Main!B39="O-VI",VLOOKUP(Main!D39,A!$W$4:$X$8,1,FALSE),VLOOKUP(Main!D39,A!$Z$4:$AA$8,1,FALSE))))))))),"error") -> 7200 | C37: =IFERROR(IF(Main!B39="Clerk",VLOOKUP(Main!E39,A!$A$61:$B$65,1,FALSE),IF(Main!B39="S.Staff",VLOOKUP(Main!E39,A!$E$61:$F$65,1,FALSE), VLOOKUP(Main!E39,A!$I$61:$J$65,1,FALSE))),"error") -> Pop.> 45 lac | D37: =IFERROR(IF(Main!B39="Clerk","N.A.",IF(Main!B39="S.Staff","N.A.", VLOOKUP(Main!G39,A!$N$63:$O$64,1,FALSE))),"error") -> N.A. | E37: =IFERROR(IF(Main!B39="Clerk","N.A.",IF(Main!B39="S.Staff","N.A.", VLOOKUP(Main!I39,A!$J$124:$K$126,1,FALSE))),"error") -> N.A. | F37: =IFERROR(IF(Main!L39="N.A.",A!$B$2,IF(Main!L39="S.Staff",VLOOKUP(Main!M39,A!$B$38:$C$42,1,FALSE),IF(Main!L39="Clerk",VLOOKUP(Main!M39,A!$E$38:$F$42,1,FALSE),IF(Main!L39="O-I",VLOOKUP(Main!M39,A!$H$38:$I$44,1,FALSE),IF(Main!L39="O-IV",VLOOKUP(Main!M39,A!$Q$38:$R$44,1,FALSE),IF(Main!L39="O-V",VLOOKUP(Main!M39,A!$T$38:$U$44,1,FALSE),IF(Main!L39="O-VI",VLOOKUP(Main!M39,A!$W$38:$X$44,1,FALSE),IF(Main!L39="O-VII",VLOOKUP(Main!M39,A!$Z$38:$AA$44,1,FALSE),VLOOKUP(Main!M39,A!$M$38:$N$44,1,FALSE))))))))),"Error") -> 0 | G37: =IFERROR(IF(Main!B39="S.Staff",A!$B$2,IF(Main!B39="Clerk",VLOOKUP(Main!N39,A!$B$163:$C$168,1,FALSE),VLOOKUP(Main!N39,A!$F$163:$G$165,1,FALSE))),"error") -> 0 | H37: =IFERROR(IF(Main!B39="S.Staff",VLOOKUP(Main!O39,A!$I$178:$J$186,1,FALSE),IF(Main!B39="Clerk",VLOOKUP(Main!O39,A!$B$178:$C$181,1,FALSE),VLOOKUP(Main!O38,A!$B$2:'A'!$C$2,1,FALSE))),"Error") -> No Spl. Allowance
A38: Aug.15 | B38: =IFERROR(IF(Main!B40="Clerk",VLOOKUP(Main!D40,A!$E$4:$F$30,1,FALSE),IF(Main!B40="S.Staff",VLOOKUP(Main!D40,A!$B$4:$C$31,1,FALSE), IF(Main!B40="O-I",VLOOKUP(Main!D40,A!$H$4:$I$27,1,FALSE),IF(Main!B40="O-II",VLOOKUP(Main!D40,A!$K$4:$L$22,1,FALSE),IF(Main!B40="O-III",VLOOKUP(Main!D40,A!$N$4:$O$15,1,FALSE),IF(Main!B40="O-IV",VLOOKUP(Main!D40,A!$Q$4:$R$10,1,FALSE),IF(Main!B40="O-V",VLOOKUP(Main!D40,A!$T$4:$U$8,1,FALSE),IF(Main!B40="O-VI",VLOOKUP(Main!D40,A!$W$4:$X$8,1,FALSE),VLOOKUP(Main!D40,A!$Z$4:$AA$8,1,FALSE))))))))),"error") -> 7200 | C38: =IFERROR(IF(Main!B40="Clerk",VLOOKUP(Main!E40,A!$A$61:$B$65,1,FALSE),IF(Main!B40="S.Staff",VLOOKUP(Main!E40,A!$E$61:$F$65,1,FALSE), VLOOKUP(Main!E40,A!$I$61:$J$65,1,FALSE))),"error") -> Pop.> 45 lac | D38: =IFERROR(IF(Main!B40="Clerk","N.A.",IF(Main!B40="S.Staff","N.A.", VLOOKUP(Main!G40,A!$N$63:$O$64,1,FALSE))),"error") -> N.A. | E38: =IFERROR(IF(Main!B40="Clerk","N.A.",IF(Main!B40="S.Staff","N.A.", VLOOKUP(Main!I40,A!$J$124:$K$126,1,FALSE))),"error") -> N.A. | F38: =IFERROR(IF(Main!L40="N.A.",A!$B$2,IF(Main!L40="S.Staff",VLOOKUP(Main!M40,A!$B$38:$C$42,1,FALSE),IF(Main!L40="Clerk",VLOOKUP(Main!M40,A!$E$38:$F$42,1,FALSE),IF(Main!L40="O-I",VLOOKUP(Main!M40,A!$H$38:$I$44,1,FALSE),IF(Main!L40="O-IV",VLOOKUP(Main!M40,A!$Q$38:$R$44,1,FALSE),IF(Main!L40="O-V",VLOOKUP(Main!M40,A!$T$38:$U$44,1,FALSE),IF(Main!L40="O-VI",VLOOKUP(Main!M40,A!$W$38:$X$44,1,FALSE),IF(Main!L40="O-VII",VLOOKUP(Main!M40,A!$Z$38:$AA$44,1,FALSE),VLOOKUP(Main!M40,A!$M$38:$N$44,1,FALSE))))))))),"Error") -> 0 | G38: =IFERROR(IF(Main!B40="S.Staff",A!$B$2,IF(Main!B40="Clerk",VLOOKUP(Main!N40,A!$B$163:$C$168,1,FALSE),VLOOKUP(Main!N40,A!$F$163:$G$165,1,FALSE))),"error") -> 0 | H38: =IFERROR(IF(Main!B40="S.Staff",VLOOKUP(Main!O40,A!$I$178:$J$186,1,FALSE),IF(Main!B40="Clerk",VLOOKUP(Main!O40,A!$B$178:$C$181,1,FALSE),VLOOKUP(Main!O39,A!$B$2:'A'!$C$2,1,FALSE))),"Error") -> No Spl. Allowance
A39: Sep.15 | B39: =IFERROR(IF(Main!B41="Clerk",VLOOKUP(Main!D41,A!$E$4:$F$30,1,FALSE),IF(Main!B41="S.Staff",VLOOKUP(Main!D41,A!$B$4:$C$31,1,FALSE), IF(Main!B41="O-I",VLOOKUP(Main!D41,A!$H$4:$I$27,1,FALSE),IF(Main!B41="O-II",VLOOKUP(Main!D41,A!$K$4:$L$22,1,FALSE),IF(Main!B41="O-III",VLOOKUP(Main!D41,A!$N$4:$O$15,1,FALSE),IF(Main!B41="O-IV",VLOOKUP(Main!D41,A!$Q$4:$R$10,1,FALSE),IF(Main!B41="O-V",VLOOKUP(Main!D41,A!$T$4:$U$8,1,FALSE),IF(Main!B41="O-VI",VLOOKUP(Main!D41,A!$W$4:$X$8,1,FALSE),VLOOKUP(Main!D41,A!$Z$4:$AA$8,1,FALSE))))))))),"error") -> 7200 | C39: =IFERROR(IF(Main!B41="Clerk",VLOOKUP(Main!E41,A!$A$61:$B$65,1,FALSE),IF(Main!B41="S.Staff",VLOOKUP(Main!E41,A!$E$61:$F$65,1,FALSE), VLOOKUP(Main!E41,A!$I$61:$J$65,1,FALSE))),"error") -> Pop.> 45 lac | D39: =IFERROR(IF(Main!B41="Clerk","N.A.",IF(Main!B41="S.Staff","N.A.", VLOOKUP(Main!G41,A!$N$63:$O$64,1,FALSE))),"error") -> N.A. | E39: =IFERROR(IF(Main!B41="Clerk","N.A.",IF(Main!B41="S.Staff","N.A.", VLOOKUP(Main!I41,A!$J$124:$K$126,1,FALSE))),"error") -> N.A. | F39: =IFERROR(IF(Main!L41="N.A.",A!$B$2,IF(Main!L41="S.Staff",VLOOKUP(Main!M41,A!$B$38:$C$42,1,FALSE),IF(Main!L41="Clerk",VLOOKUP(Main!M41,A!$E$38:$F$42,1,FALSE),IF(Main!L41="O-I",VLOOKUP(Main!M41,A!$H$38:$I$44,1,FALSE),IF(Main!L41="O-IV",VLOOKUP(Main!M41,A!$Q$38:$R$44,1,FALSE),IF(Main!L41="O-V",VLOOKUP(Main!M41,A!$T$38:$U$44,1,FALSE),IF(Main!L41="O-VI",VLOOKUP(Main!M41,A!$W$38:$X$44,1,FALSE),IF(Main!L41="O-VII",VLOOKUP(Main!M41,A!$Z$38:$AA$44,1,FALSE),VLOOKUP(Main!M41,A!$M$38:$N$44,1,FALSE))))))))),"Error") -> 0 | G39: =IFERROR(IF(Main!B41="S.Staff",A!$B$2,IF(Main!B41="Clerk",VLOOKUP(Main!N41,A!$B$163:$C$168,1,FALSE),VLOOKUP(Main!N41,A!$F$163:$G$165,1,FALSE))),"error") -> 0 | H39: =IFERROR(IF(Main!B41="S.Staff",VLOOKUP(Main!O41,A!$I$178:$J$186,1,FALSE),IF(Main!B41="Clerk",VLOOKUP(Main!O41,A!$B$178:$C$181,1,FALSE),VLOOKUP(Main!O40,A!$B$2:'A'!$C$2,1,FALSE))),"Error") -> No Spl. Allowance
A40: Oct.15 | B40: =IFERROR(IF(Main!B42="Clerk",VLOOKUP(Main!D42,A!$E$4:$F$30,1,FALSE),IF(Main!B42="S.Staff",VLOOKUP(Main!D42,A!$B$4:$C$31,1,FALSE), IF(Main!B42="O-I",VLOOKUP(Main!D42,A!$H$4:$I$27,1,FALSE),IF(Main!B42="O-II",VLOOKUP(Main!D42,A!$K$4:$L$22,1,FALSE),IF(Main!B42="O-III",VLOOKUP(Main!D42,A!$N$4:$O$15,1,FALSE),IF(Main!B42="O-IV",VLOOKUP(Main!D42,A!$Q$4:$R$10,1,FALSE),IF(Main!B42="O-V",VLOOKUP(Main!D42,A!$T$4:$U$8,1,FALSE),IF(Main!B42="O-VI",VLOOKUP(Main!D42,A!$W$4:$X$8,1,FALSE),VLOOKUP(Main!D42,A!$Z$4:$AA$8,1,FALSE))))))))),"error") -> 7200 | C40: =IFERROR(IF(Main!B42="Clerk",VLOOKUP(Main!E42,A!$A$61:$B$65,1,FALSE),IF(Main!B42="S.Staff",VLOOKUP(Main!E42,A!$E$61:$F$65,1,FALSE), VLOOKUP(Main!E42,A!$I$61:$J$65,1,FALSE))),"error") -> Pop.> 45 lac | D40: =IFERROR(IF(Main!B42="Clerk","N.A.",IF(Main!B42="S.Staff","N.A.", VLOOKUP(Main!G42,A!$N$63:$O$64,1,FALSE))),"error") -> N.A. | E40: =IFERROR(IF(Main!B42="Clerk","N.A.",IF(Main!B42="S.Staff","N.A.", VLOOKUP(Main!I42,A!$J$124:$K$126,1,FALSE))),"error") -> N.A. | F40: =IFERROR(IF(Main!L42="N.A.",A!$B$2,IF(Main!L42="S.Staff",VLOOKUP(Main!M42,A!$B$38:$C$42,1,FALSE),IF(Main!L42="Clerk",VLOOKUP(Main!M42,A!$E$38:$F$42,1,FALSE),IF(Main!L42="O-I",VLOOKUP(Main!M42,A!$H$38:$I$44,1,FALSE),IF(Main!L42="O-IV",VLOOKUP(Main!M42,A!$Q$38:$R$44,1,FALSE),IF(Main!L42="O-V",VLOOKUP(Main!M42,A!$T$38:$U$44,1,FALSE),IF(Main!L42="O-VI",VLOOKUP(Main!M42,A!$W$38:$X$44,1,FALSE),IF(Main!L42="O-VII",VLOOKUP(Main!M42,A!$Z$38:$AA$44,1,FALSE),VLOOKUP(Main!M42,A!$M$38:$N$44,1,FALSE))))))))),"Error") -> 0 | G40: =IFERROR(IF(Main!B42="S.Staff",A!$B$2,IF(Main!B42="Clerk",VLOOKUP(Main!N42,A!$B$163:$C$168,1,FALSE),VLOOKUP(Main!N42,A!$F$163:$G$165,1,FALSE))),"error") -> 0 | H40: =IFERROR(IF(Main!B42="S.Staff",VLOOKUP(Main!O42,A!$I$178:$J$186,1,FALSE),IF(Main!B42="Clerk",VLOOKUP(Main!O42,A!$B$178:$C$181,1,FALSE),VLOOKUP(Main!O41,A!$B$2:'A'!$C$2,1,FALSE))),"Error") -> No Spl. Allowance
A41: Nov.15 | B41: =IFERROR(IF(Main!B43="Clerk",VLOOKUP(Main!D43,A!$E$4:$F$30,1,FALSE),IF(Main!B43="S.Staff",VLOOKUP(Main!D43,A!$B$4:$C$31,1,FALSE), IF(Main!B43="O-I",VLOOKUP(Main!D43,A!$H$4:$I$27,1,FALSE),IF(Main!B43="O-II",VLOOKUP(Main!D43,A!$K$4:$L$22,1,FALSE),IF(Main!B43="O-III",VLOOKUP(Main!D43,A!$N$4:$O$15,1,FALSE),IF(Main!B43="O-IV",VLOOKUP(Main!D43,A!$Q$4:$R$10,1,FALSE),IF(Main!B43="O-V",VLOOKUP(Main!D43,A!$T$4:$U$8,1,FALSE),IF(Main!B43="O-VI",VLOOKUP(Main!D43,A!$W$4:$X$8,1,FALSE),VLOOKUP(Main!D43,A!$Z$4:$AA$8,1,FALSE))))))))),"error") -> 7200 | C41: =IFERROR(IF(Main!B43="Clerk",VLOOKUP(Main!E43,A!$A$61:$B$65,1,FALSE),IF(Main!B43="S.Staff",VLOOKUP(Main!E43,A!$E$61:$F$65,1,FALSE), VLOOKUP(Main!E43,A!$I$61:$J$65,1,FALSE))),"error") -> Pop.> 45 lac | D41: =IFERROR(IF(Main!B43="Clerk","N.A.",IF(Main!B43="S.Staff","N.A.", VLOOKUP(Main!G43,A!$N$63:$O$64,1,FALSE))),"error") -> N.A. | E41: =IFERROR(IF(Main!B43="Clerk","N.A.",IF(Main!B43="S.Staff","N.A.", VLOOKUP(Main!I43,A!$J$124:$K$126,1,FALSE))),"error") -> N.A. | F41: =IFERROR(IF(Main!L43="N.A.",A!$B$2,IF(Main!L43="S.Staff",VLOOKUP(Main!M43,A!$B$38:$C$42,1,FALSE),IF(Main!L43="Clerk",VLOOKUP(Main!M43,A!$E$38:$F$42,1,FALSE),IF(Main!L43="O-I",VLOOKUP(Main!M43,A!$H$38:$I$44,1,FALSE),IF(Main!L43="O-IV",VLOOKUP(Main!M43,A!$Q$38:$R$44,1,FALSE),IF(Main!L43="O-V",VLOOKUP(Main!M43,A!$T$38:$U$44,1,FALSE),IF(Main!L43="O-VI",VLOOKUP(Main!M43,A!$W$38:$X$44,1,FALSE),IF(Main!L43="O-VII",VLOOKUP(Main!M43,A!$Z$38:$AA$44,1,FALSE),VLOOKUP(Main!M43,A!$M$38:$N$44,1,FALSE))))))))),"Error") -> 0 | G41: =IFERROR(IF(Main!B43="S.Staff",A!$B$2,IF(Main!B43="Clerk",VLOOKUP(Main!N43,A!$B$163:$C$168,1,FALSE),VLOOKUP(Main!N43,A!$F$163:$G$165,1,FALSE))),"error") -> 0 | H41: =IFERROR(IF(Main!B43="S.Staff",VLOOKUP(Main!O43,A!$I$178:$J$186,1,FALSE),IF(Main!B43="Clerk",VLOOKUP(Main!O43,A!$B$178:$C$181,1,FALSE),VLOOKUP(Main!O42,A!$B$2:'A'!$C$2,1,FALSE))),"Error") -> No Spl. Allowance
A42: Dec.15 | B42: =IFERROR(IF(Main!B44="Clerk",VLOOKUP(Main!D44,A!$E$4:$F$30,1,FALSE),IF(Main!B44="S.Staff",VLOOKUP(Main!D44,A!$B$4:$C$31,1,FALSE), IF(Main!B44="O-I",VLOOKUP(Main!D44,A!$H$4:$I$27,1,FALSE),IF(Main!B44="O-II",VLOOKUP(Main!D44,A!$K$4:$L$22,1,FALSE),IF(Main!B44="O-III",VLOOKUP(Main!D44,A!$N$4:$O$15,1,FALSE),IF(Main!B44="O-IV",VLOOKUP(Main!D44,A!$Q$4:$R$10,1,FALSE),IF(Main!B44="O-V",VLOOKUP(Main!D44,A!$T$4:$U$8,1,FALSE),IF(Main!B44="O-VI",VLOOKUP(Main!D44,A!$W$4:$X$8,1,FALSE),VLOOKUP(Main!D44,A!$Z$4:$AA$8,1,FALSE))))))))),"error") -> 7200 | C42: =IFERROR(IF(Main!B44="Clerk",VLOOKUP(Main!E44,A!$A$61:$B$65,1,FALSE),IF(Main!B44="S.Staff",VLOOKUP(Main!E44,A!$E$61:$F$65,1,FALSE), VLOOKUP(Main!E44,A!$I$61:$J$65,1,FALSE))),"error") -> Pop.> 45 lac | D42: =IFERROR(IF(Main!B44="Clerk","N.A.",IF(Main!B44="S.Staff","N.A.", VLOOKUP(Main!G44,A!$N$63:$O$64,1,FALSE))),"error") -> N.A. | E42: =IFERROR(IF(Main!B44="Clerk","N.A.",IF(Main!B44="S.Staff","N.A.", VLOOKUP(Main!I44,A!$J$124:$K$126,1,FALSE))),"error") -> N.A. | F42: =IFERROR(IF(Main!L44="N.A.",A!$B$2,IF(Main!L44="S.Staff",VLOOKUP(Main!M44,A!$B$38:$C$42,1,FALSE),IF(Main!L44="Clerk",VLOOKUP(Main!M44,A!$E$38:$F$42,1,FALSE),IF(Main!L44="O-I",VLOOKUP(Main!M44,A!$H$38:$I$44,1,FALSE),IF(Main!L44="O-IV",VLOOKUP(Main!M44,A!$Q$38:$R$44,1,FALSE),IF(Main!L44="O-V",VLOOKUP(Main!M44,A!$T$38:$U$44,1,FALSE),IF(Main!L44="O-VI",VLOOKUP(Main!M44,A!$W$38:$X$44,1,FALSE),IF(Main!L44="O-VII",VLOOKUP(Main!M44,A!$Z$38:$AA$44,1,FALSE),VLOOKUP(Main!M44,A!$M$38:$N$44,1,FALSE))))))))),"Error") -> 0 | G42: =IFERROR(IF(Main!B44="S.Staff",A!$B$2,IF(Main!B44="Clerk",VLOOKUP(Main!N44,A!$B$163:$C$168,1,FALSE),VLOOKUP(Main!N44,A!$F$163:$G$165,1,FALSE))),"error") -> 0 | H42: =IFERROR(IF(Main!B44="S.Staff",VLOOKUP(Main!O44,A!$I$178:$J$186,1,FALSE),IF(Main!B44="Clerk",VLOOKUP(Main!O44,A!$B$178:$C$181,1,FALSE),VLOOKUP(Main!O43,A!$B$2:'A'!$C$2,1,FALSE))),"Error") -> No Spl. Allowance

Sheet Calculation Sheet
A1: =+Main!A1 -> ** 1.0/0103215** | C1: =+Main!C1 -> Name | D1: =+Main!D1 -> Suri | R1: Page 1 of 2
A2: A. Existing ( as per 9th BPS) | R2: % increase in BP+DA
A3: Period | B3: Desg. | C3: Basic Pay - 1 | D3: FPP 2 | E3: Grd/PQP 3 | F3: Spl. All. 4 | G3: Other 5 | H3: D.A. 6 | I3: HRA 7 | J3: CCA 8 | K3: Conv. 9 | L3: Wash. 10 | M3: Bank PF 11 | N3: Total - 12 (1 to11) | O3: WP Day | P3: WP Amt 13 | Q3: Net 14 | X3: pf on fpp | Y3: from to | Z3: no.of days
A4: =IF($Y4=1," ",Main!A7) -> Nov. 12 | B4: =IF($Y4=1," ",Main!B7) -> Clerk | C4: =IF(Y4=1,0,Main!D7) -> 7200 | D4: =IF(Y4=1,0,Main!M7) -> 0 | E4: =IF(Y4=1,0,Main!N7) -> 0 | F4: =IF(Y4=1,0,Main!Q7) -> 0 | H4: =ROUND((C4+E4+F4+G4)*A!D81*A!$D$80,2) -> 5508 | I4: =ROUND((C4+E4+F4+G4)*Main!H7,2) -> 720 | J4: =MIN(ROUND(C4*Main!K7,2),Main!J7) -> 0 | K4: =IF(B4="Clerk",IF(C4>14100,275,225),IF(B4="S.Staff",IF(C4>9100,275,225),0)) -> 225 | L4: =IF(B4="S.Staff",100,0) -> 0 | M4: =IF(Main!$C$3="PF",ROUND(('Calculation Sheet'!C4+'Calculation Sheet'!X4+'Calculation Sheet'!E4+'Calculation Sheet'!F4+'Calculation Sheet'!G4)*10%,2),IF(Main!$C$3="NPS",ROUND(('Calculation Sheet'!C4+'Calculation Sheet'!X5+'Calculation Sheet'!E4+'Calculation Sheet'!F4+'Calculation Sheet'!G4+'Calculation Sheet'!H4)*12%,0),0)) -> 0 | N4: =SUM(C4:M4) -> 13653 | O4: =IF(Y4=1,0,Main!C7) -> 0 | P4: =ROUND(N4*O4/Z4,2) -> 0 | Q4: =+N4-P4 -> 13653 | R4: =IF(N4<>0,((C51+D51+E51+F51+G51+H51)-(C4+D4+E4+F4+G4+H4))/(C4+D4+E4+F4+G4+H4)," ---") -> 0.02679335851 | X4: =IF(D4<>0,IF(B4="Clerk",A!$E$36,IF(B4="S.Staff",A!$B$36,IF(B4="O-I",A!$H$36,IF(B4="O-II",A!$K$36,IF(B4="O-III",A!$N$36,IF(B4="O-IV",A!$Q$36,IF(B4="O-V",A!$T$36,IF(B4="O-VI",A!$W$36,IF(B4="O-VII",A!$Z$36,))))))))),0) -> 0 | Y4: =+Main!AA7 -> 0 | Z4: 30
A5: =IF($Y5=1," ",Main!A8) -> Dec.12 | B5: =IF(Y5=1," ",Main!B8) -> Clerk | C5: =IF(Y5=1,0,Main!D8) -> 7200 | D5: =IF(Y5=1,0,Main!M8) -> 0 | E5: =IF(Y5=1,0,Main!N8) -> 0 | F5: =IF(Y5=1,0,Main!Q8) -> 0 | H5: =ROUND((C5+E5+F5+G5)*A!D82*A!$D$80,2) -> 5508 | I5: =ROUND((C5+E5+F5+G5)*Main!H8,2) -> 720 | J5: =MIN(ROUND(C5*Main!K8,2),Main!J8) -> 0 | K5: =IF(B5="Clerk",IF(C5>14100,275,225),IF(B5="S.Staff",IF(C5>9100,275,225),0)) -> 225 | L5: =IF(B5="S.Staff",100,0) -> 0 | M5: =IF(Main!$C$3="PF",ROUND(('Calculation Sheet'!C5+'Calculation Sheet'!X5+'Calculation Sheet'!E5+'Calculation Sheet'!F5+'Calculation Sheet'!G5)*10%,2),IF(Main!$C$3="NPS",ROUND(('Calculation Sheet'!C5+'Calculation Sheet'!X6+'Calculation Sheet'!E5+'Calculation Sheet'!F5+'Calculation Sheet'!G5+'Calculation Sheet'!H5)*12%,0),0)) -> 0 | N5: =SUM(C5:M5) -> 13653 | O5: =IF(Y5=1,0,Main!C8) -> 0 | P5: =ROUND(N5*O5/Z5,2) -> 0 | Q5: =+N5-P5 -> 13653 | R5: =IF(N5<>0,((C52+D52+E52+F52+G52+H52)-(C5+D5+E5+F5+G5+H5))/(C5+D5+E5+F5+G5+H5)," ---") -> 0.02679335851 | X5: =IF(D5<>0,IF(B5="Clerk",A!$E$36,IF(B5="S.Staff",A!$B$36,IF(B5="O-I",A!$H$36,IF(B5="O-II",A!$K$36,IF(B5="O-III",A!$N$36,IF(B5="O-IV",A!$Q$36,IF(B5="O-V",A!$T$36,IF(B5="O-VI",A!$W$36,IF(B5="O-VII",A!$Z$36,))))))))),0) -> 0 | Y5: =+Main!AA8 -> 0 | Z5: 31
A6: =IF($Y6=1," ",Main!A9) -> Jan.13 | B6: =IF(Y6=1," ",Main!B9) -> Clerk | C6: =IF(Y6=1,0,Main!D9) -> 7200 | D6: =IF(Y6=1,0,Main!M9) -> 0 | E6: =IF(Y6=1,0,Main!N9) -> 0 | F6: =IF(Y6=1,0,Main!Q9) -> 0 | H6: =ROUND((C6+E6+F6+G6)*A!D83*A!$D$80,2) -> 5508 | I6: =ROUND((C6+E6+F6+G6)*Main!H9,2) -> 720 | J6: =MIN(ROUND(C6*Main!K9,2),Main!J9) -> 0 | K6: 225 | L6: 0 | M6: =IF(Main!$C$3="PF",ROUND(('Calculation Sheet'!C6+'Calculation Sheet'!X6+'Calculation Sheet'!E6+'Calculation Sheet'!F6+'Calculation Sheet'!G6)*10%,2),IF(Main!$C$3="NPS",ROUND(('Calculation Sheet'!C6+'Calculation Sheet'!X7+'Calculation Sheet'!E6+'Calculation Sheet'!F6+'Calculation Sheet'!G6+'Calculation Sheet'!H6)*12%,0),0)) -> 0 | N6: 13653 | O6: =IF(Y6=1,0,Main!C9) -> 0 | P6: =ROUND(N6*O6/Z6,2) -> 0 | Q6: 13653 | R6: 0.02679335851 | X6: =IF(D6<>0,IF(B6="Clerk",A!$E$36,IF(B6="S.Staff",A!$B$36,IF(B6="O-I",A!$H$36,IF(B6="O-II",A!$K$36,IF(B6="O-III",A!$N$36,IF(B6="O-IV",A!$Q$36,IF(B6="O-V",A!$T$36,IF(B6="O-VI",A!$W$36,IF(B6="O-VII",A!$Z$36,))))))))),0) -> 0 | Y6: =+Main!AA9 -> 0 | Z6: 31
A7: =IF($Y7=1," ",Main!A10) -> Feb.13 | B7: =IF(Y7=1," ",Main!B10) -> Clerk | C7: =IF(Y7=1,0,Main!D10) -> 7200 | D7: =IF(Y7=1,0,Main!M10) -> 0 | E7: =IF(Y7=1,0,Main!N10) -> 0 | F7: =IF(Y7=1,0,Main!Q10) -> 0 | H7: =ROUND((C7+E7+F7+G7)*A!D84*A!$D$80,2) -> 5778 | I7: =ROUND((C7+E7+F7+G7)*Main!H10,2) -> 720 | J7: =MIN(ROUND(C7*Main!K10,2),Main!J10) -> 0 | K7: 225 | L7: 0 | M7: =IF(Main!$C$3="PF",ROUND(('Calculation Sheet'!C7+'Calculation Sheet'!X7+'Calculation Sheet'!E7+'Calculation Sheet'!F7+'Calculation Sheet'!G7)*10%,2),IF(Main!$C$3="NPS",ROUND(('Calculation Sheet'!C7+'Calculation Sheet'!X8+'Calculation Sheet'!E7+'Calculation Sheet'!F7+'Calculation Sheet'!G7+'Calculation Sheet'!H7)*12%,0),0)) -> 0 | N7: 13923 | O7: =IF(Y7=1,0,Main!C10) -> 0 | P7: =ROUND(N7*O7/Z7,2) -> 0 | Q7: 13923 | R7: 0.02809677916 | X7: =IF(D7<>0,IF(B7="Clerk",A!$E$36,IF(B7="S.Staff",A!$B$36,IF(B7="O-I",A!$H$36,IF(B7="O-II",A!$K$36,IF(B7="O-III",A!$N$36,IF(B7="O-IV",A!$Q$36,IF(B7="O-V",A!$T$36,IF(B7="O-VI",A!$W$36,IF(B7="O-VII",A!$Z$36,))))))))),0) -> 0 | Y7: =+Main!AA10 -> 0 | Z7: 28
A8: =IF($Y8=1," ",Main!A11) -> Mar.13 | B8: =IF(Y8=1," ",Main!B11) -> Clerk | C8: =IF(Y8=1,0,Main!D11) -> 7200 | D8: =IF(Y8=1,0,Main!M11) -> 0 | E8: =IF(Y8=1,0,Main!N11) -> 0 | F8: =IF(Y8=1,0,Main!Q11) -> 0 | H8: =ROUND((C8+E8+F8+G8)*A!D85*A!$D$80,2) -> 5778 | I8: =ROUND((C8+E8+F8+G8)*Main!H11,2) -> 720 | J8: =MIN(ROUND(C8*Main!K11,2),Main!J11) -> 0 | K8: 225 | L8: 0 | M8: =IF(Main!$C$3="PF",ROUND(('Calculation Sheet'!C8+'Calculation Sheet'!X8+'Calculation Sheet'!E8+'Calculation Sheet'!F8+'Calculation Sheet'!G8)*10%,2),IF(Main!$C$3="NPS",ROUND(('Calculation Sheet'!C8+'Calculation Sheet'!X9+'Calculation Sheet'!E8+'Calculation Sheet'!F8+'Calculation Sheet'!G8+'Calculation Sheet'!H8)*12%,0),0)) -> 0 | N8: 13923 | O8: =IF(Y8=1,0,Main!C11) -> 0 | P8: =ROUND(N8*O8/Z8,2) -> 0 | Q8: 13923 | R8: 0.02809677916 | X8: =IF(D8<>0,IF(B8="Clerk",A!$E$36,IF(B8="S.Staff",A!$B$36,IF(B8="O-I",A!$H$36,IF(B8="O-II",A!$K$36,IF(B8="O-III",A!$N$36,IF(B8="O-IV",A!$Q$36,IF(B8="O-V",A!$T$36,IF(B8="O-VI",A!$W$36,IF(B8="O-VII",A!$Z$36,))))))))),0) -> 0 | Y8: =+Main!AA11 -> 0 | Z8: 31
A9: Total 2012-13 | C9: =SUM(C4:C8) -> 36000 | D9: =SUM(D4:D8) -> 0 | E9: 0 | F9: 0 | G9: 0 | H9: 28080 | I9: 3600 | J9: 0 | K9: 1125 | L9: 0 | M9: 0 | N9: 68805 | P9: 0 | Q9: 68805 | R9: 0.0273213171
A10: =IF($Y10=1," ",Main!A12) -> Apr.13 | B10: =IF($Y10=1," ",Main!B12) -> Clerk | C10: =IF(Y10=1,0,Main!D12) -> 7200 | D10: =IF(Y10=1,0,Main!M12) -> 0 | E10: =IF(Y10=1,0,Main!N12) -> 0 | F10: =IF(Y10=1,0,Main!Q12) -> 0 | H10: =ROUND((C10+E10+F10+G10)*A!D86*A!$D$80,2) -> 5778 | I10: =ROUND((C10+E10+F10+G10)*Main!H12,2) -> 720 | J10: =MIN(ROUND(C10*Main!K12,2),Main!J12) -> 0 | K10: =IF(B10="Clerk",IF(C10>14100,275,225),IF(B10="S.Staff",IF(C10>9100,275,225),0)) -> 225 | L10: 0 | M10: =IF(Main!$C$3="PF",ROUND(('Calculation Sheet'!C10+'Calculation Sheet'!X10+'Calculation Sheet'!E10+'Calculation Sheet'!F10+'Calculation Sheet'!G10)*10%,2),IF(Main!$C$3="NPS",ROUND(('Calculation Sheet'!C10+'Calculation Sheet'!X11+'Calculation Sheet'!E10+'Calculation Sheet'!F10+'Calculation Sheet'!G10+'Calculation Sheet'!H10)*12%,0),0)) -> 0 | N10: 13923 | O10: =IF(Y10=1,0,Main!C12) -> 0 | P10: =ROUND(N10*O10/Z10,2) -> 0 | Q10: =+N10-P10 -> 13923 | R10: 0.02809677916 | X10: =IF(D10<>0,IF(B10="Clerk",A!$E$36,IF(B10="S.Staff",A!$B$36,IF(B10="O-I",A!$H$36,IF(B10="O-II",A!$K$36,IF(B10="O-III",A!$N$36,IF(B10="O-IV",A!$Q$36,IF(B10="O-V",A!$T$36,IF(B10="O-VI",A!$W$36,IF(B10="O-VII",A!$Z$36,))))))))),0) -> 0 | Y10: =+Main!AA12 -> 0 | Z10: 30
A11: =IF($Y11=1," ",Main!A13) -> May.13 | B11: =IF(Y11=1," ",Main!B13) -> Clerk | C11: =IF(Y11=1,0,Main!D13) -> 7200 | D11: =IF(Y11=1,0,Main!M13) -> 0 | E11: =IF(Y11=1,0,Main!N13) -> 0 | F11: =IF(Y11=1,0,Main!Q13) -> 0 | H11: =ROUND((C11+E11+F11+G11)*A!D87*A!$D$80,2) -> 6058.8 | I11: =ROUND((C11+E11+F11+G11)*Main!H13,2) -> 720 | J11: =MIN(ROUND(C11*Main!K13,2),Main!J13) -> 0 | K11: 225 | L11: 0 | M11: =IF(Main!$C$3="PF",ROUND(('Calculation Sheet'!C11+'Calculation Sheet'!X11+'Calculation Sheet'!E11+'Calculation Sheet'!F11+'Calculation Sheet'!G11)*10%,2),IF(Main!$C$3="NPS",ROUND(('Calculation Sheet'!C11+'Calculation Sheet'!X12+'Calculation Sheet'!E11+'Calculation Sheet'!F11+'Calculation Sheet'!G11+'Calculation Sheet'!H11)*12%,0),0)) -> 0 | N11: 14203.8 | O11: =IF(Y11=1,0,Main!C13) -> 0 | P11: 0 | Q11: 14203.8 | R11: 0.02939632546 | X11: =IF(D11<>0,IF(B11="Clerk",A!$E$36,IF(B11="S.Staff",A!$B$36,IF(B11="O-I",A!$H$36,IF(B11="O-II",A!$K$36,IF(B11="O-III",A!$N$36,IF(B11="O-IV",A!$Q$36,IF(B11="O-V",A!$T$36,IF(B11="O-VI",A!$W$36,IF(B11="O-VII",A!$Z$36,))))))))),0) -> 0 | Y11: =+Main!AA13 -> 0 | Z11: 31
A12: =IF($Y12=1," ",Main!A14) -> Jun.13 | B12: =IF(Y12=1," ",Main!B14) -> Clerk | C12: =IF(Y12=1,0,Main!D14) -> 7200 | D12: =IF(Y12=1,0,Main!M14) -> 0 | E12: =IF(Y12=1,0,Main!N14) -> 0 | F12: =IF(Y12=1,0,Main!Q14) -> 0 | H12: =ROUND((C12+E12+F12+G12)*A!D88*A!$D$80,2) -> 6058.8 | I12: =ROUND((C12+E12+F12+G12)*Main!H14,2) -> 720 | J12: =MIN(ROUND(C12*Main!K14,2),Main!J14) -> 0 | K12: 225 | L12: 0 | M12: =IF(Main!$C$3="PF",ROUND(('Calculation Sheet'!C12+'Calculation Sheet'!X12+'Calculation Sheet'!E12+'Calculation Sheet'!F12+'Calculation Sheet'!G12)*10%,2),IF(Main!$C$3="NPS",ROUND(('Calculation Sheet'!C12+'Calculation Sheet'!X13+'Calculation Sheet'!E12+'Calculation Sheet'!F12+'Calculation Sheet'!G12+'Calculation Sheet'!H12)*12%,0),0)) -> 0 | N12: 14203.8 | O12: =IF(Y12=1,0,Main!C14) -> 0 | P12: 0 | Q12: 14203.8 | R12: 0.02939632546 | X12: =IF(D12<>0,IF(B12="Clerk",A!$E$36,IF(B12="S.Staff",A!$B$36,IF(B12="O-I",A!$H$36,IF(B12="O-II",A!$K$36,IF(B12="O-III",A!$N$36,IF(B12="O-IV",A!$Q$36,IF(B12="O-V",A!$T$36,IF(B12="O-VI",A!$W$36,IF(B12="O-VII",A!$Z$36,))))))))),0) -> 0 | Y12: =+Main!AA14 -> 0 | Z12: 30
A13: =IF($Y13=1," ",Main!A15) -> Jul.13 | B13: =IF(Y13=1," ",Main!B15) -> Clerk | C13: =IF(Y13=1,0,Main!D15) -> 7200 | D13: =IF(Y13=1,0,Main!M15) -> 0 | E13: =IF(Y13=1,0,Main!N15) -> 0 | F13: =IF(Y13=1,0,Main!Q15) -> 0 | H13: =ROUND((C13+E13+F13+G13)*A!D89*A!$D$80,2) -> 6058.8 | I13: =ROUND((C13+E13+F13+G13)*Main!H15,2) -> 720 | J13: =MIN(ROUND(C13*Main!K15,2),Main!J15) -> 0 | K13: 225 | L13: 0 | M13: =IF(Main!$C$3="PF",ROUND(('Calculation Sheet'!C13+'Calculation Sheet'!X13+'Calculation Sheet'!E13+'Calculation Sheet'!F13+'Calculation Sheet'!G13)*10%,2),IF(Main!$C$3="NPS",ROUND(('Calculation Sheet'!C13+'Calculation Sheet'!X14+'Calculation Sheet'!E13+'Calculation Sheet'!F13+'Calculation Sheet'!G13+'Calculation Sheet'!H13)*12%,0),0)) -> 0 | N13: 14203.8 | O13: =IF(Y13=1,0,Main!C15) -> 0 | P13: 0 | Q13: 14203.8 | R13: 0.02939632546 | X13: =IF(D13<>0,IF(B13="Clerk",A!$E$36,IF(B13="S.Staff",A!$B$36,IF(B13="O-I",A!$H$36,IF(B13="O-II",A!$K$36,IF(B13="O-III",A!$N$36,IF(B13="O-IV",A!$Q$36,IF(B13="O-V",A!$T$36,IF(B13="O-VI",A!$W$36,IF(B13="O-VII",A!$Z$36,))))))))),0) -> 0 | Y13: =+Main!AA15 -> 0 | Z13: 31
A14: =IF($Y14=1," ",Main!A16) -> Aug.13 | B14: =IF(Y14=1," ",Main!B16) -> Clerk | C14: =IF(Y14=1,0,Main!D16) -> 7200 | D14: =IF(Y14=1,0,Main!M16) -> 0 | E14: =IF(Y14=1,0,Main!N16) -> 0 | F14: =IF(Y14=1,0,Main!Q16) -> 0 | H14: =ROUND((C14+E14+F14+G14)*A!D90*A!$D$80,2) -> 6404.4 | I14: =ROUND((C14+E14+F14+G14)*Main!H16,2) -> 720 | J14: =MIN(ROUND(C14*Main!K16,2),Main!J16) -> 0 | K14: 225 | L14: 0 | M14: =IF(Main!$C$3="PF",ROUND(('Calculation Sheet'!C14+'Calculation Sheet'!X14+'Calculation Sheet'!E14+'Calculation Sheet'!F14+'Calculation Sheet'!G14)*10%,2),IF(Main!$C$3="NPS",ROUND(('Calculation Sheet'!C14+'Calculation Sheet'!X15+'Calculation Sheet'!E14+'Calculation Sheet'!F14+'Calculation Sheet'!G14+'Calculation Sheet'!H14)*12%,0),0)) -> 0 | N14: 14549.4 | O14: =IF(Y14=1,0,Main!C16) -> 0 | P14: 0 | Q14: 14549.4 | R14: 0.0309216136 | X14: =IF(D14<>0,IF(B14="Clerk",A!$E$36,IF(B14="S.Staff",A!$B$36,IF(B14="O-I",A!$H$36,IF(B14="O-II",A!$K$36,IF(B14="O-III",A!$N$36,IF(B14="O-IV",A!$Q$36,IF(B14="O-V",A!$T$36,IF(B14="O-VI",A!$W$36,IF(B14="O-VII",A!$Z$36,))))))))),0) -> 0 | Y14: =+Main!AA16 -> 0 | Z14: 31
A15: =IF($Y15=1," ",Main!A17) -> Sep.13 | B15: =IF(Y15=1," ",Main!B17) -> Clerk | C15: =IF(Y15=1,0,Main!D17) -> 7200 | D15: =IF(Y15=1,0,Main!M17) -> 0 | E15: =IF(Y15=1,0,Main!N17) -> 0 | F15: =IF(Y15=1,0,Main!Q17) -> 0 | H15: =ROUND((C15+E15+F15+G15)*A!D91*A!$D$80,2) -> 6404.4 | I15: =ROUND((C15+E15+F15+G15)*Main!H17,2) -> 720 | J15: =MIN(ROUND(C15*Main!K17,2),Main!J17) -> 0 | K15: 225 | L15: 0 | M15: =IF(Main!$C$3="PF",ROUND(('Calculation Sheet'!C15+'Calculation Sheet'!X15+'Calculation Sheet'!E15+'Calculation Sheet'!F15+'Calculation Sheet'!G15)*10%,2),IF(Main!$C$3="NPS",ROUND(('Calculation Sheet'!C15+'Calculation Sheet'!X16+'Calculation Sheet'!E15+'Calculation Sheet'!F15+'Calculation Sheet'!G15+'Calculation Sheet'!H15)*12%,0),0)) -> 0 | N15: 14549.4 | O15: =IF(Y15=1,0,Main!C17) -> 0 | P15: 0 | Q15: 14549.4 | R15: 0.0309216136 | X15: =IF(D15<>0,IF(B15="Clerk",A!$E$36,IF(B15="S.Staff",A!$B$36,IF(B15="O-I",A!$H$36,IF(B15="O-II",A!$K$36,IF(B15="O-III",A!$N$36,IF(B15="O-IV",A!$Q$36,IF(B15="O-V",A!$T$36,IF(B15="O-VI",A!$W$36,IF(B15="O-VII",A!$Z$36,))))))))),0) -> 0 | Y15: =+Main!AA17 -> 0 | Z15: 30
A16: =IF($Y16=1," ",Main!A18) -> Oct.13 | B16: =IF(Y16=1," ",Main!B18) -> Clerk | C16: =IF(Y16=1,0,Main!D18) -> 7200 | D16: =IF(Y16=1,0,Main!M18) -> 0 | E16: =IF(Y16=1,0,Main!N18) -> 0 | F16: =IF(Y16=1,0,Main!Q18) -> 0 | H16: =ROUND((C16+E16+F16+G16)*A!D92*A!$D$80,2) -> 6404.4 | I16: =ROUND((C16+E16+F16+G16)*Main!H18,2) -> 720 | J16: =MIN(ROUND(C16*Main!K18,2),Main!J18) -> 0 | K16: 225 | L16: 0 | M16: =IF(Main!$C$3="PF",ROUND(('Calculation Sheet'!C16+'Calculation Sheet'!X16+'Calculation Sheet'!E16+'Calculation Sheet'!F16+'Calculation Sheet'!G16)*10%,2),IF(Main!$C$3="NPS",ROUND(('Calculation Sheet'!C16+'Calculation Sheet'!X17+'Calculation Sheet'!E16+'Calculation Sheet'!F16+'Calculation Sheet'!G16+'Calculation Sheet'!H16)*12%,0),0)) -> 0 | N16: 14549.4 | O16: =IF(Y16=1,0,Main!C18) -> 0 | P16: 0 | Q16: 14549.4 | R16: 0.0309216136 | X16: =IF(D16<>0,IF(B16="Clerk",A!$E$36,IF(B16="S.Staff",A!$B$36,IF(B16="O-I",A!$H$36,IF(B16="O-II",A!$K$36,IF(B16="O-III",A!$N$36,IF(B16="O-IV",A!$Q$36,IF(B16="O-V",A!$T$36,IF(B16="O-VI",A!$W$36,IF(B16="O-VII",A!$Z$36,))))))))),0) -> 0 | Y16: =+Main!AA18 -> 0 | Z16: 31
A17: =IF($Y17=1," ",Main!A19) -> Nov.13 | B17: =IF(Y17=1," ",Main!B19) -> Clerk | C17: =IF(Y17=1,0,Main!D19) -> 7200 | D17: =IF(Y17=1,0,Main!M19) -> 0 | E17: =IF(Y17=1,0,Main!N19) -> 0 | F17: =IF(Y17=1,0,Main!Q19) -> 0 | H17: =ROUND((C17+E17+F17+G17)*A!D93*A!$D$80,2) -> 6922.8 | I17: =ROUND((C17+E17+F17+G17)*Main!H19,2) -> 720 | J17: =MIN(ROUND(C17*Main!K19,2),Main!J19) -> 0 | K17: 225 | L17: 0 | M17: =IF(Main!$C$3="PF",ROUND(('Calculation Sheet'!C17+'Calculation Sheet'!X17+'Calculation Sheet'!E17+'Calculation Sheet'!F17+'Calculation Sheet'!G17)*10%,2),IF(Main!$C$3="NPS",ROUND(('Calculation Sheet'!C17+'Calculation Sheet'!X18+'Calculation Sheet'!E17+'Calculation Sheet'!F17+'Calculation Sheet'!G17+'Calculation Sheet'!H17)*12%,0),0)) -> 0 | N17: 15067.8 | O17: =IF(Y17=1,0,Main!C19) -> 0 | P17: 0 | Q17: 15067.8 | R17: 0.03306992948 | X17: =IF(D17<>0,IF(B17="Clerk",A!$E$36,IF(B17="S.Staff",A!$B$36,IF(B17="O-I",A!$H$36,IF(B17="O-II",A!$K$36,IF(B17="O-III",A!$N$36,IF(B17="O-IV",A!$Q$36,IF(B17="O-V",A!$T$36,IF(B17="O-VI",A!$W$36,IF(B17="O-VII",A!$Z$36,))))))))),0) -> 0 | Y17: =+Main!AA19 -> 0 | Z17: 30
A18: =IF($Y18=1," ",Main!A20) -> Dec.13 | B18: =IF(Y18=1," ",Main!B20) -> Clerk | C18: =IF(Y18=1,0,Main!D20) -> 7200 | D18: =IF(Y18=1,0,Main!M20) -> 0 | E18: =IF(Y18=1,0,Main!N20) -> 0 | F18: =IF(Y18=1,0,Main!Q20) -> 0 | H18: =ROUND((C18+E18+F18+G18)*A!D94*A!$D$80,2) -> 6922.8 | I18: =ROUND((C18+E18+F18+G18)*Main!H20,2) -> 720 | J18: =MIN(ROUND(C18*Main!K20,2),Main!J20) -> 0 | K18: 225 | L18: 0 | M18: =IF(Main!$C$3="PF",ROUND(('Calculation Sheet'!C18+'Calculation Sheet'!X18+'Calculation Sheet'!E18+'Calculation Sheet'!F18+'Calculation Sheet'!G18)*10%,2),IF(Main!$C$3="NPS",ROUND(('Calculation Sheet'!C18+'Calculation Sheet'!X19+'Calculation Sheet'!E18+'Calculation Sheet'!F18+'Calculation Sheet'!G18+'Calculation Sheet'!H18)*12%,0),0)) -> 0 | N18: 15067.8 | O18: =IF(Y18=1,0,Main!C20) -> 0 | P18: 0 | Q18: 15067.8 | R18: 0.03306992948 | X18: =IF(D18<>0,IF(B18="Clerk",A!$E$36,IF(B18="S.Staff",A!$B$36,IF(B18="O-I",A!$H$36,IF(B18="O-II",A!$K$36,IF(B18="O-III",A!$N$36,IF(B18="O-IV",A!$Q$36,IF(B18="O-V",A!$T$36,IF(B18="O-VI",A!$W$36,IF(B18="O-VII",A!$Z$36,))))))))),0) -> 0 | Y18: =+Main!AA20 -> 0 | Z18: 31
A19: =IF($Y19=1," ",Main!A21) -> Jan.14 | B19: =IF(Y19=1," ",Main!B21) -> Clerk | C19: =IF(Y19=1,0,Main!D21) -> 7200 | D19: =IF(Y19=1,0,Main!M21) -> 0 | E19: =IF(Y19=1,0,Main!N21) -> 0 | F19: =IF(Y19=1,0,Main!Q21) -> 0 | H19: =ROUND((C19+E19+F19+G19)*A!D95*A!$D$80,2) -> 6922.8 | I19: =ROUND((C19+E19+F19+G19)*Main!H21,2) -> 720 | J19: =MIN(ROUND(C19*Main!K21,2),Main!J21) -> 0 | K19: 225 | L19: 0 | M19: =IF(Main!$C$3="PF",ROUND(('Calculation Sheet'!C19+'Calculation Sheet'!X19+'Calculation Sheet'!E19+'Calculation Sheet'!F19+'Calculation Sheet'!G19)*10%,2),IF(Main!$C$3="NPS",ROUND(('Calculation Sheet'!C19+'Calculation Sheet'!X20+'Calculation Sheet'!E19+'Calculation Sheet'!F19+'Calculation Sheet'!G19+'Calculation Sheet'!H19)*12%,0),0)) -> 0 | N19: 15067.8 | O19: =IF(Y19=1,0,Main!C21) -> 0 | P19: 0 | Q19: 15067.8 | R19: 0.03306992948 | X19: =IF(D19<>0,IF(B19="Clerk",A!$E$36,IF(B19="S.Staff",A!$B$36,IF(B19="O-I",A!$H$36,IF(B19="O-II",A!$K$36,IF(B19="O-III",A!$N$36,IF(B19="O-IV",A!$Q$36,IF(B19="O-V",A!$T$36,IF(B19="O-VI",A!$W$36,IF(B19="O-VII",A!$Z$36,))))))))),0) -> 0 | Y19: =+Main!AA21 -> 0 | Z19: 31
A20: =IF($Y20=1," ",Main!A22) -> Feb.14 | B20: =IF(Y20=1," ",Main!B22) -> Clerk | C20: =IF(Y20=1,0,Main!D22) -> 7200 | D20: =IF(Y20=1,0,Main!M22) -> 0 | E20: =IF(Y20=1,0,Main!N22) -> 0 | F20: =IF(Y20=1,0,Main!Q22) -> 0 | H20: =ROUND((C20+E20+F20+G20)*A!D96*A!$D$80,2) -> 7192.8 | I20: =ROUND((C20+E20+F20+G20)*Main!H22,2) -> 720 | J20: =MIN(ROUND(C20*Main!K22,2),Main!J22) -> 0 | K20: 225 | L20: 0 | M20: =IF(Main!$C$3="PF",ROUND(('Calculation Sheet'!C20+'Calculation Sheet'!X20+'Calculation Sheet'!E20+'Calculation Sheet'!F20+'Calculation Sheet'!G20)*10%,2),IF(Main!$C$3="NPS",ROUND(('Calculation Sheet'!C20+'Calculation Sheet'!X21+'Calculation Sheet'!E20+'Calculation Sheet'!F20+'Calculation Sheet'!G20+'Calculation Sheet'!H20)*12%,0),0)) -> 0 | N20: 15337.8 | O20: =IF(Y20=1,0,Main!C22) -> 0 | P20: 0 | Q20: 15337.8 | R20: 0.03412748041 | X20: =IF(D20<>0,IF(B20="Clerk",A!$E$36,IF(B20="S.Staff",A!$B$36,IF(B20="O-I",A!$H$36,IF(B20="O-II",A!$K$36,IF(B20="O-III",A!$N$36,IF(B20="O-IV",A!$Q$36,IF(B20="O-V",A!$T$36,IF(B20="O-VI",A!$W$36,IF(B20="O-VII",A!$Z$36,))))))))),0) -> 0 | Y20: =+Main!AA22 -> 0 | Z20: 28
A21: =IF($Y21=1," ",Main!A23) -> Mar.14 | B21: =IF(Y21=1," ",Main!B23) -> Clerk | C21: =IF(Y21=1,0,Main!D23) -> 7200 | D21: =IF(Y21=1,0,Main!M23) -> 0 | E21: =IF(Y21=1,0,Main!N23) -> 0 | F21: =IF(Y21=1,0,Main!Q23) -> 0 | H21: =ROUND((C21+E21+F21+G21)*A!D97*A!$D$80,2) -> 7192.8 | I21: =ROUND((C21+E21+F21+G21)*Main!H23,2) -> 720 | J21: =MIN(ROUND(C21*Main!K23,2),Main!J23) -> 0 | K21: 225 | L21: 0 | M21: =IF(Main!$C$3="PF",ROUND(('Calculation Sheet'!C21+'Calculation Sheet'!X21+'Calculation Sheet'!E21+'Calculation Sheet'!F21+'Calculation Sheet'!G21)*10%,2),IF(Main!$C$3="NPS",ROUND(('Calculation Sheet'!C21+'Calculation Sheet'!X22+'Calculation Sheet'!E21+'Calculation Sheet'!F21+'Calculation Sheet'!G21+'Calculation Sheet'!H21)*12%,0),0)) -> 0 | N21: 15337.8 | O21: =IF(Y21=1,0,Main!C23) -> 0 | P21: 0 | Q21: 15337.8 | R21: 0.03412748041 | X21: =IF(D21<>0,IF(B21="Clerk",A!$E$36,IF(B21="S.Staff",A!$B$36,IF(B21="O-I",A!$H$36,IF(B21="O-II",A!$K$36,IF(B21="O-III",A!$N$36,IF(B21="O-IV",A!$Q$36,IF(B21="O-V",A!$T$36,IF(B21="O-VI",A!$W$36,IF(B21="O-VII",A!$Z$36,))))))))),0) -> 0 | Y21: =+Main!AA23 -> 0 | Z21: 31
A22: Total 2013-14 | C22: =SUM(C10:C21) -> 86400 | D22: =SUM(D10:D21) -> 0 | E22: 0 | F22: 0 | G22: 0 | H22: 78321.6 | I22: 8640 | J22: 0 | K22: 2700 | L22: 0 | M22: 0 | N22: 176061.6 | P22: 0 | Q22: 176061.6 | R22: 0.03144353867
A23: =IF($Y23=1," ",Main!A24) -> Apr.14 | B23: =IF($Y23=1," ",Main!B24) -> Clerk | C23: =IF(Y23=1,0,Main!D24) -> 7200 | D23: =IF(Y23=1,0,Main!M24) -> 0 | E23: =IF(Y23=1,0,Main!N24) -> 0 | F23: =IF(Y23=1,0,Main!Q24) -> 0 | H23: =ROUND((C23+E23+F23+G23)*A!D98*A!$D$80,2) -> 7192.8 | I23: =ROUND((C23+E23+F23+G23)*Main!H24,2) -> 720 | J23: =MIN(ROUND(C23*Main!K24,2),Main!J24) -> 0 | K23: =IF(B23="Clerk",IF(C23>14100,275,225),IF(B23="S.Staff",IF(C23>9100,275,225),0)) -> 225 | L23: 0 | M23: =IF(Main!$C$3="PF",ROUND(('Calculation Sheet'!C23+'Calculation Sheet'!X23+'Calculation Sheet'!E23+'Calculation Sheet'!F23+'Calculation Sheet'!G23)*10%,2),IF(Main!$C$3="NPS",ROUND(('Calculation Sheet'!C23+'Calculation Sheet'!X24+'Calculation Sheet'!E23+'Calculation Sheet'!F23+'Calculation Sheet'!G23+'Calculation Sheet'!H23)*12%,0),0)) -> 0 | N23: 15337.8 | O23: =IF(Y23=1,0,Main!C24) -> 0 | P23: =ROUND(N23*O23/Z23,2) -> 0 | Q23: =+N23-P23 -> 15337.8 | R23: 0.03412748041 | X23: =IF(D23<>0,IF(B23="Clerk",A!$E$36,IF(B23="S.Staff",A!$B$36,IF(B23="O-I",A!$H$36,IF(B23="O-II",A!$K$36,IF(B23="O-III",A!$N$36,IF(B23="O-IV",A!$Q$36,IF(B23="O-V",A!$T$36,IF(B23="O-VI",A!$W$36,IF(B23="O-VII",A!$Z$36,))))))))),0) -> 0 | Y23: =+Main!AA24 -> 0 | Z23: 30
A24: =IF($Y24=1," ",Main!A25) -> May.14 | B24: =IF(Y24=1," ",Main!B25) -> Clerk | C24: =IF(Y24=1,0,Main!D25) -> 7200 | D24: =IF(Y24=1,0,Main!M25) -> 0 | E24: =IF(Y24=1,0,Main!N25) -> 0 | F24: =IF(Y24=1,0,Main!Q25) -> 0 | H24: =ROUND((C24+E24+F24+G24)*A!D99*A!$D$80,2) -> 7020 | I24: =ROUND((C24+E24+F24+G24)*Main!H25,2) -> 720 | J24: =MIN(ROUND(C24*Main!K25,2),Main!J25) -> 0 | K24: 225 | L24: 0 | M24: =IF(Main!$C$3="PF",ROUND(('Calculation Sheet'!C24+'Calculation Sheet'!X24+'Calculation Sheet'!E24+'Calculation Sheet'!F24+'Calculation Sheet'!G24)*10%,2),IF(Main!$C$3="NPS",ROUND(('Calculation Sheet'!C24+'Calculation Sheet'!X25+'Calculation Sheet'!E24+'Calculation Sheet'!F24+'Calculation Sheet'!G24+'Calculation Sheet'!H24)*12%,0),0)) -> 0 | N24: 15165 | O24: =IF(Y24=1,0,Main!C25) -> 0 | P24: 0 | Q24: 15165 | R24: 0.03345499297 | X24: =IF(D24<>0,IF(B24="Clerk",A!$E$36,IF(B24="S.Staff",A!$B$36,IF(B24="O-I",A!$H$36,IF(B24="O-II",A!$K$36,IF(B24="O-III",A!$N$36,IF(B24="O-IV",A!$Q$36,IF(B24="O-V",A!$T$36,IF(B24="O-VI",A!$W$36,IF(B24="O-VII",A!$Z$36,))))))))),0) -> 0 | Y24: =+Main!AA25 -> 0 | Z24: 31
A25: =IF($Y25=1," ",Main!A26) -> Jun.14 | B25: =IF(Y25=1," ",Main!B26) -> Clerk | C25: =IF(Y25=1,0,Main!D26) -> 7200 | D25: =IF(Y25=1,0,Main!M26) -> 0 | E25: =IF(Y25=1,0,Main!N26) -> 0 | F25: =IF(Y25=1,0,Main!Q26) -> 0 | H25: =ROUND((C25+E25+F25+G25)*A!D100*A!$D$80,2) -> 7020 | I25: =ROUND((C25+E25+F25+G25)*Main!H26,2) -> 720 | J25: =MIN(ROUND(C25*Main!K26,2),Main!J26) -> 0 | K25: 225 | L25: 0 | M25: =IF(Main!$C$3="PF",ROUND(('Calculation Sheet'!C25+'Calculation Sheet'!X25+'Calculation Sheet'!E25+'Calculation Sheet'!F25+'Calculation Sheet'!G25)*10%,2),IF(Main!$C$3="NPS",ROUND(('Calculation Sheet'!C25+'Calculation Sheet'!X26+'Calculation Sheet'!E25+'Calculation Sheet'!F25+'Calculation Sheet'!G25+'Calculation Sheet'!H25)*12%,0),0)) -> 0 | N25: 15165 | O25: =IF(Y25=1,0,Main!C26) -> 0 | P25: 0 | Q25: 15165 | R25: 0.03345499297 | X25: =IF(D25<>0,IF(B25="Clerk",A!$E$36,IF(B25="S.Staff",A!$B$36,IF(B25="O-I",A!$H$36,IF(B25="O-II",A!$K$36,IF(B25="O-III",A!$N$36,IF(B25="O-IV",A!$Q$36,IF(B25="O-V",A!$T$36,IF(B25="O-VI",A!$W$36,IF(B25="O-VII",A!$Z$36,))))))))),0) -> 0 | Y25: =+Main!AA26 -> 0 | Z25: 30
A26: =IF($Y26=1," ",Main!A27) -> Jul.14 | B26: =IF(Y26=1," ",Main!B27) -> Clerk | C26: =IF(Y26=1,0,Main!D27) -> 7200 | D26: =IF(Y26=1,0,Main!M27) -> 0 | E26: =IF(Y26=1,0,Main!N27) -> 0 | F26: =IF(Y26=1,0,Main!Q27) -> 0 | H26: =ROUND((C26+E26+F26+G26)*A!D101*A!$D$80,2) -> 7020 | I26: =ROUND((C26+E26+F26+G26)*Main!H27,2) -> 720 | J26: =MIN(ROUND(C26*Main!K27,2),Main!J27) -> 0 | K26: 225 | L26: 0 | M26: =IF(Main!$C$3="PF",ROUND(('Calculation Sheet'!C26+'Calculation Sheet'!X26+'Calculation Sheet'!E26+'Calculation Sheet'!F26+'Calculation Sheet'!G26)*10%,2),IF(Main!$C$3="NPS",ROUND(('Calculation Sheet'!C26+'Calculation Sheet'!X27+'Calculation Sheet'!E26+'Calculation Sheet'!F26+'Calculation Sheet'!G26+'Calculation Sheet'!H26)*12%,0),0)) -> 0 | N26: 15165 | O26: =IF(Y26=1,0,Main!C27) -> 0 | P26: 0 | Q26: 15165 | R26: 0.03345499297 | X26: =IF(D26<>0,IF(B26="Clerk",A!$E$36,IF(B26="S.Staff",A!$B$36,IF(B26="O-I",A!$H$36,IF(B26="O-II",A!$K$36,IF(B26="O-III",A!$N$36,IF(B26="O-IV",A!$Q$36,IF(B26="O-V",A!$T$36,IF(B26="O-VI",A!$W$36,IF(B26="O-VII",A!$Z$36,))))))))),0) -> 0 | Y26: =+Main!AA27 -> 0 | Z26: 31
A27: =IF($Y27=1," ",Main!A28) -> Aug.14 | B27: =IF(Y27=1," ",Main!B28) -> Clerk | C27: =IF(Y27=1,0,Main!D28) -> 7200 | D27: =IF(Y27=1,0,Main!M28) -> 0 | E27: =IF(Y27=1,0,Main!N28) -> 0 | F27: =IF(Y27=1,0,Main!Q28) -> 0 | H27: =ROUND((C27+E27+F27+G27)*A!D102*A!$D$80,2) -> 7376.4 | I27: =ROUND((C27+E27+F27+G27)*Main!H28,2) -> 720 | J27: =MIN(ROUND(C27*Main!K28,2),Main!J28) -> 0 | K27: 225 | L27: 0 | M27: =IF(Main!$C$3="PF",ROUND(('Calculation Sheet'!C27+'Calculation Sheet'!X27+'Calculation Sheet'!E27+'Calculation Sheet'!F27+'Calculation Sheet'!G27)*10%,2),IF(Main!$C$3="NPS",ROUND(('Calculation Sheet'!C27+'Calculation Sheet'!X28+'Calculation Sheet'!E27+'Calculation Sheet'!F27+'Calculation Sheet'!G27+'Calculation Sheet'!H27)*12%,0),0)) -> 0 | N27: 15521.4 | O27: =IF(Y27=1,0,Main!C28) -> 0 | P27: 0 | Q27: 15521.4 | R27: 0.03482409923 | X27: =IF(D27<>0,IF(B27="Clerk",A!$E$36,IF(B27="S.Staff",A!$B$36,IF(B27="O-I",A!$H$36,IF(B27="O-II",A!$K$36,IF(B27="O-III",A!$N$36,IF(B27="O-IV",A!$Q$36,IF(B27="O-V",A!$T$36,IF(B27="O-VI",A!$W$36,IF(B27="O-VII",A!$Z$36,))))))))),0) -> 0 | Y27: =+Main!AA28 -> 0 | Z27: 31
A28: =IF($Y28=1," ",Main!A29) -> Sep.14 | B28: =IF(Y28=1," ",Main!B29) -> Clerk | C28: =IF(Y28=1,0,Main!D29) -> 7200 | D28: =IF(Y28=1,0,Main!M29) -> 0 | E28: =IF(Y28=1,0,Main!N29) -> 0 | F28: =IF(Y28=1,0,Main!Q29) -> 0 | H28: =ROUND((C28+E28+F28+G28)*A!D103*A!$D$80,2) -> 7376.4 | I28: =ROUND((C28+E28+F28+G28)*Main!H29,2) -> 720 | J28: =MIN(ROUND(C28*Main!K29,2),Main!J29) -> 0 | K28: 225 | L28: 0 | M28: =IF(Main!$C$3="PF",ROUND(('Calculation Sheet'!C28+'Calculation Sheet'!X28+'Calculation Sheet'!E28+'Calculation Sheet'!F28+'Calculation Sheet'!G28)*10%,2),IF(Main!$C$3="NPS",ROUND(('Calculation Sheet'!C28+'Calculation Sheet'!X29+'Calculation Sheet'!E28+'Calculation Sheet'!F28+'Calculation Sheet'!G28+'Calculation Sheet'!H28)*12%,0),0)) -> 0 | N28: 15521.4 | O28: =IF(Y28=1,0,Main!C29) -> 0 | P28: 0 | Q28: 15521.4 | R28: 0.03482409923 | X28: =IF(D28<>0,IF(B28="Clerk",A!$E$36,IF(B28="S.Staff",A!$B$36,IF(B28="O-I",A!$H$36,IF(B28="O-II",A!$K$36,IF(B28="O-III",A!$N$36,IF(B28="O-IV",A!$Q$36,IF(B28="O-V",A!$T$36,IF(B28="O-VI",A!$W$36,IF(B28="O-VII",A!$Z$36,))))))))),0) -> 0 | Y28: =+Main!AA29 -> 0 | Z28: 30
A29: =IF($Y29=1," ",Main!A30) -> Oct.14 | B29: =IF(Y29=1," ",Main!B30) -> Clerk | C29: =IF(Y29=1,0,Main!D30) -> 7200 | D29: =IF(Y29=1,0,Main!M30) -> 0 | E29: =IF(Y29=1,0,Main!N30) -> 0 | F29: =IF(Y29=1,0,Main!Q30) -> 0 | H29: =ROUND((C29+E29+F29+G29)*A!D104*A!$D$80,2) -> 7376.4 | I29: =ROUND((C29+E29+F29+G29)*Main!H30,2) -> 720 | J29: =MIN(ROUND(C29*Main!K30,2),Main!J30) -> 0 | K29: 225 | L29: 0 | M29: =IF(Main!$C$3="PF",ROUND(('Calculation Sheet'!C29+'Calculation Sheet'!X29+'Calculation Sheet'!E29+'Calculation Sheet'!F29+'Calculation Sheet'!G29)*10%,2),IF(Main!$C$3="NPS",ROUND(('Calculation Sheet'!C29+'Calculation Sheet'!X30+'Calculation Sheet'!E29+'Calculation Sheet'!F29+'Calculation Sheet'!G29+'Calculation Sheet'!H29)*12%,0),0)) -> 0 | N29: 15521.4 | O29: =IF(Y29=1,0,Main!C30) -> 0 | P29: 0 | Q29: 15521.4 | R29: 0.03482409923 | X29: =IF(D29<>0,IF(B29="Clerk",A!$E$36,IF(B29="S.Staff",A!$B$36,IF(B29="O-I",A!$H$36,IF(B29="O-II",A!$K$36,IF(B29="O-III",A!$N$36,IF(B29="O-IV",A!$Q$36,IF(B29="O-V",A!$T$36,IF(B29="O-VI",A!$W$36,IF(B29="O-VII",A!$Z$36,))))))))),0) -> 0 | Y29: =+Main!AA30 -> 0 | Z29: 31
A30: =IF($Y30=1," ",Main!A31) -> Nov.14 | B30: =IF(Y30=1," ",Main!B31) -> Clerk | C30: =IF(Y30=1,0,Main!D31) -> 7200 | D30: =IF(Y30=1,0,Main!M31) -> 0 | E30: =IF(Y30=1,0,Main!N31) -> 0 | F30: =IF(Y30=1,0,Main!Q31) -> 0 | H30: =ROUND((C30+E30+F30+G30)*A!D105*A!$D$80,2) -> 7905.6 | I30: =ROUND((C30+E30+F30+G30)*Main!H31,2) -> 720 | J30: =MIN(ROUND(C30*Main!K31,2),Main!J31) -> 0 | K30: 225 | L30: 0 | M30: =IF(Main!$C$3="PF",ROUND(('Calculation Sheet'!C30+'Calculation Sheet'!X30+'Calculation Sheet'!E30+'Calculation Sheet'!F30+'Calculation Sheet'!G30)*10%,2),IF(Main!$C$3="NPS",ROUND(('Calculation Sheet'!C30+'Calculation Sheet'!X31+'Calculation Sheet'!E30+'Calculation Sheet'!F30+'Calculation Sheet'!G30+'Calculation Sheet'!H30)*12%,0),0)) -> 0 | N30: 16050.6 | O30: =IF(Y30=1,0,Main!C31) -> 0 | P30: 0 | Q30: 16050.6 | R30: 0.03673803093 | X30: =IF(D30<>0,IF(B30="Clerk",A!$E$36,IF(B30="S.Staff",A!$B$36,IF(B30="O-I",A!$H$36,IF(B30="O-II",A!$K$36,IF(B30="O-III",A!$N$36,IF(B30="O-IV",A!$Q$36,IF(B30="O-V",A!$T$36,IF(B30="O-VI",A!$W$36,IF(B30="O-VII",A!$Z$36,))))))))),0) -> 0 | Y30: =+Main!AA31 -> 0 | Z30: 30
A31: =IF($Y31=1," ",Main!A32) -> Dec.14 | B31: =IF(Y31=1," ",Main!B32) -> Clerk | C31: =IF(Y31=1,0,Main!D32) -> 7200 | D31: =IF(Y31=1,0,Main!M32) -> 0 | E31: =IF(Y31=1,0,Main!N32) -> 0 | F31: =IF(Y31=1,0,Main!Q32) -> 0 | H31: =ROUND((C31+E31+F31+G31)*A!D106*A!$D$80,2) -> 7905.6 | I31: =ROUND((C31+E31+F31+G31)*Main!H32,2) -> 720 | J31: =MIN(ROUND(C31*Main!K32,2),Main!J32) -> 0 | K31: 225 | L31: 0 | M31: =IF(Main!$C$3="PF",ROUND(('Calculation Sheet'!C31+'Calculation Sheet'!X31+'Calculation Sheet'!E31+'Calculation Sheet'!F31+'Calculation Sheet'!G31)*10%,2),IF(Main!$C$3="NPS",ROUND(('Calculation Sheet'!C31+'Calculation Sheet'!X32+'Calculation Sheet'!E31+'Calculation Sheet'!F31+'Calculation Sheet'!G31+'Calculation Sheet'!H31)*12%,0),0)) -> 0 | N31: 16050.6 | O31: =IF(Y31=1,0,Main!C32) -> 0 | P31: 0 | Q31: 16050.6 | R31: 0.03673803093 | X31: =IF(D31<>0,IF(B31="Clerk",A!$E$36,IF(B31="S.Staff",A!$B$36,IF(B31="O-I",A!$H$36,IF(B31="O-II",A!$K$36,IF(B31="O-III",A!$N$36,IF(B31="O-IV",A!$Q$36,IF(B31="O-V",A!$T$36,IF(B31="O-VI",A!$W$36,IF(B31="O-VII",A!$Z$36,))))))))),0) -> 0 | Y31: =+Main!AA32 -> 0 | Z31: 31
A32: =IF($Y32=1," ",Main!A33) -> Jan.15 | B32: =IF(Y32=1," ",Main!B33) -> Clerk | C32: =IF(Y32=1,0,Main!D33) -> 7200 | D32: =IF(Y32=1,0,Main!M33) -> 0 | E32: =IF(Y32=1,0,Main!N33) -> 0 | F32: =IF(Y32=1,0,Main!Q33) -> 0 | H32: =ROUND((C32+E32+F32+G32)*A!D107*A!$D$80,2) -> 7905.6 | I32: =ROUND((C32+E32+F32+G32)*Main!H33,2) -> 720 | J32: =MIN(ROUND(C32*Main!K33,2),Main!J33) -> 0 | K32: 225 | L32: 0 | M32: =IF(Main!$C$3="PF",ROUND(('Calculation Sheet'!C32+'Calculation Sheet'!X32+'Calculation Sheet'!E32+'Calculation Sheet'!F32+'Calculation Sheet'!G32)*10%,2),IF(Main!$C$3="NPS",ROUND(('Calculation Sheet'!C32+'Calculation Sheet'!X33+'Calculation Sheet'!E32+'Calculation Sheet'!F32+'Calculation Sheet'!G32+'Calculation Sheet'!H32)*12%,0),0)) -> 0 | N32: 16050.6 | O32: =IF(Y32=1,0,Main!C33) -> 0 | P32: 0 | Q32: 16050.6 | R32: 0.03673803093 | X32: =IF(D32<>0,IF(B32="Clerk",A!$E$36,IF(B32="S.Staff",A!$B$36,IF(B32="O-I",A!$H$36,IF(B32="O-II",A!$K$36,IF(B32="O-III",A!$N$36,IF(B32="O-IV",A!$Q$36,IF(B32="O-V",A!$T$36,IF(B32="O-VI",A!$W$36,IF(B32="O-VII",A!$Z$36,))))))))),0) -> 0 | Y32: =+Main!AA33 -> 0 | Z32: 31
A33: =IF($Y33=1," ",Main!A34) -> Feb.15 | B33: =IF(Y33=1," ",Main!B34) -> Clerk | C33: =IF(Y33=1,0,Main!D34) -> 7200 | D33: =IF(Y33=1,0,Main!M34) -> 0 | E33: =IF(Y33=1,0,Main!N34) -> 0 | F33: =IF(Y33=1,0,Main!Q34) -> 0 | H33: =ROUND((C33+E33+F33+G33)*A!D108*A!$D$80,2) -> 7927.2 | I33: =ROUND((C33+E33+F33+G33)*Main!H34,2) -> 720 | J33: =MIN(ROUND(C33*Main!K34,2),Main!J34) -> 0 | K33: 225 | L33: 0 | M33: =IF(Main!$C$3="PF",ROUND(('Calculation Sheet'!C33+'Calculation Sheet'!X33+'Calculation Sheet'!E33+'Calculation Sheet'!F33+'Calculation Sheet'!G33)*10%,2),IF(Main!$C$3="NPS",ROUND(('Calculation Sheet'!C33+'Calculation Sheet'!X34+'Calculation Sheet'!E33+'Calculation Sheet'!F33+'Calculation Sheet'!G33+'Calculation Sheet'!H33)*12%,0),0)) -> 0 | N33: 16072.2 | O33: =IF(Y33=1,0,Main!C34) -> 0 | P33: 0 | Q33: 16072.2 | R33: 0.03681315776 | X33: =IF(D33<>0,IF(B33="Clerk",A!$E$36,IF(B33="S.Staff",A!$B$36,IF(B33="O-I",A!$H$36,IF(B33="O-II",A!$K$36,IF(B33="O-III",A!$N$36,IF(B33="O-IV",A!$Q$36,IF(B33="O-V",A!$T$36,IF(B33="O-VI",A!$W$36,IF(B33="O-VII",A!$Z$36,))))))))),0) -> 0 | Y33: =+Main!AA34 -> 0 | Z33: 28
A34: =IF($Y34=1," ",Main!A35) ->  | B34: =IF(Y34=1," ",Main!B35) ->  | C34: =IF(Y34=1,0,Main!D35) -> 0 | D34: =IF(Y34=1,0,Main!M35) -> 0 | E34: =IF(Y34=1,0,Main!N35) -> 0 | F34: =IF(Y34=1,0,Main!Q35) -> 0 | H34: =ROUND((C34+E34+F34+G34)*A!D109*A!$D$80,2) -> 0 | I34: =ROUND((C34+E34+F34+G34)*Main!H35,2) -> 0 | J34: =MIN(ROUND(C34*Main!K35,2),Main!J35) -> 0 | K34: 0 | L34: 0 | M34: =IF(Main!$C$3="PF",ROUND(('Calculation Sheet'!C34+'Calculation Sheet'!X34+'Calculation Sheet'!E34+'Calculation Sheet'!F34+'Calculation Sheet'!G34)*10%,2),IF(Main!$C$3="NPS",ROUND(('Calculation Sheet'!C34+'Calculation Sheet'!X35+'Calculation Sheet'!E34+'Calculation Sheet'!F34+'Calculation Sheet'!G34+'Calculation Sheet'!H34)*12%,0),0)) -> 0 | N34: 0 | O34: =IF(Y34=1,0,Main!C35) -> 0 | P34: 0 | Q34: 0 | R34: --- | X34: =IF(D34<>0,IF(B34="Clerk",A!$E$36,IF(B34="S.Staff",A!$B$36,IF(B34="O-I",A!$H$36,IF(B34="O-II",A!$K$36,IF(B34="O-III",A!$N$36,IF(B34="O-IV",A!$Q$36,IF(B34="O-V",A!$T$36,IF(B34="O-VI",A!$W$36,IF(B34="O-VII",A!$Z$36,))))))))),0) -> 0 | Y34: =+Main!AA35 -> 1 | Z34: 31
A35: Total 2014-15 | C35: =SUM(C23:C34) -> 79200 | D35: =SUM(D23:D34) -> 0 | E35: 0 | F35: 0 | G35: 0 | H35: 82026 | I35: 7920 | J35: 0 | K35: 2475 | L35: 0 | M35: 0 | N35: 171621 | P35: 0 | Q35: 171621 | R35: 0.03512423555
A36: =IF($Y36=1," ",Main!A36) ->  | B36: =IF($Y36=1," ",Main!B36) ->  | C36: =IF(Y36=1,0,Main!D36) -> 0 | D36: =IF(Y36=1,0,Main!M36) -> 0 | E36: =IF(Y36=1,0,Main!N36) -> 0 | F36: =IF(Y36=1,0,Main!Q36) -> 0 | H36: =ROUND((C36+E36+F36+G36)*A!D110*A!$D$80,2) -> 0 | I36: =ROUND((C36+E36+F36+G36)*Main!H36,2) -> 0 | J36: =MIN(ROUND(C36*Main!K36,2),Main!J36) -> 0 | K36: =IF(B36="Clerk",IF(C36>14100,275,225),IF(B36="S.Staff",IF(C36>9100,275,225),0)) -> 0 | L36: 0 | M36: =IF(Main!$C$3="PF",ROUND(('Calculation Sheet'!C36+'Calculation Sheet'!X36+'Calculation Sheet'!E36+'Calculation Sheet'!F36+'Calculation Sheet'!G36)*10%,2),IF(Main!$C$3="NPS",ROUND(('Calculation Sheet'!C36+'Calculation Sheet'!X37+'Calculation Sheet'!E36+'Calculation Sheet'!F36+'Calculation Sheet'!G36+'Calculation Sheet'!H36)*12%,0),0)) -> 0 | N36: 0 | O36: =IF(Y36=1,0,Main!C36) -> 0 | P36: =ROUND(N36*O36/Z36,2) -> 0 | Q36: =+N36-P36 -> 0 | R36: --- | X36: =IF(D36<>0,IF(B36="Clerk",A!$E$36,IF(B36="S.Staff",A!$B$36,IF(B36="O-I",A!$H$36,IF(B36="O-II",A!$K$36,IF(B36="O-III",A!$N$36,IF(B36="O-IV",A!$Q$36,IF(B36="O-V",A!$T$36,IF(B36="O-VI",A!$W$36,IF(B36="O-VII",A!$Z$36,))))))))),0) -> 0 | Y36: =+Main!AA36 -> 1 | Z36: 30
A37: =IF($Y37=1," ",Main!A37) ->  | B37: =IF(Y37=1," ",Main!B37) ->  | C37: =IF(Y37=1,0,Main!D37) -> 0 | D37: =IF(Y37=1,0,Main!M37) -> 0 | E37: =IF(Y37=1,0,Main!N37) -> 0 | F37: =IF(Y37=1,0,Main!Q37) -> 0 | H37: =ROUND((C37+E37+F37+G37)*A!D111*A!$D$80,2) -> 0 | I37: =ROUND((C37+E37+F37+G37)*Main!H37,2) -> 0 | J37: =MIN(ROUND(C37*Main!K37,2),Main!J37) -> 0 | K37: 0 | L37: 0 | M37: =IF(Main!$C$3="PF",ROUND(('Calculation Sheet'!C37+'Calculation Sheet'!X37+'Calculation Sheet'!E37+'Calculation Sheet'!F37+'Calculation Sheet'!G37)*10%,2),IF(Main!$C$3="NPS",ROUND(('Calculation Sheet'!C37+'Calculation Sheet'!X38+'Calculation Sheet'!E37+'Calculation Sheet'!F37+'Calculation Sheet'!G37+'Calculation Sheet'!H37)*12%,0),0)) -> 0 | N37: 0 | O37: =IF(Y37=1,0,Main!C37) -> 0 | P37: 0 | Q37: 0 | R37: --- | X37: =IF(D37<>0,IF(B37="Clerk",A!$E$36,IF(B37="S.Staff",A!$B$36,IF(B37="O-I",A!$H$36,IF(B37="O-II",A!$K$36,IF(B37="O-III",A!$N$36,IF(B37="O-IV",A!$Q$36,IF(B37="O-V",A!$T$36,IF(B37="O-VI",A!$W$36,IF(B37="O-VII",A!$Z$36,))))))))),0) -> 0 | Y37: =+Main!AA37 -> 1 | Z37: 31
A38: =IF($Y38=1," ",Main!A38) ->  | B38: =IF(Y38=1," ",Main!B38) ->  | C38: =IF(Y38=1,0,Main!D38) -> 0 | D38: =IF(Y38=1,0,Main!M38) -> 0 | E38: =IF(Y38=1,0,Main!N38) -> 0 | F38: =IF(Y38=1,0,Main!Q38) -> 0 | H38: =ROUND((C38+E38+F38+G38)*A!D112*A!$D$80,2) -> 0 | I38: =ROUND((C38+E38+F38+G38)*Main!H38,2) -> 0 | J38: =MIN(ROUND(C38*Main!K38,2),Main!J38) -> 0 | K38: 0 | L38: 0 | M38: =IF(Main!$C$3="PF",ROUND(('Calculation Sheet'!C38+'Calculation Sheet'!X38+'Calculation Sheet'!E38+'Calculation Sheet'!F38+'Calculation Sheet'!G38)*10%,2),IF(Main!$C$3="NPS",ROUND(('Calculation Sheet'!C38+'Calculation Sheet'!X39+'Calculation Sheet'!E38+'Calculation Sheet'!F38+'Calculation Sheet'!G38+'Calculation Sheet'!H38)*12%,0),0)) -> 0 | N38: 0 | O38: =IF(Y38=1,0,Main!C38) -> 0 | P38: 0 | Q38: 0 | R38: --- | X38: =IF(D38<>0,IF(B38="Clerk",A!$E$36,IF(B38="S.Staff",A!$B$36,IF(B38="O-I",A!$H$36,IF(B38="O-II",A!$K$36,IF(B38="O-III",A!$N$36,IF(B38="O-IV",A!$Q$36,IF(B38="O-V",A!$T$36,IF(B38="O-VI",A!$W$36,IF(B38="O-VII",A!$Z$36,))))))))),0) -> 0 | Y38: =+Main!AA38 -> 1 | Z38: 30
A39: =IF($Y39=1," ",Main!A39) ->  | B39: =IF(Y39=1," ",Main!B39) ->  | C39: =IF(Y39=1,0,Main!D39) -> 0 | D39: =IF(Y39=1,0,Main!M39) -> 0 | E39: =IF(Y39=1,0,Main!N39) -> 0 | F39: =IF(Y39=1,0,Main!Q39) -> 0 | H39: =ROUND((C39+E39+F39+G39)*A!D113*A!$D$80,2) -> 0 | I39: =ROUND((C39+E39+F39+G39)*Main!H39,2) -> 0 | J39: =MIN(ROUND(C39*Main!K39,2),Main!J39) -> 0 | K39: 0 | L39: 0 | M39: =IF(Main!$C$3="PF",ROUND(('Calculation Sheet'!C39+'Calculation Sheet'!X39+'Calculation Sheet'!E39+'Calculation Sheet'!F39+'Calculation Sheet'!G39)*10%,2),IF(Main!$C$3="NPS",ROUND(('Calculation Sheet'!C39+'Calculation Sheet'!X40+'Calculation Sheet'!E39+'Calculation Sheet'!F39+'Calculation Sheet'!G39+'Calculation Sheet'!H39)*12%,0),0)) -> 0 | N39: 0 | O39: =IF(Y39=1,0,Main!C39) -> 0 | P39: 0 | Q39: 0 | R39: --- | X39: =IF(D39<>0,IF(B39="Clerk",A!$E$36,IF(B39="S.Staff",A!$B$36,IF(B39="O-I",A!$H$36,IF(B39="O-II",A!$K$36,IF(B39="O-III",A!$N$36,IF(B39="O-IV",A!$Q$36,IF(B39="O-V",A!$T$36,IF(B39="O-VI",A!$W$36,IF(B39="O-VII",A!$Z$36,))))))))),0) -> 0 | Y39: =+Main!AA39 -> 1 | Z39: 31
A40: =IF($Y40=1," ",Main!A40) ->  | B40: =IF(Y40=1," ",Main!B40) ->  | C40: =IF(Y40=1,0,Main!D40) -> 0 | D40: =IF(Y40=1,0,Main!M40) -> 0 | E40: =IF(Y40=1,0,Main!N40) -> 0 | F40: =IF(Y40=1,0,Main!Q40) -> 0 | H40: =ROUND((C40+E40+F40+G40)*A!D114*A!$D$80,2) -> 0 | I40: =ROUND((C40+E40+F40+G40)*Main!H40,2) -> 0 | J40: =MIN(ROUND(C40*Main!K40,2),Main!J40) -> 0 | K40: 0 | L40: 0 | M40: =IF(Main!$C$3="PF",ROUND(('Calculation Sheet'!C40+'Calculation Sheet'!X40+'Calculation Sheet'!E40+'Calculation Sheet'!F40+'Calculation Sheet'!G40)*10%,2),IF(Main!$C$3="NPS",ROUND(('Calculation Sheet'!C40+'Calculation Sheet'!X41+'Calculation Sheet'!E40+'Calculation Sheet'!F40+'Calculation Sheet'!G40+'Calculation Sheet'!H40)*12%,0),0)) -> 0 | N40: 0 | O40: =IF(Y40=1,0,Main!C40) -> 0 | P40: 0 | Q40: 0 | R40: --- | X40: =IF(D40<>0,IF(B40="Clerk",A!$E$36,IF(B40="S.Staff",A!$B$36,IF(B40="O-I",A!$H$36,IF(B40="O-II",A!$K$36,IF(B40="O-III",A!$N$36,IF(B40="O-IV",A!$Q$36,IF(B40="O-V",A!$T$36,IF(B40="O-VI",A!$W$36,IF(B40="O-VII",A!$Z$36,))))))))),0) -> 0 | Y40: =+Main!AA40 -> 1 | Z40: 31
A41: =IF($Y41=1," ",Main!A41) ->  | B41: =IF(Y41=1," ",Main!B41) ->  | C41: =IF(Y41=1,0,Main!D41) -> 0 | D41: =IF(Y41=1,0,Main!M41) -> 0 | E41: =IF(Y41=1,0,Main!N41) -> 0 | F41: =IF(Y41=1,0,Main!Q41) -> 0 | H41: =ROUND((C41+E41+F41+G41)*A!D115*A!$D$80,2) -> 0 | I41: =ROUND((C41+E41+F41+G41)*Main!H41,2) -> 0 | J41: =MIN(ROUND(C41*Main!K41,2),Main!J41) -> 0 | K41: 0 | L41: 0 | M41: =IF(Main!$C$3="PF",ROUND(('Calculation Sheet'!C41+'Calculation Sheet'!X41+'Calculation Sheet'!E41+'Calculation Sheet'!F41+'Calculation Sheet'!G41)*10%,2),IF(Main!$C$3="NPS",ROUND(('Calculation Sheet'!C41+'Calculation Sheet'!X42+'Calculation Sheet'!E41+'Calculation Sheet'!F41+'Calculation Sheet'!G41+'Calculation Sheet'!H41)*12%,0),0)) -> 0 | N41: 0 | O41: =IF(Y41=1,0,Main!C41) -> 0 | P41: 0 | Q41: 0 | R41: --- | X41: =IF(D41<>0,IF(B41="Clerk",A!$E$36,IF(B41="S.Staff",A!$B$36,IF(B41="O-I",A!$H$36,IF(B41="O-II",A!$K$36,IF(B41="O-III",A!$N$36,IF(B41="O-IV",A!$Q$36,IF(B41="O-V",A!$T$36,IF(B41="O-VI",A!$W$36,IF(B41="O-VII",A!$Z$36,))))))))),0) -> 0 | Y41: =+Main!AA41 -> 1 | Z41: 30
A42: =IF($Y42=1," ",Main!A42) ->  | B42: =IF(Y42=1," ",Main!B42) ->  | C42: =IF(Y42=1,0,Main!D42) -> 0 | D42: =IF(Y42=1,0,Main!M42) -> 0 | E42: =IF(Y42=1,0,Main!N42) -> 0 | F42: =IF(Y42=1,0,Main!Q42) -> 0 | H42: =ROUND((C42+E42+F42+G42)*A!D116*A!$D$80,2) -> 0 | I42: =ROUND((C42+E42+F42+G42)*Main!H42,2) -> 0 | J42: =MIN(ROUND(C42*Main!K42,2),Main!J42) -> 0 | K42: 0 | L42: 0 | M42: =IF(Main!$C$3="PF",ROUND(('Calculation Sheet'!C42+'Calculation Sheet'!X42+'Calculation Sheet'!E42+'Calculation Sheet'!F42+'Calculation Sheet'!G42)*10%,2),IF(Main!$C$3="NPS",ROUND(('Calculation Sheet'!C42+'Calculation Sheet'!X43+'Calculation Sheet'!E42+'Calculation Sheet'!F42+'Calculation Sheet'!G42+'Calculation Sheet'!H42)*12%,0),0)) -> 0 | N42: 0 | O42: =IF(Y42=1,0,Main!C42) -> 0 | P42: 0 | Q42: 0 | R42: --- | X42: =IF(D42<>0,IF(B42="Clerk",A!$E$36,IF(B42="S.Staff",A!$B$36,IF(B42="O-I",A!$H$36,IF(B42="O-II",A!$K$36,IF(B42="O-III",A!$N$36,IF(B42="O-IV",A!$Q$36,IF(B42="O-V",A!$T$36,IF(B42="O-VI",A!$W$36,IF(B42="O-VII",A!$Z$36,))))))))),0) -> 0 | Y42: =+Main!AA42 -> 1 | Z42: 31
A43: =IF($Y43=1," ",Main!A43) ->  | B43: =IF(Y43=1," ",Main!B43) ->  | C43: =IF(Y43=1,0,Main!D43) -> 0 | D43: =IF(Y43=1,0,Main!M43) -> 0 | E43: =IF(Y43=1,0,Main!N43) -> 0 | F43: =IF(Y43=1,0,Main!Q43) -> 0 | H43: =ROUND((C43+E43+F43+G43)*A!D117*A!$D$80,2) -> 0 | I43: =ROUND((C43+E43+F43+G43)*Main!H43,2) -> 0 | J43: =MIN(ROUND(C43*Main!K43,2),Main!J43) -> 0 | K43: 0 | L43: 0 | M43: =IF(Main!$C$3="PF",ROUND(('Calculation Sheet'!C43+'Calculation Sheet'!X43+'Calculation Sheet'!E43+'Calculation Sheet'!F43+'Calculation Sheet'!G43)*10%,2),IF(Main!$C$3="NPS",ROUND(('Calculation Sheet'!C43+'Calculation Sheet'!X44+'Calculation Sheet'!E43+'Calculation Sheet'!F43+'Calculation Sheet'!G43+'Calculation Sheet'!H43)*12%,0),0)) -> 0 | N43: 0 | O43: =IF(Y43=1,0,Main!C43) -> 0 | P43: 0 | Q43: 0 | R43: --- | X43: =IF(D43<>0,IF(B43="Clerk",A!$E$36,IF(B43="S.Staff",A!$B$36,IF(B43="O-I",A!$H$36,IF(B43="O-II",A!$K$36,IF(B43="O-III",A!$N$36,IF(B43="O-IV",A!$Q$36,IF(B43="O-V",A!$T$36,IF(B43="O-VI",A!$W$36,IF(B43="O-VII",A!$Z$36,))))))))),0) -> 0 | Y43: =+Main!AA43 -> 1 | Z43: 30
A44: =IF($Y44=1," ",Main!A44) ->  | B44: =IF(Y44=1," ",Main!B44) ->  | C44: =IF(Y44=1,0,Main!D44) -> 0 | D44: =IF(Y44=1,0,Main!M44) -> 0 | E44: =IF(Y44=1,0,Main!N44) -> 0 | F44: =IF(Y44=1,0,Main!Q44) -> 0 | H44: =ROUND((C44+E44+F44+G44)*A!D118*A!$D$80,2) -> 0 | I44: =ROUND((C44+E44+F44+G44)*Main!H44,2) -> 0 | J44: =MIN(ROUND(C44*Main!K44,2),Main!J44) -> 0 | K44: 0 | L44: 0 | M44: =IF(Main!$C$3="PF",ROUND(('Calculation Sheet'!C44+'Calculation Sheet'!X44+'Calculation Sheet'!E44+'Calculation Sheet'!F44+'Calculation Sheet'!G44)*10%,2),IF(Main!$C$3="NPS",ROUND(('Calculation Sheet'!C44+'Calculation Sheet'!X45+'Calculation Sheet'!E44+'Calculation Sheet'!F44+'Calculation Sheet'!G44+'Calculation Sheet'!H44)*12%,0),0)) -> 0 | N44: 0 | O44: =IF(Y44=1,0,Main!C44) -> 0 | P44: 0 | Q44: 0 | R44: --- | X44: =IF(D44<>0,IF(B44="Clerk",A!$E$36,IF(B44="S.Staff",A!$B$36,IF(B44="O-I",A!$H$36,IF(B44="O-II",A!$K$36,IF(B44="O-III",A!$N$36,IF(B44="O-IV",A!$Q$36,IF(B44="O-V",A!$T$36,IF(B44="O-VI",A!$W$36,IF(B44="O-VII",A!$Z$36,))))))))),0) -> 0 | Y44: =+Main!AA44 -> 1 | Z44: 31
A45: Total 2015-16 | C45: =SUM(C36:C44) -> 0 | D45: =SUM(D36:D44) -> 0 | E45: 0 | F45: 0 | G45: 0 | H45: 0 | I45: 0 | J45: 0 | K45: 0 | L45: 0 | M45: 0 | N45: 0 | P45: =SUM(P36:P44) -> 0 | Q45: 0 | R45: ---
A46: Grand Total | C46: =+C45+C35+C22+C9 -> 201600 | D46: =+D45+D35+D22+D9 -> 0 | E46: 0 | F46: 0 | G46: 0 | H46: 188427.6 | I46: 20160 | J46: 0 | K46: 6300 | L46: 0 | M46: 0 | N46: 416487.6 | P46: =+P45+P35+P22+P9 -> 0 | Q46: 416487.6 | R46: 0.0322877663
A47: This Worksheet is purely estimate. New Basic Pay estimation is based on the MOU signed by the Unions with IBA
A48: =+A1 -> ** 1.0/0103215** | C48: =+C1 -> Name | D48: =+D1 -> Suri | M48: Page 2 of 2
A49: B. Revised (Estimated) | R49: Gross Arrear B14-A14 | S49: % Increase in gross arrear
A50: Period | B50: Desg. | C50: Basic Pay - 1 | D50: FPP 2 | E50: Grd/PQP 3 | F50: Spl. All. 4 | G50: Other 5 | H50: D.A. 6 | I50: HRA 7 | J50: CCA 8 | K50: Conv. 9 | L50: Wash. 10 | M50: Bank PF 11 | N50: Total - 12 (1 to11) | O50: WP Day | P50: WP Amt 13 | Q50: Net 14 | AB50: no.of days
A51: =+A4 -> Nov. 12 | B51: =+B4 -> Clerk | C51: =IF(B51="S.Staff",VLOOKUP(C4,A!$B$4:$C$31,2,FALSE),IF(B51="Clerk",VLOOKUP(C4,A!$E$4:$F$30,2,FALSE),IF(B51="O-I",VLOOKUP(C4,A!$H$4:$I$27,2,FALSE),IF(B51="O-II",VLOOKUP(C4,A!$K$4:$L$22,2,FALSE),IF(B51="O-III",VLOOKUP(C4,A!$N$4:$O$15,2,FALSE),IF(B51="O-IV",VLOOKUP(C4,A!$Q$4:$R$10,2,FALSE),IF(B51="O-V",VLOOKUP(C4,A!$T$4:$U$8,2,FALSE),IF(B51="O-VI",VLOOKUP(C4,A!$W$4:$X$8,2,FALSE),IF(B51="O-VII",VLOOKUP(C4,A!$Z$4:$AA$8,2,FALSE),IF(B51=" ",0,"Error")))))))))) -> 11766 | D51: =IF(D4=0,0,IF(Main!L7="S.Staff",VLOOKUP(D4,A!$B$36:$C$44,2,FALSE),IF(Main!L7="Clerk",VLOOKUP(D4,A!$E$36:$F$44,2,FALSE),IF(Main!L7="O-I",VLOOKUP(D4,A!$H$36:$I$44,2,FALSE),IF(Main!L7="O-II",VLOOKUP(D4,A!$K$36:$L$44,2,FALSE),IF(Main!L7="O-III",VLOOKUP(D4,A!$N$36:$O$44,2,FALSE),IF(Main!L7="O-IV",VLOOKUP(D4,A!$Q$36:$R$44,2,FALSE),IF(Main!L7="O-V",VLOOKUP(D4,A!$T$36:$U$44,2,FALSE),IF(Main!L7="O-VI",VLOOKUP(D4,A!$W$36:$X$44,2,FALSE),IF(Main!L7="O-VII",VLOOKUP(D4,A!$Z$36:$AA$44,2,FALSE),IF(Main!L7=" ",0,"Error"))))))))))) -> 0 | E51: =IF(E4=0,0,IF(B51="S.Staff",VLOOKUP(E4,A!$D$163:$E$168,2,FALSE),IF(B51="Clerk",VLOOKUP(E4,A!$B$163:$C$168,2,FALSE),VLOOKUP(E4,A!$F$163:$G$168,2,FALSE)))) -> 0 | F51: =IF(F4=0,0,IF(B4="Clerk",VLOOKUP(F4,A!$G$178:$H$182,2,FALSE),IF(B4="S.Staff",VLOOKUP(F4,A!$N$178:$O$187,2,FALSE),0))) -> 0 | H51: =ROUND((C51+E51+F51+G51)*A!E81*A!$E$80,2) -> 1282.49 | I51: =ROUND((C51+E51+F51+G51)*Main!AB7,2) -> 1176.6 | J51: =MIN(ROUND(C51*Main!AD7,2),Main!AE7) -> 0 | K51: =IF(B51="Clerk",IF(C51>14100,275,225),IF(B51="S.Staff",IF(C51>9100,275,225),0)) -> 225 | L51: =IF(B51="S.Staff",100,0) -> 0 | M51: =IF(Main!$C$3="PF",ROUND(('Calculation Sheet'!C51+'Calculation Sheet'!Z51+'Calculation Sheet'!E51+'Calculation Sheet'!F51+'Calculation Sheet'!G51)*10%,2),IF(Main!$C$3="NPS",ROUND(('Calculation Sheet'!C51+'Calculation Sheet'!Z51+'Calculation Sheet'!E51+'Calculation Sheet'!F51+'Calculation Sheet'!G51+'Calculation Sheet'!H51)*12%,0),0)) -> 0 | N51: =SUM(C51:M51) -> 14450.09 | O51: =+O4 -> 0 | P51: =ROUND(N51*O51/AB51,2) -> 0 | Q51: =+N51-P51 -> 14450.09 | R51: =+Q51-Q4 -> 797.09 | S51: =IF(R51<>0,R51/N4," ----") -> 0.05838204058 | Z51: =IF(D51<>0,IF(B4="Clerk",A!$F$36,IF(B4="S.Staff",A!$C$36,IF(B4="O-I",A!$I$36,IF(B4="O-II",A!$L$36,IF(B4="O-III",A!$O$36,IF(B4="O-IV",A!$R$36,IF(B4="O-V",A!$U$36,IF(B4="O-VI",A!$X$36,IF(B4="O-VII",A!$AA$36,))))))))),0) -> 0 | AB51: 30
A52: =+A5 -> Dec.12 | B52: =+B5 -> Clerk | C52: =IF(B52="S.Staff",VLOOKUP(C5,A!$B$4:$C$31,2,FALSE),IF(B52="Clerk",VLOOKUP(C5,A!$E$4:$F$30,2,FALSE),IF(B52="O-I",VLOOKUP(C5,A!$H$4:$I$27,2,FALSE),IF(B52="O-II",VLOOKUP(C5,A!$K$4:$L$22,2,FALSE),IF(B52="O-III",VLOOKUP(C5,A!$N$4:$O$15,2,FALSE),IF(B52="O-IV",VLOOKUP(C5,A!$Q$4:$R$10,2,FALSE),IF(B52="O-V",VLOOKUP(C5,A!$T$4:$U$8,2,FALSE),IF(B52="O-VI",VLOOKUP(C5,A!$W$4:$X$8,2,FALSE),IF(B52="O-VII",VLOOKUP(C5,A!$Z$4:$AA$8,2,FALSE),IF(B52=" ",0,"Error")))))))))) -> 11766 | D52: =IF(D5=0,0,IF(Main!L8="S.Staff",VLOOKUP(D5,A!$B$36:$C$44,2,FALSE),IF(Main!L8="Clerk",VLOOKUP(D5,A!$E$36:$F$44,2,FALSE),IF(Main!L8="O-I",VLOOKUP(D5,A!$H$36:$I$44,2,FALSE),IF(Main!L8="O-II",VLOOKUP(D5,A!$K$36:$L$44,2,FALSE),IF(Main!L8="O-III",VLOOKUP(D5,A!$N$36:$O$44,2,FALSE),IF(Main!L8="O-IV",VLOOKUP(D5,A!$Q$36:$R$44,2,FALSE),IF(Main!L8="O-V",VLOOKUP(D5,A!$T$36:$U$44,2,FALSE),IF(Main!L8="O-VI",VLOOKUP(D5,A!$W$36:$X$44,2,FALSE),IF(Main!L8="O-VII",VLOOKUP(D5,A!$Z$36:$AA$44,2,FALSE),IF(Main!L8=" ",0,"Error"))))))))))) -> 0 | E52: =IF(E5=0,0,IF(B52="S.Staff",VLOOKUP(E5,A!$D$163:$E$168,2,FALSE),IF(B52="Clerk",VLOOKUP(E5,A!$B$163:$C$168,2,FALSE),VLOOKUP(E5,A!$F$163:$G$168,2,FALSE)))) -> 0 | F52: =IF(F5=0,0,IF(B5="Clerk",VLOOKUP(F5,A!$G$178:$H$182,2,FALSE),IF(B5="S.Staff",VLOOKUP(F5,A!$N$178:$O$187,2,FALSE),0))) -> 0 | H52: =ROUND((C52+E52+F52+G52)*A!E82*A!$E$80,2) -> 1282.49 | I52: =ROUND((C52+E52+F52+G52)*Main!AB8,2) -> 1176.6 | J52: =MIN(ROUND(C52*Main!AD8,2),Main!AE8) -> 0 | K52: =IF(B52="Clerk",IF(C52>14100,275,225),IF(B52="S.Staff",IF(C52>9100,275,225),0)) -> 225 | L52: =IF(B52="S.Staff",100,0) -> 0 | M52: =IF(Main!$C$3="PF",ROUND(('Calculation Sheet'!C52+'Calculation Sheet'!Z52+'Calculation Sheet'!E52+'Calculation Sheet'!F52+'Calculation Sheet'!G52)*10%,2),IF(Main!$C$3="NPS",ROUND(('Calculation Sheet'!C52+'Calculation Sheet'!Z52+'Calculation Sheet'!E52+'Calculation Sheet'!F52+'Calculation Sheet'!G52+'Calculation Sheet'!H52)*12%,0),0)) -> 0 | N52: =SUM(C52:M52) -> 14450.09 | O52: =+O5 -> 0 | P52: =ROUND(N52*O52/AB52,2) -> 0 | Q52: =+N52-P52 -> 14450.09 | R52: =+Q52-Q5 -> 797.09 | S52: 0.05838204058 | Z52: =IF(D52<>0,IF(B5="Clerk",A!$F$36,IF(B5="S.Staff",A!$C$36,IF(B5="O-I",A!$I$36,IF(B5="O-II",A!$L$36,IF(B5="O-III",A!$O$36,IF(B5="O-IV",A!$R$36,IF(B5="O-V",A!$U$36,IF(B5="O-VI",A!$X$36,IF(B5="O-VII",A!$AA$36,))))))))),0) -> 0 | AB52: 31
A53: Jan.13 | B53: Clerk | C53: =IF(B53="S.Staff",VLOOKUP(C6,A!$B$4:$C$31,2,FALSE),IF(B53="Clerk",VLOOKUP(C6,A!$E$4:$F$30,2,FALSE),IF(B53="O-I",VLOOKUP(C6,A!$H$4:$I$27,2,FALSE),IF(B53="O-II",VLOOKUP(C6,A!$K$4:$L$22,2,FALSE),IF(B53="O-III",VLOOKUP(C6,A!$N$4:$O$15,2,FALSE),IF(B53="O-IV",VLOOKUP(C6,A!$Q$4:$R$10,2,FALSE),IF(B53="O-V",VLOOKUP(C6,A!$T$4:$U$8,2,FALSE),IF(B53="O-VI",VLOOKUP(C6,A!$W$4:$X$8,2,FALSE),IF(B53="O-VII",VLOOKUP(C6,A!$Z$4:$AA$8,2,FALSE),IF(B53=" ",0,"Error")))))))))) -> 11766 | D53: =IF(D6=0,0,IF(Main!L9="S.Staff",VLOOKUP(D6,A!$B$36:$C$44,2,FALSE),IF(Main!L9="Clerk",VLOOKUP(D6,A!$E$36:$F$44,2,FALSE),IF(Main!L9="O-I",VLOOKUP(D6,A!$H$36:$I$44,2,FALSE),IF(Main!L9="O-II",VLOOKUP(D6,A!$K$36:$L$44,2,FALSE),IF(Main!L9="O-III",VLOOKUP(D6,A!$N$36:$O$44,2,FALSE),IF(Main!L9="O-IV",VLOOKUP(D6,A!$Q$36:$R$44,2,FALSE),IF(Main!L9="O-V",VLOOKUP(D6,A!$T$36:$U$44,2,FALSE),IF(Main!L9="O-VI",VLOOKUP(D6,A!$W$36:$X$44,2,FALSE),IF(Main!L9="O-VII",VLOOKUP(D6,A!$Z$36:$AA$44,2,FALSE),IF(Main!L9=" ",0,"Error"))))))))))) -> 0 | E53: =IF(E6=0,0,IF(B53="S.Staff",VLOOKUP(E6,A!$D$163:$E$168,2,FALSE),IF(B53="Clerk",VLOOKUP(E6,A!$B$163:$C$168,2,FALSE),VLOOKUP(E6,A!$F$163:$G$168,2,FALSE)))) -> 0 | F53: =IF(F6=0,0,IF(B6="Clerk",VLOOKUP(F6,A!$G$178:$H$182,2,FALSE),IF(B6="S.Staff",VLOOKUP(F6,A!$N$178:$O$187,2,FALSE),0))) -> 0 | H53: =ROUND((C53+E53+F53+G53)*A!E83*A!$E$80,2) -> 1282.49 | I53: =ROUND((C53+E53+F53+G53)*Main!AB9,2) -> 1176.6 | J53: =MIN(ROUND(C53*Main!AD9,2),Main!AE9) -> 0 | K53: 225 | L53: 0 | M53: =IF(Main!$C$3="PF",ROUND(('Calculation Sheet'!C53+'Calculation Sheet'!Z53+'Calculation Sheet'!E53+'Calculation Sheet'!F53+'Calculation Sheet'!G53)*10%,2),IF(Main!$C$3="NPS",ROUND(('Calculation Sheet'!C53+'Calculation Sheet'!Z53+'Calculation Sheet'!E53+'Calculation Sheet'!F53+'Calculation Sheet'!G53+'Calculation Sheet'!H53)*12%,0),0)) -> 0 | N53: 14450.09 | O53: 0 | P53: 0 | Q53: 14450.09 | R53: 797.09 | S53: 0.05838204058 | Z53: =IF(D53<>0,IF(B6="Clerk",A!$F$36,IF(B6="S.Staff",A!$C$36,IF(B6="O-I",A!$I$36,IF(B6="O-II",A!$L$36,IF(B6="O-III",A!$O$36,IF(B6="O-IV",A!$R$36,IF(B6="O-V",A!$U$36,IF(B6="O-VI",A!$X$36,IF(B6="O-VII",A!$AA$36,))))))))),0) -> 0 | AB53: 31
A54: Feb.13 | B54: Clerk | C54: =IF(B54="S.Staff",VLOOKUP(C7,A!$B$4:$C$31,2,FALSE),IF(B54="Clerk",VLOOKUP(C7,A!$E$4:$F$30,2,FALSE),IF(B54="O-I",VLOOKUP(C7,A!$H$4:$I$27,2,FALSE),IF(B54="O-II",VLOOKUP(C7,A!$K$4:$L$22,2,FALSE),IF(B54="O-III",VLOOKUP(C7,A!$N$4:$O$15,2,FALSE),IF(B54="O-IV",VLOOKUP(C7,A!$Q$4:$R$10,2,FALSE),IF(B54="O-V",VLOOKUP(C7,A!$T$4:$U$8,2,FALSE),IF(B54="O-VI",VLOOKUP(C7,A!$W$4:$X$8,2,FALSE),IF(B54="O-VII",VLOOKUP(C7,A!$Z$4:$AA$8,2,FALSE),IF(B54=" ",0,"Error")))))))))) -> 11766 | D54: =IF(D7=0,0,IF(Main!L10="S.Staff",VLOOKUP(D7,A!$B$36:$C$44,2,FALSE),IF(Main!L10="Clerk",VLOOKUP(D7,A!$E$36:$F$44,2,FALSE),IF(Main!L10="O-I",VLOOKUP(D7,A!$H$36:$I$44,2,FALSE),IF(Main!L10="O-II",VLOOKUP(D7,A!$K$36:$L$44,2,FALSE),IF(Main!L10="O-III",VLOOKUP(D7,A!$N$36:$O$44,2,FALSE),IF(Main!L10="O-IV",VLOOKUP(D7,A!$Q$36:$R$44,2,FALSE),IF(Main!L10="O-V",VLOOKUP(D7,A!$T$36:$U$44,2,FALSE),IF(Main!L10="O-VI",VLOOKUP(D7,A!$W$36:$X$44,2,FALSE),IF(Main!L10="O-VII",VLOOKUP(D7,A!$Z$36:$AA$44,2,FALSE),IF(Main!L10=" ",0,"Error"))))))))))) -> 0 | E54: =IF(E7=0,0,IF(B54="S.Staff",VLOOKUP(E7,A!$D$163:$E$168,2,FALSE),IF(B54="Clerk",VLOOKUP(E7,A!$B$163:$C$168,2,FALSE),VLOOKUP(E7,A!$F$163:$G$168,2,FALSE)))) -> 0 | F54: =IF(F7=0,0,IF(B7="Clerk",VLOOKUP(F7,A!$G$178:$H$182,2,FALSE),IF(B7="S.Staff",VLOOKUP(F7,A!$N$178:$O$187,2,FALSE),0))) -> 0 | H54: =ROUND((C54+E54+F54+G54)*A!E84*A!$E$80,2) -> 1576.64 | I54: =ROUND((C54+E54+F54+G54)*Main!AB10,2) -> 1176.6 | J54: =MIN(ROUND(C54*Main!AD10,2),Main!AE10) -> 0 | K54: 225 | L54: 0 | M54: =IF(Main!$C$3="PF",ROUND(('Calculation Sheet'!C54+'Calculation Sheet'!Z54+'Calculation Sheet'!E54+'Calculation Sheet'!F54+'Calculation Sheet'!G54)*10%,2),IF(Main!$C$3="NPS",ROUND(('Calculation Sheet'!C54+'Calculation Sheet'!Z54+'Calculation Sheet'!E54+'Calculation Sheet'!F54+'Calculation Sheet'!G54+'Calculation Sheet'!H54)*12%,0),0)) -> 0 | N54: 14744.24 | O54: 0 | P54: 0 | Q54: 14744.24 | R54: 821.24 | S54: 0.05898441428 | Z54: =IF(D54<>0,IF(B7="Clerk",A!$F$36,IF(B7="S.Staff",A!$C$36,IF(B7="O-I",A!$I$36,IF(B7="O-II",A!$L$36,IF(B7="O-III",A!$O$36,IF(B7="O-IV",A!$R$36,IF(B7="O-V",A!$U$36,IF(B7="O-VI",A!$X$36,IF(B7="O-VII",A!$AA$36,))))))))),0) -> 0 | AB54: 28
A55: Mar.13 | B55: Clerk | C55: =IF(B55="S.Staff",VLOOKUP(C8,A!$B$4:$C$31,2,FALSE),IF(B55="Clerk",VLOOKUP(C8,A!$E$4:$F$30,2,FALSE),IF(B55="O-I",VLOOKUP(C8,A!$H$4:$I$27,2,FALSE),IF(B55="O-II",VLOOKUP(C8,A!$K$4:$L$22,2,FALSE),IF(B55="O-III",VLOOKUP(C8,A!$N$4:$O$15,2,FALSE),IF(B55="O-IV",VLOOKUP(C8,A!$Q$4:$R$10,2,FALSE),IF(B55="O-V",VLOOKUP(C8,A!$T$4:$U$8,2,FALSE),IF(B55="O-VI",VLOOKUP(C8,A!$W$4:$X$8,2,FALSE),IF(B55="O-VII",VLOOKUP(C8,A!$Z$4:$AA$8,2,FALSE),IF(B55=" ",0,"Error")))))))))) -> 11766 | D55: =IF(D8=0,0,IF(Main!L11="S.Staff",VLOOKUP(D8,A!$B$36:$C$44,2,FALSE),IF(Main!L11="Clerk",VLOOKUP(D8,A!$E$36:$F$44,2,FALSE),IF(Main!L11="O-I",VLOOKUP(D8,A!$H$36:$I$44,2,FALSE),IF(Main!L11="O-II",VLOOKUP(D8,A!$K$36:$L$44,2,FALSE),IF(Main!L11="O-III",VLOOKUP(D8,A!$N$36:$O$44,2,FALSE),IF(Main!L11="O-IV",VLOOKUP(D8,A!$Q$36:$R$44,2,FALSE),IF(Main!L11="O-V",VLOOKUP(D8,A!$T$36:$U$44,2,FALSE),IF(Main!L11="O-VI",VLOOKUP(D8,A!$W$36:$X$44,2,FALSE),IF(Main!L11="O-VII",VLOOKUP(D8,A!$Z$36:$AA$44,2,FALSE),IF(Main!L11=" ",0,"Error"))))))))))) -> 0 | E55: =IF(E8=0,0,IF(B55="S.Staff",VLOOKUP(E8,A!$D$163:$E$168,2,FALSE),IF(B55="Clerk",VLOOKUP(E8,A!$B$163:$C$168,2,FALSE),VLOOKUP(E8,A!$F$163:$G$168,2,FALSE)))) -> 0 | F55: =IF(F8=0,0,IF(B8="Clerk",VLOOKUP(F8,A!$G$178:$H$182,2,FALSE),IF(B8="S.Staff",VLOOKUP(F8,A!$N$178:$O$187,2,FALSE),0))) -> 0 | H55: =ROUND((C55+E55+F55+G55)*A!E85*A!$E$80,2) -> 1576.64 | I55: =ROUND((C55+E55+F55+G55)*Main!AB11,2) -> 1176.6 | J55: =MIN(ROUND(C55*Main!AD11,2),Main!AE11) -> 0 | K55: 225 | L55: 0 | M55: =IF(Main!$C$3="PF",ROUND(('Calculation Sheet'!C55+'Calculation Sheet'!Z55+'Calculation Sheet'!E55+'Calculation Sheet'!F55+'Calculation Sheet'!G55)*10%,2),IF(Main!$C$3="NPS",ROUND(('Calculation Sheet'!C55+'Calculation Sheet'!Z55+'Calculation Sheet'!E55+'Calculation Sheet'!F55+'Calculation Sheet'!G55+'Calculation Sheet'!H55)*12%,0),0)) -> 0 | N55: 14744.24 | O55: 0 | P55: 0 | Q55: 14744.24 | R55: 821.24 | S55: 0.05898441428 | Z55: =IF(D55<>0,IF(B8="Clerk",A!$F$36,IF(B8="S.Staff",A!$C$36,IF(B8="O-I",A!$I$36,IF(B8="O-II",A!$L$36,IF(B8="O-III",A!$O$36,IF(B8="O-IV",A!$R$36,IF(B8="O-V",A!$U$36,IF(B8="O-VI",A!$X$36,IF(B8="O-VII",A!$AA$36,))))))))),0) -> 0 | AB55: 31
A56: Total 2012-13 | C56: =SUM(C51:C55) -> 58830 | D56: =SUM(D51:D55) -> 0 | E56: 0 | F56: 0 | G56: 0 | H56: 7000.75 | I56: 5883 | J56: 0 | K56: 1125 | L56: 0 | M56: 0 | N56: 72838.75 | P56: =SUM(P51:P55) -> 0 | Q56: 72838.75 | R56: 4033.75 | S56: 0.05862582661
A57: =+A10 -> Apr.13 | B57: =+B10 -> Clerk | C57: =IF(B57="S.Staff",VLOOKUP(C10,A!$B$4:$C$31,2,FALSE),IF(B57="Clerk",VLOOKUP(C10,A!$E$4:$F$30,2,FALSE),IF(B57="O-I",VLOOKUP(C10,A!$H$4:$I$27,2,FALSE),IF(B57="O-II",VLOOKUP(C10,A!$K$4:$L$22,2,FALSE),IF(B57="O-III",VLOOKUP(C10,A!$N$4:$O$15,2,FALSE),IF(B57="O-IV",VLOOKUP(C10,A!$Q$4:$R$10,2,FALSE),IF(B57="O-V",VLOOKUP(C10,A!$T$4:$U$8,2,FALSE),IF(B57="O-VI",VLOOKUP(C10,A!$W$4:$X$8,2,FALSE),IF(B57="O-VII",VLOOKUP(C10,A!$Z$4:$AA$8,2,FALSE),IF(B57=" ",0,"Error")))))))))) -> 11766 | D57: =IF(D10=0,0,IF(Main!L12="S.Staff",VLOOKUP(D10,A!$B$36:$C$44,2,FALSE),IF(Main!L12="Clerk",VLOOKUP(D10,A!$E$36:$F$44,2,FALSE),IF(Main!L12="O-I",VLOOKUP(D10,A!$H$36:$I$44,2,FALSE),IF(Main!L12="O-II",VLOOKUP(D10,A!$K$36:$L$44,2,FALSE),IF(Main!L12="O-III",VLOOKUP(D10,A!$N$36:$O$44,2,FALSE),IF(Main!L12="O-IV",VLOOKUP(D10,A!$Q$36:$R$44,2,FALSE),IF(Main!L12="O-V",VLOOKUP(D10,A!$T$36:$U$44,2,FALSE),IF(Main!L12="O-VI",VLOOKUP(D10,A!$W$36:$X$44,2,FALSE),IF(Main!L12="O-VII",VLOOKUP(D10,A!$Z$36:$AA$44,2,FALSE),IF(Main!L12=" ",0,"Error"))))))))))) -> 0 | E57: =IF(E10=0,0,IF(B57="S.Staff",VLOOKUP(E10,A!$D$163:$E$168,2,FALSE),IF(B57="Clerk",VLOOKUP(E10,A!$B$163:$C$168,2,FALSE),VLOOKUP(E10,A!$F$163:$G$168,2,FALSE)))) -> 0 | F57: =IF(F10=0,0,IF(B10="Clerk",VLOOKUP(F10,A!$G$178:$H$182,2,FALSE),IF(B10="S.Staff",VLOOKUP(F10,A!$N$178:$O$187,2,FALSE),0))) -> 0 | H57: =ROUND((C57+E57+F57+G57)*A!E86*A!$E$80,2) -> 1576.64 | I57: =ROUND((C57+E57+F57+G57)*Main!AB12,2) -> 1176.6 | J57: =MIN(ROUND(C57*Main!AD12,2),Main!AE12) -> 0 | K57: =IF(B57="Clerk",IF(C57>14100,275,225),IF(B57="S.Staff",IF(C57>9100,275,225),0)) -> 225 | L57: =IF(B57="S.Staff",100,0) -> 0 | M57: =IF(Main!$C$3="PF",ROUND(('Calculation Sheet'!C57+'Calculation Sheet'!Z57+'Calculation Sheet'!E57+'Calculation Sheet'!F57+'Calculation Sheet'!G57)*10%,2),IF(Main!$C$3="NPS",ROUND(('Calculation Sheet'!C57+'Calculation Sheet'!Z57+'Calculation Sheet'!E57+'Calculation Sheet'!F57+'Calculation Sheet'!G57+'Calculation Sheet'!H57)*12%,0),0)) -> 0 | N57: =SUM(C57:M57) -> 14744.24 | O57: 0 | P57: =ROUND(N57*O57/AB57,2) -> 0 | Q57: =+N57-P57 -> 14744.24 | R57: 821.24 | S57: 0.05898441428 | Z57: =IF(D57<>0,IF(B10="Clerk",A!$F$36,IF(B10="S.Staff",A!$C$36,IF(B10="O-I",A!$I$36,IF(B10="O-II",A!$L$36,IF(B10="O-III",A!$O$36,IF(B10="O-IV",A!$R$36,IF(B10="O-V",A!$U$36,IF(B10="O-VI",A!$X$36,IF(B10="O-VII",A!$AA$36,))))))))),0) -> 0 | AB57: 30
A58: May.13 | B58: Clerk | C58: =IF(B58="S.Staff",VLOOKUP(C11,A!$B$4:$C$31,2,FALSE),IF(B58="Clerk",VLOOKUP(C11,A!$E$4:$F$30,2,FALSE),IF(B58="O-I",VLOOKUP(C11,A!$H$4:$I$27,2,FALSE),IF(B58="O-II",VLOOKUP(C11,A!$K$4:$L$22,2,FALSE),IF(B58="O-III",VLOOKUP(C11,A!$N$4:$O$15,2,FALSE),IF(B58="O-IV",VLOOKUP(C11,A!$Q$4:$R$10,2,FALSE),IF(B58="O-V",VLOOKUP(C11,A!$T$4:$U$8,2,FALSE),IF(B58="O-VI",VLOOKUP(C11,A!$W$4:$X$8,2,FALSE),IF(B58="O-VII",VLOOKUP(C11,A!$Z$4:$AA$8,2,FALSE),IF(B58=" ",0,"Error")))))))))) -> 11766 | D58: =IF(D11=0,0,IF(Main!L13="S.Staff",VLOOKUP(D11,A!$B$36:$C$44,2,FALSE),IF(Main!L13="Clerk",VLOOKUP(D11,A!$E$36:$F$44,2,FALSE),IF(Main!L13="O-I",VLOOKUP(D11,A!$H$36:$I$44,2,FALSE),IF(Main!L13="O-II",VLOOKUP(D11,A!$K$36:$L$44,2,FALSE),IF(Main!L13="O-III",VLOOKUP(D11,A!$N$36:$O$44,2,FALSE),IF(Main!L13="O-IV",VLOOKUP(D11,A!$Q$36:$R$44,2,FALSE),IF(Main!L13="O-V",VLOOKUP(D11,A!$T$36:$U$44,2,FALSE),IF(Main!L13="O-VI",VLOOKUP(D11,A!$W$36:$X$44,2,FALSE),IF(Main!L13="O-VII",VLOOKUP(D11,A!$Z$36:$AA$44,2,FALSE),IF(Main!L13=" ",0,"Error"))))))))))) -> 0 | E58: =IF(E11=0,0,IF(B58="S.Staff",VLOOKUP(E11,A!$D$163:$E$168,2,FALSE),IF(B58="Clerk",VLOOKUP(E11,A!$B$163:$C$168,2,FALSE),VLOOKUP(E11,A!$F$163:$G$168,2,FALSE)))) -> 0 | F58: =IF(F11=0,0,IF(B11="Clerk",VLOOKUP(F11,A!$G$178:$H$182,2,FALSE),IF(B11="S.Staff",VLOOKUP(F11,A!$N$178:$O$187,2,FALSE),0))) -> 0 | H58: =ROUND((C58+E58+F58+G58)*A!E87*A!$E$80,2) -> 1882.56 | I58: =ROUND((C58+E58+F58+G58)*Main!AB13,2) -> 1176.6 | J58: =MIN(ROUND(C58*Main!AD13,2),Main!AE13) -> 0 | K58: 225 | L58: 0 | M58: =IF(Main!$C$3="PF",ROUND(('Calculation Sheet'!C58+'Calculation Sheet'!Z58+'Calculation Sheet'!E58+'Calculation Sheet'!F58+'Calculation Sheet'!G58)*10%,2),IF(Main!$C$3="NPS",ROUND(('Calculation Sheet'!C58+'Calculation Sheet'!Z58+'Calculation Sheet'!E58+'Calculation Sheet'!F58+'Calculation Sheet'!G58+'Calculation Sheet'!H58)*12%,0),0)) -> 0 | N58: 15050.16 | O58: 0 | P58: 0 | Q58: 15050.16 | R58: 846.36 | S58: 0.05958687112 | Z58: =IF(D58<>0,IF(B11="Clerk",A!$F$36,IF(B11="S.Staff",A!$C$36,IF(B11="O-I",A!$I$36,IF(B11="O-II",A!$L$36,IF(B11="O-III",A!$O$36,IF(B11="O-IV",A!$R$36,IF(B11="O-V",A!$U$36,IF(B11="O-VI",A!$X$36,IF(B11="O-VII",A!$AA$36,))))))))),0) -> 0 | AB58: 31
A59: Jun.13 | B59: Clerk | C59: =IF(B59="S.Staff",VLOOKUP(C12,A!$B$4:$C$31,2,FALSE),IF(B59="Clerk",VLOOKUP(C12,A!$E$4:$F$30,2,FALSE),IF(B59="O-I",VLOOKUP(C12,A!$H$4:$I$27,2,FALSE),IF(B59="O-II",VLOOKUP(C12,A!$K$4:$L$22,2,FALSE),IF(B59="O-III",VLOOKUP(C12,A!$N$4:$O$15,2,FALSE),IF(B59="O-IV",VLOOKUP(C12,A!$Q$4:$R$10,2,FALSE),IF(B59="O-V",VLOOKUP(C12,A!$T$4:$U$8,2,FALSE),IF(B59="O-VI",VLOOKUP(C12,A!$W$4:$X$8,2,FALSE),IF(B59="O-VII",VLOOKUP(C12,A!$Z$4:$AA$8,2,FALSE),IF(B59=" ",0,"Error")))))))))) -> 11766 | D59: =IF(D12=0,0,IF(Main!L14="S.Staff",VLOOKUP(D12,A!$B$36:$C$44,2,FALSE),IF(Main!L14="Clerk",VLOOKUP(D12,A!$E$36:$F$44,2,FALSE),IF(Main!L14="O-I",VLOOKUP(D12,A!$H$36:$I$44,2,FALSE),IF(Main!L14="O-II",VLOOKUP(D12,A!$K$36:$L$44,2,FALSE),IF(Main!L14="O-III",VLOOKUP(D12,A!$N$36:$O$44,2,FALSE),IF(Main!L14="O-IV",VLOOKUP(D12,A!$Q$36:$R$44,2,FALSE),IF(Main!L14="O-V",VLOOKUP(D12,A!$T$36:$U$44,2,FALSE),IF(Main!L14="O-VI",VLOOKUP(D12,A!$W$36:$X$44,2,FALSE),IF(Main!L14="O-VII",VLOOKUP(D12,A!$Z$36:$AA$44,2,FALSE),IF(Main!L14=" ",0,"Error"))))))))))) -> 0 | E59: =IF(E12=0,0,IF(B59="S.Staff",VLOOKUP(E12,A!$D$163:$E$168,2,FALSE),IF(B59="Clerk",VLOOKUP(E12,A!$B$163:$C$168,2,FALSE),VLOOKUP(E12,A!$F$163:$G$168,2,FALSE)))) -> 0 | F59: =IF(F12=0,0,IF(B12="Clerk",VLOOKUP(F12,A!$G$178:$H$182,2,FALSE),IF(B12="S.Staff",VLOOKUP(F12,A!$N$178:$O$187,2,FALSE),0))) -> 0 | H59: =ROUND((C59+E59+F59+G59)*A!E88*A!$E$80,2) -> 1882.56 | I59: =ROUND((C59+E59+F59+G59)*Main!AB14,2) -> 1176.6 | J59: =MIN(ROUND(C59*Main!AD14,2),Main!AE14) -> 0 | K59: 225 | L59: 0 | M59: =IF(Main!$C$3="PF",ROUND(('Calculation Sheet'!C59+'Calculation Sheet'!Z59+'Calculation Sheet'!E59+'Calculation Sheet'!F59+'Calculation Sheet'!G59)*10%,2),IF(Main!$C$3="NPS",ROUND(('Calculation Sheet'!C59+'Calculation Sheet'!Z59+'Calculation Sheet'!E59+'Calculation Sheet'!F59+'Calculation Sheet'!G59+'Calculation Sheet'!H59)*12%,0),0)) -> 0 | N59: 15050.16 | O59: 0 | P59: 0 | Q59: 15050.16 | R59: 846.36 | S59: 0.05958687112 | Z59: =IF(D59<>0,IF(B12="Clerk",A!$F$36,IF(B12="S.Staff",A!$C$36,IF(B12="O-I",A!$I$36,IF(B12="O-II",A!$L$36,IF(B12="O-III",A!$O$36,IF(B12="O-IV",A!$R$36,IF(B12="O-V",A!$U$36,IF(B12="O-VI",A!$X$36,IF(B12="O-VII",A!$AA$36,))))))))),0) -> 0 | AB59: 30
A60: Jul.13 | B60: Clerk | C60: =IF(B60="S.Staff",VLOOKUP(C13,A!$B$4:$C$31,2,FALSE),IF(B60="Clerk",VLOOKUP(C13,A!$E$4:$F$30,2,FALSE),IF(B60="O-I",VLOOKUP(C13,A!$H$4:$I$27,2,FALSE),IF(B60="O-II",VLOOKUP(C13,A!$K$4:$L$22,2,FALSE),IF(B60="O-III",VLOOKUP(C13,A!$N$4:$O$15,2,FALSE),IF(B60="O-IV",VLOOKUP(C13,A!$Q$4:$R$10,2,FALSE),IF(B60="O-V",VLOOKUP(C13,A!$T$4:$U$8,2,FALSE),IF(B60="O-VI",VLOOKUP(C13,A!$W$4:$X$8,2,FALSE),IF(B60="O-VII",VLOOKUP(C13,A!$Z$4:$AA$8,2,FALSE),IF(B60=" ",0,"Error")))))))))) -> 11766 | D60: =IF(D13=0,0,IF(Main!L15="S.Staff",VLOOKUP(D13,A!$B$36:$C$44,2,FALSE),IF(Main!L15="Clerk",VLOOKUP(D13,A!$E$36:$F$44,2,FALSE),IF(Main!L15="O-I",VLOOKUP(D13,A!$H$36:$I$44,2,FALSE),IF(Main!L15="O-II",VLOOKUP(D13,A!$K$36:$L$44,2,FALSE),IF(Main!L15="O-III",VLOOKUP(D13,A!$N$36:$O$44,2,FALSE),IF(Main!L15="O-IV",VLOOKUP(D13,A!$Q$36:$R$44,2,FALSE),IF(Main!L15="O-V",VLOOKUP(D13,A!$T$36:$U$44,2,FALSE),IF(Main!L15="O-VI",VLOOKUP(D13,A!$W$36:$X$44,2,FALSE),IF(Main!L15="O-VII",VLOOKUP(D13,A!$Z$36:$AA$44,2,FALSE),IF(Main!L15=" ",0,"Error"))))))))))) -> 0 | E60: =IF(E13=0,0,IF(B60="S.Staff",VLOOKUP(E13,A!$D$163:$E$168,2,FALSE),IF(B60="Clerk",VLOOKUP(E13,A!$B$163:$C$168,2,FALSE),VLOOKUP(E13,A!$F$163:$G$168,2,FALSE)))) -> 0 | F60: =IF(F13=0,0,IF(B13="Clerk",VLOOKUP(F13,A!$G$178:$H$182,2,FALSE),IF(B13="S.Staff",VLOOKUP(F13,A!$N$178:$O$187,2,FALSE),0))) -> 0 | H60: =ROUND((C60+E60+F60+G60)*A!E89*A!$E$80,2) -> 1882.56 | I60: =ROUND((C60+E60+F60+G60)*Main!AB15,2) -> 1176.6 | J60: =MIN(ROUND(C60*Main!AD15,2),Main!AE15) -> 0 | K60: 225 | L60: 0 | M60: =IF(Main!$C$3="PF",ROUND(('Calculation Sheet'!C60+'Calculation Sheet'!Z60+'Calculation Sheet'!E60+'Calculation Sheet'!F60+'Calculation Sheet'!G60)*10%,2),IF(Main!$C$3="NPS",ROUND(('Calculation Sheet'!C60+'Calculation Sheet'!Z60+'Calculation Sheet'!E60+'Calculation Sheet'!F60+'Calculation Sheet'!G60+'Calculation Sheet'!H60)*12%,0),0)) -> 0 | N60: 15050.16 | O60: 0 | P60: 0 | Q60: 15050.16 | R60: 846.36 | S60: 0.05958687112 | Z60: =IF(D60<>0,IF(B13="Clerk",A!$F$36,IF(B13="S.Staff",A!$C$36,IF(B13="O-I",A!$I$36,IF(B13="O-II",A!$L$36,IF(B13="O-III",A!$O$36,IF(B13="O-IV",A!$R$36,IF(B13="O-V",A!$U$36,IF(B13="O-VI",A!$X$36,IF(B13="O-VII",A!$AA$36,))))))))),0) -> 0 | AB60: 31
A61: Aug.13 | B61: Clerk | C61: =IF(B61="S.Staff",VLOOKUP(C14,A!$B$4:$C$31,2,FALSE),IF(B61="Clerk",VLOOKUP(C14,A!$E$4:$F$30,2,FALSE),IF(B61="O-I",VLOOKUP(C14,A!$H$4:$I$27,2,FALSE),IF(B61="O-II",VLOOKUP(C14,A!$K$4:$L$22,2,FALSE),IF(B61="O-III",VLOOKUP(C14,A!$N$4:$O$15,2,FALSE),IF(B61="O-IV",VLOOKUP(C14,A!$Q$4:$R$10,2,FALSE),IF(B61="O-V",VLOOKUP(C14,A!$T$4:$U$8,2,FALSE),IF(B61="O-VI",VLOOKUP(C14,A!$W$4:$X$8,2,FALSE),IF(B61="O-VII",VLOOKUP(C14,A!$Z$4:$AA$8,2,FALSE),IF(B61=" ",0,"Error")))))))))) -> 11766 | D61: =IF(D14=0,0,IF(Main!L16="S.Staff",VLOOKUP(D14,A!$B$36:$C$44,2,FALSE),IF(Main!L16="Clerk",VLOOKUP(D14,A!$E$36:$F$44,2,FALSE),IF(Main!L16="O-I",VLOOKUP(D14,A!$H$36:$I$44,2,FALSE),IF(Main!L16="O-II",VLOOKUP(D14,A!$K$36:$L$44,2,FALSE),IF(Main!L16="O-III",VLOOKUP(D14,A!$N$36:$O$44,2,FALSE),IF(Main!L16="O-IV",VLOOKUP(D14,A!$Q$36:$R$44,2,FALSE),IF(Main!L16="O-V",VLOOKUP(D14,A!$T$36:$U$44,2,FALSE),IF(Main!L16="O-VI",VLOOKUP(D14,A!$W$36:$X$44,2,FALSE),IF(Main!L16="O-VII",VLOOKUP(D14,A!$Z$36:$AA$44,2,FALSE),IF(Main!L16=" ",0,"Error"))))))))))) -> 0 | E61: =IF(E14=0,0,IF(B61="S.Staff",VLOOKUP(E14,A!$D$163:$E$168,2,FALSE),IF(B61="Clerk",VLOOKUP(E14,A!$B$163:$C$168,2,FALSE),VLOOKUP(E14,A!$F$163:$G$168,2,FALSE)))) -> 0 | F61: =IF(F14=0,0,IF(B14="Clerk",VLOOKUP(F14,A!$G$178:$H$182,2,FALSE),IF(B14="S.Staff",VLOOKUP(F14,A!$N$178:$O$187,2,FALSE),0))) -> 0 | H61: =ROUND((C61+E61+F61+G61)*A!E90*A!$E$80,2) -> 2259.07 | I61: =ROUND((C61+E61+F61+G61)*Main!AB16,2) -> 1176.6 | J61: =MIN(ROUND(C61*Main!AD16,2),Main!AE16) -> 0 | K61: 225 | L61: 0 | M61: =IF(Main!$C$3="PF",ROUND(('Calculation Sheet'!C61+'Calculation Sheet'!Z61+'Calculation Sheet'!E61+'Calculation Sheet'!F61+'Calculation Sheet'!G61)*10%,2),IF(Main!$C$3="NPS",ROUND(('Calculation Sheet'!C61+'Calculation Sheet'!Z61+'Calculation Sheet'!E61+'Calculation Sheet'!F61+'Calculation Sheet'!G61+'Calculation Sheet'!H61)*12%,0),0)) -> 0 | N61: 15426.67 | O61: 0 | P61: 0 | Q61: 15426.67 | R61: 877.27 | S61: 0.06029595722 | Z61: =IF(D61<>0,IF(B14="Clerk",A!$F$36,IF(B14="S.Staff",A!$C$36,IF(B14="O-I",A!$I$36,IF(B14="O-II",A!$L$36,IF(B14="O-III",A!$O$36,IF(B14="O-IV",A!$R$36,IF(B14="O-V",A!$U$36,IF(B14="O-VI",A!$X$36,IF(B14="O-VII",A!$AA$36,))))))))),0) -> 0 | AB61: 31
A62: Sep.13 | B62: Clerk | C62: =IF(B62="S.Staff",VLOOKUP(C15,A!$B$4:$C$31,2,FALSE),IF(B62="Clerk",VLOOKUP(C15,A!$E$4:$F$30,2,FALSE),IF(B62="O-I",VLOOKUP(C15,A!$H$4:$I$27,2,FALSE),IF(B62="O-II",VLOOKUP(C15,A!$K$4:$L$22,2,FALSE),IF(B62="O-III",VLOOKUP(C15,A!$N$4:$O$15,2,FALSE),IF(B62="O-IV",VLOOKUP(C15,A!$Q$4:$R$10,2,FALSE),IF(B62="O-V",VLOOKUP(C15,A!$T$4:$U$8,2,FALSE),IF(B62="O-VI",VLOOKUP(C15,A!$W$4:$X$8,2,FALSE),IF(B62="O-VII",VLOOKUP(C15,A!$Z$4:$AA$8,2,FALSE),IF(B62=" ",0,"Error")))))))))) -> 11766 | D62: =IF(D15=0,0,IF(Main!L17="S.Staff",VLOOKUP(D15,A!$B$36:$C$44,2,FALSE),IF(Main!L17="Clerk",VLOOKUP(D15,A!$E$36:$F$44,2,FALSE),IF(Main!L17="O-I",VLOOKUP(D15,A!$H$36:$I$44,2,FALSE),IF(Main!L17="O-II",VLOOKUP(D15,A!$K$36:$L$44,2,FALSE),IF(Main!L17="O-III",VLOOKUP(D15,A!$N$36:$O$44,2,FALSE),IF(Main!L17="O-IV",VLOOKUP(D15,A!$Q$36:$R$44,2,FALSE),IF(Main!L17="O-V",VLOOKUP(D15,A!$T$36:$U$44,2,FALSE),IF(Main!L17="O-VI",VLOOKUP(D15,A!$W$36:$X$44,2,FALSE),IF(Main!L17="O-VII",VLOOKUP(D15,A!$Z$36:$AA$44,2,FALSE),IF(Main!L17=" ",0,"Error"))))))))))) -> 0 | E62: =IF(E15=0,0,IF(B62="S.Staff",VLOOKUP(E15,A!$D$163:$E$168,2,FALSE),IF(B62="Clerk",VLOOKUP(E15,A!$B$163:$C$168,2,FALSE),VLOOKUP(E15,A!$F$163:$G$168,2,FALSE)))) -> 0 | F62: =IF(F15=0,0,IF(B15="Clerk",VLOOKUP(F15,A!$G$178:$H$182,2,FALSE),IF(B15="S.Staff",VLOOKUP(F15,A!$N$178:$O$187,2,FALSE),0))) -> 0 | H62: =ROUND((C62+E62+F62+G62)*A!E91*A!$E$80,2) -> 2259.07 | I62: =ROUND((C62+E62+F62+G62)*Main!AB17,2) -> 1176.6 | J62: =MIN(ROUND(C62*Main!AD17,2),Main!AE17) -> 0 | K62: 225 | L62: 0 | M62: =IF(Main!$C$3="PF",ROUND(('Calculation Sheet'!C62+'Calculation Sheet'!Z62+'Calculation Sheet'!E62+'Calculation Sheet'!F62+'Calculation Sheet'!G62)*10%,2),IF(Main!$C$3="NPS",ROUND(('Calculation Sheet'!C62+'Calculation Sheet'!Z62+'Calculation Sheet'!E62+'Calculation Sheet'!F62+'Calculation Sheet'!G62+'Calculation Sheet'!H62)*12%,0),0)) -> 0 | N62: 15426.67 | O62: 0 | P62: 0 | Q62: 15426.67 | R62: 877.27 | S62: 0.06029595722 | Z62: =IF(D62<>0,IF(B15="Clerk",A!$F$36,IF(B15="S.Staff",A!$C$36,IF(B15="O-I",A!$I$36,IF(B15="O-II",A!$L$36,IF(B15="O-III",A!$O$36,IF(B15="O-IV",A!$R$36,IF(B15="O-V",A!$U$36,IF(B15="O-VI",A!$X$36,IF(B15="O-VII",A!$AA$36,))))))))),0) -> 0 | AB62: 30
A63: Oct.13 | B63: Clerk | C63: =IF(B63="S.Staff",VLOOKUP(C16,A!$B$4:$C$31,2,FALSE),IF(B63="Clerk",VLOOKUP(C16,A!$E$4:$F$30,2,FALSE),IF(B63="O-I",VLOOKUP(C16,A!$H$4:$I$27,2,FALSE),IF(B63="O-II",VLOOKUP(C16,A!$K$4:$L$22,2,FALSE),IF(B63="O-III",VLOOKUP(C16,A!$N$4:$O$15,2,FALSE),IF(B63="O-IV",VLOOKUP(C16,A!$Q$4:$R$10,2,FALSE),IF(B63="O-V",VLOOKUP(C16,A!$T$4:$U$8,2,FALSE),IF(B63="O-VI",VLOOKUP(C16,A!$W$4:$X$8,2,FALSE),IF(B63="O-VII",VLOOKUP(C16,A!$Z$4:$AA$8,2,FALSE),IF(B63=" ",0,"Error")))))))))) -> 11766 | D63: =IF(D16=0,0,IF(Main!L18="S.Staff",VLOOKUP(D16,A!$B$36:$C$44,2,FALSE),IF(Main!L18="Clerk",VLOOKUP(D16,A!$E$36:$F$44,2,FALSE),IF(Main!L18="O-I",VLOOKUP(D16,A!$H$36:$I$44,2,FALSE),IF(Main!L18="O-II",VLOOKUP(D16,A!$K$36:$L$44,2,FALSE),IF(Main!L18="O-III",VLOOKUP(D16,A!$N$36:$O$44,2,FALSE),IF(Main!L18="O-IV",VLOOKUP(D16,A!$Q$36:$R$44,2,FALSE),IF(Main!L18="O-V",VLOOKUP(D16,A!$T$36:$U$44,2,FALSE),IF(Main!L18="O-VI",VLOOKUP(D16,A!$W$36:$X$44,2,FALSE),IF(Main!L18="O-VII",VLOOKUP(D16,A!$Z$36:$AA$44,2,FALSE),IF(Main!L18=" ",0,"Error"))))))))))) -> 0 | E63: =IF(E16=0,0,IF(B63="S.Staff",VLOOKUP(E16,A!$D$163:$E$168,2,FALSE),IF(B63="Clerk",VLOOKUP(E16,A!$B$163:$C$168,2,FALSE),VLOOKUP(E16,A!$F$163:$G$168,2,FALSE)))) -> 0 | F63: =IF(F16=0,0,IF(B16="Clerk",VLOOKUP(F16,A!$G$178:$H$182,2,FALSE),IF(B16="S.Staff",VLOOKUP(F16,A!$N$178:$O$187,2,FALSE),0))) -> 0 | H63: =ROUND((C63+E63+F63+G63)*A!E92*A!$E$80,2) -> 2259.07 | I63: =ROUND((C63+E63+F63+G63)*Main!AB18,2) -> 1176.6 | J63: =MIN(ROUND(C63*Main!AD18,2),Main!AE18) -> 0 | K63: 225 | L63: 0 | M63: =IF(Main!$C$3="PF",ROUND(('Calculation Sheet'!C63+'Calculation Sheet'!Z63+'Calculation Sheet'!E63+'Calculation Sheet'!F63+'Calculation Sheet'!G63)*10%,2),IF(Main!$C$3="NPS",ROUND(('Calculation Sheet'!C63+'Calculation Sheet'!Z63+'Calculation Sheet'!E63+'Calculation Sheet'!F63+'Calculation Sheet'!G63+'Calculation Sheet'!H63)*12%,0),0)) -> 0 | N63: 15426.67 | O63: 0 | P63: 0 | Q63: 15426.67 | R63: 877.27 | S63: 0.06029595722 | Z63: =IF(D63<>0,IF(B16="Clerk",A!$F$36,IF(B16="S.Staff",A!$C$36,IF(B16="O-I",A!$I$36,IF(B16="O-II",A!$L$36,IF(B16="O-III",A!$O$36,IF(B16="O-IV",A!$R$36,IF(B16="O-V",A!$U$36,IF(B16="O-VI",A!$X$36,IF(B16="O-VII",A!$AA$36,))))))))),0) -> 0 | AB63: 31
A64: Nov.13 | B64: Clerk | C64: =IF(B64="S.Staff",VLOOKUP(C17,A!$B$4:$C$31,2,FALSE),IF(B64="Clerk",VLOOKUP(C17,A!$E$4:$F$30,2,FALSE),IF(B64="O-I",VLOOKUP(C17,A!$H$4:$I$27,2,FALSE),IF(B64="O-II",VLOOKUP(C17,A!$K$4:$L$22,2,FALSE),IF(B64="O-III",VLOOKUP(C17,A!$N$4:$O$15,2,FALSE),IF(B64="O-IV",VLOOKUP(C17,A!$Q$4:$R$10,2,FALSE),IF(B64="O-V",VLOOKUP(C17,A!$T$4:$U$8,2,FALSE),IF(B64="O-VI",VLOOKUP(C17,A!$W$4:$X$8,2,FALSE),IF(B64="O-VII",VLOOKUP(C17,A!$Z$4:$AA$8,2,FALSE),IF(B64=" ",0,"Error")))))))))) -> 11766 | D64: =IF(D17=0,0,IF(Main!L19="S.Staff",VLOOKUP(D17,A!$B$36:$C$44,2,FALSE),IF(Main!L19="Clerk",VLOOKUP(D17,A!$E$36:$F$44,2,FALSE),IF(Main!L19="O-I",VLOOKUP(D17,A!$H$36:$I$44,2,FALSE),IF(Main!L19="O-II",VLOOKUP(D17,A!$K$36:$L$44,2,FALSE),IF(Main!L19="O-III",VLOOKUP(D17,A!$N$36:$O$44,2,FALSE),IF(Main!L19="O-IV",VLOOKUP(D17,A!$Q$36:$R$44,2,FALSE),IF(Main!L19="O-V",VLOOKUP(D17,A!$T$36:$U$44,2,FALSE),IF(Main!L19="O-VI",VLOOKUP(D17,A!$W$36:$X$44,2,FALSE),IF(Main!L19="O-VII",VLOOKUP(D17,A!$Z$36:$AA$44,2,FALSE),IF(Main!L19=" ",0,"Error"))))))))))) -> 0 | E64: =IF(E17=0,0,IF(B64="S.Staff",VLOOKUP(E17,A!$D$163:$E$168,2,FALSE),IF(B64="Clerk",VLOOKUP(E17,A!$B$163:$C$168,2,FALSE),VLOOKUP(E17,A!$F$163:$G$168,2,FALSE)))) -> 0 | F64: =IF(F17=0,0,IF(B17="Clerk",VLOOKUP(F17,A!$G$178:$H$182,2,FALSE),IF(B17="S.Staff",VLOOKUP(F17,A!$N$178:$O$187,2,FALSE),0))) -> 0 | H64: =ROUND((C64+E64+F64+G64)*A!E93*A!$E$80,2) -> 2823.84 | I64: =ROUND((C64+E64+F64+G64)*Main!AB19,2) -> 1176.6 | J64: =MIN(ROUND(C64*Main!AD19,2),Main!AE19) -> 0 | K64: 225 | L64: 0 | M64: =IF(Main!$C$3="PF",ROUND(('Calculation Sheet'!C64+'Calculation Sheet'!Z64+'Calculation Sheet'!E64+'Calculation Sheet'!F64+'Calculation Sheet'!G64)*10%,2),IF(Main!$C$3="NPS",ROUND(('Calculation Sheet'!C64+'Calculation Sheet'!Z64+'Calculation Sheet'!E64+'Calculation Sheet'!F64+'Calculation Sheet'!G64+'Calculation Sheet'!H64)*12%,0),0)) -> 0 | N64: 15991.44 | O64: 0 | P64: 0 | Q64: 15991.44 | R64: 923.64 | S64: 0.06129892884 | Z64: =IF(D64<>0,IF(B17="Clerk",A!$F$36,IF(B17="S.Staff",A!$C$36,IF(B17="O-I",A!$I$36,IF(B17="O-II",A!$L$36,IF(B17="O-III",A!$O$36,IF(B17="O-IV",A!$R$36,IF(B17="O-V",A!$U$36,IF(B17="O-VI",A!$X$36,IF(B17="O-VII",A!$AA$36,))))))))),0) -> 0 | AB64: 30
A65: Dec.13 | B65: Clerk | C65: =IF(B65="S.Staff",VLOOKUP(C18,A!$B$4:$C$31,2,FALSE),IF(B65="Clerk",VLOOKUP(C18,A!$E$4:$F$30,2,FALSE),IF(B65="O-I",VLOOKUP(C18,A!$H$4:$I$27,2,FALSE),IF(B65="O-II",VLOOKUP(C18,A!$K$4:$L$22,2,FALSE),IF(B65="O-III",VLOOKUP(C18,A!$N$4:$O$15,2,FALSE),IF(B65="O-IV",VLOOKUP(C18,A!$Q$4:$R$10,2,FALSE),IF(B65="O-V",VLOOKUP(C18,A!$T$4:$U$8,2,FALSE),IF(B65="O-VI",VLOOKUP(C18,A!$W$4:$X$8,2,FALSE),IF(B65="O-VII",VLOOKUP(C18,A!$Z$4:$AA$8,2,FALSE),IF(B65=" ",0,"Error")))))))))) -> 11766 | D65: =IF(D18=0,0,IF(Main!L20="S.Staff",VLOOKUP(D18,A!$B$36:$C$44,2,FALSE),IF(Main!L20="Clerk",VLOOKUP(D18,A!$E$36:$F$44,2,FALSE),IF(Main!L20="O-I",VLOOKUP(D18,A!$H$36:$I$44,2,FALSE),IF(Main!L20="O-II",VLOOKUP(D18,A!$K$36:$L$44,2,FALSE),IF(Main!L20="O-III",VLOOKUP(D18,A!$N$36:$O$44,2,FALSE),IF(Main!L20="O-IV",VLOOKUP(D18,A!$Q$36:$R$44,2,FALSE),IF(Main!L20="O-V",VLOOKUP(D18,A!$T$36:$U$44,2,FALSE),IF(Main!L20="O-VI",VLOOKUP(D18,A!$W$36:$X$44,2,FALSE),IF(Main!L20="O-VII",VLOOKUP(D18,A!$Z$36:$AA$44,2,FALSE),IF(Main!L20=" ",0,"Error"))))))))))) -> 0 | E65: =IF(E18=0,0,IF(B65="S.Staff",VLOOKUP(E18,A!$D$163:$E$168,2,FALSE),IF(B65="Clerk",VLOOKUP(E18,A!$B$163:$C$168,2,FALSE),VLOOKUP(E18,A!$F$163:$G$168,2,FALSE)))) -> 0 | F65: =IF(F18=0,0,IF(B18="Clerk",VLOOKUP(F18,A!$G$178:$H$182,2,FALSE),IF(B18="S.Staff",VLOOKUP(F18,A!$N$178:$O$187,2,FALSE),0))) -> 0 | H65: =ROUND((C65+E65+F65+G65)*A!E94*A!$E$80,2) -> 2823.84 | I65: =ROUND((C65+E65+F65+G65)*Main!AB20,2) -> 1176.6 | J65: =MIN(ROUND(C65*Main!AD20,2),Main!AE20) -> 0 | K65: 225 | L65: 0 | M65: =IF(Main!$C$3="PF",ROUND(('Calculation Sheet'!C65+'Calculation Sheet'!Z65+'Calculation Sheet'!E65+'Calculation Sheet'!F65+'Calculation Sheet'!G65)*10%,2),IF(Main!$C$3="NPS",ROUND(('Calculation Sheet'!C65+'Calculation Sheet'!Z65+'Calculation Sheet'!E65+'Calculation Sheet'!F65+'Calculation Sheet'!G65+'Calculation Sheet'!H65)*12%,0),0)) -> 0 | N65: 15991.44 | O65: 0 | P65: 0 | Q65: 15991.44 | R65: 923.64 | S65: 0.06129892884 | Z65: =IF(D65<>0,IF(B18="Clerk",A!$F$36,IF(B18="S.Staff",A!$C$36,IF(B18="O-I",A!$I$36,IF(B18="O-II",A!$L$36,IF(B18="O-III",A!$O$36,IF(B18="O-IV",A!$R$36,IF(B18="O-V",A!$U$36,IF(B18="O-VI",A!$X$36,IF(B18="O-VII",A!$AA$36,))))))))),0) -> 0 | AB65: 31
A66: Jan.14 | B66: Clerk | C66: =IF(B66="S.Staff",VLOOKUP(C19,A!$B$4:$C$31,2,FALSE),IF(B66="Clerk",VLOOKUP(C19,A!$E$4:$F$30,2,FALSE),IF(B66="O-I",VLOOKUP(C19,A!$H$4:$I$27,2,FALSE),IF(B66="O-II",VLOOKUP(C19,A!$K$4:$L$22,2,FALSE),IF(B66="O-III",VLOOKUP(C19,A!$N$4:$O$15,2,FALSE),IF(B66="O-IV",VLOOKUP(C19,A!$Q$4:$R$10,2,FALSE),IF(B66="O-V",VLOOKUP(C19,A!$T$4:$U$8,2,FALSE),IF(B66="O-VI",VLOOKUP(C19,A!$W$4:$X$8,2,FALSE),IF(B66="O-VII",VLOOKUP(C19,A!$Z$4:$AA$8,2,FALSE),IF(B66=" ",0,"Error")))))))))) -> 11766 | D66: =IF(D19=0,0,IF(Main!L21="S.Staff",VLOOKUP(D19,A!$B$36:$C$44,2,FALSE),IF(Main!L21="Clerk",VLOOKUP(D19,A!$E$36:$F$44,2,FALSE),IF(Main!L21="O-I",VLOOKUP(D19,A!$H$36:$I$44,2,FALSE),IF(Main!L21="O-II",VLOOKUP(D19,A!$K$36:$L$44,2,FALSE),IF(Main!L21="O-III",VLOOKUP(D19,A!$N$36:$O$44,2,FALSE),IF(Main!L21="O-IV",VLOOKUP(D19,A!$Q$36:$R$44,2,FALSE),IF(Main!L21="O-V",VLOOKUP(D19,A!$T$36:$U$44,2,FALSE),IF(Main!L21="O-VI",VLOOKUP(D19,A!$W$36:$X$44,2,FALSE),IF(Main!L21="O-VII",VLOOKUP(D19,A!$Z$36:$AA$44,2,FALSE),IF(Main!L21=" ",0,"Error"))))))))))) -> 0 | E66: =IF(E19=0,0,IF(B66="S.Staff",VLOOKUP(E19,A!$D$163:$E$168,2,FALSE),IF(B66="Clerk",VLOOKUP(E19,A!$B$163:$C$168,2,FALSE),VLOOKUP(E19,A!$F$163:$G$168,2,FALSE)))) -> 0 | F66: =IF(F19=0,0,IF(B19="Clerk",VLOOKUP(F19,A!$G$178:$H$182,2,FALSE),IF(B19="S.Staff",VLOOKUP(F19,A!$N$178:$O$187,2,FALSE),0))) -> 0 | H66: =ROUND((C66+E66+F66+G66)*A!E95*A!$E$80,2) -> 2823.84 | I66: =ROUND((C66+E66+F66+G66)*Main!AB21,2) -> 1176.6 | J66: =MIN(ROUND(C66*Main!AD21,2),Main!AE21) -> 0 | K66: 225 | L66: 0 | M66: =IF(Main!$C$3="PF",ROUND(('Calculation Sheet'!C66+'Calculation Sheet'!Z66+'Calculation Sheet'!E66+'Calculation Sheet'!F66+'Calculation Sheet'!G66)*10%,2),IF(Main!$C$3="NPS",ROUND(('Calculation Sheet'!C66+'Calculation Sheet'!Z66+'Calculation Sheet'!E66+'Calculation Sheet'!F66+'Calculation Sheet'!G66+'Calculation Sheet'!H66)*12%,0),0)) -> 0 | N66: 15991.44 | O66: 0 | P66: 0 | Q66: 15991.44 | R66: 923.64 | S66: 0.06129892884 | Z66: =IF(D66<>0,IF(B19="Clerk",A!$F$36,IF(B19="S.Staff",A!$C$36,IF(B19="O-I",A!$I$36,IF(B19="O-II",A!$L$36,IF(B19="O-III",A!$O$36,IF(B19="O-IV",A!$R$36,IF(B19="O-V",A!$U$36,IF(B19="O-VI",A!$X$36,IF(B19="O-VII",A!$AA$36,))))))))),0) -> 0 | AB66: 31
A67: Feb.14 | B67: Clerk | C67: =IF(B67="S.Staff",VLOOKUP(C20,A!$B$4:$C$31,2,FALSE),IF(B67="Clerk",VLOOKUP(C20,A!$E$4:$F$30,2,FALSE),IF(B67="O-I",VLOOKUP(C20,A!$H$4:$I$27,2,FALSE),IF(B67="O-II",VLOOKUP(C20,A!$K$4:$L$22,2,FALSE),IF(B67="O-III",VLOOKUP(C20,A!$N$4:$O$15,2,FALSE),IF(B67="O-IV",VLOOKUP(C20,A!$Q$4:$R$10,2,FALSE),IF(B67="O-V",VLOOKUP(C20,A!$T$4:$U$8,2,FALSE),IF(B67="O-VI",VLOOKUP(C20,A!$W$4:$X$8,2,FALSE),IF(B67="O-VII",VLOOKUP(C20,A!$Z$4:$AA$8,2,FALSE),IF(B67=" ",0,"Error")))))))))) -> 11766 | D67: =IF(D20=0,0,IF(Main!L22="S.Staff",VLOOKUP(D20,A!$B$36:$C$44,2,FALSE),IF(Main!L22="Clerk",VLOOKUP(D20,A!$E$36:$F$44,2,FALSE),IF(Main!L22="O-I",VLOOKUP(D20,A!$H$36:$I$44,2,FALSE),IF(Main!L22="O-II",VLOOKUP(D20,A!$K$36:$L$44,2,FALSE),IF(Main!L22="O-III",VLOOKUP(D20,A!$N$36:$O$44,2,FALSE),IF(Main!L22="O-IV",VLOOKUP(D20,A!$Q$36:$R$44,2,FALSE),IF(Main!L22="O-V",VLOOKUP(D20,A!$T$36:$U$44,2,FALSE),IF(Main!L22="O-VI",VLOOKUP(D20,A!$W$36:$X$44,2,FALSE),IF(Main!L22="O-VII",VLOOKUP(D20,A!$Z$36:$AA$44,2,FALSE),IF(Main!L22=" ",0,"Error"))))))))))) -> 0 | E67: =IF(E20=0,0,IF(B67="S.Staff",VLOOKUP(E20,A!$D$163:$E$168,2,FALSE),IF(B67="Clerk",VLOOKUP(E20,A!$B$163:$C$168,2,FALSE),VLOOKUP(E20,A!$F$163:$G$168,2,FALSE)))) -> 0 | F67: =IF(F20=0,0,IF(B20="Clerk",VLOOKUP(F20,A!$G$178:$H$182,2,FALSE),IF(B20="S.Staff",VLOOKUP(F20,A!$N$178:$O$187,2,FALSE),0))) -> 0 | H67: =ROUND((C67+E67+F67+G67)*A!E96*A!$E$80,2) -> 3117.99 | I67: =ROUND((C67+E67+F67+G67)*Main!AB22,2) -> 1176.6 | J67: =MIN(ROUND(C67*Main!AD22,2),Main!AE22) -> 0 | K67: 225 | L67: 0 | M67: =IF(Main!$C$3="PF",ROUND(('Calculation Sheet'!C67+'Calculation Sheet'!Z67+'Calculation Sheet'!E67+'Calculation Sheet'!F67+'Calculation Sheet'!G67)*10%,2),IF(Main!$C$3="NPS",ROUND(('Calculation Sheet'!C67+'Calculation Sheet'!Z67+'Calculation Sheet'!E67+'Calculation Sheet'!F67+'Calculation Sheet'!G67+'Calculation Sheet'!H67)*12%,0),0)) -> 0 | N67: 16285.59 | O67: 0 | P67: 0 | Q67: 16285.59 | R67: 947.79 | S67: 0.06179439033 | Z67: =IF(D67<>0,IF(B20="Clerk",A!$F$36,IF(B20="S.Staff",A!$C$36,IF(B20="O-I",A!$I$36,IF(B20="O-II",A!$L$36,IF(B20="O-III",A!$O$36,IF(B20="O-IV",A!$R$36,IF(B20="O-V",A!$U$36,IF(B20="O-VI",A!$X$36,IF(B20="O-VII",A!$AA$36,))))))))),0) -> 0 | AB67: 28
A68: Mar.14 | B68: Clerk | C68: =IF(B68="S.Staff",VLOOKUP(C21,A!$B$4:$C$31,2,FALSE),IF(B68="Clerk",VLOOKUP(C21,A!$E$4:$F$30,2,FALSE),IF(B68="O-I",VLOOKUP(C21,A!$H$4:$I$27,2,FALSE),IF(B68="O-II",VLOOKUP(C21,A!$K$4:$L$22,2,FALSE),IF(B68="O-III",VLOOKUP(C21,A!$N$4:$O$15,2,FALSE),IF(B68="O-IV",VLOOKUP(C21,A!$Q$4:$R$10,2,FALSE),IF(B68="O-V",VLOOKUP(C21,A!$T$4:$U$8,2,FALSE),IF(B68="O-VI",VLOOKUP(C21,A!$W$4:$X$8,2,FALSE),IF(B68="O-VII",VLOOKUP(C21,A!$Z$4:$AA$8,2,FALSE),IF(B68=" ",0,"Error")))))))))) -> 11766 | D68: =IF(D21=0,0,IF(Main!L23="S.Staff",VLOOKUP(D21,A!$B$36:$C$44,2,FALSE),IF(Main!L23="Clerk",VLOOKUP(D21,A!$E$36:$F$44,2,FALSE),IF(Main!L23="O-I",VLOOKUP(D21,A!$H$36:$I$44,2,FALSE),IF(Main!L23="O-II",VLOOKUP(D21,A!$K$36:$L$44,2,FALSE),IF(Main!L23="O-III",VLOOKUP(D21,A!$N$36:$O$44,2,FALSE),IF(Main!L23="O-IV",VLOOKUP(D21,A!$Q$36:$R$44,2,FALSE),IF(Main!L23="O-V",VLOOKUP(D21,A!$T$36:$U$44,2,FALSE),IF(Main!L23="O-VI",VLOOKUP(D21,A!$W$36:$X$44,2,FALSE),IF(Main!L23="O-VII",VLOOKUP(D21,A!$Z$36:$AA$44,2,FALSE),IF(Main!L23=" ",0,"Error"))))))))))) -> 0 | E68: =IF(E21=0,0,IF(B68="S.Staff",VLOOKUP(E21,A!$D$163:$E$168,2,FALSE),IF(B68="Clerk",VLOOKUP(E21,A!$B$163:$C$168,2,FALSE),VLOOKUP(E21,A!$F$163:$G$168,2,FALSE)))) -> 0 | F68: =IF(F21=0,0,IF(B21="Clerk",VLOOKUP(F21,A!$G$178:$H$182,2,FALSE),IF(B21="S.Staff",VLOOKUP(F21,A!$N$178:$O$187,2,FALSE),0))) -> 0 | H68: =ROUND((C68+E68+F68+G68)*A!E97*A!$E$80,2) -> 3117.99 | I68: =ROUND((C68+E68+F68+G68)*Main!AB23,2) -> 1176.6 | J68: =MIN(ROUND(C68*Main!AD23,2),Main!AE23) -> 0 | K68: 225 | L68: 0 | M68: =IF(Main!$C$3="PF",ROUND(('Calculation Sheet'!C68+'Calculation Sheet'!Z68+'Calculation Sheet'!E68+'Calculation Sheet'!F68+'Calculation Sheet'!G68)*10%,2),IF(Main!$C$3="NPS",ROUND(('Calculation Sheet'!C68+'Calculation Sheet'!Z68+'Calculation Sheet'!E68+'Calculation Sheet'!F68+'Calculation Sheet'!G68+'Calculation Sheet'!H68)*12%,0),0)) -> 0 | N68: 16285.59 | O68: 0 | P68: 0 | Q68: 16285.59 | R68: 947.79 | S68: 0.06179439033 | Z68: =IF(D68<>0,IF(B21="Clerk",A!$F$36,IF(B21="S.Staff",A!$C$36,IF(B21="O-I",A!$I$36,IF(B21="O-II",A!$L$36,IF(B21="O-III",A!$O$36,IF(B21="O-IV",A!$R$36,IF(B21="O-V",A!$U$36,IF(B21="O-VI",A!$X$36,IF(B21="O-VII",A!$AA$36,))))))))),0) -> 0 | AB68: 31
A69: Total 2013-14 | C69: =SUM(C57:C68) -> 141192 | D69: =SUM(D57:D68) -> 0 | E69: 0 | F69: 0 | G69: 0 | H69: 28709.03 | I69: 14119.2 | J69: 0 | K69: 2700 | L69: 0 | M69: 0 | N69: 186720.23 | P69: =SUM(P57:P68) -> 0 | Q69: 186720.23 | R69: 10658.63 | S69: 0.060539209
A70: =+A23 -> Apr.14 | B70: =+B23 -> Clerk | C70: =IF(B70="S.Staff",VLOOKUP(C23,A!$B$4:$C$31,2,FALSE),IF(B70="Clerk",VLOOKUP(C23,A!$E$4:$F$30,2,FALSE),IF(B70="O-I",VLOOKUP(C23,A!$H$4:$I$27,2,FALSE),IF(B70="O-II",VLOOKUP(C23,A!$K$4:$L$22,2,FALSE),IF(B70="O-III",VLOOKUP(C23,A!$N$4:$O$15,2,FALSE),IF(B70="O-IV",VLOOKUP(C23,A!$Q$4:$R$10,2,FALSE),IF(B70="O-V",VLOOKUP(C23,A!$T$4:$U$8,2,FALSE),IF(B70="O-VI",VLOOKUP(C23,A!$W$4:$X$8,2,FALSE),IF(B70="O-VII",VLOOKUP(C23,A!$Z$4:$AA$8,2,FALSE),IF(B70=" ",0,"Error")))))))))) -> 11766 | D70: =IF(D23=0,0,IF(Main!L24="S.Staff",VLOOKUP(D23,A!$B$36:$C$44,2,FALSE),IF(Main!L24="Clerk",VLOOKUP(D23,A!$E$36:$F$44,2,FALSE),IF(Main!L24="O-I",VLOOKUP(D23,A!$H$36:$I$44,2,FALSE),IF(Main!L24="O-II",VLOOKUP(D23,A!$K$36:$L$44,2,FALSE),IF(Main!L24="O-III",VLOOKUP(D23,A!$N$36:$O$44,2,FALSE),IF(Main!L24="O-IV",VLOOKUP(D23,A!$Q$36:$R$44,2,FALSE),IF(Main!L24="O-V",VLOOKUP(D23,A!$T$36:$U$44,2,FALSE),IF(Main!L24="O-VI",VLOOKUP(D23,A!$W$36:$X$44,2,FALSE),IF(Main!L24="O-VII",VLOOKUP(D23,A!$Z$36:$AA$44,2,FALSE),IF(Main!L24=" ",0,"Error"))))))))))) -> 0 | E70: =IF(E23=0,0,IF(B70="S.Staff",VLOOKUP(E23,A!$D$163:$E$168,2,FALSE),IF(B70="Clerk",VLOOKUP(E23,A!$B$163:$C$168,2,FALSE),VLOOKUP(E23,A!$F$163:$G$168,2,FALSE)))) -> 0 | F70: =IF(F23=0,0,IF(B23="Clerk",VLOOKUP(F23,A!$G$178:$H$182,2,FALSE),IF(B23="S.Staff",VLOOKUP(F23,A!$N$178:$O$187,2,FALSE),0))) -> 0 | H70: =ROUND((C70+E70+F70+G70)*A!E98*A!$E$80,2) -> 3117.99 | I70: =ROUND((C70+E70+F70+G70)*Main!AB24,2) -> 1176.6 | J70: =MIN(ROUND(C70*Main!AD24,2),Main!AE24) -> 0 | K70: =IF(B70="Clerk",IF(C70>14100,275,225),IF(B70="S.Staff",IF(C70>9100,275,225),0)) -> 225 | L70: =IF(B70="S.Staff",100,0) -> 0 | M70: =IF(Main!$C$3="PF",ROUND(('Calculation Sheet'!C70+'Calculation Sheet'!Z70+'Calculation Sheet'!E70+'Calculation Sheet'!F70+'Calculation Sheet'!G70)*10%,2),IF(Main!$C$3="NPS",ROUND(('Calculation Sheet'!C70+'Calculation Sheet'!Z70+'Calculation Sheet'!E70+'Calculation Sheet'!F70+'Calculation Sheet'!G70+'Calculation Sheet'!H70)*12%,0),0)) -> 0 | N70: =SUM(C70:M70) -> 16285.59 | O70: 0 | P70: =ROUND(N70*O70/AB70,2) -> 0 | Q70: =+N70-P70 -> 16285.59 | R70: 947.79 | S70: 0.06179439033 | Z70: =IF(D70<>0,IF(B23="Clerk",A!$F$36,IF(B23="S.Staff",A!$C$36,IF(B23="O-I",A!$I$36,IF(B23="O-II",A!$L$36,IF(B23="O-III",A!$O$36,IF(B23="O-IV",A!$R$36,IF(B23="O-V",A!$U$36,IF(B23="O-VI",A!$X$36,IF(B23="O-VII",A!$AA$36,))))))))),0) -> 0 | AB70: 30
A71: May.14 | B71: Clerk | C71: =IF(B71="S.Staff",VLOOKUP(C24,A!$B$4:$C$31,2,FALSE),IF(B71="Clerk",VLOOKUP(C24,A!$E$4:$F$30,2,FALSE),IF(B71="O-I",VLOOKUP(C24,A!$H$4:$I$27,2,FALSE),IF(B71="O-II",VLOOKUP(C24,A!$K$4:$L$22,2,FALSE),IF(B71="O-III",VLOOKUP(C24,A!$N$4:$O$15,2,FALSE),IF(B71="O-IV",VLOOKUP(C24,A!$Q$4:$R$10,2,FALSE),IF(B71="O-V",VLOOKUP(C24,A!$T$4:$U$8,2,FALSE),IF(B71="O-VI",VLOOKUP(C24,A!$W$4:$X$8,2,FALSE),IF(B71="O-VII",VLOOKUP(C24,A!$Z$4:$AA$8,2,FALSE),IF(B71=" ",0,"Error")))))))))) -> 11766 | D71: =IF(D24=0,0,IF(Main!L25="S.Staff",VLOOKUP(D24,A!$B$36:$C$44,2,FALSE),IF(Main!L25="Clerk",VLOOKUP(D24,A!$E$36:$F$44,2,FALSE),IF(Main!L25="O-I",VLOOKUP(D24,A!$H$36:$I$44,2,FALSE),IF(Main!L25="O-II",VLOOKUP(D24,A!$K$36:$L$44,2,FALSE),IF(Main!L25="O-III",VLOOKUP(D24,A!$N$36:$O$44,2,FALSE),IF(Main!L25="O-IV",VLOOKUP(D24,A!$Q$36:$R$44,2,FALSE),IF(Main!L25="O-V",VLOOKUP(D24,A!$T$36:$U$44,2,FALSE),IF(Main!L25="O-VI",VLOOKUP(D24,A!$W$36:$X$44,2,FALSE),IF(Main!L25="O-VII",VLOOKUP(D24,A!$Z$36:$AA$44,2,FALSE),IF(Main!L25=" ",0,"Error"))))))))))) -> 0 | E71: =IF(E24=0,0,IF(B71="S.Staff",VLOOKUP(E24,A!$D$163:$E$168,2,FALSE),IF(B71="Clerk",VLOOKUP(E24,A!$B$163:$C$168,2,FALSE),VLOOKUP(E24,A!$F$163:$G$168,2,FALSE)))) -> 0 | F71: =IF(F24=0,0,IF(B24="Clerk",VLOOKUP(F24,A!$G$178:$H$182,2,FALSE),IF(B24="S.Staff",VLOOKUP(F24,A!$N$178:$O$187,2,FALSE),0))) -> 0 | H71: =ROUND((C71+E71+F71+G71)*A!E99*A!$E$80,2) -> 2929.73 | I71: =ROUND((C71+E71+F71+G71)*Main!AB25,2) -> 1176.6 | J71: =MIN(ROUND(C71*Main!AD25,2),Main!AE25) -> 0 | K71: 225 | L71: 0 | M71: =IF(Main!$C$3="PF",ROUND(('Calculation Sheet'!C71+'Calculation Sheet'!Z71+'Calculation Sheet'!E71+'Calculation Sheet'!F71+'Calculation Sheet'!G71)*10%,2),IF(Main!$C$3="NPS",ROUND(('Calculation Sheet'!C71+'Calculation Sheet'!Z71+'Calculation Sheet'!E71+'Calculation Sheet'!F71+'Calculation Sheet'!G71+'Calculation Sheet'!H71)*12%,0),0)) -> 0 | N71: 16097.33 | O71: 0 | P71: 0 | Q71: 16097.33 | R71: 932.33 | S71: 0.06147906363 | Z71: =IF(D71<>0,IF(B24="Clerk",A!$F$36,IF(B24="S.Staff",A!$C$36,IF(B24="O-I",A!$I$36,IF(B24="O-II",A!$L$36,IF(B24="O-III",A!$O$36,IF(B24="O-IV",A!$R$36,IF(B24="O-V",A!$U$36,IF(B24="O-VI",A!$X$36,IF(B24="O-VII",A!$AA$36,))))))))),0) -> 0 | AB71: 31
A72: Jun.14 | B72: Clerk | C72: =IF(B72="S.Staff",VLOOKUP(C25,A!$B$4:$C$31,2,FALSE),IF(B72="Clerk",VLOOKUP(C25,A!$E$4:$F$30,2,FALSE),IF(B72="O-I",VLOOKUP(C25,A!$H$4:$I$27,2,FALSE),IF(B72="O-II",VLOOKUP(C25,A!$K$4:$L$22,2,FALSE),IF(B72="O-III",VLOOKUP(C25,A!$N$4:$O$15,2,FALSE),IF(B72="O-IV",VLOOKUP(C25,A!$Q$4:$R$10,2,FALSE),IF(B72="O-V",VLOOKUP(C25,A!$T$4:$U$8,2,FALSE),IF(B72="O-VI",VLOOKUP(C25,A!$W$4:$X$8,2,FALSE),IF(B72="O-VII",VLOOKUP(C25,A!$Z$4:$AA$8,2,FALSE),IF(B72=" ",0,"Error")))))))))) -> 11766 | D72: =IF(D25=0,0,IF(Main!L26="S.Staff",VLOOKUP(D25,A!$B$36:$C$44,2,FALSE),IF(Main!L26="Clerk",VLOOKUP(D25,A!$E$36:$F$44,2,FALSE),IF(Main!L26="O-I",VLOOKUP(D25,A!$H$36:$I$44,2,FALSE),IF(Main!L26="O-II",VLOOKUP(D25,A!$K$36:$L$44,2,FALSE),IF(Main!L26="O-III",VLOOKUP(D25,A!$N$36:$O$44,2,FALSE),IF(Main!L26="O-IV",VLOOKUP(D25,A!$Q$36:$R$44,2,FALSE),IF(Main!L26="O-V",VLOOKUP(D25,A!$T$36:$U$44,2,FALSE),IF(Main!L26="O-VI",VLOOKUP(D25,A!$W$36:$X$44,2,FALSE),IF(Main!L26="O-VII",VLOOKUP(D25,A!$Z$36:$AA$44,2,FALSE),IF(Main!L26=" ",0,"Error"))))))))))) -> 0 | E72: =IF(E25=0,0,IF(B72="S.Staff",VLOOKUP(E25,A!$D$163:$E$168,2,FALSE),IF(B72="Clerk",VLOOKUP(E25,A!$B$163:$C$168,2,FALSE),VLOOKUP(E25,A!$F$163:$G$168,2,FALSE)))) -> 0 | F72: =IF(F25=0,0,IF(B25="Clerk",VLOOKUP(F25,A!$G$178:$H$182,2,FALSE),IF(B25="S.Staff",VLOOKUP(F25,A!$N$178:$O$187,2,FALSE),0))) -> 0 | H72: =ROUND((C72+E72+F72+G72)*A!E100*A!$E$80,2) -> 2929.73 | I72: =ROUND((C72+E72+F72+G72)*Main!AB26,2) -> 1176.6 | J72: =MIN(ROUND(C72*Main!AD26,2),Main!AE26) -> 0 | K72: 225 | L72: 0 | M72: =IF(Main!$C$3="PF",ROUND(('Calculation Sheet'!C72+'Calculation Sheet'!Z72+'Calculation Sheet'!E72+'Calculation Sheet'!F72+'Calculation Sheet'!G72)*10%,2),IF(Main!$C$3="NPS",ROUND(('Calculation Sheet'!C72+'Calculation Sheet'!Z72+'Calculation Sheet'!E72+'Calculation Sheet'!F72+'Calculation Sheet'!G72+'Calculation Sheet'!H72)*12%,0),0)) -> 0 | N72: 16097.33 | O72: 0 | P72: 0 | Q72: 16097.33 | R72: 932.33 | S72: 0.06147906363 | Z72: =IF(D72<>0,IF(B25="Clerk",A!$F$36,IF(B25="S.Staff",A!$C$36,IF(B25="O-I",A!$I$36,IF(B25="O-II",A!$L$36,IF(B25="O-III",A!$O$36,IF(B25="O-IV",A!$R$36,IF(B25="O-V",A!$U$36,IF(B25="O-VI",A!$X$36,IF(B25="O-VII",A!$AA$36,))))))))),0) -> 0 | AB72: 30
A73: Jul.14 | B73: Clerk | C73: =IF(B73="S.Staff",VLOOKUP(C26,A!$B$4:$C$31,2,FALSE),IF(B73="Clerk",VLOOKUP(C26,A!$E$4:$F$30,2,FALSE),IF(B73="O-I",VLOOKUP(C26,A!$H$4:$I$27,2,FALSE),IF(B73="O-II",VLOOKUP(C26,A!$K$4:$L$22,2,FALSE),IF(B73="O-III",VLOOKUP(C26,A!$N$4:$O$15,2,FALSE),IF(B73="O-IV",VLOOKUP(C26,A!$Q$4:$R$10,2,FALSE),IF(B73="O-V",VLOOKUP(C26,A!$T$4:$U$8,2,FALSE),IF(B73="O-VI",VLOOKUP(C26,A!$W$4:$X$8,2,FALSE),IF(B73="O-VII",VLOOKUP(C26,A!$Z$4:$AA$8,2,FALSE),IF(B73=" ",0,"Error")))))))))) -> 11766 | D73: =IF(D26=0,0,IF(Main!L27="S.Staff",VLOOKUP(D26,A!$B$36:$C$44,2,FALSE),IF(Main!L27="Clerk",VLOOKUP(D26,A!$E$36:$F$44,2,FALSE),IF(Main!L27="O-I",VLOOKUP(D26,A!$H$36:$I$44,2,FALSE),IF(Main!L27="O-II",VLOOKUP(D26,A!$K$36:$L$44,2,FALSE),IF(Main!L27="O-III",VLOOKUP(D26,A!$N$36:$O$44,2,FALSE),IF(Main!L27="O-IV",VLOOKUP(D26,A!$Q$36:$R$44,2,FALSE),IF(Main!L27="O-V",VLOOKUP(D26,A!$T$36:$U$44,2,FALSE),IF(Main!L27="O-VI",VLOOKUP(D26,A!$W$36:$X$44,2,FALSE),IF(Main!L27="O-VII",VLOOKUP(D26,A!$Z$36:$AA$44,2,FALSE),IF(Main!L27=" ",0,"Error"))))))))))) -> 0 | E73: =IF(E26=0,0,IF(B73="S.Staff",VLOOKUP(E26,A!$D$163:$E$168,2,FALSE),IF(B73="Clerk",VLOOKUP(E26,A!$B$163:$C$168,2,FALSE),VLOOKUP(E26,A!$F$163:$G$168,2,FALSE)))) -> 0 | F73: =IF(F26=0,0,IF(B26="Clerk",VLOOKUP(F26,A!$G$178:$H$182,2,FALSE),IF(B26="S.Staff",VLOOKUP(F26,A!$N$178:$O$187,2,FALSE),0))) -> 0 | H73: =ROUND((C73+E73+F73+G73)*A!E101*A!$E$80,2) -> 2929.73 | I73: =ROUND((C73+E73+F73+G73)*Main!AB27,2) -> 1176.6 | J73: =MIN(ROUND(C73*Main!AD27,2),Main!AE27) -> 0 | K73: 225 | L73: 0 | M73: =IF(Main!$C$3="PF",ROUND(('Calculation Sheet'!C73+'Calculation Sheet'!Z73+'Calculation Sheet'!E73+'Calculation Sheet'!F73+'Calculation Sheet'!G73)*10%,2),IF(Main!$C$3="NPS",ROUND(('Calculation Sheet'!C73+'Calculation Sheet'!Z73+'Calculation Sheet'!E73+'Calculation Sheet'!F73+'Calculation Sheet'!G73+'Calculation Sheet'!H73)*12%,0),0)) -> 0 | N73: 16097.33 | O73: 0 | P73: 0 | Q73: 16097.33 | R73: 932.33 | S73: 0.06147906363 | Z73: =IF(D73<>0,IF(B26="Clerk",A!$F$36,IF(B26="S.Staff",A!$C$36,IF(B26="O-I",A!$I$36,IF(B26="O-II",A!$L$36,IF(B26="O-III",A!$O$36,IF(B26="O-IV",A!$R$36,IF(B26="O-V",A!$U$36,IF(B26="O-VI",A!$X$36,IF(B26="O-VII",A!$AA$36,))))))))),0) -> 0 | AB73: 31
A74: Aug.14 | B74: Clerk | C74: =IF(B74="S.Staff",VLOOKUP(C27,A!$B$4:$C$31,2,FALSE),IF(B74="Clerk",VLOOKUP(C27,A!$E$4:$F$30,2,FALSE),IF(B74="O-I",VLOOKUP(C27,A!$H$4:$I$27,2,FALSE),IF(B74="O-II",VLOOKUP(C27,A!$K$4:$L$22,2,FALSE),IF(B74="O-III",VLOOKUP(C27,A!$N$4:$O$15,2,FALSE),IF(B74="O-IV",VLOOKUP(C27,A!$Q$4:$R$10,2,FALSE),IF(B74="O-V",VLOOKUP(C27,A!$T$4:$U$8,2,FALSE),IF(B74="O-VI",VLOOKUP(C27,A!$W$4:$X$8,2,FALSE),IF(B74="O-VII",VLOOKUP(C27,A!$Z$4:$AA$8,2,FALSE),IF(B74=" ",0,"Error")))))))))) -> 11766 | D74: =IF(D27=0,0,IF(Main!L28="S.Staff",VLOOKUP(D27,A!$B$36:$C$44,2,FALSE),IF(Main!L28="Clerk",VLOOKUP(D27,A!$E$36:$F$44,2,FALSE),IF(Main!L28="O-I",VLOOKUP(D27,A!$H$36:$I$44,2,FALSE),IF(Main!L28="O-II",VLOOKUP(D27,A!$K$36:$L$44,2,FALSE),IF(Main!L28="O-III",VLOOKUP(D27,A!$N$36:$O$44,2,FALSE),IF(Main!L28="O-IV",VLOOKUP(D27,A!$Q$36:$R$44,2,FALSE),IF(Main!L28="O-V",VLOOKUP(D27,A!$T$36:$U$44,2,FALSE),IF(Main!L28="O-VI",VLOOKUP(D27,A!$W$36:$X$44,2,FALSE),IF(Main!L28="O-VII",VLOOKUP(D27,A!$Z$36:$AA$44,2,FALSE),IF(Main!L28=" ",0,"Error"))))))))))) -> 0 | E74: =IF(E27=0,0,IF(B74="S.Staff",VLOOKUP(E27,A!$D$163:$E$168,2,FALSE),IF(B74="Clerk",VLOOKUP(E27,A!$B$163:$C$168,2,FALSE),VLOOKUP(E27,A!$F$163:$G$168,2,FALSE)))) -> 0 | F74: =IF(F27=0,0,IF(B27="Clerk",VLOOKUP(F27,A!$G$178:$H$182,2,FALSE),IF(B27="S.Staff",VLOOKUP(F27,A!$N$178:$O$187,2,FALSE),0))) -> 0 | H74: =ROUND((C74+E74+F74+G74)*A!E102*A!$E$80,2) -> 3318.01 | I74: =ROUND((C74+E74+F74+G74)*Main!AB28,2) -> 1176.6 | J74: =MIN(ROUND(C74*Main!AD28,2),Main!AE28) -> 0 | K74: 225 | L74: 0 | M74: =IF(Main!$C$3="PF",ROUND(('Calculation Sheet'!C74+'Calculation Sheet'!Z74+'Calculation Sheet'!E74+'Calculation Sheet'!F74+'Calculation Sheet'!G74)*10%,2),IF(Main!$C$3="NPS",ROUND(('Calculation Sheet'!C74+'Calculation Sheet'!Z74+'Calculation Sheet'!E74+'Calculation Sheet'!F74+'Calculation Sheet'!G74+'Calculation Sheet'!H74)*12%,0),0)) -> 0 | N74: 16485.61 | O74: 0 | P74: 0 | Q74: 16485.61 | R74: 964.21 | S74: 0.06212132926 | Z74: =IF(D74<>0,IF(B27="Clerk",A!$F$36,IF(B27="S.Staff",A!$C$36,IF(B27="O-I",A!$I$36,IF(B27="O-II",A!$L$36,IF(B27="O-III",A!$O$36,IF(B27="O-IV",A!$R$36,IF(B27="O-V",A!$U$36,IF(B27="O-VI",A!$X$36,IF(B27="O-VII",A!$AA$36,))))))))),0) -> 0 | AB74: 31
A75: Sep.14 | B75: Clerk | C75: =IF(B75="S.Staff",VLOOKUP(C28,A!$B$4:$C$31,2,FALSE),IF(B75="Clerk",VLOOKUP(C28,A!$E$4:$F$30,2,FALSE),IF(B75="O-I",VLOOKUP(C28,A!$H$4:$I$27,2,FALSE),IF(B75="O-II",VLOOKUP(C28,A!$K$4:$L$22,2,FALSE),IF(B75="O-III",VLOOKUP(C28,A!$N$4:$O$15,2,FALSE),IF(B75="O-IV",VLOOKUP(C28,A!$Q$4:$R$10,2,FALSE),IF(B75="O-V",VLOOKUP(C28,A!$T$4:$U$8,2,FALSE),IF(B75="O-VI",VLOOKUP(C28,A!$W$4:$X$8,2,FALSE),IF(B75="O-VII",VLOOKUP(C28,A!$Z$4:$AA$8,2,FALSE),IF(B75=" ",0,"Error")))))))))) -> 11766 | D75: =IF(D28=0,0,IF(Main!L29="S.Staff",VLOOKUP(D28,A!$B$36:$C$44,2,FALSE),IF(Main!L29="Clerk",VLOOKUP(D28,A!$E$36:$F$44,2,FALSE),IF(Main!L29="O-I",VLOOKUP(D28,A!$H$36:$I$44,2,FALSE),IF(Main!L29="O-II",VLOOKUP(D28,A!$K$36:$L$44,2,FALSE),IF(Main!L29="O-III",VLOOKUP(D28,A!$N$36:$O$44,2,FALSE),IF(Main!L29="O-IV",VLOOKUP(D28,A!$Q$36:$R$44,2,FALSE),IF(Main!L29="O-V",VLOOKUP(D28,A!$T$36:$U$44,2,FALSE),IF(Main!L29="O-VI",VLOOKUP(D28,A!$W$36:$X$44,2,FALSE),IF(Main!L29="O-VII",VLOOKUP(D28,A!$Z$36:$AA$44,2,FALSE),IF(Main!L29=" ",0,"Error"))))))))))) -> 0 | E75: =IF(E28=0,0,IF(B75="S.Staff",VLOOKUP(E28,A!$D$163:$E$168,2,FALSE),IF(B75="Clerk",VLOOKUP(E28,A!$B$163:$C$168,2,FALSE),VLOOKUP(E28,A!$F$163:$G$168,2,FALSE)))) -> 0 | F75: =IF(F28=0,0,IF(B28="Clerk",VLOOKUP(F28,A!$G$178:$H$182,2,FALSE),IF(B28="S.Staff",VLOOKUP(F28,A!$N$178:$O$187,2,FALSE),0))) -> 0 | H75: =ROUND((C75+E75+F75+G75)*A!E103*A!$E$80,2) -> 3318.01 | I75: =ROUND((C75+E75+F75+G75)*Main!AB29,2) -> 1176.6 | J75: =MIN(ROUND(C75*Main!AD29,2),Main!AE29) -> 0 | K75: 225 | L75: 0 | M75: =IF(Main!$C$3="PF",ROUND(('Calculation Sheet'!C75+'Calculation Sheet'!Z75+'Calculation Sheet'!E75+'Calculation Sheet'!F75+'Calculation Sheet'!G75)*10%,2),IF(Main!$C$3="NPS",ROUND(('Calculation Sheet'!C75+'Calculation Sheet'!Z75+'Calculation Sheet'!E75+'Calculation Sheet'!F75+'Calculation Sheet'!G75+'Calculation Sheet'!H75)*12%,0),0)) -> 0 | N75: 16485.61 | O75: 0 | P75: 0 | Q75: 16485.61 | R75: 964.21 | S75: 0.06212132926 | Z75: =IF(D75<>0,IF(B28="Clerk",A!$F$36,IF(B28="S.Staff",A!$C$36,IF(B28="O-I",A!$I$36,IF(B28="O-II",A!$L$36,IF(B28="O-III",A!$O$36,IF(B28="O-IV",A!$R$36,IF(B28="O-V",A!$U$36,IF(B28="O-VI",A!$X$36,IF(B28="O-VII",A!$AA$36,))))))))),0) -> 0 | AB75: 30
A76: Oct.14 | B76: Clerk | C76: =IF(B76="S.Staff",VLOOKUP(C29,A!$B$4:$C$31,2,FALSE),IF(B76="Clerk",VLOOKUP(C29,A!$E$4:$F$30,2,FALSE),IF(B76="O-I",VLOOKUP(C29,A!$H$4:$I$27,2,FALSE),IF(B76="O-II",VLOOKUP(C29,A!$K$4:$L$22,2,FALSE),IF(B76="O-III",VLOOKUP(C29,A!$N$4:$O$15,2,FALSE),IF(B76="O-IV",VLOOKUP(C29,A!$Q$4:$R$10,2,FALSE),IF(B76="O-V",VLOOKUP(C29,A!$T$4:$U$8,2,FALSE),IF(B76="O-VI",VLOOKUP(C29,A!$W$4:$X$8,2,FALSE),IF(B76="O-VII",VLOOKUP(C29,A!$Z$4:$AA$8,2,FALSE),IF(B76=" ",0,"Error")))))))))) -> 11766 | D76: =IF(D29=0,0,IF(Main!L30="S.Staff",VLOOKUP(D29,A!$B$36:$C$44,2,FALSE),IF(Main!L30="Clerk",VLOOKUP(D29,A!$E$36:$F$44,2,FALSE),IF(Main!L30="O-I",VLOOKUP(D29,A!$H$36:$I$44,2,FALSE),IF(Main!L30="O-II",VLOOKUP(D29,A!$K$36:$L$44,2,FALSE),IF(Main!L30="O-III",VLOOKUP(D29,A!$N$36:$O$44,2,FALSE),IF(Main!L30="O-IV",VLOOKUP(D29,A!$Q$36:$R$44,2,FALSE),IF(Main!L30="O-V",VLOOKUP(D29,A!$T$36:$U$44,2,FALSE),IF(Main!L30="O-VI",VLOOKUP(D29,A!$W$36:$X$44,2,FALSE),IF(Main!L30="O-VII",VLOOKUP(D29,A!$Z$36:$AA$44,2,FALSE),IF(Main!L30=" ",0,"Error"))))))))))) -> 0 | E76: =IF(E29=0,0,IF(B76="S.Staff",VLOOKUP(E29,A!$D$163:$E$168,2,FALSE),IF(B76="Clerk",VLOOKUP(E29,A!$B$163:$C$168,2,FALSE),VLOOKUP(E29,A!$F$163:$G$168,2,FALSE)))) -> 0 | F76: =IF(F29=0,0,IF(B29="Clerk",VLOOKUP(F29,A!$G$178:$H$182,2,FALSE),IF(B29="S.Staff",VLOOKUP(F29,A!$N$178:$O$187,2,FALSE),0))) -> 0 | H76: =ROUND((C76+E76+F76+G76)*A!E104*A!$E$80,2) -> 3318.01 | I76: =ROUND((C76+E76+F76+G76)*Main!AB30,2) -> 1176.6 | J76: =MIN(ROUND(C76*Main!AD30,2),Main!AE30) -> 0 | K76: 225 | L76: 0 | M76: =IF(Main!$C$3="PF",ROUND(('Calculation Sheet'!C76+'Calculation Sheet'!Z76+'Calculation Sheet'!E76+'Calculation Sheet'!F76+'Calculation Sheet'!G76)*10%,2),IF(Main!$C$3="NPS",ROUND(('Calculation Sheet'!C76+'Calculation Sheet'!Z76+'Calculation Sheet'!E76+'Calculation Sheet'!F76+'Calculation Sheet'!G76+'Calculation Sheet'!H76)*12%,0),0)) -> 0 | N76: 16485.61 | O76: 0 | P76: 0 | Q76: 16485.61 | R76: 964.21 | S76: 0.06212132926 | Z76: =IF(D76<>0,IF(B29="Clerk",A!$F$36,IF(B29="S.Staff",A!$C$36,IF(B29="O-I",A!$I$36,IF(B29="O-II",A!$L$36,IF(B29="O-III",A!$O$36,IF(B29="O-IV",A!$R$36,IF(B29="O-V",A!$U$36,IF(B29="O-VI",A!$X$36,IF(B29="O-VII",A!$AA$36,))))))))),0) -> 0 | AB76: 31
A77: Nov.14 | B77: Clerk | C77: =IF(B77="S.Staff",VLOOKUP(C30,A!$B$4:$C$31,2,FALSE),IF(B77="Clerk",VLOOKUP(C30,A!$E$4:$F$30,2,FALSE),IF(B77="O-I",VLOOKUP(C30,A!$H$4:$I$27,2,FALSE),IF(B77="O-II",VLOOKUP(C30,A!$K$4:$L$22,2,FALSE),IF(B77="O-III",VLOOKUP(C30,A!$N$4:$O$15,2,FALSE),IF(B77="O-IV",VLOOKUP(C30,A!$Q$4:$R$10,2,FALSE),IF(B77="O-V",VLOOKUP(C30,A!$T$4:$U$8,2,FALSE),IF(B77="O-VI",VLOOKUP(C30,A!$W$4:$X$8,2,FALSE),IF(B77="O-VII",VLOOKUP(C30,A!$Z$4:$AA$8,2,FALSE),IF(B77=" ",0,"Error")))))))))) -> 11766 | D77: =IF(D30=0,0,IF(Main!L31="S.Staff",VLOOKUP(D30,A!$B$36:$C$44,2,FALSE),IF(Main!L31="Clerk",VLOOKUP(D30,A!$E$36:$F$44,2,FALSE),IF(Main!L31="O-I",VLOOKUP(D30,A!$H$36:$I$44,2,FALSE),IF(Main!L31="O-II",VLOOKUP(D30,A!$K$36:$L$44,2,FALSE),IF(Main!L31="O-III",VLOOKUP(D30,A!$N$36:$O$44,2,FALSE),IF(Main!L31="O-IV",VLOOKUP(D30,A!$Q$36:$R$44,2,FALSE),IF(Main!L31="O-V",VLOOKUP(D30,A!$T$36:$U$44,2,FALSE),IF(Main!L31="O-VI",VLOOKUP(D30,A!$W$36:$X$44,2,FALSE),IF(Main!L31="O-VII",VLOOKUP(D30,A!$Z$36:$AA$44,2,FALSE),IF(Main!L31=" ",0,"Error"))))))))))) -> 0 | E77: =IF(E30=0,0,IF(B77="S.Staff",VLOOKUP(E30,A!$D$163:$E$168,2,FALSE),IF(B77="Clerk",VLOOKUP(E30,A!$B$163:$C$168,2,FALSE),VLOOKUP(E30,A!$F$163:$G$168,2,FALSE)))) -> 0 | F77: =IF(F30=0,0,IF(B30="Clerk",VLOOKUP(F30,A!$G$178:$H$182,2,FALSE),IF(B30="S.Staff",VLOOKUP(F30,A!$N$178:$O$187,2,FALSE),0))) -> 0 | H77: =ROUND((C77+E77+F77+G77)*A!E105*A!$E$80,2) -> 3894.55 | I77: =ROUND((C77+E77+F77+G77)*Main!AB31,2) -> 1176.6 | J77: =MIN(ROUND(C77*Main!AD31,2),Main!AE31) -> 0 | K77: 225 | L77: 0 | M77: =IF(Main!$C$3="PF",ROUND(('Calculation Sheet'!C77+'Calculation Sheet'!Z77+'Calculation Sheet'!E77+'Calculation Sheet'!F77+'Calculation Sheet'!G77)*10%,2),IF(Main!$C$3="NPS",ROUND(('Calculation Sheet'!C77+'Calculation Sheet'!Z77+'Calculation Sheet'!E77+'Calculation Sheet'!F77+'Calculation Sheet'!G77+'Calculation Sheet'!H77)*12%,0),0)) -> 0 | N77: 17062.15 | O77: 0 | P77: 0 | Q77: 17062.15 | R77: 1011.55 | S77: 0.06302256613 | Z77: =IF(D77<>0,IF(B30="Clerk",A!$F$36,IF(B30="S.Staff",A!$C$36,IF(B30="O-I",A!$I$36,IF(B30="O-II",A!$L$36,IF(B30="O-III",A!$O$36,IF(B30="O-IV",A!$R$36,IF(B30="O-V",A!$U$36,IF(B30="O-VI",A!$X$36,IF(B30="O-VII",A!$AA$36,))))))))),0) -> 0 | AB77: 30
A78: Dec.14 | B78: Clerk | C78: =IF(B78="S.Staff",VLOOKUP(C31,A!$B$4:$C$31,2,FALSE),IF(B78="Clerk",VLOOKUP(C31,A!$E$4:$F$30,2,FALSE),IF(B78="O-I",VLOOKUP(C31,A!$H$4:$I$27,2,FALSE),IF(B78="O-II",VLOOKUP(C31,A!$K$4:$L$22,2,FALSE),IF(B78="O-III",VLOOKUP(C31,A!$N$4:$O$15,2,FALSE),IF(B78="O-IV",VLOOKUP(C31,A!$Q$4:$R$10,2,FALSE),IF(B78="O-V",VLOOKUP(C31,A!$T$4:$U$8,2,FALSE),IF(B78="O-VI",VLOOKUP(C31,A!$W$4:$X$8,2,FALSE),IF(B78="O-VII",VLOOKUP(C31,A!$Z$4:$AA$8,2,FALSE),IF(B78=" ",0,"Error")))))))))) -> 11766 | D78: =IF(D31=0,0,IF(Main!L32="S.Staff",VLOOKUP(D31,A!$B$36:$C$44,2,FALSE),IF(Main!L32="Clerk",VLOOKUP(D31,A!$E$36:$F$44,2,FALSE),IF(Main!L32="O-I",VLOOKUP(D31,A!$H$36:$I$44,2,FALSE),IF(Main!L32="O-II",VLOOKUP(D31,A!$K$36:$L$44,2,FALSE),IF(Main!L32="O-III",VLOOKUP(D31,A!$N$36:$O$44,2,FALSE),IF(Main!L32="O-IV",VLOOKUP(D31,A!$Q$36:$R$44,2,FALSE),IF(Main!L32="O-V",VLOOKUP(D31,A!$T$36:$U$44,2,FALSE),IF(Main!L32="O-VI",VLOOKUP(D31,A!$W$36:$X$44,2,FALSE),IF(Main!L32="O-VII",VLOOKUP(D31,A!$Z$36:$AA$44,2,FALSE),IF(Main!L32=" ",0,"Error"))))))))))) -> 0 | E78: =IF(E31=0,0,IF(B78="S.Staff",VLOOKUP(E31,A!$D$163:$E$168,2,FALSE),IF(B78="Clerk",VLOOKUP(E31,A!$B$163:$C$168,2,FALSE),VLOOKUP(E31,A!$F$163:$G$168,2,FALSE)))) -> 0 | F78: =IF(F31=0,0,IF(B31="Clerk",VLOOKUP(F31,A!$G$178:$H$182,2,FALSE),IF(B31="S.Staff",VLOOKUP(F31,A!$N$178:$O$187,2,FALSE),0))) -> 0 | H78: =ROUND((C78+E78+F78+G78)*A!E106*A!$E$80,2) -> 3894.55 | I78: =ROUND((C78+E78+F78+G78)*Main!AB32,2) -> 1176.6 | J78: =MIN(ROUND(C78*Main!AD32,2),Main!AE32) -> 0 | K78: 225 | L78: 0 | M78: =IF(Main!$C$3="PF",ROUND(('Calculation Sheet'!C78+'Calculation Sheet'!Z78+'Calculation Sheet'!E78+'Calculation Sheet'!F78+'Calculation Sheet'!G78)*10%,2),IF(Main!$C$3="NPS",ROUND(('Calculation Sheet'!C78+'Calculation Sheet'!Z78+'Calculation Sheet'!E78+'Calculation Sheet'!F78+'Calculation Sheet'!G78+'Calculation Sheet'!H78)*12%,0),0)) -> 0 | N78: 17062.15 | O78: 0 | P78: 0 | Q78: 17062.15 | R78: 1011.55 | S78: 0.06302256613 | Z78: =IF(D78<>0,IF(B31="Clerk",A!$F$36,IF(B31="S.Staff",A!$C$36,IF(B31="O-I",A!$I$36,IF(B31="O-II",A!$L$36,IF(B31="O-III",A!$O$36,IF(B31="O-IV",A!$R$36,IF(B31="O-V",A!$U$36,IF(B31="O-VI",A!$X$36,IF(B31="O-VII",A!$AA$36,))))))))),0) -> 0 | AB78: 31
A79: Jan.15 | B79: Clerk | C79: =IF(B79="S.Staff",VLOOKUP(C32,A!$B$4:$C$31,2,FALSE),IF(B79="Clerk",VLOOKUP(C32,A!$E$4:$F$30,2,FALSE),IF(B79="O-I",VLOOKUP(C32,A!$H$4:$I$27,2,FALSE),IF(B79="O-II",VLOOKUP(C32,A!$K$4:$L$22,2,FALSE),IF(B79="O-III",VLOOKUP(C32,A!$N$4:$O$15,2,FALSE),IF(B79="O-IV",VLOOKUP(C32,A!$Q$4:$R$10,2,FALSE),IF(B79="O-V",VLOOKUP(C32,A!$T$4:$U$8,2,FALSE),IF(B79="O-VI",VLOOKUP(C32,A!$W$4:$X$8,2,FALSE),IF(B79="O-VII",VLOOKUP(C32,A!$Z$4:$AA$8,2,FALSE),IF(B79=" ",0,"Error")))))))))) -> 11766 | D79: =IF(D32=0,0,IF(Main!L33="S.Staff",VLOOKUP(D32,A!$B$36:$C$44,2,FALSE),IF(Main!L33="Clerk",VLOOKUP(D32,A!$E$36:$F$44,2,FALSE),IF(Main!L33="O-I",VLOOKUP(D32,A!$H$36:$I$44,2,FALSE),IF(Main!L33="O-II",VLOOKUP(D32,A!$K$36:$L$44,2,FALSE),IF(Main!L33="O-III",VLOOKUP(D32,A!$N$36:$O$44,2,FALSE),IF(Main!L33="O-IV",VLOOKUP(D32,A!$Q$36:$R$44,2,FALSE),IF(Main!L33="O-V",VLOOKUP(D32,A!$T$36:$U$44,2,FALSE),IF(Main!L33="O-VI",VLOOKUP(D32,A!$W$36:$X$44,2,FALSE),IF(Main!L33="O-VII",VLOOKUP(D32,A!$Z$36:$AA$44,2,FALSE),IF(Main!L33=" ",0,"Error"))))))))))) -> 0 | E79: =IF(E32=0,0,IF(B79="S.Staff",VLOOKUP(E32,A!$D$163:$E$168,2,FALSE),IF(B79="Clerk",VLOOKUP(E32,A!$B$163:$C$168,2,FALSE),VLOOKUP(E32,A!$F$163:$G$168,2,FALSE)))) -> 0 | F79: =IF(F32=0,0,IF(B32="Clerk",VLOOKUP(F32,A!$G$178:$H$182,2,FALSE),IF(B32="S.Staff",VLOOKUP(F32,A!$N$178:$O$187,2,FALSE),0))) -> 0 | H79: =ROUND((C79+E79+F79+G79)*A!E107*A!$E$80,2) -> 3894.55 | I79: =ROUND((C79+E79+F79+G79)*Main!AB33,2) -> 1176.6 | J79: =MIN(ROUND(C79*Main!AD33,2),Main!AE33) -> 0 | K79: 225 | L79: 0 | M79: =IF(Main!$C$3="PF",ROUND(('Calculation Sheet'!C79+'Calculation Sheet'!Z79+'Calculation Sheet'!E79+'Calculation Sheet'!F79+'Calculation Sheet'!G79)*10%,2),IF(Main!$C$3="NPS",ROUND(('Calculation Sheet'!C79+'Calculation Sheet'!Z79+'Calculation Sheet'!E79+'Calculation Sheet'!F79+'Calculation Sheet'!G79+'Calculation Sheet'!H79)*12%,0),0)) -> 0 | N79: 17062.15 | O79: 0 | P79: 0 | Q79: 17062.15 | R79: 1011.55 | S79: 0.06302256613 | Z79: =IF(D79<>0,IF(B32="Clerk",A!$F$36,IF(B32="S.Staff",A!$C$36,IF(B32="O-I",A!$I$36,IF(B32="O-II",A!$L$36,IF(B32="O-III",A!$O$36,IF(B32="O-IV",A!$R$36,IF(B32="O-V",A!$U$36,IF(B32="O-VI",A!$X$36,IF(B32="O-VII",A!$AA$36,))))))))),0) -> 0 | AB79: 31
A80: Feb.15 | B80: Clerk | C80: =IF(B80="S.Staff",VLOOKUP(C33,A!$B$4:$C$31,2,FALSE),IF(B80="Clerk",VLOOKUP(C33,A!$E$4:$F$30,2,FALSE),IF(B80="O-I",VLOOKUP(C33,A!$H$4:$I$27,2,FALSE),IF(B80="O-II",VLOOKUP(C33,A!$K$4:$L$22,2,FALSE),IF(B80="O-III",VLOOKUP(C33,A!$N$4:$O$15,2,FALSE),IF(B80="O-IV",VLOOKUP(C33,A!$Q$4:$R$10,2,FALSE),IF(B80="O-V",VLOOKUP(C33,A!$T$4:$U$8,2,FALSE),IF(B80="O-VI",VLOOKUP(C33,A!$W$4:$X$8,2,FALSE),IF(B80="O-VII",VLOOKUP(C33,A!$Z$4:$AA$8,2,FALSE),IF(B80=" ",0,"Error")))))))))) -> 11766 | D80: =IF(D33=0,0,IF(Main!L34="S.Staff",VLOOKUP(D33,A!$B$36:$C$44,2,FALSE),IF(Main!L34="Clerk",VLOOKUP(D33,A!$E$36:$F$44,2,FALSE),IF(Main!L34="O-I",VLOOKUP(D33,A!$H$36:$I$44,2,FALSE),IF(Main!L34="O-II",VLOOKUP(D33,A!$K$36:$L$44,2,FALSE),IF(Main!L34="O-III",VLOOKUP(D33,A!$N$36:$O$44,2,FALSE),IF(Main!L34="O-IV",VLOOKUP(D33,A!$Q$36:$R$44,2,FALSE),IF(Main!L34="O-V",VLOOKUP(D33,A!$T$36:$U$44,2,FALSE),IF(Main!L34="O-VI",VLOOKUP(D33,A!$W$36:$X$44,2,FALSE),IF(Main!L34="O-VII",VLOOKUP(D33,A!$Z$36:$AA$44,2,FALSE),IF(Main!L34=" ",0,"Error"))))))))))) -> 0 | E80: =IF(E33=0,0,IF(B80="S.Staff",VLOOKUP(E33,A!$D$163:$E$168,2,FALSE),IF(B80="Clerk",VLOOKUP(E33,A!$B$163:$C$168,2,FALSE),VLOOKUP(E33,A!$F$163:$G$168,2,FALSE)))) -> 0 | F80: =IF(F33=0,0,IF(B33="Clerk",VLOOKUP(F33,A!$G$178:$H$182,2,FALSE),IF(B33="S.Staff",VLOOKUP(F33,A!$N$178:$O$187,2,FALSE),0))) -> 0 | H80: =ROUND((C80+E80+F80+G80)*A!E108*A!$E$80,2) -> 3918.08 | I80: =ROUND((C80+E80+F80+G80)*Main!AB34,2) -> 1176.6 | J80: =MIN(ROUND(C80*Main!AD34,2),Main!AE34) -> 0 | K80: 225 | L80: 0 | M80: =IF(Main!$C$3="PF",ROUND(('Calculation Sheet'!C80+'Calculation Sheet'!Z80+'Calculation Sheet'!E80+'Calculation Sheet'!F80+'Calculation Sheet'!G80)*10%,2),IF(Main!$C$3="NPS",ROUND(('Calculation Sheet'!C80+'Calculation Sheet'!Z80+'Calculation Sheet'!E80+'Calculation Sheet'!F80+'Calculation Sheet'!G80+'Calculation Sheet'!H80)*12%,0),0)) -> 0 | N80: 17085.68 | O80: 0 | P80: 0 | Q80: 17085.68 | R80: 1013.48 | S80: =IF(R80<>0,R80/N33," ----") -> 0.063057951 | Z80: =IF(D80<>0,IF(B33="Clerk",A!$F$36,IF(B33="S.Staff",A!$C$36,IF(B33="O-I",A!$I$36,IF(B33="O-II",A!$L$36,IF(B33="O-III",A!$O$36,IF(B33="O-IV",A!$R$36,IF(B33="O-V",A!$U$36,IF(B33="O-VI",A!$X$36,IF(B33="O-VII",A!$AA$36,))))))))),0) -> 0 | AB80: 28
C81: =IF(B81="S.Staff",VLOOKUP(C34,A!$B$4:$C$31,2,FALSE),IF(B81="Clerk",VLOOKUP(C34,A!$E$4:$F$30,2,FALSE),IF(B81="O-I",VLOOKUP(C34,A!$H$4:$I$27,2,FALSE),IF(B81="O-II",VLOOKUP(C34,A!$K$4:$L$22,2,FALSE),IF(B81="O-III",VLOOKUP(C34,A!$N$4:$O$15,2,FALSE),IF(B81="O-IV",VLOOKUP(C34,A!$Q$4:$R$10,2,FALSE),IF(B81="O-V",VLOOKUP(C34,A!$T$4:$U$8,2,FALSE),IF(B81="O-VI",VLOOKUP(C34,A!$W$4:$X$8,2,FALSE),IF(B81="O-VII",VLOOKUP(C34,A!$Z$4:$AA$8,2,FALSE),IF(B81=" ",0,"Error")))))))))) -> 0 | D81: =IF(D34=0,0,IF(Main!L35="S.Staff",VLOOKUP(D34,A!$B$36:$C$44,2,FALSE),IF(Main!L35="Clerk",VLOOKUP(D34,A!$E$36:$F$44,2,FALSE),IF(Main!L35="O-I",VLOOKUP(D34,A!$H$36:$I$44,2,FALSE),IF(Main!L35="O-II",VLOOKUP(D34,A!$K$36:$L$44,2,FALSE),IF(Main!L35="O-III",VLOOKUP(D34,A!$N$36:$O$44,2,FALSE),IF(Main!L35="O-IV",VLOOKUP(D34,A!$Q$36:$R$44,2,FALSE),IF(Main!L35="O-V",VLOOKUP(D34,A!$T$36:$U$44,2,FALSE),IF(Main!L35="O-VI",VLOOKUP(D34,A!$W$36:$X$44,2,FALSE),IF(Main!L35="O-VII",VLOOKUP(D34,A!$Z$36:$AA$44,2,FALSE),IF(Main!L35=" ",0,"Error"))))))))))) -> 0 | E81: =IF(E34=0,0,IF(B81="S.Staff",VLOOKUP(E34,A!$D$163:$E$168,2,FALSE),IF(B81="Clerk",VLOOKUP(E34,A!$B$163:$C$168,2,FALSE),VLOOKUP(E34,A!$F$163:$G$168,2,FALSE)))) -> 0 | F81: =IF(F34=0,0,IF(B34="Clerk",VLOOKUP(F34,A!$G$178:$H$182,2,FALSE),IF(B34="S.Staff",VLOOKUP(F34,A!$N$178:$O$187,2,FALSE),0))) -> 0 | H81: =ROUND((C81+E81+F81+G81)*A!E109*A!$E$80,2) -> 0 | I81: =ROUND((C81+E81+F81+G81)*Main!AB35,2) -> 0 | J81: =MIN(ROUND(C81*Main!AD35,2),Main!AE35) -> 0 | K81: 0 | L81: 0 | M81: =IF(Main!$C$3="PF",ROUND(('Calculation Sheet'!C81+'Calculation Sheet'!Z81+'Calculation Sheet'!E81+'Calculation Sheet'!F81+'Calculation Sheet'!G81)*10%,2),IF(Main!$C$3="NPS",ROUND(('Calculation Sheet'!C81+'Calculation Sheet'!Z81+'Calculation Sheet'!E81+'Calculation Sheet'!F81+'Calculation Sheet'!G81+'Calculation Sheet'!H81)*12%,0),0)) -> 0 | N81: 0 | O81: 0 | P81: 0 | Q81: 0 | R81: 0 | S81: =IF(R81<>0,R81/N34," ----") -> ---- | Z81: =IF(D81<>0,IF(B34="Clerk",A!$F$36,IF(B34="S.Staff",A!$C$36,IF(B34="O-I",A!$I$36,IF(B34="O-II",A!$L$36,IF(B34="O-III",A!$O$36,IF(B34="O-IV",A!$R$36,IF(B34="O-V",A!$U$36,IF(B34="O-VI",A!$X$36,IF(B34="O-VII",A!$AA$36,))))))))),0) -> 0 | AB81: 31
A82: Total 2014-15 | C82: =SUM(C70:C81) -> 129426 | D82: =SUM(D70:D81) -> 0 | E82: 0 | F82: 0 | G82: 0 | H82: 37462.94 | I82: 12942.6 | J82: 0 | K82: 2475 | L82: 0 | M82: 0 | N82: 182306.54 | P82: =SUM(P70:P81) -> 0 | Q82: 182306.54 | R82: 10685.54 | S82: =IF(R82<>0,R82/N35," ----") -> 0.06226242709
A83: =+A36 ->  | B83: =+B36 ->  | C83: =IF(B83="S.Staff",VLOOKUP(C36,A!$B$4:$C$31,2,FALSE),IF(B83="Clerk",VLOOKUP(C36,A!$E$4:$F$30,2,FALSE),IF(B83="O-I",VLOOKUP(C36,A!$H$4:$I$27,2,FALSE),IF(B83="O-II",VLOOKUP(C36,A!$K$4:$L$22,2,FALSE),IF(B83="O-III",VLOOKUP(C36,A!$N$4:$O$15,2,FALSE),IF(B83="O-IV",VLOOKUP(C36,A!$Q$4:$R$10,2,FALSE),IF(B83="O-V",VLOOKUP(C36,A!$T$4:$U$8,2,FALSE),IF(B83="O-VI",VLOOKUP(C36,A!$W$4:$X$8,2,FALSE),IF(B83="O-VII",VLOOKUP(C36,A!$Z$4:$AA$8,2,FALSE),IF(B83=" ",0,"Error")))))))))) -> 0 | D83: =IF(D36=0,0,IF(Main!L36="S.Staff",VLOOKUP(D36,A!$B$36:$C$44,2,FALSE),IF(Main!L36="Clerk",VLOOKUP(D36,A!$E$36:$F$44,2,FALSE),IF(Main!L36="O-I",VLOOKUP(D36,A!$H$36:$I$44,2,FALSE),IF(Main!L36="O-II",VLOOKUP(D36,A!$K$36:$L$44,2,FALSE),IF(Main!L36="O-III",VLOOKUP(D36,A!$N$36:$O$44,2,FALSE),IF(Main!L36="O-IV",VLOOKUP(D36,A!$Q$36:$R$44,2,FALSE),IF(Main!L36="O-V",VLOOKUP(D36,A!$T$36:$U$44,2,FALSE),IF(Main!L36="O-VI",VLOOKUP(D36,A!$W$36:$X$44,2,FALSE),IF(Main!L36="O-VII",VLOOKUP(D36,A!$Z$36:$AA$44,2,FALSE),IF(Main!L36=" ",0,"Error"))))))))))) -> 0 | E83: =IF(E36=0,0,IF(B83="S.Staff",VLOOKUP(E36,A!$D$163:$E$168,2,FALSE),IF(B83="Clerk",VLOOKUP(E36,A!$B$163:$C$168,2,FALSE),VLOOKUP(E36,A!$F$163:$G$168,2,FALSE)))) -> 0 | F83: =IF(F36=0,0,IF(B36="Clerk",VLOOKUP(F36,A!$G$178:$H$182,2,FALSE),IF(B36="S.Staff",VLOOKUP(F36,A!$N$178:$O$187,2,FALSE),0))) -> 0 | H83: =ROUND((C83+E83+F83+G83)*A!E110*A!$E$80,2) -> 0 | I83: =ROUND((C83+E83+F83+G83)*Main!AB36,2) -> 0 | J83: =MIN(ROUND(C83*Main!AD36,2),Main!AE36) -> 0 | K83: =IF(B83="Clerk",IF(C83>14100,275,225),IF(B83="S.Staff",IF(C83>9100,275,225),0)) -> 0 | L83: =IF(B83="S.Staff",100,0) -> 0 | M83: =IF(Main!$C$3="PF",ROUND(('Calculation Sheet'!C83+'Calculation Sheet'!Z83+'Calculation Sheet'!E83+'Calculation Sheet'!F83+'Calculation Sheet'!G83)*10%,2),IF(Main!$C$3="NPS",ROUND(('Calculation Sheet'!C83+'Calculation Sheet'!Z83+'Calculation Sheet'!E83+'Calculation Sheet'!F83+'Calculation Sheet'!G83+'Calculation Sheet'!H83)*12%,0),0)) -> 0 | N83: =SUM(C83:M83) -> 0 | O83: 0 | P83: =ROUND(N83*O83/AB83,2) -> 0 | Q83: =+N83-P83 -> 0 | R83: 0 | S83: ---- | Z83: =IF(D83<>0,IF(B36="Clerk",A!$F$36,IF(B36="S.Staff",A!$C$36,IF(B36="O-I",A!$I$36,IF(B36="O-II",A!$L$36,IF(B36="O-III",A!$O$36,IF(B36="O-IV",A!$R$36,IF(B36="O-V",A!$U$36,IF(B36="O-VI",A!$X$36,IF(B36="O-VII",A!$AA$36,))))))))),0) -> 0 | AB83: 30
C84: =IF(B84="S.Staff",VLOOKUP(C37,A!$B$4:$C$31,2,FALSE),IF(B84="Clerk",VLOOKUP(C37,A!$E$4:$F$30,2,FALSE),IF(B84="O-I",VLOOKUP(C37,A!$H$4:$I$27,2,FALSE),IF(B84="O-II",VLOOKUP(C37,A!$K$4:$L$22,2,FALSE),IF(B84="O-III",VLOOKUP(C37,A!$N$4:$O$15,2,FALSE),IF(B84="O-IV",VLOOKUP(C37,A!$Q$4:$R$10,2,FALSE),IF(B84="O-V",VLOOKUP(C37,A!$T$4:$U$8,2,FALSE),IF(B84="O-VI",VLOOKUP(C37,A!$W$4:$X$8,2,FALSE),IF(B84="O-VII",VLOOKUP(C37,A!$Z$4:$AA$8,2,FALSE),IF(B84=" ",0,"Error")))))))))) -> 0 | D84: =IF(D37=0,0,IF(Main!L37="S.Staff",VLOOKUP(D37,A!$B$36:$C$44,2,FALSE),IF(Main!L37="Clerk",VLOOKUP(D37,A!$E$36:$F$44,2,FALSE),IF(Main!L37="O-I",VLOOKUP(D37,A!$H$36:$I$44,2,FALSE),IF(Main!L37="O-II",VLOOKUP(D37,A!$K$36:$L$44,2,FALSE),IF(Main!L37="O-III",VLOOKUP(D37,A!$N$36:$O$44,2,FALSE),IF(Main!L37="O-IV",VLOOKUP(D37,A!$Q$36:$R$44,2,FALSE),IF(Main!L37="O-V",VLOOKUP(D37,A!$T$36:$U$44,2,FALSE),IF(Main!L37="O-VI",VLOOKUP(D37,A!$W$36:$X$44,2,FALSE),IF(Main!L37="O-VII",VLOOKUP(D37,A!$Z$36:$AA$44,2,FALSE),IF(Main!L37=" ",0,"Error"))))))))))) -> 0 | E84: =IF(E37=0,0,IF(B84="S.Staff",VLOOKUP(E37,A!$D$163:$E$168,2,FALSE),IF(B84="Clerk",VLOOKUP(E37,A!$B$163:$C$168,2,FALSE),VLOOKUP(E37,A!$F$163:$G$168,2,FALSE)))) -> 0 | F84: =IF(F37=0,0,IF(B37="Clerk",VLOOKUP(F37,A!$G$178:$H$182,2,FALSE),IF(B37="S.Staff",VLOOKUP(F37,A!$N$178:$O$187,2,FALSE),0))) -> 0 | H84: =ROUND((C84+E84+F84+G84)*A!E111*A!$E$80,2) -> 0 | I84: =ROUND((C84+E84+F84+G84)*Main!AB37,2) -> 0 | J84: =MIN(ROUND(C84*Main!AD37,2),Main!AE37) -> 0 | K84: 0 | L84: 0 | M84: =IF(Main!$C$3="PF",ROUND(('Calculation Sheet'!C84+'Calculation Sheet'!Z84+'Calculation Sheet'!E84+'Calculation Sheet'!F84+'Calculation Sheet'!G84)*10%,2),IF(Main!$C$3="NPS",ROUND(('Calculation Sheet'!C84+'Calculation Sheet'!Z84+'Calculation Sheet'!E84+'Calculation Sheet'!F84+'Calculation Sheet'!G84+'Calculation Sheet'!H84)*12%,0),0)) -> 0 | N84: 0 | O84: 0 | P84: 0 | Q84: 0 | R84: 0 | S84: ---- | Z84: =IF(D84<>0,IF(B37="Clerk",A!$F$36,IF(B37="S.Staff",A!$C$36,IF(B37="O-I",A!$I$36,IF(B37="O-II",A!$L$36,IF(B37="O-III",A!$O$36,IF(B37="O-IV",A!$R$36,IF(B37="O-V",A!$U$36,IF(B37="O-VI",A!$X$36,IF(B37="O-VII",A!$AA$36,))))))))),0) -> 0 | AB84: 31
C85: =IF(B85="S.Staff",VLOOKUP(C38,A!$B$4:$C$31,2,FALSE),IF(B85="Clerk",VLOOKUP(C38,A!$E$4:$F$30,2,FALSE),IF(B85="O-I",VLOOKUP(C38,A!$H$4:$I$27,2,FALSE),IF(B85="O-II",VLOOKUP(C38,A!$K$4:$L$22,2,FALSE),IF(B85="O-III",VLOOKUP(C38,A!$N$4:$O$15,2,FALSE),IF(B85="O-IV",VLOOKUP(C38,A!$Q$4:$R$10,2,FALSE),IF(B85="O-V",VLOOKUP(C38,A!$T$4:$U$8,2,FALSE),IF(B85="O-VI",VLOOKUP(C38,A!$W$4:$X$8,2,FALSE),IF(B85="O-VII",VLOOKUP(C38,A!$Z$4:$AA$8,2,FALSE),IF(B85=" ",0,"Error")))))))))) -> 0 | D85: =IF(D38=0,0,IF(Main!L38="S.Staff",VLOOKUP(D38,A!$B$36:$C$44,2,FALSE),IF(Main!L38="Clerk",VLOOKUP(D38,A!$E$36:$F$44,2,FALSE),IF(Main!L38="O-I",VLOOKUP(D38,A!$H$36:$I$44,2,FALSE),IF(Main!L38="O-II",VLOOKUP(D38,A!$K$36:$L$44,2,FALSE),IF(Main!L38="O-III",VLOOKUP(D38,A!$N$36:$O$44,2,FALSE),IF(Main!L38="O-IV",VLOOKUP(D38,A!$Q$36:$R$44,2,FALSE),IF(Main!L38="O-V",VLOOKUP(D38,A!$T$36:$U$44,2,FALSE),IF(Main!L38="O-VI",VLOOKUP(D38,A!$W$36:$X$44,2,FALSE),IF(Main!L38="O-VII",VLOOKUP(D38,A!$Z$36:$AA$44,2,FALSE),IF(Main!L38=" ",0,"Error"))))))))))) -> 0 | E85: =IF(E38=0,0,IF(B85="S.Staff",VLOOKUP(E38,A!$D$163:$E$168,2,FALSE),IF(B85="Clerk",VLOOKUP(E38,A!$B$163:$C$168,2,FALSE),VLOOKUP(E38,A!$F$163:$G$168,2,FALSE)))) -> 0 | F85: =IF(F38=0,0,IF(B38="Clerk",VLOOKUP(F38,A!$G$178:$H$182,2,FALSE),IF(B38="S.Staff",VLOOKUP(F38,A!$N$178:$O$187,2,FALSE),0))) -> 0 | H85: =ROUND((C85+E85+F85+G85)*A!E112*A!$E$80,2) -> 0 | I85: =ROUND((C85+E85+F85+G85)*Main!AB38,2) -> 0 | J85: =MIN(ROUND(C85*Main!AD38,2),Main!AE38) -> 0 | K85: 0 | L85: 0 | M85: =IF(Main!$C$3="PF",ROUND(('Calculation Sheet'!C85+'Calculation Sheet'!Z85+'Calculation Sheet'!E85+'Calculation Sheet'!F85+'Calculation Sheet'!G85)*10%,2),IF(Main!$C$3="NPS",ROUND(('Calculation Sheet'!C85+'Calculation Sheet'!Z85+'Calculation Sheet'!E85+'Calculation Sheet'!F85+'Calculation Sheet'!G85+'Calculation Sheet'!H85)*12%,0),0)) -> 0 | N85: 0 | O85: 0 | P85: 0 | Q85: 0 | R85: 0 | S85: ---- | Z85: =IF(D85<>0,IF(B38="Clerk",A!$F$36,IF(B38="S.Staff",A!$C$36,IF(B38="O-I",A!$I$36,IF(B38="O-II",A!$L$36,IF(B38="O-III",A!$O$36,IF(B38="O-IV",A!$R$36,IF(B38="O-V",A!$U$36,IF(B38="O-VI",A!$X$36,IF(B38="O-VII",A!$AA$36,))))))))),0) -> 0 | AB85: 30
C86: =IF(B86="S.Staff",VLOOKUP(C39,A!$B$4:$C$31,2,FALSE),IF(B86="Clerk",VLOOKUP(C39,A!$E$4:$F$30,2,FALSE),IF(B86="O-I",VLOOKUP(C39,A!$H$4:$I$27,2,FALSE),IF(B86="O-II",VLOOKUP(C39,A!$K$4:$L$22,2,FALSE),IF(B86="O-III",VLOOKUP(C39,A!$N$4:$O$15,2,FALSE),IF(B86="O-IV",VLOOKUP(C39,A!$Q$4:$R$10,2,FALSE),IF(B86="O-V",VLOOKUP(C39,A!$T$4:$U$8,2,FALSE),IF(B86="O-VI",VLOOKUP(C39,A!$W$4:$X$8,2,FALSE),IF(B86="O-VII",VLOOKUP(C39,A!$Z$4:$AA$8,2,FALSE),IF(B86=" ",0,"Error")))))))))) -> 0 | D86: =IF(D39=0,0,IF(Main!L39="S.Staff",VLOOKUP(D39,A!$B$36:$C$44,2,FALSE),IF(Main!L39="Clerk",VLOOKUP(D39,A!$E$36:$F$44,2,FALSE),IF(Main!L39="O-I",VLOOKUP(D39,A!$H$36:$I$44,2,FALSE),IF(Main!L39="O-II",VLOOKUP(D39,A!$K$36:$L$44,2,FALSE),IF(Main!L39="O-III",VLOOKUP(D39,A!$N$36:$O$44,2,FALSE),IF(Main!L39="O-IV",VLOOKUP(D39,A!$Q$36:$R$44,2,FALSE),IF(Main!L39="O-V",VLOOKUP(D39,A!$T$36:$U$44,2,FALSE),IF(Main!L39="O-VI",VLOOKUP(D39,A!$W$36:$X$44,2,FALSE),IF(Main!L39="O-VII",VLOOKUP(D39,A!$Z$36:$AA$44,2,FALSE),IF(Main!L39=" ",0,"Error"))))))))))) -> 0 | E86: =IF(E39=0,0,IF(B86="S.Staff",VLOOKUP(E39,A!$D$163:$E$168,2,FALSE),IF(B86="Clerk",VLOOKUP(E39,A!$B$163:$C$168,2,FALSE),VLOOKUP(E39,A!$F$163:$G$168,2,FALSE)))) -> 0 | F86: =IF(F39=0,0,IF(B39="Clerk",VLOOKUP(F39,A!$G$178:$H$182,2,FALSE),IF(B39="S.Staff",VLOOKUP(F39,A!$N$178:$O$187,2,FALSE),0))) -> 0 | H86: =ROUND((C86+E86+F86+G86)*A!E113*A!$E$80,2) -> 0 | I86: =ROUND((C86+E86+F86+G86)*Main!AB39,2) -> 0 | J86: =MIN(ROUND(C86*Main!AD39,2),Main!AE39) -> 0 | K86: 0 | L86: 0 | M86: =IF(Main!$C$3="PF",ROUND(('Calculation Sheet'!C86+'Calculation Sheet'!Z86+'Calculation Sheet'!E86+'Calculation Sheet'!F86+'Calculation Sheet'!G86)*10%,2),IF(Main!$C$3="NPS",ROUND(('Calculation Sheet'!C86+'Calculation Sheet'!Z86+'Calculation Sheet'!E86+'Calculation Sheet'!F86+'Calculation Sheet'!G86+'Calculation Sheet'!H86)*12%,0),0)) -> 0 | N86: 0 | O86: 0 | P86: 0 | Q86: 0 | R86: 0 | S86: ---- | Z86: =IF(D86<>0,IF(B39="Clerk",A!$F$36,IF(B39="S.Staff",A!$C$36,IF(B39="O-I",A!$I$36,IF(B39="O-II",A!$L$36,IF(B39="O-III",A!$O$36,IF(B39="O-IV",A!$R$36,IF(B39="O-V",A!$U$36,IF(B39="O-VI",A!$X$36,IF(B39="O-VII",A!$AA$36,))))))))),0) -> 0 | AB86: 31
C87: =IF(B87="S.Staff",VLOOKUP(C40,A!$B$4:$C$31,2,FALSE),IF(B87="Clerk",VLOOKUP(C40,A!$E$4:$F$30,2,FALSE),IF(B87="O-I",VLOOKUP(C40,A!$H$4:$I$27,2,FALSE),IF(B87="O-II",VLOOKUP(C40,A!$K$4:$L$22,2,FALSE),IF(B87="O-III",VLOOKUP(C40,A!$N$4:$O$15,2,FALSE),IF(B87="O-IV",VLOOKUP(C40,A!$Q$4:$R$10,2,FALSE),IF(B87="O-V",VLOOKUP(C40,A!$T$4:$U$8,2,FALSE),IF(B87="O-VI",VLOOKUP(C40,A!$W$4:$X$8,2,FALSE),IF(B87="O-VII",VLOOKUP(C40,A!$Z$4:$AA$8,2,FALSE),IF(B87=" ",0,"Error")))))))))) -> 0 | D87: =IF(D40=0,0,IF(Main!L40="S.Staff",VLOOKUP(D40,A!$B$36:$C$44,2,FALSE),IF(Main!L40="Clerk",VLOOKUP(D40,A!$E$36:$F$44,2,FALSE),IF(Main!L40="O-I",VLOOKUP(D40,A!$H$36:$I$44,2,FALSE),IF(Main!L40="O-II",VLOOKUP(D40,A!$K$36:$L$44,2,FALSE),IF(Main!L40="O-III",VLOOKUP(D40,A!$N$36:$O$44,2,FALSE),IF(Main!L40="O-IV",VLOOKUP(D40,A!$Q$36:$R$44,2,FALSE),IF(Main!L40="O-V",VLOOKUP(D40,A!$T$36:$U$44,2,FALSE),IF(Main!L40="O-VI",VLOOKUP(D40,A!$W$36:$X$44,2,FALSE),IF(Main!L40="O-VII",VLOOKUP(D40,A!$Z$36:$AA$44,2,FALSE),IF(Main!L40=" ",0,"Error"))))))))))) -> 0 | E87: =IF(E40=0,0,IF(B87="S.Staff",VLOOKUP(E40,A!$D$163:$E$168,2,FALSE),IF(B87="Clerk",VLOOKUP(E40,A!$B$163:$C$168,2,FALSE),VLOOKUP(E40,A!$F$163:$G$168,2,FALSE)))) -> 0 | F87: =IF(F40=0,0,IF(B40="Clerk",VLOOKUP(F40,A!$G$178:$H$182,2,FALSE),IF(B40="S.Staff",VLOOKUP(F40,A!$N$178:$O$187,2,FALSE),0))) -> 0 | H87: =ROUND((C87+E87+F87+G87)*A!E114*A!$E$80,2) -> 0 | I87: =ROUND((C87+E87+F87+G87)*Main!AB40,2) -> 0 | J87: =MIN(ROUND(C87*Main!AD40,2),Main!AE40) -> 0 | K87: 0 | L87: 0 | M87: =IF(Main!$C$3="PF",ROUND(('Calculation Sheet'!C87+'Calculation Sheet'!Z87+'Calculation Sheet'!E87+'Calculation Sheet'!F87+'Calculation Sheet'!G87)*10%,2),IF(Main!$C$3="NPS",ROUND(('Calculation Sheet'!C87+'Calculation Sheet'!Z87+'Calculation Sheet'!E87+'Calculation Sheet'!F87+'Calculation Sheet'!G87+'Calculation Sheet'!H87)*12%,0),0)) -> 0 | N87: 0 | O87: 0 | P87: 0 | Q87: 0 | R87: 0 | S87: ---- | Z87: =IF(D87<>0,IF(B40="Clerk",A!$F$36,IF(B40="S.Staff",A!$C$36,IF(B40="O-I",A!$I$36,IF(B40="O-II",A!$L$36,IF(B40="O-III",A!$O$36,IF(B40="O-IV",A!$R$36,IF(B40="O-V",A!$U$36,IF(B40="O-VI",A!$X$36,IF(B40="O-VII",A!$AA$36,))))))))),0) -> 0 | AB87: 31
C88: =IF(B88="S.Staff",VLOOKUP(C41,A!$B$4:$C$31,2,FALSE),IF(B88="Clerk",VLOOKUP(C41,A!$E$4:$F$30,2,FALSE),IF(B88="O-I",VLOOKUP(C41,A!$H$4:$I$27,2,FALSE),IF(B88="O-II",VLOOKUP(C41,A!$K$4:$L$22,2,FALSE),IF(B88="O-III",VLOOKUP(C41,A!$N$4:$O$15,2,FALSE),IF(B88="O-IV",VLOOKUP(C41,A!$Q$4:$R$10,2,FALSE),IF(B88="O-V",VLOOKUP(C41,A!$T$4:$U$8,2,FALSE),IF(B88="O-VI",VLOOKUP(C41,A!$W$4:$X$8,2,FALSE),IF(B88="O-VII",VLOOKUP(C41,A!$Z$4:$AA$8,2,FALSE),IF(B88=" ",0,"Error")))))))))) -> 0 | D88: =IF(D41=0,0,IF(Main!L41="S.Staff",VLOOKUP(D41,A!$B$36:$C$44,2,FALSE),IF(Main!L41="Clerk",VLOOKUP(D41,A!$E$36:$F$44,2,FALSE),IF(Main!L41="O-I",VLOOKUP(D41,A!$H$36:$I$44,2,FALSE),IF(Main!L41="O-II",VLOOKUP(D41,A!$K$36:$L$44,2,FALSE),IF(Main!L41="O-III",VLOOKUP(D41,A!$N$36:$O$44,2,FALSE),IF(Main!L41="O-IV",VLOOKUP(D41,A!$Q$36:$R$44,2,FALSE),IF(Main!L41="O-V",VLOOKUP(D41,A!$T$36:$U$44,2,FALSE),IF(Main!L41="O-VI",VLOOKUP(D41,A!$W$36:$X$44,2,FALSE),IF(Main!L41="O-VII",VLOOKUP(D41,A!$Z$36:$AA$44,2,FALSE),IF(Main!L41=" ",0,"Error"))))))))))) -> 0 | E88: =IF(E41=0,0,IF(B88="S.Staff",VLOOKUP(E41,A!$D$163:$E$168,2,FALSE),IF(B88="Clerk",VLOOKUP(E41,A!$B$163:$C$168,2,FALSE),VLOOKUP(E41,A!$F$163:$G$168,2,FALSE)))) -> 0 | F88: =IF(F41=0,0,IF(B41="Clerk",VLOOKUP(F41,A!$G$178:$H$182,2,FALSE),IF(B41="S.Staff",VLOOKUP(F41,A!$N$178:$O$187,2,FALSE),0))) -> 0 | H88: =ROUND((C88+E88+F88+G88)*A!E115*A!$E$80,2) -> 0 | I88: =ROUND((C88+E88+F88+G88)*Main!AB41,2) -> 0 | J88: =MIN(ROUND(C88*Main!AD41,2),Main!AE41) -> 0 | K88: 0 | L88: 0 | M88: =IF(Main!$C$3="PF",ROUND(('Calculation Sheet'!C88+'Calculation Sheet'!Z88+'Calculation Sheet'!E88+'Calculation Sheet'!F88+'Calculation Sheet'!G88)*10%,2),IF(Main!$C$3="NPS",ROUND(('Calculation Sheet'!C88+'Calculation Sheet'!Z88+'Calculation Sheet'!E88+'Calculation Sheet'!F88+'Calculation Sheet'!G88+'Calculation Sheet'!H88)*12%,0),0)) -> 0 | N88: 0 | O88: 0 | P88: 0 | Q88: 0 | R88: 0 | S88: ---- | Z88: =IF(D88<>0,IF(B41="Clerk",A!$F$36,IF(B41="S.Staff",A!$C$36,IF(B41="O-I",A!$I$36,IF(B41="O-II",A!$L$36,IF(B41="O-III",A!$O$36,IF(B41="O-IV",A!$R$36,IF(B41="O-V",A!$U$36,IF(B41="O-VI",A!$X$36,IF(B41="O-VII",A!$AA$36,))))))))),0) -> 0 | AB88: 30
C89: =IF(B89="S.Staff",VLOOKUP(C42,A!$B$4:$C$31,2,FALSE),IF(B89="Clerk",VLOOKUP(C42,A!$E$4:$F$30,2,FALSE),IF(B89="O-I",VLOOKUP(C42,A!$H$4:$I$27,2,FALSE),IF(B89="O-II",VLOOKUP(C42,A!$K$4:$L$22,2,FALSE),IF(B89="O-III",VLOOKUP(C42,A!$N$4:$O$15,2,FALSE),IF(B89="O-IV",VLOOKUP(C42,A!$Q$4:$R$10,2,FALSE),IF(B89="O-V",VLOOKUP(C42,A!$T$4:$U$8,2,FALSE),IF(B89="O-VI",VLOOKUP(C42,A!$W$4:$X$8,2,FALSE),IF(B89="O-VII",VLOOKUP(C42,A!$Z$4:$AA$8,2,FALSE),IF(B89=" ",0,"Error")))))))))) -> 0 | D89: =IF(D42=0,0,IF(Main!L42="S.Staff",VLOOKUP(D42,A!$B$36:$C$44,2,FALSE),IF(Main!L42="Clerk",VLOOKUP(D42,A!$E$36:$F$44,2,FALSE),IF(Main!L42="O-I",VLOOKUP(D42,A!$H$36:$I$44,2,FALSE),IF(Main!L42="O-II",VLOOKUP(D42,A!$K$36:$L$44,2,FALSE),IF(Main!L42="O-III",VLOOKUP(D42,A!$N$36:$O$44,2,FALSE),IF(Main!L42="O-IV",VLOOKUP(D42,A!$Q$36:$R$44,2,FALSE),IF(Main!L42="O-V",VLOOKUP(D42,A!$T$36:$U$44,2,FALSE),IF(Main!L42="O-VI",VLOOKUP(D42,A!$W$36:$X$44,2,FALSE),IF(Main!L42="O-VII",VLOOKUP(D42,A!$Z$36:$AA$44,2,FALSE),IF(Main!L42=" ",0,"Error"))))))))))) -> 0 | E89: =IF(E42=0,0,IF(B89="S.Staff",VLOOKUP(E42,A!$D$163:$E$168,2,FALSE),IF(B89="Clerk",VLOOKUP(E42,A!$B$163:$C$168,2,FALSE),VLOOKUP(E42,A!$F$163:$G$168,2,FALSE)))) -> 0 | F89: =IF(F42=0,0,IF(B42="Clerk",VLOOKUP(F42,A!$G$178:$H$182,2,FALSE),IF(B42="S.Staff",VLOOKUP(F42,A!$N$178:$O$187,2,FALSE),0))) -> 0 | H89: =ROUND((C89+E89+F89+G89)*A!E116*A!$E$80,2) -> 0 | I89: =ROUND((C89+E89+F89+G89)*Main!AB42,2) -> 0 | J89: =MIN(ROUND(C89*Main!AD42,2),Main!AE42) -> 0 | K89: 0 | L89: 0 | M89: =IF(Main!$C$3="PF",ROUND(('Calculation Sheet'!C89+'Calculation Sheet'!Z89+'Calculation Sheet'!E89+'Calculation Sheet'!F89+'Calculation Sheet'!G89)*10%,2),IF(Main!$C$3="NPS",ROUND(('Calculation Sheet'!C89+'Calculation Sheet'!Z89+'Calculation Sheet'!E89+'Calculation Sheet'!F89+'Calculation Sheet'!G89+'Calculation Sheet'!H89)*12%,0),0)) -> 0 | N89: 0 | O89: 0 | P89: 0 | Q89: 0 | R89: 0 | S89: ---- | Z89: =IF(D89<>0,IF(B42="Clerk",A!$F$36,IF(B42="S.Staff",A!$C$36,IF(B42="O-I",A!$I$36,IF(B42="O-II",A!$L$36,IF(B42="O-III",A!$O$36,IF(B42="O-IV",A!$R$36,IF(B42="O-V",A!$U$36,IF(B42="O-VI",A!$X$36,IF(B42="O-VII",A!$AA$36,))))))))),0) -> 0 | AB89: 31
C90: =IF(B90="S.Staff",VLOOKUP(C43,A!$B$4:$C$31,2,FALSE),IF(B90="Clerk",VLOOKUP(C43,A!$E$4:$F$30,2,FALSE),IF(B90="O-I",VLOOKUP(C43,A!$H$4:$I$27,2,FALSE),IF(B90="O-II",VLOOKUP(C43,A!$K$4:$L$22,2,FALSE),IF(B90="O-III",VLOOKUP(C43,A!$N$4:$O$15,2,FALSE),IF(B90="O-IV",VLOOKUP(C43,A!$Q$4:$R$10,2,FALSE),IF(B90="O-V",VLOOKUP(C43,A!$T$4:$U$8,2,FALSE),IF(B90="O-VI",VLOOKUP(C43,A!$W$4:$X$8,2,FALSE),IF(B90="O-VII",VLOOKUP(C43,A!$Z$4:$AA$8,2,FALSE),IF(B90=" ",0,"Error")))))))))) -> 0 | D90: =IF(D43=0,0,IF(Main!L43="S.Staff",VLOOKUP(D43,A!$B$36:$C$44,2,FALSE),IF(Main!L43="Clerk",VLOOKUP(D43,A!$E$36:$F$44,2,FALSE),IF(Main!L43="O-I",VLOOKUP(D43,A!$H$36:$I$44,2,FALSE),IF(Main!L43="O-II",VLOOKUP(D43,A!$K$36:$L$44,2,FALSE),IF(Main!L43="O-III",VLOOKUP(D43,A!$N$36:$O$44,2,FALSE),IF(Main!L43="O-IV",VLOOKUP(D43,A!$Q$36:$R$44,2,FALSE),IF(Main!L43="O-V",VLOOKUP(D43,A!$T$36:$U$44,2,FALSE),IF(Main!L43="O-VI",VLOOKUP(D43,A!$W$36:$X$44,2,FALSE),IF(Main!L43="O-VII",VLOOKUP(D43,A!$Z$36:$AA$44,2,FALSE),IF(Main!L43=" ",0,"Error"))))))))))) -> 0 | E90: =IF(E43=0,0,IF(B90="S.Staff",VLOOKUP(E43,A!$D$163:$E$168,2,FALSE),IF(B90="Clerk",VLOOKUP(E43,A!$B$163:$C$168,2,FALSE),VLOOKUP(E43,A!$F$163:$G$168,2,FALSE)))) -> 0 | F90: =IF(F43=0,0,IF(B43="Clerk",VLOOKUP(F43,A!$G$178:$H$182,2,FALSE),IF(B43="S.Staff",VLOOKUP(F43,A!$N$178:$O$187,2,FALSE),0))) -> 0 | H90: =ROUND((C90+E90+F90+G90)*A!E117*A!$E$80,2) -> 0 | I90: =ROUND((C90+E90+F90+G90)*Main!AB43,2) -> 0 | J90: =MIN(ROUND(C90*Main!AD43,2),Main!AE43) -> 0 | K90: 0 | L90: 0 | M90: =IF(Main!$C$3="PF",ROUND(('Calculation Sheet'!C90+'Calculation Sheet'!Z90+'Calculation Sheet'!E90+'Calculation Sheet'!F90+'Calculation Sheet'!G90)*10%,2),IF(Main!$C$3="NPS",ROUND(('Calculation Sheet'!C90+'Calculation Sheet'!Z90+'Calculation Sheet'!E90+'Calculation Sheet'!F90+'Calculation Sheet'!G90+'Calculation Sheet'!H90)*12%,0),0)) -> 0 | N90: 0 | O90: 0 | P90: 0 | Q90: 0 | R90: 0 | S90: ---- | Z90: =IF(D90<>0,IF(B43="Clerk",A!$F$36,IF(B43="S.Staff",A!$C$36,IF(B43="O-I",A!$I$36,IF(B43="O-II",A!$L$36,IF(B43="O-III",A!$O$36,IF(B43="O-IV",A!$R$36,IF(B43="O-V",A!$U$36,IF(B43="O-VI",A!$X$36,IF(B43="O-VII",A!$AA$36,))))))))),0) -> 0 | AB90: 30
C91: =IF(B91="S.Staff",VLOOKUP(C44,A!$B$4:$C$31,2,FALSE),IF(B91="Clerk",VLOOKUP(C44,A!$E$4:$F$30,2,FALSE),IF(B91="O-I",VLOOKUP(C44,A!$H$4:$I$27,2,FALSE),IF(B91="O-II",VLOOKUP(C44,A!$K$4:$L$22,2,FALSE),IF(B91="O-III",VLOOKUP(C44,A!$N$4:$O$15,2,FALSE),IF(B91="O-IV",VLOOKUP(C44,A!$Q$4:$R$10,2,FALSE),IF(B91="O-V",VLOOKUP(C44,A!$T$4:$U$8,2,FALSE),IF(B91="O-VI",VLOOKUP(C44,A!$W$4:$X$8,2,FALSE),IF(B91="O-VII",VLOOKUP(C44,A!$Z$4:$AA$8,2,FALSE),IF(B91=" ",0,"Error")))))))))) -> 0 | D91: =IF(D44=0,0,IF(Main!L44="S.Staff",VLOOKUP(D44,A!$B$36:$C$44,2,FALSE),IF(Main!L44="Clerk",VLOOKUP(D44,A!$E$36:$F$44,2,FALSE),IF(Main!L44="O-I",VLOOKUP(D44,A!$H$36:$I$44,2,FALSE),IF(Main!L44="O-II",VLOOKUP(D44,A!$K$36:$L$44,2,FALSE),IF(Main!L44="O-III",VLOOKUP(D44,A!$N$36:$O$44,2,FALSE),IF(Main!L44="O-IV",VLOOKUP(D44,A!$Q$36:$R$44,2,FALSE),IF(Main!L44="O-V",VLOOKUP(D44,A!$T$36:$U$44,2,FALSE),IF(Main!L44="O-VI",VLOOKUP(D44,A!$W$36:$X$44,2,FALSE),IF(Main!L44="O-VII",VLOOKUP(D44,A!$Z$36:$AA$44,2,FALSE),IF(Main!L44=" ",0,"Error"))))))))))) -> 0 | E91: =IF(E44=0,0,IF(B91="S.Staff",VLOOKUP(E44,A!$D$163:$E$168,2,FALSE),IF(B91="Clerk",VLOOKUP(E44,A!$B$163:$C$168,2,FALSE),VLOOKUP(E44,A!$F$163:$G$168,2,FALSE)))) -> 0 | F91: =IF(F44=0,0,IF(B44="Clerk",VLOOKUP(F44,A!$G$178:$H$182,2,FALSE),IF(B44="S.Staff",VLOOKUP(F44,A!$N$178:$O$187,2,FALSE),0))) -> 0 | H91: =ROUND((C91+E91+F91+G91)*A!E118*A!$E$80,2) -> 0 | I91: =ROUND((C91+E91+F91+G91)*Main!AB44,2) -> 0 | J91: =MIN(ROUND(C91*Main!AD44,2),Main!AE44) -> 0 | K91: 0 | L91: 0 | M91: =IF(Main!$C$3="PF",ROUND(('Calculation Sheet'!C91+'Calculation Sheet'!Z91+'Calculation Sheet'!E91+'Calculation Sheet'!F91+'Calculation Sheet'!G91)*10%,2),IF(Main!$C$3="NPS",ROUND(('Calculation Sheet'!C91+'Calculation Sheet'!Z91+'Calculation Sheet'!E91+'Calculation Sheet'!F91+'Calculation Sheet'!G91+'Calculation Sheet'!H91)*12%,0),0)) -> 0 | N91: 0 | O91: 0 | P91: 0 | Q91: 0 | R91: 0 | S91: ---- | Z91: =IF(D91<>0,IF(B44="Clerk",A!$F$36,IF(B44="S.Staff",A!$C$36,IF(B44="O-I",A!$I$36,IF(B44="O-II",A!$L$36,IF(B44="O-III",A!$O$36,IF(B44="O-IV",A!$R$36,IF(B44="O-V",A!$U$36,IF(B44="O-VI",A!$X$36,IF(B44="O-VII",A!$AA$36,))))))))),0) -> 0 | AB91: 31
A92: Total 2015-16 | C92: =SUM(C83:C91) -> 0 | D92: =SUM(D83:D91) -> 0 | E92: 0 | F92: 0 | G92: 0 | H92: 0 | I92: 0 | J92: 0 | K92: 0 | L92: 0 | M92: 0 | N92: 0 | P92: =SUM(P83:P91) -> 0 | Q92: 0 | R92: 0 | S92: ----
A93: Grand Total | C93: =+C92+C82+C69+C56 -> 329448 | D93: =+D92+D82+D69+D56 -> 0 | E93: 0 | F93: 0 | G93: 0 | H93: 73172.72 | I93: 32944.8 | J93: 0 | K93: 6300 | L93: 0 | M93: 0 | N93: 441865.52 | P93: =+P92+P82+P69+P56 -> 0 | Q93: 441865.52 | R93: 25377.92 | S93: 0.06093319465
A94: Software By:- A. Suri - PSB ZO, Amritsar (suri.wagerevision@gmail.com) | H94: Downloaded from AllBankingSolutions.com
A95: Errors/Suggestions in sheet may be mailed at suri.wagerevision@gmail.com, so that improvement may be made in the final calculation sheet after settlement

Sheet Sheet2 (hidden)
B3: Sub Stf
C4: 0 | G4: ADDITIONAL | J4: 0
C5: Old | D5: New | F5: =401*0.15 -> 60.15 | G5: 63 | I5: NEW SCALE | J5: INCREASE | K5: PAY SCALE
C6: 5850 | E6: =ROUND(C6+C6*60.15/100,0) -> 9369 | F6: =ROUND(C6*$F$5/100,0) -> 3519 | G6: =ROUND((C6+C6*$G$5/100)*2/100,0) -> 191 | I6: =+E6+G6 -> 9560 | J6: =ROUND(I6*J4/100,0) -> 0 | K6: =CEILING(+I6+J6,5) -> 9560 | M6: =ROUND((K6-E6)/E6*100,2) -> 2.04 | O6: =ROUND(C6+C6*60.15/100+(C6+C6*63/100)*2/100,0) -> 9559
C7: 6050 | D7: =+C7-C6 -> 200 | E7: =ROUND(C7+C7*60.15/100,0) -> 9689 | F7: =ROUND(D7*$F$5/100,0) -> 120 | G7: =ROUND((C7+C7*$G$5/100)*2/100,0) -> 197 | H7: =CEILING((+D7+F7+G7)+(D7+F7+G7)*$J$4/100,5) -> 520 | I7: =+E7+G7 -> 9886 | K7: =+K6+H7 -> 10080 | M7: =ROUND((K7-E7)/E7*100,2) -> 4.04 | O7: =ROUND(C7+C7*60.15/100+(C7+C7*63/100)*2/100,0) -> 9886
C8: 6250 | D8: =+C8-C7 -> 200 | E8: 10009 | F8: =ROUND(D8*$F$5/100,0) -> 120 | G8: 204 | H8: =CEILING((+D8+F8+G8)+(D8+F8+G8)*$J$4/100,5) -> 525 | I8: 10213 | K8: =+K7+H8 -> 10605 | M8: 5.95
C9: 6450 | D9: 200 | E9: 10330 | F9: 120 | G9: 210 | H9: 530 | I9: 10540 | K9: 11135 | M9: 7.79
C10: 6650 | D10: 200 | E10: 10650 | F10: 120 | G10: 217 | H10: 540 | I10: 10867 | K10: 11675 | M10: 9.62
C11: 6900 | D11: 250 | E11: 11050 | F11: 150 | G11: 225 | H11: 625 | I11: 11275 | K11: 12300 | M11: 11.31
C12: 7150 | D12: 250 | E12: 11451 | F12: 150 | G12: 233 | H12: 635 | I12: 11684 | K12: 12935 | M12: 12.96
C13: 7400 | D13: 250 | E13: 11851 | F13: 150 | G13: 241 | H13: 645 | I13: 12092 | K13: 13580 | M13: 14.59
C14: 7650 | D14: 250 | E14: 12251 | F14: 150 | G14: 249 | H14: 650 | I14: 12500 | K14: 14230 | M14: 16.15
C15: 7900 | D15: 250 | E15: 12652 | F15: 150 | G15: 258 | H15: 660 | I15: 12910 | K15: 14890 | M15: 17.69
C16: 8200 | D16: 300 | E16: 13132 | F16: 180 | G16: 267 | H16: 750 | I16: 13399 | K16: 15640 | M16: 19.1
C17: 8500 | D17: 300 | E17: 13613 | F17: 180 | G17: 277 | H17: 760 | I17: 13890 | K17: 16400 | M17: 20.47
C18: 8800 | D18: 300 | E18: 14093 | F18: 180 | G18: 287 | H18: 770 | I18: 14380 | K18: 17170 | M18: 21.83
C19: 9100 | D19: 300 | E19: 14574 | F19: 180 | G19: 297 | H19: 780 | I19: 14871 | K19: 17950 | M19: 23.16
C20: 9450 | D20: 350 | E20: 15134 | F20: 211 | G20: 308 | H20: 870 | I20: 15442 | K20: 18820 | M20: 24.36
C21: 9800 | D21: 350 | E21: 15695 | F21: 211 | G21: 319 | H21: 880 | I21: 16014 | K21: 19700 | M21: 25.52
C22: 10150 | D22: 350 | E22: 16255 | F22: 211 | G22: 331 | H22: 895 | I22: 16586 | K22: 20595 | M22: 26.7
C23: 10550 | D23: 400 | E23: 16896 | F23: 241 | G23: 344 | H23: 985 | I23: 17240 | K23: 21580 | M23: 27.72
C24: 10950 | D24: 400 | E24: 17536 | F24: 241 | G24: 357 | H24: 1000 | I24: 17893 | K24: 22580 | M24: 28.76
C25: 11350 | D25: 400 | E25: 18177 | F25: 241 | G25: 370 | H25: 1015 | I25: 18547 | K25: 23595 | M25: 29.81
C26: 11750 | D26: 400 | E26: 18818 | F26: 241 | G26: 383 | H26: 1025 | I26: 19201 | K26: 24620 | M26: 30.83
C27: 12150 | D27: 400 | E27: 19458 | F27: 241 | G27: 396 | H27: 1040 | I27: 19854 | K27: 25660 | M27: 31.87
C28: 12550 | D28: 400 | E28: 20099 | F28: 241 | G28: 409 | H28: 1050 | I28: 20508 | K28: 26710 | M28: 32.89
C29: 12950 | D29: 400 | E29: 20739 | F29: 241 | G29: 422 | H29: 1065 | I29: 21161 | K29: 27775 | M29: 33.93
C30: 13350 | D30: 400 | E30: 21380 | F30: 241 | G30: 435 | H30: 1080 | I30: 21815 | K30: 28855 | M30: 34.96
C31: 13750 | D31: 400 | E31: 22021 | F31: 241 | G31: 448 | H31: 1090 | I31: 22469 | K31: 29945 | M31: 35.98
C32: 14150 | D32: 400 | E32: 22661 | F32: 241 | G32: 461 | H32: 1105 | I32: 23122 | K32: 31050 | M32: 37.02
C33: 14550 | D33: 400 | E33: 23302 | F33: 241 | G33: 474 | H33: 1115 | I33: 23776 | K33: 32165 | M33: 38.04
B37: Clk
C38: 0 | G38: ADDITIONAL | J38: 10
C39: Old | D39: New | F39: =401*0.15 -> 60.15 | G39: 63 | I39: NEW SCALE | J39: INCREASE | K39: PAY SCALE
C40: 7200 | E40: =ROUND(C40+C40*60.15/100,0) -> 11531 | F40: =ROUND(C40*$F$5/100,0) -> 4331 | G40: =ROUND((C40+C40*$G$5/100)*2/100,0) -> 235 | I40: =+C40+F40+G40 -> 11766 | J40: =ROUND(I40*J38/100,0) -> 1177 | K40: =CEILING(+I40+J40,5) -> 12945 | M40: =ROUND((K40-E40)/E40*100,2) -> 12.26
C41: 7600 | D41: =+C41-C40 -> 400 | E41: =ROUND(C41+C41*60.15/100,0) -> 12171 | F41: =ROUND(D41*$F$5/100,0) -> 241 | G41: =ROUND((D41+D41*$G$5/100)*2/100,0) -> 13 | H41: =CEILING((+D41+F41+G41)+(D41+F41+G41)*$J$4/100,5) -> 655 | I41: =+I40+H41 -> 12421 | K41: =+K40+H41 -> 13600 | M41: =ROUND((K41-E41)/E41*100,2) -> 11.74
C42: 8000 | D42: =+C42-C41 -> 400 | E42: 12812 | F42: =ROUND(D42*$F$5/100,0) -> 241 | G42: =ROUND((D42+D42*$G$5/100)*2/100,0) -> 13 | H42: =CEILING((+D42+F42+G42)+(D42+F42+G42)*$J$4/100,5) -> 655 | I42: =+I41+H42 -> 13076 | K42: =+K41+H42 -> 14255 | M42: 11.26
C43: 8400 | D43: 400 | E43: 13453 | F43: 241 | G43: 13 | H43: 655 | I43: 13731 | K43: 14910 | M43: 10.83
C44: 8900 | D44: 500 | E44: 14253 | F44: 301 | G44: 16 | H44: 820 | I44: 14551 | K44: 15730 | M44: 10.36
C45: 9400 | D45: 500 | E45: 15054 | F45: 301 | G45: 16 | H45: 820 | I45: 15371 | K45: 16550 | M45: 9.94
C46: 9900 | D46: 500 | E46: 15855 | F46: 301 | G46: 16 | H46: 820 | I46: 16191 | K46: 17370 | M46: 9.56
C47: 10500 | D47: 600 | E47: 16816 | F47: 361 | G47: 20 | H47: 985 | I47: 17176 | K47: 18355 | M47: 9.15
C48: 11100 | D48: 600 | E48: 17777 | F48: 361 | G48: 20 | H48: 985 | I48: 18161 | K48: 19340 | M48: 8.79
C49: 11700 | D49: 600 | E49: 18738 | F49: 361 | G49: 20 | H49: 985 | I49: 19146 | K49: 20325 | M49: 8.47
C50: 12300 | D50: 600 | E50: 19698 | F50: 361 | G50: 20 | H50: 985 | I50: 20131 | K50: 21310 | M50: 8.18
C51: 13000 | D51: 700 | E51: 20820 | F51: 421 | G51: 23 | H51: 1145 | I51: 21276 | K51: 22455 | M51: 7.85
C52: 13700 | D52: 700 | E52: 21941 | F52: 421 | G52: 23 | H52: 1145 | I52: 22421 | K52: 23600 | M52: 7.56
C53: 14400 | D53: 700 | E53: 23062 | F53: 421 | G53: 23 | H53: 1145 | I53: 23566 | K53: 24745 | M53: 7.3
C54: 15100 | D54: 700 | E54: 24183 | F54: 421 | G54: 23 | H54: 1145 | I54: 24711 | K54: 25890 | M54: 7.06
C55: 15800 | D55: 700 | E55: 25304 | F55: 421 | G55: 23 | H55: 1145 | I55: 25856 | K55: 27035 | M55: 6.84
C56: 16500 | D56: 700 | E56: 26425 | F56: 421 | G56: 23 | H56: 1145 | I56: 27001 | K56: 28180 | M56: 6.64
C57: 17200 | D57: 700 | E57: 27546 | F57: 421 | G57: 23 | H57: 1145 | I57: 28146 | K57: 29325 | M57: 6.46
C58: 18500 | D58: 1300 | E58: 29628 | F58: 782 | G58: 42 | H58: 2125 | I58: 30271 | K58: 31450 | M58: 6.15
C59: 19300 | D59: 800 | E59: 30909 | F59: 481 | G59: 26 | H59: 1310 | I59: 31581 | K59: 32760 | M59: 5.99
C60: 20100 | D60: 800 | E60: 32190 | F60: 481 | G60: 26 | H60: 1310 | I60: 32891 | K60: 34070 | M60: 5.84
C61: 20900 | D61: 800 | E61: 33471 | F61: 481 | G61: 26 | H61: 1310 | I61: 34201 | K61: 35380 | M61: 5.7
C62: 21700 | D62: 800 | E62: 34753 | F62: 481 | G62: 26 | H62: 1310 | I62: 35511 | K62: 36690 | M62: 5.57
C63: 22500 | D63: 800 | E63: 36034 | F63: 481 | G63: 26 | H63: 1310 | I63: 36821 | K63: 38000 | M63: 5.46
C64: 23300 | D64: 800 | E64: 37315 | F64: 481 | G64: 26 | H64: 1310 | I64: 38131 | K64: 39310 | M64: 5.35
C65: 24100 | D65: 800 | E65: 38596 | F65: 481 | G65: 26 | H65: 1310 | I65: 39441 | K65: 40620 | M65: 5.24
C66: 24900 | D66: 800 | E66: 39877 | F66: 481 | G66: 26 | H66: 1310 | I66: 40751 | K66: 41930 | M66: 5.15
B71: I
C72: 0 | G72: ADDITIONAL | J72: 10
C73: Old | D73: New | F73: =401*0.15 -> 60.15 | G73: 63 | I73: NEW SCALE | J73: INCREASE | K73: PAY SCALE
C74: 14500 | E74: =ROUND(C74+C74*60.15/100,0) -> 23222 | F74: =ROUND(C74*$F$5/100,0) -> 8722 | G74: =ROUND((C74+C74*$G$5/100)*2/100,0) -> 473 | I74: =+C74+F74+G74 -> 23695 | J74: =ROUND(I74*J72/100,0) -> 2370 | K74: =CEILING(+I74+J74,5) -> 26065 | M74: =ROUND((K74-E74)/E74*100,2) -> 12.24
C75: =+C74+600 -> 15100 | D75: =+C75-C74 -> 600 | E75: =ROUND(C75+C75*60.15/100,0) -> 24183 | F75: =ROUND(D75*$F$5/100,0) -> 361 | G75: =ROUND((D75+D75*$G$5/100)*2/100,0) -> 20 | H75: =CEILING((+D75+F75+G75)+(D75+F75+G75)*$J$4/100,5) -> 985 | I75: =+I74+H75 -> 24680 | K75: =+K74+H75 -> 27050 | M75: =ROUND((K75-E75)/E75*100,2) -> 11.86
C76: 15700 | D76: =+C76-C75 -> 600 | E76: 25144 | F76: =ROUND(D76*$F$5/100,0) -> 361 | G76: =ROUND((D76+D76*$G$5/100)*2/100,0) -> 20 | H76: =CEILING((+D76+F76+G76)+(D76+F76+G76)*$J$4/100,5) -> 985 | I76: =+I75+H76 -> 25665 | K76: =+K75+H76 -> 28035 | M76: 11.5
C77: 16300 | D77: 600 | E77: 26104 | F77: 361 | G77: 20 | H77: 985 | I77: 26650 | K77: 29020 | M77: 11.17
C78: 16900 | D78: 600 | E78: 27065 | F78: 361 | G78: 20 | H78: 985 | I78: 27635 | K78: 30005 | M78: 10.86
C79: 17500 | D79: 600 | E79: 28026 | F79: 361 | G79: 20 | H79: 985 | I79: 28620 | K79: 30990 | M79: 10.58
C80: 18100 | D80: 600 | E80: 28987 | F80: 361 | G80: 20 | H80: 985 | I80: 29605 | K80: 31975 | M80: 10.31
C81: 18700 | D81: 600 | E81: 29948 | F81: 361 | G81: 20 | H81: 985 | I81: 30590 | K81: 32960 | M81: 10.06
C82: =+C81+700 -> 19400 | D82: 700 | E82: 31069 | F82: 421 | G82: 23 | H82: 1145 | I82: 31735 | K82: 34105 | M82: 9.77
C83: =+C82+700 -> 20100 | D83: 700 | E83: 32190 | F83: 421 | G83: 23 | H83: 1145 | I83: 32880 | K83: 35250 | M83: 9.51
C84: =+C83+800 -> 20900 | D84: 800 | E84: 33471 | F84: 481 | G84: 26 | H84: 1310 | I84: 34190 | K84: 36560 | M84: 9.23
C85: =+C84+800 -> 21700 | D85: 800 | E85: 34753 | F85: 481 | G85: 26 | H85: 1310 | I85: 35500 | K85: 37870 | M85: 8.97
C86: 22500 | D86: 800 | E86: 36034 | F86: 481 | G86: 26 | H86: 1310 | I86: 36810 | K86: 39180 | M86: 8.73
C87: 23300 | D87: 800 | E87: 37315 | F87: 481 | G87: 26 | H87: 1310 | I87: 38120 | K87: 40490 | M87: 8.51
C88: 24100 | D88: 800 | E88: 38596 | F88: 481 | G88: 26 | H88: 1310 | I88: 39430 | K88: 41800 | M88: 8.3
C89: 24900 | D89: 800 | E89: 39877 | F89: 481 | G89: 26 | H89: 1310 | I89: 40740 | K89: 43110 | M89: 8.11
C90: 25700 | D90: 800 | E90: 41159 | F90: 481 | G90: 26 | H90: 1310 | I90: 42050 | K90: 44420 | M90: 7.92
C91: 26500 | D91: 800 | E91: 42440 | F91: 481 | G91: 26 | H91: 1310 | I91: 43360 | K91: 45730 | M91: 7.75
C92: 27300 | D92: 800 | E92: 43721 | F92: 481 | G92: 26 | H92: 1310 | I92: 44670 | K92: 47040 | M92: 7.59
C93: 28100 | D93: 800 | E93: 45002 | F93: 481 | G93: 26 | H93: 1310 | I93: 45980 | K93: 48350 | M93: 7.44
C94: 28900 | D94: 800 | E94: 46283 | F94: 481 | G94: 26 | H94: 1310 | I94: 47290 | K94: 49660 | M94: 7.3
C95: 29700 | D95: 800 | E95: 47565 | F95: 481 | G95: 26 | H95: 1310 | I95: 48600 | K95: 50970 | M95: 7.16
C96: =+C95+900 -> 30600 | D96: 900 | E96: 49006 | F96: 541 | G96: 29 | H96: 1470 | I96: 50070 | K96: 52440 | M96: 7.01
C97: =+C96+900 -> 31500 | D97: 900 | E97: 50447 | F97: 541 | G97: 29 | H97: 1470 | I97: 51540 | K97: 53910 | M97: 6.86
B101: II
C102: 0 | G102: ADDITIONAL | J102: 10
C103: Old | D103: New | F103: =401*0.15 -> 60.15 | G103: 63 | I103: NEW SCALE | J103: INCREASE | K103: PAY SCALE
C104: 19400 | E104: =ROUND(C104+C104*60.15/100,0) -> 31069 | F104: =ROUND(C104*$F$5/100,0) -> 11669 | G104: =ROUND((C104+C104*$G$5/100)*2/100,0) -> 632 | I104: =+C104+F104+G104 -> 31701 | J104: =ROUND(I104*J102/100,0) -> 3170 | K104: =CEILING(+I104+J104,5) -> 34875 | M104: =ROUND((K104-E104)/E104*100,2) -> 12.25
C105: =+C104+700 -> 20100 | D105: =+C105-C104 -> 700 | E105: =ROUND(C105+C105*60.15/100,0) -> 32190 | F105: =ROUND(D105*$F$5/100,0) -> 421 | G105: =ROUND((D105+D105*$G$5/100)*2/100,0) -> 23 | H105: =CEILING((+D105+F105+G105)+(D105+F105+G105)*$J$4/100,5) -> 1145 | I105: =+I104+H105 -> 32846 | K105: =+K104+H105 -> 36020 | M105: =ROUND((K105-E105)/E105*100,2) -> 11.9
C106: =+C105+800 -> 20900 | D106: =+C106-C105 -> 800 | E106: 33471 | F106: =ROUND(D106*$F$5/100,0) -> 481 | G106: =ROUND((D106+D106*$G$5/100)*2/100,0) -> 26 | H106: =CEILING((+D106+F106+G106)+(D106+F106+G106)*$J$4/100,5) -> 1310 | I106: =+I105+H106 -> 34156 | K106: =+K105+H106 -> 37330 | M106: 11.53
C107: =+C106+800 -> 21700 | D107: 800 | E107: 34753 | F107: 481 | G107: 26 | H107: 1310 | I107: 35466 | K107: 38640 | M107: 11.18
C108: 22500 | D108: 800 | E108: 36034 | F108: 481 | G108: 26 | H108: 1310 | I108: 36776 | K108: 39950 | M108: 10.87
C109: 23300 | D109: 800 | E109: 37315 | F109: 481 | G109: 26 | H109: 1310 | I109: 38086 | K109: 41260 | M109: 10.57
C110: 24100 | D110: 800 | E110: 38596 | F110: 481 | G110: 26 | H110: 1310 | I110: 39396 | K110: 42570 | M110: 10.3
C111: 24900 | D111: 800 | E111: 39877 | F111: 481 | G111: 26 | H111: 1310 | I111: 40706 | K111: 43880 | M111: 10.04
C112: 25700 | D112: 800 | E112: 41159 | F112: 481 | G112: 26 | H112: 1310 | I112: 42016 | K112: 45190 | M112: 9.79
C113: 26500 | D113: 800 | E113: 42440 | F113: 481 | G113: 26 | H113: 1310 | I113: 43326 | K113: 46500 | M113: 9.57
C114: 27300 | D114: 800 | E114: 43721 | F114: 481 | G114: 26 | H114: 1310 | I114: 44636 | K114: 47810 | M114: 9.35
C115: 28100 | D115: 800 | E115: 45002 | F115: 481 | G115: 26 | H115: 1310 | I115: 45946 | K115: 49120 | M115: 9.15
C116: 28900 | D116: 800 | E116: 46283 | F116: 481 | G116: 26 | H116: 1310 | I116: 47256 | K116: 50430 | M116: 8.96
C117: 29700 | D117: 800 | E117: 47565 | F117: 481 | G117: 26 | H117: 1310 | I117: 48566 | K117: 51740 | M117: 8.78
C118: =+C117+900 -> 30600 | D118: 900 | E118: 49006 | F118: 541 | G118: 29 | H118: 1470 | I118: 50036 | K118: 53210 | M118: 8.58
C119: =+C118+900 -> 31500 | D119: 900 | E119: 50447 | F119: 541 | G119: 29 | H119: 1470 | I119: 51506 | K119: 54680 | M119: 8.39
C120: =+C119+900 -> 32400 | D120: 900 | E120: 51889 | F120: 541 | G120: 29 | H120: 1470 | I120: 52976 | K120: 56150 | M120: 8.21
C121: =+C120+900 -> 33300 | D121: 900 | E121: 53330 | F121: 541 | G121: 29 | H121: 1470 | I121: 54446 | K121: 57620 | M121: 8.04
C122: =+C121+900 -> 34200 | D122: 900 | E122: 54771 | F122: 541 | G122: 29 | H122: 1470 | I122: 55916 | K122: 59090 | M122: 7.89
B128: III
C129: 0 | G129: ADDITIONAL | J129: 10
C130: Old | D130: New | F130: =401*0.15 -> 60.15 | G130: 63 | I130: NEW SCALE | J130: INCREASE | K130: PAY SCALE
C131: 25700 | E131: =ROUND(C131+C131*60.15/100,0) -> 41159 | F131: =ROUND(C131*$F$5/100,0) -> 15459 | G131: =ROUND((C131+C131*$G$5/100)*2/100,0) -> 838 | I131: =+C131+F131+G131 -> 41997 | J131: =ROUND(I131*J129/100,0) -> 4200 | K131: =CEILING(+I131+J131,5) -> 46200 | M131: =ROUND((K131-E131)/E131*100,2) -> 12.25
C132: =+C131+800 -> 26500 | D132: =+C132-C131 -> 800 | E132: =ROUND(C132+C132*60.15/100,0) -> 42440 | F132: =ROUND(D132*$F$5/100,0) -> 481 | G132: =ROUND((D132+D132*$G$5/100)*2/100,0) -> 26 | H132: =CEILING((+D132+F132+G132)+(D132+F132+G132)*$J$4/100,5) -> 1310 | I132: =+I131+H132 -> 43307 | K132: =+K131+H132 -> 47510 | M132: =ROUND((K132-E132)/E132*100,2) -> 11.95
C133: =+C132+800 -> 27300 | D133: =+C133-C132 -> 800 | E133: 43721 | F133: =ROUND(D133*$F$5/100,0) -> 481 | G133: =ROUND((D133+D133*$G$5/100)*2/100,0) -> 26 | H133: =CEILING((+D133+F133+G133)+(D133+F133+G133)*$J$4/100,5) -> 1310 | I133: =+I132+H133 -> 44617 | K133: =+K132+H133 -> 48820 | M133: 11.66
C134: =+C133+800 -> 28100 | D134: 800 | E134: 45002 | F134: 481 | G134: 26 | H134: 1310 | I134: 45927 | K134: 50130 | M134: 11.4
C135: =+C134+800 -> 28900 | D135: 800 | E135: 46283 | F135: 481 | G135: 26 | H135: 1310 | I135: 47237 | K135: 51440 | M135: 11.14
C136: =+C135+800 -> 29700 | D136: 800 | E136: 47565 | F136: 481 | G136: 26 | H136: 1310 | I136: 48547 | K136: 52750 | M136: 10.9
C137: =+C136+900 -> 30600 | D137: 900 | E137: 49006 | F137: 541 | G137: 29 | H137: 1470 | I137: 50017 | K137: 54220 | M137: 10.64
C138: 31500 | D138: 900 | E138: 50447 | F138: 541 | G138: 29 | H138: 1470 | I138: 51487 | K138: 55690 | M138: 10.39
C139: 32400 | D139: 900 | E139: 51889 | F139: 541 | G139: 29 | H139: 1470 | I139: 52957 | K139: 57160 | M139: 10.16
C140: 33300 | D140: 900 | E140: 53330 | F140: 541 | G140: 29 | H140: 1470 | I140: 54427 | K140: 58630 | M140: 9.94
C141: 34200 | D141: 900 | E141: 54771 | F141: 541 | G141: 29 | H141: 1470 | I141: 55897 | K141: 60100 | M141: 9.73
C142: 35100 | D142: 900 | E142: 56213 | F142: 541 | G142: 29 | H142: 1470 | I142: 57367 | K142: 61570 | M142: 9.53

Sheet Sheet3 (hidden)
A1: =+Main!A1 -> ** 1.0/0103215** | D1: =+Main!D1 -> Suri | P1: Page 1 of 2 | AL1: 0.0015 | AM1: 0.0012 | AN1: 0.001
A2: BP+DA - Drawn | R2: PROPOSED BP+DA (with DA SLAB @ 0.15, 0.12 & 0.10) | AC2: SLAB RATE @ 0.15 | AE2: SLAB RATE @ 0.12 | AG2: SLAB RATE @ 0.10
A3: Period | B3: Desg. | C3: Basic Pay - 1 | D3: FPP 2 | E3: Grd/PQP 3 | F3: Spl. All. 4 | G3: Other 5 | H3: D.A. 2 | I3: HRA 7 | J3: CCA 8 | K3: Conv. 9 | L3: Wash. 10 | M3: Bank PF 11 | N3: Total - 1+2 3 | O3: WP Day | P3: WP Amt 13 | Q3: Net 14 | R3: Basic Pay - 4 | S3: D.A. (SLAB RATE @ 0.15) 5 | T3: D.A. (SLAB RATE @ 0.12) 6 | U3: D.A. (SLAB RATE @ 0.10) 7 | V3: Total (4+5) 8 | W3: Total (4+6) 9 | X3: pf on fpp | Y3: from to | Z3: no.of days | AB3: Total (4+7) 10 | AC3: Arrear (8-3) | AD3: % increase | AE3: Arrear (9-3) | AF3: % increase | AG3: Arrear (10-3) | AH3: % increase
A4: =IF($Y4=1," ",Main!A7) -> Nov. 12 | B4: =IF($Y4=1," ",Main!B7) -> Clerk | C4: =IF(Y4=1,0,Main!D7) -> 7200 | D4: =IF(Y4=1,0,Main!M7) -> 0 | E4: =IF(Y4=1,0,Main!N7) -> 0 | F4: =IF(Y4=1,0,Main!Q7) -> 0 | H4: =ROUND((C4+E4+F4+G4)*A!D81*A!$D$80,2) -> 5508 | I4: =ROUND((C4+E4+F4+G4)*Main!H7,2) -> 720 | J4: =MIN(ROUND(C4*Main!K7,2),Main!J7) -> 0 | K4: =IF(B4="Clerk",IF(C4>14100,275,225),IF(B4="S.Staff",IF(C4>9100,275,225),0)) -> 225 | L4: =IF(B4="S.Staff",100,0) -> 0 | M4: =IF(Main!$C$3="PF",ROUND(('Calculation Sheet'!C4+'Calculation Sheet'!X4+'Calculation Sheet'!E4+'Calculation Sheet'!F4+'Calculation Sheet'!G4)*10%,2),IF(Main!$C$3="NPS",ROUND(('Calculation Sheet'!C4+'Calculation Sheet'!X5+'Calculation Sheet'!E4+'Calculation Sheet'!F4+'Calculation Sheet'!G4+'Calculation Sheet'!H4)*12%,0),0)) -> 0 | N4: =SUM(C4:M4) -> 13653 | O4: =IF(Y4=1,0,Main!C7) -> 0 | P4: =ROUND(N4*O4/Z4,2) -> 0 | Q4: =+N4-P4 -> 13653 | R4: =IF(B51="S.Staff",VLOOKUP(C4,A!$B$4:$C$31,2,FALSE),IF(B51="Clerk",VLOOKUP(C4,A!$E$4:$F$30,2,FALSE),IF(B51="O-I",VLOOKUP(C4,A!$H$4:$I$27,2,FALSE),IF(B51="O-II",VLOOKUP(C4,A!$K$4:$L$22,2,FALSE),IF(B51="O-III",VLOOKUP(C4,A!$N$4:$O$15,2,FALSE),IF(B51="O-IV",VLOOKUP(C4,A!$Q$4:$R$10,2,FALSE),IF(B51="O-V",VLOOKUP(C4,A!$T$4:$U$8,2,FALSE),IF(B51="O-VI",VLOOKUP(C4,A!$W$4:$X$8,2,FALSE),IF(B51="O-VII",VLOOKUP(C4,A!$Z$4:$AA$8,2,FALSE),IF(B51=" ",0,"Error")))))))))) -> 11766 | S4: =ROUND((R4+E51+F51+G51)*A!E81*$AL$1,2) -> 1923.74 | T4: =ROUND((R4+E51+F51+G51)*A!E81*$AM$1,2) -> 1538.99 | U4: =ROUND((R4+E51+F51+G51)*A!E81*$AN$1,2) -> 1282.49 | V4: =+R4+S4 -> 13689.74 | W4: =+R4+T4 -> 13304.99 | X4: =IF(D4<>0,IF(B4="Clerk",A!$E$36,IF(B4="S.Staff",A!$B$36,IF(B4="O-I",A!$H$36,IF(B4="O-II",A!$K$36,IF(B4="O-III",A!$N$36,IF(B4="O-IV",A!$Q$36,IF(B4="O-V",A!$T$36,IF(B4="O-VI",A!$W$36,IF(B4="O-VII",A!$Z$36,))))))))),0) -> 0 | Y4: =+Main!AA7 -> 0 | Z4: 30 | AB4: =+R4+U4 -> 13048.49 | AC4: =+V4-N4 -> 36.74 | AD4: =(AC4/N4) -> 0.002690983667 | AE4: =+W4-N4 -> -348.01 | AF4: =AE4/N4 -> -0.02548963598 | AG4: =+AB4-N4 -> -604.51 | AH4: =AG4/N4 -> -0.04427671574
A5: =IF($Y5=1," ",Main!A8) -> Dec.12 | B5: =IF(Y5=1," ",Main!B8) -> Clerk | C5: =IF(Y5=1,0,Main!D8) -> 7200 | D5: =IF(Y5=1,0,Main!M8) -> 0 | E5: =IF(Y5=1,0,Main!N8) -> 0 | F5: =IF(Y5=1,0,Main!Q8) -> 0 | H5: =ROUND((C5+E5+F5+G5)*A!D82*A!$D$80,2) -> 5508 | I5: =ROUND((C5+E5+F5+G5)*Main!H8,2) -> 720 | J5: =MIN(ROUND(C5*Main!K8,2),Main!J8) -> 0 | K5: =IF(B5="Clerk",IF(C5>14100,275,225),IF(B5="S.Staff",IF(C5>9100,275,225),0)) -> 225 | L5: =IF(B5="S.Staff",100,0) -> 0 | M5: =IF(Main!$C$3="PF",ROUND(('Calculation Sheet'!C5+'Calculation Sheet'!X5+'Calculation Sheet'!E5+'Calculation Sheet'!F5+'Calculation Sheet'!G5)*10%,2),IF(Main!$C$3="NPS",ROUND(('Calculation Sheet'!C5+'Calculation Sheet'!X6+'Calculation Sheet'!E5+'Calculation Sheet'!F5+'Calculation Sheet'!G5+'Calculation Sheet'!H5)*12%,0),0)) -> 0 | N5: =SUM(C5:M5) -> 13653 | O5: =IF(Y5=1,0,Main!C8) -> 0 | P5: =ROUND(N5*O5/Z5,2) -> 0 | Q5: =+N5-P5 -> 13653 | R5: =IF(B52="S.Staff",VLOOKUP(C5,A!$B$4:$C$31,2,FALSE),IF(B52="Clerk",VLOOKUP(C5,A!$E$4:$F$30,2,FALSE),IF(B52="O-I",VLOOKUP(C5,A!$H$4:$I$27,2,FALSE),IF(B52="O-II",VLOOKUP(C5,A!$K$4:$L$22,2,FALSE),IF(B52="O-III",VLOOKUP(C5,A!$N$4:$O$15,2,FALSE),IF(B52="O-IV",VLOOKUP(C5,A!$Q$4:$R$10,2,FALSE),IF(B52="O-V",VLOOKUP(C5,A!$T$4:$U$8,2,FALSE),IF(B52="O-VI",VLOOKUP(C5,A!$W$4:$X$8,2,FALSE),IF(B52="O-VII",VLOOKUP(C5,A!$Z$4:$AA$8,2,FALSE),IF(B52=" ",0,"Error")))))))))) -> 11766 | S5: =ROUND((R5+E52+F52+G52)*A!E82*$AL$1,2) -> 1923.74 | T5: =ROUND((R5+E52+F52+G52)*A!E82*$AM$1,2) -> 1538.99 | U5: =ROUND((R5+E52+F52+G52)*A!E82*$AN$1,2) -> 1282.49 | V5: =+R5+S5 -> 13689.74 | W5: =+R5+T5 -> 13304.99 | X5: =IF(D5<>0,IF(B5="Clerk",A!$E$36,IF(B5="S.Staff",A!$B$36,IF(B5="O-I",A!$H$36,IF(B5="O-II",A!$K$36,IF(B5="O-III",A!$N$36,IF(B5="O-IV",A!$Q$36,IF(B5="O-V",A!$T$36,IF(B5="O-VI",A!$W$36,IF(B5="O-VII",A!$Z$36,))))))))),0) -> 0 | Y5: =+Main!AA8 -> 0 | Z5: 30 | AB5: =+R5+U5 -> 13048.49 | AC5: =+V5-N5 -> 36.74 | AD5: =(AC5/N5) -> 0.002690983667 | AE5: =+W5-N5 -> -348.01 | AF5: =AE5/N5 -> -0.02548963598 | AG5: =+AB5-N5 -> -604.51 | AH5: =AG5/N5 -> -0.04427671574
